Workbook

Sheet Raw Data
A1: Station_name | B1: mon_feature_id | C1: date_time | D1: sample_begin_depth | E1: institution_abbr | F1: preservative_abbr | G1: Ca_Diss_Water | H1: Cl_Diss_Water | I1: DMS_Tot_Water | J1: EC_Phys_Water | K1: F_Diss_Water | L1: K_Diss_Water | M1: KJEL_N_Tot_Water | N1: Mg_Diss_Water | O1: Na_Diss_Water | P1: NH4_N_Diss_Water | Q1: NO3_NO2_N_Diss_Water | R1: P_Tot_Water | S1: pH_Diss_Water | T1: PO4_P_Diss_Water | U1: Si_Diss_Water | V1: SO4_Diss_Water | W1: TAL_Diss_Water | X1: Station | Y1: Qat | Z1: Description | AA1: Type | AB1: Flow, if any | AC1: Latitude | AD1: Longitude
A2: =LEFT(Y2,3) & " "&B2 -> B81 1000003138 | B2: 1000003138 | C2: 2004-12-07 | D2: 0 | E2: GP-ERWAT-LABORATORY | F2: COOLBOX/DARK | G2: 12.7 | H2: 66 | J2: 41 | K2: 0.2 | L2: 9.4 | N2: 5.9 | O2: 63.8 | Q2: 9.9 | S2: 7.1 | T2: 4.7 | V2: 18 | W2: 41 | Y2: B81D | Z2: =VLOOKUP(A2,'DWS Websnap'!$B$4:$M$158,4,FALSE) -> Nkowankowa Sewage Treatment Works Discharge Point to Letsitele River | AA2: =VLOOKUP(A2,'DWS Websnap'!$B$4:$M$158,5,FALSE) -> Pipeline | AB2: =VLOOKUP(A2,'DWS Websnap'!$B$4:$M$158,10,FALSE) -> n/a | AC2: =VLOOKUP(A2,'DWS Websnap'!$B$4:$M$158,11,FALSE) -> -23.89532 | AD2: =VLOOKUP(A2,'DWS Websnap'!$B$4:$M$158,12,FALSE) -> 30.31705
A3: B81 1000003138 | B3: 1000003138 | C3: 2005-04-06 | D3: 0 | E3: GP-ERWAT-LABORATORY | F3: COOLBOX/DARK | G3: 9.3 | H3: 39 | J3: 35 | K3: 0.05 | L3: 9.8 | N3: 8.7 | O3: 34.6 | Q3: 14.2 | S3: 5.8 | T3: 5.8 | V3: 18 | W3: 38 | Y3: B81D | Z3: =VLOOKUP(A3,'DWS Websnap'!$B$4:$M$158,4,FALSE) -> Nkowankowa Sewage Treatment Works Discharge Point to Letsitele River | AA3: =VLOOKUP(A3,'DWS Websnap'!$B$4:$M$158,5,FALSE) -> Pipeline | AB3: =VLOOKUP(A3,'DWS Websnap'!$B$4:$M$158,10,FALSE) -> n/a | AC3: =VLOOKUP(A3,'DWS Websnap'!$B$4:$M$158,11,FALSE) -> -23.89532 | AD3: =VLOOKUP(A3,'DWS Websnap'!$B$4:$M$158,12,FALSE) -> 30.31705
A4: B81 1000003138 | B4: 1000003138 | C4: 2005-05-18 | D4: 0 | E4: GP-ERWAT-LABORATORY | F4: COOLBOX/DARK | G4: 13.9 | H4: 103 | J4: 40 | K4: 0.4 | L4: 10.1 | N4: 2.4 | O4: 36.9 | S4: 7.3 | T4: 6.8 | V4: 13 | W4: 35 | Y4: B81D | Z4: =VLOOKUP(A4,'DWS Websnap'!$B$4:$M$158,4,FALSE) -> Nkowankowa Sewage Treatment Works Discharge Point to Letsitele River | AA4: =VLOOKUP(A4,'DWS Websnap'!$B$4:$M$158,5,FALSE) -> Pipeline | AB4: =VLOOKUP(A4,'DWS Websnap'!$B$4:$M$158,10,FALSE) -> n/a | AC4: =VLOOKUP(A4,'DWS Websnap'!$B$4:$M$158,11,FALSE) -> -23.89532 | AD4: =VLOOKUP(A4,'DWS Websnap'!$B$4:$M$158,12,FALSE) -> 30.31705
A5: B81 1000003138 | B5: 1000003138 | C5: 2005-07-12 | D5: 0 | E5: GP-ERWAT-LABORATORY | F5: COOLBOX/DARK | G5: 14.7 | H5: 45 | J5: 45 | K5: 0.2 | L5: 31 | N5: 7.3 | O5: 35.5 | Q5: 13.4 | S5: 7.2 | T5: 6 | V5: 18 | W5: 89 | Y5: B81D | Z5: =VLOOKUP(A5,'DWS Websnap'!$B$4:$M$158,4,FALSE) -> Nkowankowa Sewage Treatment Works Discharge Point to Letsitele River | AA5: =VLOOKUP(A5,'DWS Websnap'!$B$4:$M$158,5,FALSE) -> Pipeline | AB5: =VLOOKUP(A5,'DWS Websnap'!$B$4:$M$158,10,FALSE) -> n/a | AC5: =VLOOKUP(A5,'DWS Websnap'!$B$4:$M$158,11,FALSE) -> -23.89532 | AD5: =VLOOKUP(A5,'DWS Websnap'!$B$4:$M$158,12,FALSE) -> 30.31705
A6: B81 1000003138 | B6: 1000003138 | C6: 2005-08-15 | D6: 0 | E6: GP-ERWAT-LABORATORY | F6: COOLBOX/DARK | G6: 7.8 | H6: 45 | J6: 39 | K6: 0.2 | L6: 14.2 | N6: 4.3 | O6: 46.3 | Q6: 13.5 | S6: 7.3 | T6: 6.7 | V6: 24 | W6: 51 | Y6: B81D | Z6: =VLOOKUP(A6,'DWS Websnap'!$B$4:$M$158,4,FALSE) -> Nkowankowa Sewage Treatment Works Discharge Point to Letsitele River | AA6: =VLOOKUP(A6,'DWS Websnap'!$B$4:$M$158,5,FALSE) -> Pipeline | AB6: =VLOOKUP(A6,'DWS Websnap'!$B$4:$M$158,10,FALSE) -> n/a | AC6: =VLOOKUP(A6,'DWS Websnap'!$B$4:$M$158,11,FALSE) -> -23.89532 | AD6: =VLOOKUP(A6,'DWS Websnap'!$B$4:$M$158,12,FALSE) -> 30.31705
A7: B81 1000003138 | B7: 1000003138 | C7: 2005-09-20 | D7: 0 | E7: GP-ERWAT-LABORATORY | F7: COOLBOX/DARK | G7: 8.6 | H7: 39 | J7: 41 | K7: 0.05 | L7: 10.2 | N7: 3.5 | O7: 38.1 | Q7: 13.7 | S7: 8 | T7: 8.2 | V7: 25 | W7: 65 | Y7: B81D | Z7: =VLOOKUP(A7,'DWS Websnap'!$B$4:$M$158,4,FALSE) -> Nkowankowa Sewage Treatment Works Discharge Point to Letsitele River | AA7: =VLOOKUP(A7,'DWS Websnap'!$B$4:$M$158,5,FALSE) -> Pipeline | AB7: =VLOOKUP(A7,'DWS Websnap'!$B$4:$M$158,10,FALSE) -> n/a | AC7: =VLOOKUP(A7,'DWS Websnap'!$B$4:$M$158,11,FALSE) -> -23.89532 | AD7: =VLOOKUP(A7,'DWS Websnap'!$B$4:$M$158,12,FALSE) -> 30.31705
A8: B81 1000003138 | B8: 1000003138 | C8: 2005-12-13 | D8: 0 | E8: GP-ERWAT-LABORATORY | F8: COOLBOX/DARK | G8: 12.4 | H8: 44 | J8: 38 | K8: 0.05 | L8: 11.1 | N8: 6 | O8: 40.3 | Q8: 15.6 | S8: 6.8 | T8: 5.1 | V8: 20 | W8: 30 | Y8: B81D | Z8: =VLOOKUP(A8,'DWS Websnap'!$B$4:$M$158,4,FALSE) -> Nkowankowa Sewage Treatment Works Discharge Point to Letsitele River | AA8: =VLOOKUP(A8,'DWS Websnap'!$B$4:$M$158,5,FALSE) -> Pipeline | AB8: =VLOOKUP(A8,'DWS Websnap'!$B$4:$M$158,10,FALSE) -> n/a | AC8: =VLOOKUP(A8,'DWS Websnap'!$B$4:$M$158,11,FALSE) -> -23.89532 | AD8: =VLOOKUP(A8,'DWS Websnap'!$B$4:$M$158,12,FALSE) -> 30.31705
A9: B81 1000003138 | B9: 1000003138 | C9: 2006-01-11 | D9: 0 | E9: GP-ERWAT-LABORATORY | F9: COOLBOX/DARK | G9: 15.1 | H9: 51 | J9: 49 | K9: 0.05 | L9: 6.9 | N9: 7.6 | O9: 53.9 | Q9: 0.05 | S9: 7.2 | T9: 2.1 | V9: 47 | W9: 144 | Y9: B81D | Z9: =VLOOKUP(A9,'DWS Websnap'!$B$4:$M$158,4,FALSE) -> Nkowankowa Sewage Treatment Works Discharge Point to Letsitele River | AA9: =VLOOKUP(A9,'DWS Websnap'!$B$4:$M$158,5,FALSE) -> Pipeline | AB9: =VLOOKUP(A9,'DWS Websnap'!$B$4:$M$158,10,FALSE) -> n/a | AC9: =VLOOKUP(A9,'DWS Websnap'!$B$4:$M$158,11,FALSE) -> -23.89532 | AD9: =VLOOKUP(A9,'DWS Websnap'!$B$4:$M$158,12,FALSE) -> 30.31705
A10: B81 1000003138 | B10: 1000003138 | C10: 2006-01-25 | D10: 0 | E10: GP-ERWAT-LABORATORY | F10: COOLBOX/DARK | G10: 5.4 | H10: 29 | J10: 18 | K10: 0.05 | L10: 3.7 | N10: 9.4 | O10: 13.6 | Q10: 0.05 | S10: 7.8 | T10: 0.05 | V10: 15 | W10: 53 | Y10: B81D | Z10: =VLOOKUP(A10,'DWS Websnap'!$B$4:$M$158,4,FALSE) -> Nkowankowa Sewage Treatment Works Discharge Point to Letsitele River | AA10: =VLOOKUP(A10,'DWS Websnap'!$B$4:$M$158,5,FALSE) -> Pipeline | AB10: =VLOOKUP(A10,'DWS Websnap'!$B$4:$M$158,10,FALSE) -> n/a | AC10: =VLOOKUP(A10,'DWS Websnap'!$B$4:$M$158,11,FALSE) -> -23.89532 | AD10: =VLOOKUP(A10,'DWS Websnap'!$B$4:$M$158,12,FALSE) -> 30.31705
A11: B81 1000003138 | B11: 1000003138 | C11: 2006-02-22 | D11: 0 | E11: GP-ERWAT-LABORATORY | F11: COOLBOX/DARK | G11: 4.8 | H11: 50 | J11: 53 | K11: 0.05 | L11: 8.5 | N11: 6.2 | O11: 34.9 | Q11: 9.2 | S11: 8.7 | T11: 3.3 | V11: 35 | W11: 67 | Y11: B81D | Z11: =VLOOKUP(A11,'DWS Websnap'!$B$4:$M$158,4,FALSE) -> Nkowankowa Sewage Treatment Works Discharge Point to Letsitele River | AA11: =VLOOKUP(A11,'DWS Websnap'!$B$4:$M$158,5,FALSE) -> Pipeline | AB11: =VLOOKUP(A11,'DWS Websnap'!$B$4:$M$158,10,FALSE) -> n/a | AC11: =VLOOKUP(A11,'DWS Websnap'!$B$4:$M$158,11,FALSE) -> -23.89532 | AD11: =VLOOKUP(A11,'DWS Websnap'!$B$4:$M$158,12,FALSE) -> 30.31705
A12: B81 1000003138 | B12: 1000003138 | C12: 2006-10-12T14:16:00 | D12: 0 | E12: GP-CSIR AIR QUALITY LAB-PRETOR | F12: COOLBOX/DARK | G12: 14.3 | H12: 44 | J12: 43.1 | K12: 0.2 | L12: 9 | N12: 5.27 | O12: 39.4 | P12: 13 | S12: 7.98 | T12: 6.4 | V12: 15 | W12: 86 | Y12: B81D | Z12: =VLOOKUP(A12,'DWS Websnap'!$B$4:$M$158,4,FALSE) -> Nkowankowa Sewage Treatment Works Discharge Point to Letsitele River | AA12: =VLOOKUP(A12,'DWS Websnap'!$B$4:$M$158,5,FALSE) -> Pipeline | AB12: =VLOOKUP(A12,'DWS Websnap'!$B$4:$M$158,10,FALSE) -> n/a | AC12: =VLOOKUP(A12,'DWS Websnap'!$B$4:$M$158,11,FALSE) -> -23.89532 | AD12: =VLOOKUP(A12,'DWS Websnap'!$B$4:$M$158,12,FALSE) -> 30.31705
A13: B81 1000003138 | B13: 1000003138 | C13: 2006-12-12T15:06:00 | D13: 0 | E13: GP-CSIR AIR QUALITY LAB-PRETOR | F13: COOLBOX/DARK | G13: 18 | H13: 54 | J13: 44.5 | K13: 0.2 | L13: 12 | N13: 7 | O13: 40 | P13: 9.7 | S13: 7.9 | T13: 5.9 | V13: 27 | W13: 72 | Y13: B81D | Z13: =VLOOKUP(A13,'DWS Websnap'!$B$4:$M$158,4,FALSE) -> Nkowankowa Sewage Treatment Works Discharge Point to Letsitele River | AA13: =VLOOKUP(A13,'DWS Websnap'!$B$4:$M$158,5,FALSE) -> Pipeline | AB13: =VLOOKUP(A13,'DWS Websnap'!$B$4:$M$158,10,FALSE) -> n/a | AC13: =VLOOKUP(A13,'DWS Websnap'!$B$4:$M$158,11,FALSE) -> -23.89532 | AD13: =VLOOKUP(A13,'DWS Websnap'!$B$4:$M$158,12,FALSE) -> 30.31705
A14: B81 1000003138 | B14: 1000003138 | C14: 2007-01-15T17:00:00 | D14: 0 | E14: GP-CSIR AIR QUALITY LAB-PRETOR | F14: COOLBOX/DARK | G14: 57 | H14: 290 | J14: 147 | K14: 0.2 | L14: 11 | N14: 10 | O14: 41 | P14: 0.31 | S14: 3 | T14: 2.3 | V14: 24 | W14: 2.5 | Y14: B81D | Z14: =VLOOKUP(A14,'DWS Websnap'!$B$4:$M$158,4,FALSE) -> Nkowankowa Sewage Treatment Works Discharge Point to Letsitele River | AA14: =VLOOKUP(A14,'DWS Websnap'!$B$4:$M$158,5,FALSE) -> Pipeline | AB14: =VLOOKUP(A14,'DWS Websnap'!$B$4:$M$158,10,FALSE) -> n/a | AC14: =VLOOKUP(A14,'DWS Websnap'!$B$4:$M$158,11,FALSE) -> -23.89532 | AD14: =VLOOKUP(A14,'DWS Websnap'!$B$4:$M$158,12,FALSE) -> 30.31705
A15: B81 1000003138 | B15: 1000003138 | C15: 2007-01-30T15:00:00 | D15: 0 | E15: GP-CSIR AIR QUALITY LAB-PRETOR | F15: COOLBOX/DARK | G15: 18 | H15: 46 | L15: 8 | N15: 6 | O15: 39 | P15: 2.1 | Q15: 223 | T15: 0.24 | V15: 13 | W15: 39 | Y15: B81D | Z15: =VLOOKUP(A15,'DWS Websnap'!$B$4:$M$158,4,FALSE) -> Nkowankowa Sewage Treatment Works Discharge Point to Letsitele River | AA15: =VLOOKUP(A15,'DWS Websnap'!$B$4:$M$158,5,FALSE) -> Pipeline | AB15: =VLOOKUP(A15,'DWS Websnap'!$B$4:$M$158,10,FALSE) -> n/a | AC15: =VLOOKUP(A15,'DWS Websnap'!$B$4:$M$158,11,FALSE) -> -23.89532 | AD15: =VLOOKUP(A15,'DWS Websnap'!$B$4:$M$158,12,FALSE) -> 30.31705
A16: B81 1000003138 | B16: 1000003138 | C16: 2007-03-13T15:47:00 | D16: 0 | E16: GP-CSIR AIR QUALITY LAB-PRETOR | F16: COOLBOX/DARK | G16: 10 | H16: 13 | J16: 16.7 | K16: 0.2 | N16: 5 | O16: 14 | P16: 0.05 | Q16: 0.2 | S16: 7.4 | T16: 0.2 | V16: 5 | W16: 61 | Y16: B81D | Z16: =VLOOKUP(A16,'DWS Websnap'!$B$4:$M$158,4,FALSE) -> Nkowankowa Sewage Treatment Works Discharge Point to Letsitele River | AA16: =VLOOKUP(A16,'DWS Websnap'!$B$4:$M$158,5,FALSE) -> Pipeline | AB16: =VLOOKUP(A16,'DWS Websnap'!$B$4:$M$158,10,FALSE) -> n/a | AC16: =VLOOKUP(A16,'DWS Websnap'!$B$4:$M$158,11,FALSE) -> -23.89532 | AD16: =VLOOKUP(A16,'DWS Websnap'!$B$4:$M$158,12,FALSE) -> 30.31705
A17: B81 1000003138 | B17: 1000003138 | C17: 2007-04-24T15:04:00 | D17: 0 | E17: GP-CSIR AIR QUALITY LAB-PRETOR | F17: COOLBOX/DARK | G17: 15 | H17: 164 | N17: 5 | P17: 5 | S17: 7 | T17: 5.7 | V17: 74 | W17: 48 | Y17: B81D | Z17: =VLOOKUP(A17,'DWS Websnap'!$B$4:$M$158,4,FALSE) -> Nkowankowa Sewage Treatment Works Discharge Point to Letsitele River | AA17: =VLOOKUP(A17,'DWS Websnap'!$B$4:$M$158,5,FALSE) -> Pipeline | AB17: =VLOOKUP(A17,'DWS Websnap'!$B$4:$M$158,10,FALSE) -> n/a | AC17: =VLOOKUP(A17,'DWS Websnap'!$B$4:$M$158,11,FALSE) -> -23.89532 | AD17: =VLOOKUP(A17,'DWS Websnap'!$B$4:$M$158,12,FALSE) -> 30.31705
A18: B81 1000003138 | B18: 1000003138 | C18: 2007-05-29T15:30:00 | D18: 0 | E18: GP-CSIR AIR QUALITY LAB-PRETOR | F18: COOLBOX/DARK | G18: 13 | H18: 42 | J18: 41.2 | K18: 0.21 | O18: 40 | P18: 11 | S18: 7 | T18: 6.6 | V18: 21 | W18: 53 | Y18: B81D | Z18: =VLOOKUP(A18,'DWS Websnap'!$B$4:$M$158,4,FALSE) -> Nkowankowa Sewage Treatment Works Discharge Point to Letsitele River | AA18: =VLOOKUP(A18,'DWS Websnap'!$B$4:$M$158,5,FALSE) -> Pipeline | AB18: =VLOOKUP(A18,'DWS Websnap'!$B$4:$M$158,10,FALSE) -> n/a | AC18: =VLOOKUP(A18,'DWS Websnap'!$B$4:$M$158,11,FALSE) -> -23.89532 | AD18: =VLOOKUP(A18,'DWS Websnap'!$B$4:$M$158,12,FALSE) -> 30.31705
A19: B81 1000003138 | B19: 1000003138 | C19: 2007-06-27T16:48:00 | D19: 0 | E19: GP-CSIR AIR QUALITY LAB-PRETOR | F19: COOLBOX/DARK | G19: 15 | H19: 38 | I19: 331.809 | J19: 45.6 | K19: 0.34 | L19: 12 | N19: 5 | O19: 41 | P19: 15 | Q19: 5.7 | S19: 6 | T19: 8.2 | V19: 13 | W19: 113 | Y19: B81D | Z19: =VLOOKUP(A19,'DWS Websnap'!$B$4:$M$158,4,FALSE) -> Nkowankowa Sewage Treatment Works Discharge Point to Letsitele River | AA19: =VLOOKUP(A19,'DWS Websnap'!$B$4:$M$158,5,FALSE) -> Pipeline | AB19: =VLOOKUP(A19,'DWS Websnap'!$B$4:$M$158,10,FALSE) -> n/a | AC19: =VLOOKUP(A19,'DWS Websnap'!$B$4:$M$158,11,FALSE) -> -23.89532 | AD19: =VLOOKUP(A19,'DWS Websnap'!$B$4:$M$158,12,FALSE) -> 30.31705
A20: B81 1000003138 | B20: 1000003138 | C20: 2007-07-25T15:38:00 | D20: 0 | E20: GP-CSIR AIR QUALITY LAB-PRETOR | F20: COOLBOX/DARK | G20: 12 | H20: 34 | J20: 44.4 | K20: 0.42 | N20: 5 | O20: 43 | P20: 9.2 | Q20: 11 | S20: 7.3 | T20: 6.5 | V20: 16 | W20: 73 | Y20: B81D | Z20: =VLOOKUP(A20,'DWS Websnap'!$B$4:$M$158,4,FALSE) -> Nkowankowa Sewage Treatment Works Discharge Point to Letsitele River | AA20: =VLOOKUP(A20,'DWS Websnap'!$B$4:$M$158,5,FALSE) -> Pipeline | AB20: =VLOOKUP(A20,'DWS Websnap'!$B$4:$M$158,10,FALSE) -> n/a | AC20: =VLOOKUP(A20,'DWS Websnap'!$B$4:$M$158,11,FALSE) -> -23.89532 | AD20: =VLOOKUP(A20,'DWS Websnap'!$B$4:$M$158,12,FALSE) -> 30.31705
A21: B81 1000003138 | B21: 1000003138 | C21: 2007-08-28T16:06:00 | D21: 0 | E21: GP-CSIR AIR QUALITY LAB-PRETOR | F21: COOLBOX/DARK | G21: 14 | H21: 39 | J21: 44.8 | K21: 0.44 | N21: 4 | O21: 43 | P21: 10 | Q21: 9.6 | S21: 7.2 | T21: 7.3 | V21: 18 | W21: 67 | Y21: B81D | Z21: =VLOOKUP(A21,'DWS Websnap'!$B$4:$M$158,4,FALSE) -> Nkowankowa Sewage Treatment Works Discharge Point to Letsitele River | AA21: =VLOOKUP(A21,'DWS Websnap'!$B$4:$M$158,5,FALSE) -> Pipeline | AB21: =VLOOKUP(A21,'DWS Websnap'!$B$4:$M$158,10,FALSE) -> n/a | AC21: =VLOOKUP(A21,'DWS Websnap'!$B$4:$M$158,11,FALSE) -> -23.89532 | AD21: =VLOOKUP(A21,'DWS Websnap'!$B$4:$M$158,12,FALSE) -> 30.31705
A22: B81 1000003138 | B22: 1000003138 | C22: 2007-09-18T16:03:00 | D22: 0 | E22: GP-CSIR AIR QUALITY LAB-PRETOR | F22: COOLBOX/DARK | G22: 13 | J22: 40.3 | K22: 0.25 | N22: 5 | O22: 39 | P22: 6.3 | Q22: 13 | S22: 7.2 | T22: 6.3 | V22: 19 | W22: 52 | Y22: B81D | Z22: =VLOOKUP(A22,'DWS Websnap'!$B$4:$M$158,4,FALSE) -> Nkowankowa Sewage Treatment Works Discharge Point to Letsitele River | AA22: =VLOOKUP(A22,'DWS Websnap'!$B$4:$M$158,5,FALSE) -> Pipeline | AB22: =VLOOKUP(A22,'DWS Websnap'!$B$4:$M$158,10,FALSE) -> n/a | AC22: =VLOOKUP(A22,'DWS Websnap'!$B$4:$M$158,11,FALSE) -> -23.89532 | AD22: =VLOOKUP(A22,'DWS Websnap'!$B$4:$M$158,12,FALSE) -> 30.31705
A23: B81 1000003138 | B23: 1000003138 | C23: 2007-11-27T15:51:00 | D23: 0 | E23: GP-CSIR AIR QUALITY LAB-PRETOR | F23: COOLBOX/DARK | G23: 17 | H23: 48 | I23: 241.031 | J23: 38.6 | K23: 0.32 | L23: 9 | N23: 6 | O23: 37 | P23: 3.6 | Q23: 7.6 | S23: 6.8 | T23: 3.7 | V23: 18 | W23: 46 | Y23: B81D | Z23: =VLOOKUP(A23,'DWS Websnap'!$B$4:$M$158,4,FALSE) -> Nkowankowa Sewage Treatment Works Discharge Point to Letsitele River | AA23: =VLOOKUP(A23,'DWS Websnap'!$B$4:$M$158,5,FALSE) -> Pipeline | AB23: =VLOOKUP(A23,'DWS Websnap'!$B$4:$M$158,10,FALSE) -> n/a | AC23: =VLOOKUP(A23,'DWS Websnap'!$B$4:$M$158,11,FALSE) -> -23.89532 | AD23: =VLOOKUP(A23,'DWS Websnap'!$B$4:$M$158,12,FALSE) -> 30.31705
A24: B81 1000003138 | B24: 1000003138 | C24: 2007-12-10T18:51:00 | D24: 0 | E24: GP-CSIR AIR QUALITY LAB-PRETOR | F24: COOLBOX/DARK | G24: 18 | H24: 33 | I24: 258.189 | J24: 39.7 | K24: 0.23 | L24: 9 | N24: 6 | O24: 38 | P24: 2.1 | Q24: 14 | S24: 6.8 | T24: 4.2 | V24: 13 | W24: 52 | Y24: B81D | Z24: =VLOOKUP(A24,'DWS Websnap'!$B$4:$M$158,4,FALSE) -> Nkowankowa Sewage Treatment Works Discharge Point to Letsitele River | AA24: =VLOOKUP(A24,'DWS Websnap'!$B$4:$M$158,5,FALSE) -> Pipeline | AB24: =VLOOKUP(A24,'DWS Websnap'!$B$4:$M$158,10,FALSE) -> n/a | AC24: =VLOOKUP(A24,'DWS Websnap'!$B$4:$M$158,11,FALSE) -> -23.89532 | AD24: =VLOOKUP(A24,'DWS Websnap'!$B$4:$M$158,12,FALSE) -> 30.31705
A25: B81 1000003138 | B25: 1000003138 | C25: 2008-02-19T17:48:00 | D25: 0 | E25: GP-CSIR AIR QUALITY LAB-PRETOR | F25: COOLBOX/DARK | G25: 16 | H25: 43 | I25: 270.882 | J25: 42.5 | K25: 0.31 | L25: 12 | N25: 7 | O25: 42 | P25: 2.8 | Q25: 10 | S25: 7.3 | T25: 4.6 | V25: 13 | W25: 62 | Y25: B81D | Z25: =VLOOKUP(A25,'DWS Websnap'!$B$4:$M$158,4,FALSE) -> Nkowankowa Sewage Treatment Works Discharge Point to Letsitele River | AA25: =VLOOKUP(A25,'DWS Websnap'!$B$4:$M$158,5,FALSE) -> Pipeline | AB25: =VLOOKUP(A25,'DWS Websnap'!$B$4:$M$158,10,FALSE) -> n/a | AC25: =VLOOKUP(A25,'DWS Websnap'!$B$4:$M$158,11,FALSE) -> -23.89532 | AD25: =VLOOKUP(A25,'DWS Websnap'!$B$4:$M$158,12,FALSE) -> 30.31705
A26: B81 1000003138 | B26: 1000003138 | C26: 2008-04-08T16:49:00 | D26: 0 | E26: GP-CSIR AIR QUALITY LAB-PRETOR | F26: COOLBOX/DARK | G26: 17 | H26: 37 | I26: 281.503 | J26: 45.7 | K26: 0.2 | L26: 12 | N26: 7 | O26: 41 | P26: 5.1 | Q26: 10 | S26: 7 | T26: 5.4 | V26: 17 | W26: 68 | Y26: B81D | Z26: =VLOOKUP(A26,'DWS Websnap'!$B$4:$M$158,4,FALSE) -> Nkowankowa Sewage Treatment Works Discharge Point to Letsitele River | AA26: =VLOOKUP(A26,'DWS Websnap'!$B$4:$M$158,5,FALSE) -> Pipeline | AB26: =VLOOKUP(A26,'DWS Websnap'!$B$4:$M$158,10,FALSE) -> n/a | AC26: =VLOOKUP(A26,'DWS Websnap'!$B$4:$M$158,11,FALSE) -> -23.89532 | AD26: =VLOOKUP(A26,'DWS Websnap'!$B$4:$M$158,12,FALSE) -> 30.31705
A27: B81 1000003138 | B27: 1000003138 | C27: 2008-06-17T17:15:00 | D27: 0 | E27: GP-CSIR AIR QUALITY LAB-PRETOR | F27: COOLBOX/DARK | G27: 14 | H27: 35 | I27: 295.842 | J27: 44.4 | K27: 0.2 | L27: 10 | N27: 5 | O27: 43 | P27: 9.7 | Q27: 11 | S27: 7 | T27: 6.2 | V27: 17 | W27: 75 | Y27: B81D | Z27: =VLOOKUP(A27,'DWS Websnap'!$B$4:$M$158,4,FALSE) -> Nkowankowa Sewage Treatment Works Discharge Point to Letsitele River | AA27: =VLOOKUP(A27,'DWS Websnap'!$B$4:$M$158,5,FALSE) -> Pipeline | AB27: =VLOOKUP(A27,'DWS Websnap'!$B$4:$M$158,10,FALSE) -> n/a | AC27: =VLOOKUP(A27,'DWS Websnap'!$B$4:$M$158,11,FALSE) -> -23.89532 | AD27: =VLOOKUP(A27,'DWS Websnap'!$B$4:$M$158,12,FALSE) -> 30.31705
A28: B81 1000003138 | B28: 1000003138 | C28: 2008-08-26T16:55:00 | D28: 0 | E28: GP-CSIR AIR QUALITY LAB-PRETOR | F28: COOLBOX/DARK | G28: 16 | H28: 35 | J28: 49.2 | K28: 0.28 | O28: 46 | P28: 12 | Q28: 15 | S28: 7 | T28: 6.7 | V28: 37 | Y28: B81D | Z28: =VLOOKUP(A28,'DWS Websnap'!$B$4:$M$158,4,FALSE) -> Nkowankowa Sewage Treatment Works Discharge Point to Letsitele River | AA28: =VLOOKUP(A28,'DWS Websnap'!$B$4:$M$158,5,FALSE) -> Pipeline | AB28: =VLOOKUP(A28,'DWS Websnap'!$B$4:$M$158,10,FALSE) -> n/a | AC28: =VLOOKUP(A28,'DWS Websnap'!$B$4:$M$158,11,FALSE) -> -23.89532 | AD28: =VLOOKUP(A28,'DWS Websnap'!$B$4:$M$158,12,FALSE) -> 30.31705
A29: B81 1000003138 | B29: 1000003138 | C29: 2009-01-20T15:28:00 | D29: 0 | E29: GP-CSIR AIR QUALITY LAB-PRETOR | F29: COOLBOX/DARK | G29: 15 | H29: 34 | J29: 37.6 | K29: 0.2 | O29: 37 | P29: 2.5 | Q29: 6.8 | S29: 6.9 | T29: 4 | V29: 18 | Y29: B81D | Z29: =VLOOKUP(A29,'DWS Websnap'!$B$4:$M$158,4,FALSE) -> Nkowankowa Sewage Treatment Works Discharge Point to Letsitele River | AA29: =VLOOKUP(A29,'DWS Websnap'!$B$4:$M$158,5,FALSE) -> Pipeline | AB29: =VLOOKUP(A29,'DWS Websnap'!$B$4:$M$158,10,FALSE) -> n/a | AC29: =VLOOKUP(A29,'DWS Websnap'!$B$4:$M$158,11,FALSE) -> -23.89532 | AD29: =VLOOKUP(A29,'DWS Websnap'!$B$4:$M$158,12,FALSE) -> 30.31705
A30: B81 1000003138 | B30: 1000003138 | C30: 2009-02-25T07:42:00 | D30: 0 | E30: GP-CSIR AIR QUALITY LAB-PRETOR | F30: COOLBOX/DARK | G30: 18 | H30: 35 | J30: 42.6 | K30: 0.2 | O30: 42 | P30: 1.2 | Q30: 7 | S30: 7.2 | T30: 3.8 | V30: 16 | Y30: B81D | Z30: =VLOOKUP(A30,'DWS Websnap'!$B$4:$M$158,4,FALSE) -> Nkowankowa Sewage Treatment Works Discharge Point to Letsitele River | AA30: =VLOOKUP(A30,'DWS Websnap'!$B$4:$M$158,5,FALSE) -> Pipeline | AB30: =VLOOKUP(A30,'DWS Websnap'!$B$4:$M$158,10,FALSE) -> n/a | AC30: =VLOOKUP(A30,'DWS Websnap'!$B$4:$M$158,11,FALSE) -> -23.89532 | AD30: =VLOOKUP(A30,'DWS Websnap'!$B$4:$M$158,12,FALSE) -> 30.31705
A31: B81 1000003138 | B31: 1000003138 | C31: 2009-03-25T17:05:00 | D31: 0 | E31: GP-CSIR AIR QUALITY LAB-PRETOR | F31: COOLBOX/DARK | G31: 19 | H31: 39 | J31: 41.7 | K31: 0.2 | O31: 41 | P31: 0.98 | Q31: 9.8 | S31: 7.5 | T31: 3.4 | V31: 21 | Y31: B81D | Z31: =VLOOKUP(A31,'DWS Websnap'!$B$4:$M$158,4,FALSE) -> Nkowankowa Sewage Treatment Works Discharge Point to Letsitele River | AA31: =VLOOKUP(A31,'DWS Websnap'!$B$4:$M$158,5,FALSE) -> Pipeline | AB31: =VLOOKUP(A31,'DWS Websnap'!$B$4:$M$158,10,FALSE) -> n/a | AC31: =VLOOKUP(A31,'DWS Websnap'!$B$4:$M$158,11,FALSE) -> -23.89532 | AD31: =VLOOKUP(A31,'DWS Websnap'!$B$4:$M$158,12,FALSE) -> 30.31705
A32: B81 1000003138 | B32: 1000003138 | C32: 2009-04-29T14:35:00 | D32: 0 | E32: GP-CSIR AIR QUALITY LAB-PRETOR | F32: COOLBOX/DARK | G32: 16 | H32: 38 | J32: 39.2 | K32: 0.2 | O32: 42 | P32: 1.6 | Q32: 0.05 | S32: 6.9 | T32: 5.2 | V32: 14 | Y32: B81D | Z32: =VLOOKUP(A32,'DWS Websnap'!$B$4:$M$158,4,FALSE) -> Nkowankowa Sewage Treatment Works Discharge Point to Letsitele River | AA32: =VLOOKUP(A32,'DWS Websnap'!$B$4:$M$158,5,FALSE) -> Pipeline | AB32: =VLOOKUP(A32,'DWS Websnap'!$B$4:$M$158,10,FALSE) -> n/a | AC32: =VLOOKUP(A32,'DWS Websnap'!$B$4:$M$158,11,FALSE) -> -23.89532 | AD32: =VLOOKUP(A32,'DWS Websnap'!$B$4:$M$158,12,FALSE) -> 30.31705
A33: B81 1000003138 | B33: 1000003138 | C33: 2009-05-12T16:08:00 | D33: 0 | E33: GP-CSIR AIR QUALITY LAB-PRETOR | F33: COOLBOX/DARK | G33: 14 | H33: 39 | J33: 47.4 | K33: 0.2 | O33: 36 | P33: 3.5 | Q33: 26 | S33: 7 | T33: 5.1 | V33: 18 | Y33: B81D | Z33: =VLOOKUP(A33,'DWS Websnap'!$B$4:$M$158,4,FALSE) -> Nkowankowa Sewage Treatment Works Discharge Point to Letsitele River | AA33: =VLOOKUP(A33,'DWS Websnap'!$B$4:$M$158,5,FALSE) -> Pipeline | AB33: =VLOOKUP(A33,'DWS Websnap'!$B$4:$M$158,10,FALSE) -> n/a | AC33: =VLOOKUP(A33,'DWS Websnap'!$B$4:$M$158,11,FALSE) -> -23.89532 | AD33: =VLOOKUP(A33,'DWS Websnap'!$B$4:$M$158,12,FALSE) -> 30.31705
A34: B81 1000003138 | B34: 1000003138 | C34: 2009-07-08T16:50:00 | D34: 0 | E34: GP-CSIR AIR QUALITY LAB-PRETOR | F34: COOLBOX/DARK | G34: 14 | H34: 30 | J34: 42.4 | K34: 0.2 | O34: 37 | P34: 1 | Q34: 43 | S34: 7.5 | T34: 5.5 | V34: 11 | Y34: B81D | Z34: =VLOOKUP(A34,'DWS Websnap'!$B$4:$M$158,4,FALSE) -> Nkowankowa Sewage Treatment Works Discharge Point to Letsitele River | AA34: =VLOOKUP(A34,'DWS Websnap'!$B$4:$M$158,5,FALSE) -> Pipeline | AB34: =VLOOKUP(A34,'DWS Websnap'!$B$4:$M$158,10,FALSE) -> n/a | AC34: =VLOOKUP(A34,'DWS Websnap'!$B$4:$M$158,11,FALSE) -> -23.89532 | AD34: =VLOOKUP(A34,'DWS Websnap'!$B$4:$M$158,12,FALSE) -> 30.31705
A35: B81 1000003138 | B35: 1000003138 | C35: 2009-08-04T15:52:00 | D35: 0 | E35: GP-CSIR AIR QUALITY LAB-PRETOR | F35: COOLBOX/DARK | G35: 17 | H35: 40 | J35: 46.1 | O35: 45 | Q35: 14 | S35: 7.1 | T35: 6.6 | V35: 20 | W35: 83 | Y35: B81D | Z35: =VLOOKUP(A35,'DWS Websnap'!$B$4:$M$158,4,FALSE) -> Nkowankowa Sewage Treatment Works Discharge Point to Letsitele River | AA35: =VLOOKUP(A35,'DWS Websnap'!$B$4:$M$158,5,FALSE) -> Pipeline | AB35: =VLOOKUP(A35,'DWS Websnap'!$B$4:$M$158,10,FALSE) -> n/a | AC35: =VLOOKUP(A35,'DWS Websnap'!$B$4:$M$158,11,FALSE) -> -23.89532 | AD35: =VLOOKUP(A35,'DWS Websnap'!$B$4:$M$158,12,FALSE) -> 30.31705
A36: B81 1000003138 | B36: 1000003138 | C36: 2009-09-09T16:14:00 | D36: 0 | E36: GP-CSIR AIR QUALITY LAB-PRETOR | F36: COOLBOX/DARK | G36: 14 | H36: 33 | J36: 49.7 | K36: 0.2 | L36: 6 | O36: 45 | P36: 22 | Q36: 3.8 | S36: 7.4 | T36: 7 | V36: 20 | W36: 150 | Y36: B81D | Z36: =VLOOKUP(A36,'DWS Websnap'!$B$4:$M$158,4,FALSE) -> Nkowankowa Sewage Treatment Works Discharge Point to Letsitele River | AA36: =VLOOKUP(A36,'DWS Websnap'!$B$4:$M$158,5,FALSE) -> Pipeline | AB36: =VLOOKUP(A36,'DWS Websnap'!$B$4:$M$158,10,FALSE) -> n/a | AC36: =VLOOKUP(A36,'DWS Websnap'!$B$4:$M$158,11,FALSE) -> -23.89532 | AD36: =VLOOKUP(A36,'DWS Websnap'!$B$4:$M$158,12,FALSE) -> 30.31705
A37: B81 1000003138 | B37: 1000003138 | C37: 2009-12-09T16:22:00 | D37: 0 | E37: GP-CSIR AIR QUALITY LAB-PRETOR | F37: COOLBOX/DARK | J37: 42.3 | P37: 7 | S37: 7.9 | T37: 4.1 | Y37: B81D | Z37: =VLOOKUP(A37,'DWS Websnap'!$B$4:$M$158,4,FALSE) -> Nkowankowa Sewage Treatment Works Discharge Point to Letsitele River | AA37: =VLOOKUP(A37,'DWS Websnap'!$B$4:$M$158,5,FALSE) -> Pipeline | AB37: =VLOOKUP(A37,'DWS Websnap'!$B$4:$M$158,10,FALSE) -> n/a | AC37: =VLOOKUP(A37,'DWS Websnap'!$B$4:$M$158,11,FALSE) -> -23.89532 | AD37: =VLOOKUP(A37,'DWS Websnap'!$B$4:$M$158,12,FALSE) -> 30.31705
A38: B81 1000003138 | B38: 1000003138 | C38: 2010-02-23T17:10:00 | D38: 0 | E38: GP-CSIR AIR QUALITY LAB-PRETOR | F38: COOLBOX/DARK | G38: 17 | H38: 41 | J38: 40.8 | K38: 0.2 | L38: 12 | O38: 39 | P38: 5 | Q38: 8.1 | S38: 7.2 | T38: 4.2 | V38: 21 | W38: 76 | Y38: B81D | Z38: =VLOOKUP(A38,'DWS Websnap'!$B$4:$M$158,4,FALSE) -> Nkowankowa Sewage Treatment Works Discharge Point to Letsitele River | AA38: =VLOOKUP(A38,'DWS Websnap'!$B$4:$M$158,5,FALSE) -> Pipeline | AB38: =VLOOKUP(A38,'DWS Websnap'!$B$4:$M$158,10,FALSE) -> n/a | AC38: =VLOOKUP(A38,'DWS Websnap'!$B$4:$M$158,11,FALSE) -> -23.89532 | AD38: =VLOOKUP(A38,'DWS Websnap'!$B$4:$M$158,12,FALSE) -> 30.31705
A39: B81 1000003138 | B39: 1000003138 | C39: 2010-03-16T16:28:00 | D39: 0 | E39: GP-CSIR AIR QUALITY LAB-PRETOR | F39: COOLBOX/DARK | G39: 14 | H39: 44 | J39: 42.5 | O39: 42 | Q39: 4.4 | S39: 7.8 | T39: 4.9 | V39: 21 | W39: 105 | Y39: B81D | Z39: =VLOOKUP(A39,'DWS Websnap'!$B$4:$M$158,4,FALSE) -> Nkowankowa Sewage Treatment Works Discharge Point to Letsitele River | AA39: =VLOOKUP(A39,'DWS Websnap'!$B$4:$M$158,5,FALSE) -> Pipeline | AB39: =VLOOKUP(A39,'DWS Websnap'!$B$4:$M$158,10,FALSE) -> n/a | AC39: =VLOOKUP(A39,'DWS Websnap'!$B$4:$M$158,11,FALSE) -> -23.89532 | AD39: =VLOOKUP(A39,'DWS Websnap'!$B$4:$M$158,12,FALSE) -> 30.31705
A40: B81 1000003138 | B40: 1000003138 | C40: 2011-01-18T14:02:00 | D40: 0 | E40: LP-MORWAMOCHA LAB | F40: COOLBOX/DARK | H40: 33 | J40: 32 | S40: 7 | T40: 1.5 | Y40: B81D | Z40: =VLOOKUP(A40,'DWS Websnap'!$B$4:$M$158,4,FALSE) -> Nkowankowa Sewage Treatment Works Discharge Point to Letsitele River | AA40: =VLOOKUP(A40,'DWS Websnap'!$B$4:$M$158,5,FALSE) -> Pipeline | AB40: =VLOOKUP(A40,'DWS Websnap'!$B$4:$M$158,10,FALSE) -> n/a | AC40: =VLOOKUP(A40,'DWS Websnap'!$B$4:$M$158,11,FALSE) -> -23.89532 | AD40: =VLOOKUP(A40,'DWS Websnap'!$B$4:$M$158,12,FALSE) -> 30.31705
A41: B81 1000003138 | B41: 1000003138 | C41: 2011-02-16T10:00:00 | D41: 0 | E41: LP-MORWAMOCHA LAB | F41: COOLBOX/DARK | H41: 38 | J41: 40 | L41: 8.4 | O41: 38 | P41: 0.6 | Q41: 12 | S41: 7.2 | T41: 3.1 | V41: 16 | Y41: B81D | Z41: =VLOOKUP(A41,'DWS Websnap'!$B$4:$M$158,4,FALSE) -> Nkowankowa Sewage Treatment Works Discharge Point to Letsitele River | AA41: =VLOOKUP(A41,'DWS Websnap'!$B$4:$M$158,5,FALSE) -> Pipeline | AB41: =VLOOKUP(A41,'DWS Websnap'!$B$4:$M$158,10,FALSE) -> n/a | AC41: =VLOOKUP(A41,'DWS Websnap'!$B$4:$M$158,11,FALSE) -> -23.89532 | AD41: =VLOOKUP(A41,'DWS Websnap'!$B$4:$M$158,12,FALSE) -> 30.31705
A42: B81 1000003138 | B42: 1000003138 | C42: 2011-03-17T14:57:00 | D42: 0 | E42: LP-MORWAMOCHA LAB | F42: COOLBOX/DARK | H42: 42 | J42: 42 | S42: 7 | Y42: B81D | Z42: =VLOOKUP(A42,'DWS Websnap'!$B$4:$M$158,4,FALSE) -> Nkowankowa Sewage Treatment Works Discharge Point to Letsitele River | AA42: =VLOOKUP(A42,'DWS Websnap'!$B$4:$M$158,5,FALSE) -> Pipeline | AB42: =VLOOKUP(A42,'DWS Websnap'!$B$4:$M$158,10,FALSE) -> n/a | AC42: =VLOOKUP(A42,'DWS Websnap'!$B$4:$M$158,11,FALSE) -> -23.89532 | AD42: =VLOOKUP(A42,'DWS Websnap'!$B$4:$M$158,12,FALSE) -> 30.31705
A43: B81 1000003138 | B43: 1000003138 | C43: 2011-04-19T12:14:00 | D43: 0 | E43: LP-MORWAMOCHA LAB | F43: COOLBOX/DARK | J43: 39.9 | Y43: B81D | Z43: =VLOOKUP(A43,'DWS Websnap'!$B$4:$M$158,4,FALSE) -> Nkowankowa Sewage Treatment Works Discharge Point to Letsitele River | AA43: =VLOOKUP(A43,'DWS Websnap'!$B$4:$M$158,5,FALSE) -> Pipeline | AB43: =VLOOKUP(A43,'DWS Websnap'!$B$4:$M$158,10,FALSE) -> n/a | AC43: =VLOOKUP(A43,'DWS Websnap'!$B$4:$M$158,11,FALSE) -> -23.89532 | AD43: =VLOOKUP(A43,'DWS Websnap'!$B$4:$M$158,12,FALSE) -> 30.31705
A44: B81 1000003138 | B44: 1000003138 | C44: 2011-05-12T10:00:00 | D44: 0 | E44: LP-MORWAMOCHA LAB | F44: COOLBOX/DARK | H44: 47.19 | J44: 45.7 | S44: 6.65 | Y44: B81D | Z44: =VLOOKUP(A44,'DWS Websnap'!$B$4:$M$158,4,FALSE) -> Nkowankowa Sewage Treatment Works Discharge Point to Letsitele River | AA44: =VLOOKUP(A44,'DWS Websnap'!$B$4:$M$158,5,FALSE) -> Pipeline | AB44: =VLOOKUP(A44,'DWS Websnap'!$B$4:$M$158,10,FALSE) -> n/a | AC44: =VLOOKUP(A44,'DWS Websnap'!$B$4:$M$158,11,FALSE) -> -23.89532 | AD44: =VLOOKUP(A44,'DWS Websnap'!$B$4:$M$158,12,FALSE) -> 30.31705
A45: B81 1000003138 | B45: 1000003138 | C45: 2011-09-22T14:58:00 | D45: 0 | E45: LP-MORWAMOCHA LAB | F45: COOLBOX/DARK | H45: 63 | J45: 56 | P45: 14.8 | Q45: 24.5 | S45: 7.1 | T45: 11.9 | Y45: B81D | Z45: =VLOOKUP(A45,'DWS Websnap'!$B$4:$M$158,4,FALSE) -> Nkowankowa Sewage Treatment Works Discharge Point to Letsitele River | AA45: =VLOOKUP(A45,'DWS Websnap'!$B$4:$M$158,5,FALSE) -> Pipeline | AB45: =VLOOKUP(A45,'DWS Websnap'!$B$4:$M$158,10,FALSE) -> n/a | AC45: =VLOOKUP(A45,'DWS Websnap'!$B$4:$M$158,11,FALSE) -> -23.89532 | AD45: =VLOOKUP(A45,'DWS Websnap'!$B$4:$M$158,12,FALSE) -> 30.31705
A46: B81 1000003138 | B46: 1000003138 | C46: 2011-10-26T10:00:00 | D46: 0 | E46: LP-MORWAMOCHA LAB | F46: COOLBOX/DARK | J46: 55.5 | W46: 78 | Y46: B81D | Z46: =VLOOKUP(A46,'DWS Websnap'!$B$4:$M$158,4,FALSE) -> Nkowankowa Sewage Treatment Works Discharge Point to Letsitele River | AA46: =VLOOKUP(A46,'DWS Websnap'!$B$4:$M$158,5,FALSE) -> Pipeline | AB46: =VLOOKUP(A46,'DWS Websnap'!$B$4:$M$158,10,FALSE) -> n/a | AC46: =VLOOKUP(A46,'DWS Websnap'!$B$4:$M$158,11,FALSE) -> -23.89532 | AD46: =VLOOKUP(A46,'DWS Websnap'!$B$4:$M$158,12,FALSE) -> 30.31705
A47: B81 1000003138 | B47: 1000003138 | C47: 2011-10-27T13:44:00 | D47: 0 | E47: LP-MORWAMOCHA LAB | F47: COOLBOX/DARK | J47: 49.5 | S47: 7.4 | W47: 78 | Y47: B81D | Z47: =VLOOKUP(A47,'DWS Websnap'!$B$4:$M$158,4,FALSE) -> Nkowankowa Sewage Treatment Works Discharge Point to Letsitele River | AA47: =VLOOKUP(A47,'DWS Websnap'!$B$4:$M$158,5,FALSE) -> Pipeline | AB47: =VLOOKUP(A47,'DWS Websnap'!$B$4:$M$158,10,FALSE) -> n/a | AC47: =VLOOKUP(A47,'DWS Websnap'!$B$4:$M$158,11,FALSE) -> -23.89532 | AD47: =VLOOKUP(A47,'DWS Websnap'!$B$4:$M$158,12,FALSE) -> 30.31705
A48: B81 1000003138 | B48: 1000003138 | C48: 2011-12-15T16:15:00 | D48: 0 | E48: LP-MORWAMOCHA LAB | F48: COOLBOX/DARK | J48: 50 | S48: 7 | W48: 31 | Y48: B81D | Z48: =VLOOKUP(A48,'DWS Websnap'!$B$4:$M$158,4,FALSE) -> Nkowankowa Sewage Treatment Works Discharge Point to Letsitele River | AA48: =VLOOKUP(A48,'DWS Websnap'!$B$4:$M$158,5,FALSE) -> Pipeline | AB48: =VLOOKUP(A48,'DWS Websnap'!$B$4:$M$158,10,FALSE) -> n/a | AC48: =VLOOKUP(A48,'DWS Websnap'!$B$4:$M$158,11,FALSE) -> -23.89532 | AD48: =VLOOKUP(A48,'DWS Websnap'!$B$4:$M$158,12,FALSE) -> 30.31705
A49: B81 1000003138 | B49: 1000003138 | C49: 2013-10-31T11:20:00 | D49: 0 | E49: LP-CVL | F49: HNO3, H2SO4 | J49: 49.6 | S49: 7.4 | T49: 2.93 | Y49: B81D | Z49: =VLOOKUP(A49,'DWS Websnap'!$B$4:$M$158,4,FALSE) -> Nkowankowa Sewage Treatment Works Discharge Point to Letsitele River | AA49: =VLOOKUP(A49,'DWS Websnap'!$B$4:$M$158,5,FALSE) -> Pipeline | AB49: =VLOOKUP(A49,'DWS Websnap'!$B$4:$M$158,10,FALSE) -> n/a | AC49: =VLOOKUP(A49,'DWS Websnap'!$B$4:$M$158,11,FALSE) -> -23.89532 | AD49: =VLOOKUP(A49,'DWS Websnap'!$B$4:$M$158,12,FALSE) -> 30.31705
A50: B81 1000003138 | B50: 1000003138 | C50: 2013-11-28T15:04:00 | D50: 0 | E50: LP-CVL | F50: HNO3, H2SO4 | J50: 51.4 | S50: 7.4 | T50: 2.98 | Y50: B81D | Z50: =VLOOKUP(A50,'DWS Websnap'!$B$4:$M$158,4,FALSE) -> Nkowankowa Sewage Treatment Works Discharge Point to Letsitele River | AA50: =VLOOKUP(A50,'DWS Websnap'!$B$4:$M$158,5,FALSE) -> Pipeline | AB50: =VLOOKUP(A50,'DWS Websnap'!$B$4:$M$158,10,FALSE) -> n/a | AC50: =VLOOKUP(A50,'DWS Websnap'!$B$4:$M$158,11,FALSE) -> -23.89532 | AD50: =VLOOKUP(A50,'DWS Websnap'!$B$4:$M$158,12,FALSE) -> 30.31705
A51: B81 1000003138 | B51: 1000003138 | C51: 2014-01-22T13:19:00 | D51: 0 | E51: LP-CVL | F51: HNO3, H2SO4 | J51: 46.4 | S51: 7.2 | T51: 1.87 | Y51: B81D | Z51: =VLOOKUP(A51,'DWS Websnap'!$B$4:$M$158,4,FALSE) -> Nkowankowa Sewage Treatment Works Discharge Point to Letsitele River | AA51: =VLOOKUP(A51,'DWS Websnap'!$B$4:$M$158,5,FALSE) -> Pipeline | AB51: =VLOOKUP(A51,'DWS Websnap'!$B$4:$M$158,10,FALSE) -> n/a | AC51: =VLOOKUP(A51,'DWS Websnap'!$B$4:$M$158,11,FALSE) -> -23.89532 | AD51: =VLOOKUP(A51,'DWS Websnap'!$B$4:$M$158,12,FALSE) -> 30.31705
A52: B81 1000003138 | B52: 1000003138 | C52: 2014-02-13T14:36:00 | D52: 0 | E52: LP-CVL | F52: HNO3, H2SO4 | J52: 42.3 | S52: 7.3 | T52: 1.84 | Y52: B81D | Z52: =VLOOKUP(A52,'DWS Websnap'!$B$4:$M$158,4,FALSE) -> Nkowankowa Sewage Treatment Works Discharge Point to Letsitele River | AA52: =VLOOKUP(A52,'DWS Websnap'!$B$4:$M$158,5,FALSE) -> Pipeline | AB52: =VLOOKUP(A52,'DWS Websnap'!$B$4:$M$158,10,FALSE) -> n/a | AC52: =VLOOKUP(A52,'DWS Websnap'!$B$4:$M$158,11,FALSE) -> -23.89532 | AD52: =VLOOKUP(A52,'DWS Websnap'!$B$4:$M$158,12,FALSE) -> 30.31705
A53: B81 1000003138 | B53: 1000003138 | C53: 2014-03-10T14:04:00 | D53: 0 | E53: LP-CVL | F53: HNO3, H2SO4 | J53: 41.6 | S53: 7 | T53: 1.24 | Y53: B81D | Z53: =VLOOKUP(A53,'DWS Websnap'!$B$4:$M$158,4,FALSE) -> Nkowankowa Sewage Treatment Works Discharge Point to Letsitele River | AA53: =VLOOKUP(A53,'DWS Websnap'!$B$4:$M$158,5,FALSE) -> Pipeline | AB53: =VLOOKUP(A53,'DWS Websnap'!$B$4:$M$158,10,FALSE) -> n/a | AC53: =VLOOKUP(A53,'DWS Websnap'!$B$4:$M$158,11,FALSE) -> -23.89532 | AD53: =VLOOKUP(A53,'DWS Websnap'!$B$4:$M$158,12,FALSE) -> 30.31705
A54: B81 1000003138 | B54: 1000003138 | C54: 2014-04-24T11:10:00 | D54: 0 | E54: LP-CVL | F54: HNO3, H2SO4 | J54: 48.9 | S54: 7 | T54: 2.62 | Y54: B81D | Z54: =VLOOKUP(A54,'DWS Websnap'!$B$4:$M$158,4,FALSE) -> Nkowankowa Sewage Treatment Works Discharge Point to Letsitele River | AA54: =VLOOKUP(A54,'DWS Websnap'!$B$4:$M$158,5,FALSE) -> Pipeline | AB54: =VLOOKUP(A54,'DWS Websnap'!$B$4:$M$158,10,FALSE) -> n/a | AC54: =VLOOKUP(A54,'DWS Websnap'!$B$4:$M$158,11,FALSE) -> -23.89532 | AD54: =VLOOKUP(A54,'DWS Websnap'!$B$4:$M$158,12,FALSE) -> 30.31705
A55: B81 1000003138 | B55: 1000003138 | C55: 2014-05-13T11:00:00 | D55: 0 | E55: LP-CVL | F55: HNO3, H2SO4 | J55: 55.1 | S55: 7.1 | T55: 3.19 | Y55: B81D | Z55: =VLOOKUP(A55,'DWS Websnap'!$B$4:$M$158,4,FALSE) -> Nkowankowa Sewage Treatment Works Discharge Point to Letsitele River | AA55: =VLOOKUP(A55,'DWS Websnap'!$B$4:$M$158,5,FALSE) -> Pipeline | AB55: =VLOOKUP(A55,'DWS Websnap'!$B$4:$M$158,10,FALSE) -> n/a | AC55: =VLOOKUP(A55,'DWS Websnap'!$B$4:$M$158,11,FALSE) -> -23.89532 | AD55: =VLOOKUP(A55,'DWS Websnap'!$B$4:$M$158,12,FALSE) -> 30.31705
A56: B81 1000003138 | B56: 1000003138 | C56: 2014-06-10T12:08:00 | D56: 0 | E56: LP-CVL | F56: HNO3, H2SO4 | J56: 55.2 | S56: 7.1 | T56: 3.06 | Y56: B81D | Z56: =VLOOKUP(A56,'DWS Websnap'!$B$4:$M$158,4,FALSE) -> Nkowankowa Sewage Treatment Works Discharge Point to Letsitele River | AA56: =VLOOKUP(A56,'DWS Websnap'!$B$4:$M$158,5,FALSE) -> Pipeline | AB56: =VLOOKUP(A56,'DWS Websnap'!$B$4:$M$158,10,FALSE) -> n/a | AC56: =VLOOKUP(A56,'DWS Websnap'!$B$4:$M$158,11,FALSE) -> -23.89532 | AD56: =VLOOKUP(A56,'DWS Websnap'!$B$4:$M$158,12,FALSE) -> 30.31705
A57: B81 1000003138 | B57: 1000003138 | C57: 2014-07-08T13:19:00 | D57: 0 | E57: LP-CVL | F57: HNO3, H2SO4 | J57: 52.1 | S57: 6.9 | T57: 2.91 | Y57: B81D | Z57: =VLOOKUP(A57,'DWS Websnap'!$B$4:$M$158,4,FALSE) -> Nkowankowa Sewage Treatment Works Discharge Point to Letsitele River | AA57: =VLOOKUP(A57,'DWS Websnap'!$B$4:$M$158,5,FALSE) -> Pipeline | AB57: =VLOOKUP(A57,'DWS Websnap'!$B$4:$M$158,10,FALSE) -> n/a | AC57: =VLOOKUP(A57,'DWS Websnap'!$B$4:$M$158,11,FALSE) -> -23.89532 | AD57: =VLOOKUP(A57,'DWS Websnap'!$B$4:$M$158,12,FALSE) -> 30.31705
A58: B81 1000003138 | B58: 1000003138 | C58: 2014-08-05T13:01:00 | D58: 0 | E58: LP-CVL | F58: HNO3, H2SO4 | J58: 52.9 | S58: 7 | T58: 2.99 | Y58: B81D | Z58: =VLOOKUP(A58,'DWS Websnap'!$B$4:$M$158,4,FALSE) -> Nkowankowa Sewage Treatment Works Discharge Point to Letsitele River | AA58: =VLOOKUP(A58,'DWS Websnap'!$B$4:$M$158,5,FALSE) -> Pipeline | AB58: =VLOOKUP(A58,'DWS Websnap'!$B$4:$M$158,10,FALSE) -> n/a | AC58: =VLOOKUP(A58,'DWS Websnap'!$B$4:$M$158,11,FALSE) -> -23.89532 | AD58: =VLOOKUP(A58,'DWS Websnap'!$B$4:$M$158,12,FALSE) -> 30.31705
A59: B81 1000003138 | B59: 1000003138 | C59: 2014-09-03T15:26:00 | D59: 0 | E59: LP-CVL | F59: HNO3, H2SO4 | J59: 52.9 | S59: 7 | T59: 3.03 | Y59: B81D | Z59: =VLOOKUP(A59,'DWS Websnap'!$B$4:$M$158,4,FALSE) -> Nkowankowa Sewage Treatment Works Discharge Point to Letsitele River | AA59: =VLOOKUP(A59,'DWS Websnap'!$B$4:$M$158,5,FALSE) -> Pipeline | AB59: =VLOOKUP(A59,'DWS Websnap'!$B$4:$M$158,10,FALSE) -> n/a | AC59: =VLOOKUP(A59,'DWS Websnap'!$B$4:$M$158,11,FALSE) -> -23.89532 | AD59: =VLOOKUP(A59,'DWS Websnap'!$B$4:$M$158,12,FALSE) -> 30.31705
A60: B81 1000003138 | B60: 1000003138 | C60: 2014-10-07T13:44:00 | D60: 0 | E60: LP-CVL | F60: HNO3, H2SO4 | J60: 58.6 | S60: 7.1 | T60: 3.58 | Y60: B81D | Z60: =VLOOKUP(A60,'DWS Websnap'!$B$4:$M$158,4,FALSE) -> Nkowankowa Sewage Treatment Works Discharge Point to Letsitele River | AA60: =VLOOKUP(A60,'DWS Websnap'!$B$4:$M$158,5,FALSE) -> Pipeline | AB60: =VLOOKUP(A60,'DWS Websnap'!$B$4:$M$158,10,FALSE) -> n/a | AC60: =VLOOKUP(A60,'DWS Websnap'!$B$4:$M$158,11,FALSE) -> -23.89532 | AD60: =VLOOKUP(A60,'DWS Websnap'!$B$4:$M$158,12,FALSE) -> 30.31705
A61: B81 1000003138 | B61: 1000003138 | C61: 2014-10-28T11:20:00 | D61: 0 | E61: LP-CVL | F61: HNO3, H2SO4 | J61: 64.8 | S61: 7.2 | T61: 4.08 | Y61: B81D | Z61: =VLOOKUP(A61,'DWS Websnap'!$B$4:$M$158,4,FALSE) -> Nkowankowa Sewage Treatment Works Discharge Point to Letsitele River | AA61: =VLOOKUP(A61,'DWS Websnap'!$B$4:$M$158,5,FALSE) -> Pipeline | AB61: =VLOOKUP(A61,'DWS Websnap'!$B$4:$M$158,10,FALSE) -> n/a | AC61: =VLOOKUP(A61,'DWS Websnap'!$B$4:$M$158,11,FALSE) -> -23.89532 | AD61: =VLOOKUP(A61,'DWS Websnap'!$B$4:$M$158,12,FALSE) -> 30.31705
A62: B81 1000003138 | B62: 1000003138 | C62: 2014-11-26T13:43:00 | D62: 0 | E62: LP-CVL | F62: HNO3, H2SO4 | J62: 51.9 | S62: 7.1 | T62: 3.14 | Y62: B81D | Z62: =VLOOKUP(A62,'DWS Websnap'!$B$4:$M$158,4,FALSE) -> Nkowankowa Sewage Treatment Works Discharge Point to Letsitele River | AA62: =VLOOKUP(A62,'DWS Websnap'!$B$4:$M$158,5,FALSE) -> Pipeline | AB62: =VLOOKUP(A62,'DWS Websnap'!$B$4:$M$158,10,FALSE) -> n/a | AC62: =VLOOKUP(A62,'DWS Websnap'!$B$4:$M$158,11,FALSE) -> -23.89532 | AD62: =VLOOKUP(A62,'DWS Websnap'!$B$4:$M$158,12,FALSE) -> 30.31705
A63: B81 1000003138 | B63: 1000003138 | C63: 2015-01-14T12:57:00 | D63: 0 | E63: LP-CVL | F63: HNO3, H2SO4 | J63: 50.8 | S63: 7.2 | T63: 2.74 | Y63: B81D | Z63: =VLOOKUP(A63,'DWS Websnap'!$B$4:$M$158,4,FALSE) -> Nkowankowa Sewage Treatment Works Discharge Point to Letsitele River | AA63: =VLOOKUP(A63,'DWS Websnap'!$B$4:$M$158,5,FALSE) -> Pipeline | AB63: =VLOOKUP(A63,'DWS Websnap'!$B$4:$M$158,10,FALSE) -> n/a | AC63: =VLOOKUP(A63,'DWS Websnap'!$B$4:$M$158,11,FALSE) -> -23.89532 | AD63: =VLOOKUP(A63,'DWS Websnap'!$B$4:$M$158,12,FALSE) -> 30.31705
A64: B81 1000003138 | B64: 1000003138 | C64: 2015-06-02T13:55:00 | D64: 0 | E64: LP-CVL | F64: HNO3, H2SO4 | J64: 54.4 | S64: 7.1 | T64: 3.14 | Y64: B81D | Z64: =VLOOKUP(A64,'DWS Websnap'!$B$4:$M$158,4,FALSE) -> Nkowankowa Sewage Treatment Works Discharge Point to Letsitele River | AA64: =VLOOKUP(A64,'DWS Websnap'!$B$4:$M$158,5,FALSE) -> Pipeline | AB64: =VLOOKUP(A64,'DWS Websnap'!$B$4:$M$158,10,FALSE) -> n/a | AC64: =VLOOKUP(A64,'DWS Websnap'!$B$4:$M$158,11,FALSE) -> -23.89532 | AD64: =VLOOKUP(A64,'DWS Websnap'!$B$4:$M$158,12,FALSE) -> 30.31705
A65: =LEFT(Y65,3) & " "&B65 -> B81 1000003138 | B65: 1000003138 | C65: 2015-07-29T12:43:00 | D65: 0 | E65: LP-CVL | F65: HNO3, H2SO4 | J65: 61 | S65: 7.3 | T65: 3.7 | Y65: B81D | Z65: =VLOOKUP(A65,'DWS Websnap'!$B$4:$M$158,4,FALSE) -> Nkowankowa Sewage Treatment Works Discharge Point to Letsitele River | AA65: =VLOOKUP(A65,'DWS Websnap'!$B$4:$M$158,5,FALSE) -> Pipeline | AB65: =VLOOKUP(A65,'DWS Websnap'!$B$4:$M$158,10,FALSE) -> n/a | AC65: =VLOOKUP(A65,'DWS Websnap'!$B$4:$M$158,11,FALSE) -> -23.89532 | AD65: =VLOOKUP(A65,'DWS Websnap'!$B$4:$M$158,12,FALSE) -> 30.31705
A66: B81 1000013519 | B66: 1000013519 | C66: 2005-12-06T14:05:00 | E66: DWA-RQS | F66: HGCL2 | G66: 55.289 | H66: 334.063 | I66: 938.246 | J66: 164 | K66: 0.381 | L66: 4.075 | N66: 40.319 | O66: 200.803 | P66: 0.02 | Q66: 0.04 | S66: 8.412 | T66: 0.006 | U66: 8.629 | V66: 72.002 | W66: 189.536 | X66: 2330DB00045 | Y66: B81F | Z66: =VLOOKUP(A66,'DWS Websnap'!$B$4:$M$158,4,FALSE) -> Nondwene ptn. Crocodile River | AA66: =VLOOKUP(A66,'DWS Websnap'!$B$4:$M$158,5,FALSE) -> Rivers | AB66: =VLOOKUP(A66,'DWS Websnap'!$B$4:$M$158,10,FALSE) -> n/a | AC66: =VLOOKUP(A66,'DWS Websnap'!$B$4:$M$158,11,FALSE) -> -23.6811 | AD66: =VLOOKUP(A66,'DWS Websnap'!$B$4:$M$158,12,FALSE) -> 30.88162
A67: B81 1000013521 | B67: 1000013521 | C67: 2005-12-06T15:03:00 | E67: DWA-RQS | F67: HGCL2 | G67: 55.005 | H67: 302.474 | I67: 918.242 | J67: 157 | K67: 0.354 | L67: 5.296 | N67: 42.126 | O67: 184.283 | P67: 0.125 | Q67: 0.04 | S67: 8.456 | T67: 0.018 | U67: 9.637 | V67: 25.637 | W67: 248.245 | X67: 2330DB00050 | Y67: B81J | Z67: =VLOOKUP(A67,'DWS Websnap'!$B$4:$M$158,4,FALSE) -> Mbaula Ranche ptn. Groot Letaba River | AA67: =VLOOKUP(A67,'DWS Websnap'!$B$4:$M$158,5,FALSE) -> Rivers | AB67: =VLOOKUP(A67,'DWS Websnap'!$B$4:$M$158,10,FALSE) -> n/a | AC67: =VLOOKUP(A67,'DWS Websnap'!$B$4:$M$158,11,FALSE) -> -23.66932 | AD67: =VLOOKUP(A67,'DWS Websnap'!$B$4:$M$158,12,FALSE) -> 30.99061
A68: B81 1000015225 | B68: 1000015225 | C68: 2006-06-27T15:55:00 | E68: DWA-RQS | F68: HGCL2 | G68: 27.724 | H68: 55.792 | I68: 301.167 | J68: 42.5 | K68: 0.296 | L68: 2.247 | N68: 14.176 | O68: 37.419 | P68: 0.064 | Q68: 0.099 | S68: 8.23 | T68: 0.018 | U68: 6.971 | V68: 17.471 | W68: 119.307 | Y68: B81F | Z68: =VLOOKUP(A68,'DWS Websnap'!$B$4:$M$158,4,FALSE) -> Nondwene Geohydro Point 1 on Groot Letaba | AA68: =VLOOKUP(A68,'DWS Websnap'!$B$4:$M$158,5,FALSE) -> Rivers | AB68: =VLOOKUP(A68,'DWS Websnap'!$B$4:$M$158,10,FALSE) -> n/a | AC68: =VLOOKUP(A68,'DWS Websnap'!$B$4:$M$158,11,FALSE) -> -23.68242 | AD68: =VLOOKUP(A68,'DWS Websnap'!$B$4:$M$158,12,FALSE) -> 30.87304
A69: B81 1000015226 | B69: 1000015226 | C69: 2006-06-27T11:10:00 | E69: DWA-RQS | F69: HGCL2 | G69: 29.101 | H69: 90.371 | I69: 375.539 | J69: 57.5 | K69: 0.236 | L69: 2.42 | N69: 18.483 | O69: 57.865 | P69: 0.02 | Q69: 0.221 | S69: 8.311 | T69: 0.013 | U69: 7.011 | V69: 21.131 | W69: 127.035 | Y69: B81J | Z69: =VLOOKUP(A69,'DWS Websnap'!$B$4:$M$158,4,FALSE) -> Nondwene Geohydro Point 2 on Groot Letaba | AA69: =VLOOKUP(A69,'DWS Websnap'!$B$4:$M$158,5,FALSE) -> Rivers | AB69: =VLOOKUP(A69,'DWS Websnap'!$B$4:$M$158,10,FALSE) -> n/a | AC69: =VLOOKUP(A69,'DWS Websnap'!$B$4:$M$158,11,FALSE) -> -23.67071 | AD69: =VLOOKUP(A69,'DWS Websnap'!$B$4:$M$158,12,FALSE) -> 30.99082
A70: B81 1000262079 | B70: 1000262079 | C70: 2012-11-20T12:00:00 | E70: DWA-RQS | F70: HGCL2 | G70: 9.839 | H70: 21.094 | I70: 117.632 | J70: 18.88 | K70: 0.195 | L70: 3.788 | N70: 3.361 | O70: 14.594 | P70: 0.025 | Q70: 0.025 | S70: 7.873 | T70: 0.005 | U70: 5.612 | V70: 1.5 | W70: 51.755 | Y70: B81E | Z70: =VLOOKUP(A70,'DWS Websnap'!$B$4:$M$158,4,FALSE) -> 2330CB Modjadjes Loc. ptn. Mapitlula - H07P0794 | AA70: =VLOOKUP(A70,'DWS Websnap'!$B$4:$M$158,5,FALSE) -> Lateral Collector | AB70: =VLOOKUP(A70,'DWS Websnap'!$B$4:$M$158,10,FALSE) -> n/a | AC70: =VLOOKUP(A70,'DWS Websnap'!$B$4:$M$158,11,FALSE) -> -23.70051 | AD70: =VLOOKUP(A70,'DWS Websnap'!$B$4:$M$158,12,FALSE) -> 30.32086
A71: B81 100741 | B71: 100741 | C71: 1982-09-17T13:00:00 | D71: 0 | E71: DWA-RQS | F71: NONE | G71: 28.6 | H71: 460.1 | I71: 934 | J71: 174.5 | K71: 2.98 | L71: 13.75 | N71: 0.5 | O71: 307.1 | P71: 0.05 | Q71: 0.02 | S71: 7.6 | T71: 0.006 | U71: 41.97 | V71: 67.6 | W71: 43.7 | Y71: B81F | Z71: =VLOOKUP(A71,'DWS Websnap'!$B$4:$M$158,4,FALSE) -> Eiland (dup name 6509) | AA71: =VLOOKUP(A71,'DWS Websnap'!$B$4:$M$158,5,FALSE) -> unknown | AB71: =VLOOKUP(A71,'DWS Websnap'!$B$4:$M$158,10,FALSE) -> n/a | AC71: =VLOOKUP(A71,'DWS Websnap'!$B$4:$M$158,11,FALSE) -> -23.65 | AD71: =VLOOKUP(A71,'DWS Websnap'!$B$4:$M$158,12,FALSE) -> 30.66667
A72: B81 100742 | B72: 100742 | C72: 1982-09-15T09:00:00 | D72: 0 | E72: DWA-RQS | F72: NONE | G72: 40.3 | H72: 47.9 | I72: 1032 | J72: 115.3 | K72: 1.33 | L72: 1.47 | N72: 27.1 | O72: 201.5 | P72: 0.04 | Q72: 0.06 | S72: 7.78 | T72: 0.003 | U72: 23.57 | V72: 6.9 | W72: 578.1 | Y72: B81F | Z72: =VLOOKUP(A72,'DWS Websnap'!$B$4:$M$158,4,FALSE) -> Eiland (dup name 6510) | AA72: =VLOOKUP(A72,'DWS Websnap'!$B$4:$M$158,5,FALSE) -> unknown | AB72: =VLOOKUP(A72,'DWS Websnap'!$B$4:$M$158,10,FALSE) -> n/a | AC72: =VLOOKUP(A72,'DWS Websnap'!$B$4:$M$158,11,FALSE) -> -23.68333 | AD72: =VLOOKUP(A72,'DWS Websnap'!$B$4:$M$158,12,FALSE) -> 30.68333
A73: B81 103038 | B73: 103038 | C73: 1979-06-21T15:00:00 | D73: 0 | E73: DWA-RQS | F73: NONE | G73: 3.5 | H73: 3 | I73: 46 | J73: 6.4 | K73: 0.05 | L73: 0.85 | N73: 1.6 | O73: 5.2 | P73: 0.14 | Q73: 0.45 | S73: 6.83 | T73: 0.04 | U73: 7.78 | V73: 2 | W73: 24.6 | X73: B8H031R01 | Y73: B81B | Z73: =VLOOKUP(A73,'DWS Websnap'!$B$4:$M$158,4,FALSE) -> Dwarsfontein 541 LT Duiwelskloof Treatment Works Vergelegen Dam Raw Water | AA73: =VLOOKUP(A73,'DWS Websnap'!$B$4:$M$158,5,FALSE) -> Potable Water Treatment Works | AB73: =VLOOKUP(A73,'DWS Websnap'!$B$4:$M$158,10,FALSE) -> B8H031 | AC73: =VLOOKUP(A73,'DWS Websnap'!$B$4:$M$158,11,FALSE) -> -23.775 | AD73: =VLOOKUP(A73,'DWS Websnap'!$B$4:$M$158,12,FALSE) -> 30.1
A74: B81 103038 | B74: 103038 | C74: 1979-10-01T09:30:00 | D74: 0 | E74: DWA-RQS | F74: NONE | G74: 3 | H74: 4.7 | I74: 53 | J74: 5.7 | K74: 0.05 | L74: 1.25 | N74: 1.8 | O74: 4.2 | P74: 0.02 | Q74: 0.96 | S74: 5.85 | T74: 0.006 | U74: 9.07 | V74: 2 | W74: 25.6 | X74: B8H031R01 | Y74: B81B | Z74: =VLOOKUP(A74,'DWS Websnap'!$B$4:$M$158,4,FALSE) -> Dwarsfontein 541 LT Duiwelskloof Treatment Works Vergelegen Dam Raw Water | AA74: =VLOOKUP(A74,'DWS Websnap'!$B$4:$M$158,5,FALSE) -> Potable Water Treatment Works | AB74: =VLOOKUP(A74,'DWS Websnap'!$B$4:$M$158,10,FALSE) -> B8H031 | AC74: =VLOOKUP(A74,'DWS Websnap'!$B$4:$M$158,11,FALSE) -> -23.775 | AD74: =VLOOKUP(A74,'DWS Websnap'!$B$4:$M$158,12,FALSE) -> 30.1
A75: B81 103038 | B75: 103038 | C75: 1979-12-18T10:00:00 | D75: 0 | E75: DWA-RQS | F75: NONE | G75: 4.9 | H75: 4.2 | I75: 53 | J75: 7.4 | K75: 0.05 | L75: 1.34 | N75: 2 | O75: 5.2 | P75: 0.02 | Q75: 0.11 | S75: 6.65 | T75: 0.003 | U75: 5.88 | V75: 2 | W75: 27 | X75: B8H031R01 | Y75: B81B | Z75: =VLOOKUP(A75,'DWS Websnap'!$B$4:$M$158,4,FALSE) -> Dwarsfontein 541 LT Duiwelskloof Treatment Works Vergelegen Dam Raw Water | AA75: =VLOOKUP(A75,'DWS Websnap'!$B$4:$M$158,5,FALSE) -> Potable Water Treatment Works | AB75: =VLOOKUP(A75,'DWS Websnap'!$B$4:$M$158,10,FALSE) -> B8H031 | AC75: =VLOOKUP(A75,'DWS Websnap'!$B$4:$M$158,11,FALSE) -> -23.775 | AD75: =VLOOKUP(A75,'DWS Websnap'!$B$4:$M$158,12,FALSE) -> 30.1
A76: B81 103038 | B76: 103038 | C76: 1980-02-25T10:00:00 | D76: 0 | E76: DWA-RQS | F76: NONE | G76: 4.2 | H76: 4.5 | I76: 67 | J76: 7 | K76: 0.18 | L76: 1.85 | N76: 2.2 | O76: 4.9 | P76: 0.02 | Q76: 3.8 | S76: 6.5 | T76: 0.01 | U76: 8.21 | V76: 4.6 | W76: 22.8 | X76: B8H031R01 | Y76: B81B | Z76: =VLOOKUP(A76,'DWS Websnap'!$B$4:$M$158,4,FALSE) -> Dwarsfontein 541 LT Duiwelskloof Treatment Works Vergelegen Dam Raw Water | AA76: =VLOOKUP(A76,'DWS Websnap'!$B$4:$M$158,5,FALSE) -> Potable Water Treatment Works | AB76: =VLOOKUP(A76,'DWS Websnap'!$B$4:$M$158,10,FALSE) -> B8H031 | AC76: =VLOOKUP(A76,'DWS Websnap'!$B$4:$M$158,11,FALSE) -> -23.775 | AD76: =VLOOKUP(A76,'DWS Websnap'!$B$4:$M$158,12,FALSE) -> 30.1
A77: B81 103038 | B77: 103038 | C77: 1980-03-31T07:32:00 | D77: 0 | E77: DWA-RQS | F77: NONE | G77: 4.4 | H77: 4.3 | I77: 50 | J77: 6.9 | K77: 0.13 | L77: 1.61 | N77: 1.4 | O77: 4.9 | P77: 0.15 | Q77: 0.62 | S77: 6.03 | T77: 0.007 | U77: 7.77 | V77: 2 | W77: 22.9 | X77: B8H031R01 | Y77: B81B | Z77: =VLOOKUP(A77,'DWS Websnap'!$B$4:$M$158,4,FALSE) -> Dwarsfontein 541 LT Duiwelskloof Treatment Works Vergelegen Dam Raw Water | AA77: =VLOOKUP(A77,'DWS Websnap'!$B$4:$M$158,5,FALSE) -> Potable Water Treatment Works | AB77: =VLOOKUP(A77,'DWS Websnap'!$B$4:$M$158,10,FALSE) -> B8H031 | AC77: =VLOOKUP(A77,'DWS Websnap'!$B$4:$M$158,11,FALSE) -> -23.775 | AD77: =VLOOKUP(A77,'DWS Websnap'!$B$4:$M$158,12,FALSE) -> 30.1
A78: B81 103038 | B78: 103038 | C78: 1980-04-28T11:45:00 | D78: 0 | E78: DWA-RQS | F78: NONE | G78: 4.6 | H78: 1.5 | I78: 49 | J78: 6.9 | K78: 0.11 | L78: 1.29 | N78: 1.5 | O78: 5.2 | P78: 0.07 | Q78: 0.6 | S78: 6.09 | T78: 0.026 | U78: 7.99 | V78: 2 | W78: 26.1 | X78: B8H031R01 | Y78: B81B | Z78: =VLOOKUP(A78,'DWS Websnap'!$B$4:$M$158,4,FALSE) -> Dwarsfontein 541 LT Duiwelskloof Treatment Works Vergelegen Dam Raw Water | AA78: =VLOOKUP(A78,'DWS Websnap'!$B$4:$M$158,5,FALSE) -> Potable Water Treatment Works | AB78: =VLOOKUP(A78,'DWS Websnap'!$B$4:$M$158,10,FALSE) -> B8H031 | AC78: =VLOOKUP(A78,'DWS Websnap'!$B$4:$M$158,11,FALSE) -> -23.775 | AD78: =VLOOKUP(A78,'DWS Websnap'!$B$4:$M$158,12,FALSE) -> 30.1
A79: B81 103038 | B79: 103038 | C79: 1980-06-03T10:15:00 | D79: 0 | E79: DWA-RQS | F79: NONE | G79: 4 | H79: 3.9 | I79: 47 | J79: 6.4 | K79: 0.12 | L79: 1.07 | N79: 1.8 | O79: 6.4 | P79: 0.08 | Q79: 0.13 | S79: 6.26 | T79: 0.007 | U79: 8.05 | V79: 2 | W79: 21.4 | X79: B8H031R01 | Y79: B81B | Z79: =VLOOKUP(A79,'DWS Websnap'!$B$4:$M$158,4,FALSE) -> Dwarsfontein 541 LT Duiwelskloof Treatment Works Vergelegen Dam Raw Water | AA79: =VLOOKUP(A79,'DWS Websnap'!$B$4:$M$158,5,FALSE) -> Potable Water Treatment Works | AB79: =VLOOKUP(A79,'DWS Websnap'!$B$4:$M$158,10,FALSE) -> B8H031 | AC79: =VLOOKUP(A79,'DWS Websnap'!$B$4:$M$158,11,FALSE) -> -23.775 | AD79: =VLOOKUP(A79,'DWS Websnap'!$B$4:$M$158,12,FALSE) -> 30.1
A80: B81 103038 | B80: 103038 | C80: 1980-07-03T10:00:00 | D80: 0 | E80: DWA-RQS | F80: NONE | G80: 3.3 | H80: 3.5 | I80: 36 | J80: 5.9 | K80: 0.05 | L80: 1.05 | N80: 1.5 | O80: 5.1 | P80: 0.05 | Q80: 0.09 | S80: 6 | T80: 0.013 | U80: 7.92 | V80: 2 | W80: 16.3 | X80: B8H031R01 | Y80: B81B | Z80: =VLOOKUP(A80,'DWS Websnap'!$B$4:$M$158,4,FALSE) -> Dwarsfontein 541 LT Duiwelskloof Treatment Works Vergelegen Dam Raw Water | AA80: =VLOOKUP(A80,'DWS Websnap'!$B$4:$M$158,5,FALSE) -> Potable Water Treatment Works | AB80: =VLOOKUP(A80,'DWS Websnap'!$B$4:$M$158,10,FALSE) -> B8H031 | AC80: =VLOOKUP(A80,'DWS Websnap'!$B$4:$M$158,11,FALSE) -> -23.775 | AD80: =VLOOKUP(A80,'DWS Websnap'!$B$4:$M$158,12,FALSE) -> 30.1
A81: B81 103038 | B81: 103038 | C81: 1980-07-31T12:30:00 | D81: 0 | E81: DWA-RQS | F81: NONE | G81: 2.8 | H81: 1.5 | I81: 44 | J81: 5.5 | K81: 0.14 | L81: 0.91 | N81: 1.7 | O81: 6 | P81: 0.09 | Q81: 0.32 | S81: 6 | T81: 0.014 | U81: 7.43 | V81: 2 | W81: 22 | X81: B8H031R01 | Y81: B81B | Z81: =VLOOKUP(A81,'DWS Websnap'!$B$4:$M$158,4,FALSE) -> Dwarsfontein 541 LT Duiwelskloof Treatment Works Vergelegen Dam Raw Water | AA81: =VLOOKUP(A81,'DWS Websnap'!$B$4:$M$158,5,FALSE) -> Potable Water Treatment Works | AB81: =VLOOKUP(A81,'DWS Websnap'!$B$4:$M$158,10,FALSE) -> B8H031 | AC81: =VLOOKUP(A81,'DWS Websnap'!$B$4:$M$158,11,FALSE) -> -23.775 | AD81: =VLOOKUP(A81,'DWS Websnap'!$B$4:$M$158,12,FALSE) -> 30.1
A82: B81 103038 | B82: 103038 | C82: 1980-08-29T10:00:00 | D82: 0 | E82: DWA-RQS | F82: NONE | G82: 3.4 | H82: 3.4 | I82: 37 | J82: 5.1 | K82: 0.11 | L82: 0.75 | N82: 1.5 | O82: 4.5 | P82: 0.02 | Q82: 0.1 | S82: 6.3 | T82: 0.003 | U82: 7.55 | V82: 2 | W82: 16.4 | X82: B8H031R01 | Y82: B81B | Z82: =VLOOKUP(A82,'DWS Websnap'!$B$4:$M$158,4,FALSE) -> Dwarsfontein 541 LT Duiwelskloof Treatment Works Vergelegen Dam Raw Water | AA82: =VLOOKUP(A82,'DWS Websnap'!$B$4:$M$158,5,FALSE) -> Potable Water Treatment Works | AB82: =VLOOKUP(A82,'DWS Websnap'!$B$4:$M$158,10,FALSE) -> B8H031 | AC82: =VLOOKUP(A82,'DWS Websnap'!$B$4:$M$158,11,FALSE) -> -23.775 | AD82: =VLOOKUP(A82,'DWS Websnap'!$B$4:$M$158,12,FALSE) -> 30.1
A83: B81 103038 | B83: 103038 | C83: 1980-10-07T08:00:00 | D83: 0 | E83: DWA-RQS | F83: NONE | G83: 3.6 | H83: 1.5 | I83: 41 | J83: 6.2 | K83: 0.11 | L83: 1.04 | N83: 1.4 | O83: 5 | P83: 0.06 | Q83: 0.06 | S83: 6.73 | T83: 0.005 | U83: 7.54 | V83: 2 | W83: 20.8 | X83: B8H031R01 | Y83: B81B | Z83: =VLOOKUP(A83,'DWS Websnap'!$B$4:$M$158,4,FALSE) -> Dwarsfontein 541 LT Duiwelskloof Treatment Works Vergelegen Dam Raw Water | AA83: =VLOOKUP(A83,'DWS Websnap'!$B$4:$M$158,5,FALSE) -> Potable Water Treatment Works | AB83: =VLOOKUP(A83,'DWS Websnap'!$B$4:$M$158,10,FALSE) -> B8H031 | AC83: =VLOOKUP(A83,'DWS Websnap'!$B$4:$M$158,11,FALSE) -> -23.775 | AD83: =VLOOKUP(A83,'DWS Websnap'!$B$4:$M$158,12,FALSE) -> 30.1
A84: B81 103038 | B84: 103038 | C84: 1980-10-31T08:00:00 | D84: 0 | E84: DWA-RQS | F84: NONE | G84: 3.9 | H84: 1.5 | I84: 38 | J84: 5.9 | K84: 0.11 | L84: 1.05 | N84: 1.9 | O84: 4.4 | P84: 0.02 | Q84: 0.07 | S84: 6.03 | T84: 0.015 | U84: 7.64 | V84: 2 | W84: 18.1 | X84: B8H031R01 | Y84: B81B | Z84: =VLOOKUP(A84,'DWS Websnap'!$B$4:$M$158,4,FALSE) -> Dwarsfontein 541 LT Duiwelskloof Treatment Works Vergelegen Dam Raw Water | AA84: =VLOOKUP(A84,'DWS Websnap'!$B$4:$M$158,5,FALSE) -> Potable Water Treatment Works | AB84: =VLOOKUP(A84,'DWS Websnap'!$B$4:$M$158,10,FALSE) -> B8H031 | AC84: =VLOOKUP(A84,'DWS Websnap'!$B$4:$M$158,11,FALSE) -> -23.775 | AD84: =VLOOKUP(A84,'DWS Websnap'!$B$4:$M$158,12,FALSE) -> 30.1
A85: B81 103038 | B85: 103038 | C85: 1980-12-02T09:00:00 | D85: 0 | E85: DWA-RQS | F85: NONE | G85: 4 | H85: 1.5 | I85: 39 | J85: 6 | K85: 0.1 | L85: 1.59 | N85: 1.8 | O85: 6.1 | P85: 0.02 | Q85: 0.08 | S85: 6.27 | T85: 0.034 | U85: 7.15 | V85: 2 | W85: 17.4 | X85: B8H031R01 | Y85: B81B | Z85: =VLOOKUP(A85,'DWS Websnap'!$B$4:$M$158,4,FALSE) -> Dwarsfontein 541 LT Duiwelskloof Treatment Works Vergelegen Dam Raw Water | AA85: =VLOOKUP(A85,'DWS Websnap'!$B$4:$M$158,5,FALSE) -> Potable Water Treatment Works | AB85: =VLOOKUP(A85,'DWS Websnap'!$B$4:$M$158,10,FALSE) -> B8H031 | AC85: =VLOOKUP(A85,'DWS Websnap'!$B$4:$M$158,11,FALSE) -> -23.775 | AD85: =VLOOKUP(A85,'DWS Websnap'!$B$4:$M$158,12,FALSE) -> 30.1
A86: B81 103038 | B86: 103038 | C86: 1980-12-21T08:00:00 | D86: 0 | E86: DWA-RQS | F86: NONE | G86: 4.6 | H86: 3.9 | I86: 53 | J86: 7.1 | K86: 0.05 | L86: 1.28 | N86: 2.2 | O86: 4.9 | P86: 0.02 | Q86: 0.04 | S86: 6.03 | T86: 0.016 | U86: 7.4 | V86: 4.2 | W86: 25.9 | X86: B8H031R01 | Y86: B81B | Z86: =VLOOKUP(A86,'DWS Websnap'!$B$4:$M$158,4,FALSE) -> Dwarsfontein 541 LT Duiwelskloof Treatment Works Vergelegen Dam Raw Water | AA86: =VLOOKUP(A86,'DWS Websnap'!$B$4:$M$158,5,FALSE) -> Potable Water Treatment Works | AB86: =VLOOKUP(A86,'DWS Websnap'!$B$4:$M$158,10,FALSE) -> B8H031 | AC86: =VLOOKUP(A86,'DWS Websnap'!$B$4:$M$158,11,FALSE) -> -23.775 | AD86: =VLOOKUP(A86,'DWS Websnap'!$B$4:$M$158,12,FALSE) -> 30.1
A87: B81 103038 | B87: 103038 | C87: 1981-02-03T08:00:00 | D87: 0 | E87: DWA-RQS | F87: NONE | G87: 3.3 | H87: 6.7 | I87: 38 | J87: 6 | K87: 0.05 | L87: 2.11 | N87: 1.6 | O87: 5.3 | P87: 0.02 | Q87: 0.85 | S87: 5.74 | T87: 0.072 | U87: 5.41 | V87: 2 | W87: 10.4 | X87: B8H031R01 | Y87: B81B | Z87: =VLOOKUP(A87,'DWS Websnap'!$B$4:$M$158,4,FALSE) -> Dwarsfontein 541 LT Duiwelskloof Treatment Works Vergelegen Dam Raw Water | AA87: =VLOOKUP(A87,'DWS Websnap'!$B$4:$M$158,5,FALSE) -> Potable Water Treatment Works | AB87: =VLOOKUP(A87,'DWS Websnap'!$B$4:$M$158,10,FALSE) -> B8H031 | AC87: =VLOOKUP(A87,'DWS Websnap'!$B$4:$M$158,11,FALSE) -> -23.775 | AD87: =VLOOKUP(A87,'DWS Websnap'!$B$4:$M$158,12,FALSE) -> 30.1
A88: B81 103038 | B88: 103038 | C88: 1981-03-31T13:00:00 | D88: 0 | E88: DWA-RQS | F88: NONE | G88: 3.4 | H88: 5.3 | I88: 53 | J88: 6.3 | K88: 0.12 | L88: 1.59 | N88: 2 | O88: 5.7 | P88: 0.02 | Q88: 0.66 | S88: 5.81 | T88: 0.012 | U88: 7.85 | V88: 2 | W88: 24.5 | X88: B8H031R01 | Y88: B81B | Z88: =VLOOKUP(A88,'DWS Websnap'!$B$4:$M$158,4,FALSE) -> Dwarsfontein 541 LT Duiwelskloof Treatment Works Vergelegen Dam Raw Water | AA88: =VLOOKUP(A88,'DWS Websnap'!$B$4:$M$158,5,FALSE) -> Potable Water Treatment Works | AB88: =VLOOKUP(A88,'DWS Websnap'!$B$4:$M$158,10,FALSE) -> B8H031 | AC88: =VLOOKUP(A88,'DWS Websnap'!$B$4:$M$158,11,FALSE) -> -23.775 | AD88: =VLOOKUP(A88,'DWS Websnap'!$B$4:$M$158,12,FALSE) -> 30.1
A89: B81 103038 | B89: 103038 | C89: 1981-04-29T10:00:00 | D89: 0 | E89: DWA-RQS | F89: NONE | G89: 3.9 | H89: 3 | I89: 51 | J89: 6.5 | K89: 0.15 | L89: 1.23 | N89: 1.7 | O89: 5.8 | P89: 0.02 | Q89: 0.61 | S89: 6.21 | T89: 0.006 | U89: 8.26 | V89: 5.2 | W89: 22 | X89: B8H031R01 | Y89: B81B | Z89: =VLOOKUP(A89,'DWS Websnap'!$B$4:$M$158,4,FALSE) -> Dwarsfontein 541 LT Duiwelskloof Treatment Works Vergelegen Dam Raw Water | AA89: =VLOOKUP(A89,'DWS Websnap'!$B$4:$M$158,5,FALSE) -> Potable Water Treatment Works | AB89: =VLOOKUP(A89,'DWS Websnap'!$B$4:$M$158,10,FALSE) -> B8H031 | AC89: =VLOOKUP(A89,'DWS Websnap'!$B$4:$M$158,11,FALSE) -> -23.775 | AD89: =VLOOKUP(A89,'DWS Websnap'!$B$4:$M$158,12,FALSE) -> 30.1
A90: B81 103038 | B90: 103038 | C90: 1981-05-29T10:00:00 | D90: 0 | E90: DWA-RQS | F90: NONE | G90: 3.1 | H90: 4.2 | I90: 54 | J90: 6.4 | K90: 0.1 | L90: 1.23 | N90: 1.9 | O90: 5.4 | P90: 0.11 | Q90: 0.63 | S90: 5.86 | T90: 0.006 | U90: 8.49 | V90: 8 | W90: 22.4 | X90: B8H031R01 | Y90: B81B | Z90: =VLOOKUP(A90,'DWS Websnap'!$B$4:$M$158,4,FALSE) -> Dwarsfontein 541 LT Duiwelskloof Treatment Works Vergelegen Dam Raw Water | AA90: =VLOOKUP(A90,'DWS Websnap'!$B$4:$M$158,5,FALSE) -> Potable Water Treatment Works | AB90: =VLOOKUP(A90,'DWS Websnap'!$B$4:$M$158,10,FALSE) -> B8H031 | AC90: =VLOOKUP(A90,'DWS Websnap'!$B$4:$M$158,11,FALSE) -> -23.775 | AD90: =VLOOKUP(A90,'DWS Websnap'!$B$4:$M$158,12,FALSE) -> 30.1
A91: B81 103038 | B91: 103038 | C91: 1981-07-01T09:30:00 | D91: 0 | E91: DWA-RQS | F91: NONE | G91: 3 | H91: 1.5 | I91: 49 | J91: 6.4 | K91: 0.05 | L91: 1.03 | N91: 1.7 | O91: 5.2 | P91: 0.02 | Q91: 0.58 | S91: 5.98 | T91: 0.007 | U91: 7.84 | V91: 2 | W91: 24.4 | X91: B8H031R01 | Y91: B81B | Z91: =VLOOKUP(A91,'DWS Websnap'!$B$4:$M$158,4,FALSE) -> Dwarsfontein 541 LT Duiwelskloof Treatment Works Vergelegen Dam Raw Water | AA91: =VLOOKUP(A91,'DWS Websnap'!$B$4:$M$158,5,FALSE) -> Potable Water Treatment Works | AB91: =VLOOKUP(A91,'DWS Websnap'!$B$4:$M$158,10,FALSE) -> B8H031 | AC91: =VLOOKUP(A91,'DWS Websnap'!$B$4:$M$158,11,FALSE) -> -23.775 | AD91: =VLOOKUP(A91,'DWS Websnap'!$B$4:$M$158,12,FALSE) -> 30.1
A92: B81 103038 | B92: 103038 | C92: 1981-07-31T07:00:00 | D92: 0 | E92: DWA-RQS | F92: NONE | G92: 2.9 | H92: 3 | I92: 45 | J92: 5.7 | K92: 0.05 | L92: 1.1 | N92: 1.2 | O92: 4.8 | P92: 0.05 | Q92: 0.49 | S92: 6.08 | T92: 0.003 | U92: 8.13 | V92: 2 | W92: 21.7 | X92: B8H031R01 | Y92: B81B | Z92: =VLOOKUP(A92,'DWS Websnap'!$B$4:$M$158,4,FALSE) -> Dwarsfontein 541 LT Duiwelskloof Treatment Works Vergelegen Dam Raw Water | AA92: =VLOOKUP(A92,'DWS Websnap'!$B$4:$M$158,5,FALSE) -> Potable Water Treatment Works | AB92: =VLOOKUP(A92,'DWS Websnap'!$B$4:$M$158,10,FALSE) -> B8H031 | AC92: =VLOOKUP(A92,'DWS Websnap'!$B$4:$M$158,11,FALSE) -> -23.775 | AD92: =VLOOKUP(A92,'DWS Websnap'!$B$4:$M$158,12,FALSE) -> 30.1
A93: B81 103038 | B93: 103038 | C93: 1981-08-31T11:00:00 | D93: 0 | E93: DWA-RQS | F93: NONE | G93: 3.5 | H93: 3.1 | I93: 43 | J93: 5.3 | K93: 0.05 | L93: 1.06 | N93: 1.4 | O93: 4.2 | P93: 0.02 | Q93: 0.41 | S93: 6.06 | T93: 0.003 | U93: 7.86 | V93: 2 | W93: 19.8 | X93: B8H031R01 | Y93: B81B | Z93: =VLOOKUP(A93,'DWS Websnap'!$B$4:$M$158,4,FALSE) -> Dwarsfontein 541 LT Duiwelskloof Treatment Works Vergelegen Dam Raw Water | AA93: =VLOOKUP(A93,'DWS Websnap'!$B$4:$M$158,5,FALSE) -> Potable Water Treatment Works | AB93: =VLOOKUP(A93,'DWS Websnap'!$B$4:$M$158,10,FALSE) -> B8H031 | AC93: =VLOOKUP(A93,'DWS Websnap'!$B$4:$M$158,11,FALSE) -> -23.775 | AD93: =VLOOKUP(A93,'DWS Websnap'!$B$4:$M$158,12,FALSE) -> 30.1
A94: B81 103038 | B94: 103038 | C94: 1981-09-30T09:00:00 | D94: 0 | E94: DWA-RQS | F94: NONE | G94: 3.3 | H94: 4.4 | I94: 61 | J94: 5.9 | K94: 0.14 | L94: 1.33 | N94: 1.7 | O94: 6.4 | P94: 0.02 | Q94: 0.37 | S94: 6.19 | T94: 0.003 | U94: 8.33 | V94: 6.4 | W94: 29.4 | X94: B8H031R01 | Y94: B81B | Z94: =VLOOKUP(A94,'DWS Websnap'!$B$4:$M$158,4,FALSE) -> Dwarsfontein 541 LT Duiwelskloof Treatment Works Vergelegen Dam Raw Water | AA94: =VLOOKUP(A94,'DWS Websnap'!$B$4:$M$158,5,FALSE) -> Potable Water Treatment Works | AB94: =VLOOKUP(A94,'DWS Websnap'!$B$4:$M$158,10,FALSE) -> B8H031 | AC94: =VLOOKUP(A94,'DWS Websnap'!$B$4:$M$158,11,FALSE) -> -23.775 | AD94: =VLOOKUP(A94,'DWS Websnap'!$B$4:$M$158,12,FALSE) -> 30.1
A95: B81 103038 | B95: 103038 | C95: 1981-11-02T10:00:00 | D95: 0 | E95: DWA-RQS | F95: NONE | G95: 3.2 | H95: 1.5 | I95: 54 | J95: 6 | K95: 0.11 | L95: 1.08 | N95: 1.9 | O95: 6.5 | P95: 0.02 | Q95: 0.26 | S95: 6.4 | T95: 0.003 | U95: 7.36 | V95: 8 | W95: 24.3 | X95: B8H031R01 | Y95: B81B | Z95: =VLOOKUP(A95,'DWS Websnap'!$B$4:$M$158,4,FALSE) -> Dwarsfontein 541 LT Duiwelskloof Treatment Works Vergelegen Dam Raw Water | AA95: =VLOOKUP(A95,'DWS Websnap'!$B$4:$M$158,5,FALSE) -> Potable Water Treatment Works | AB95: =VLOOKUP(A95,'DWS Websnap'!$B$4:$M$158,10,FALSE) -> B8H031 | AC95: =VLOOKUP(A95,'DWS Websnap'!$B$4:$M$158,11,FALSE) -> -23.775 | AD95: =VLOOKUP(A95,'DWS Websnap'!$B$4:$M$158,12,FALSE) -> 30.1
A96: B81 103038 | B96: 103038 | C96: 1982-02-01T09:30:00 | D96: 0 | E96: DWA-RQS | F96: NONE | G96: 4 | H96: 4.7 | I96: 51 | J96: 6.3 | K96: 0.18 | L96: 0.92 | N96: 1.8 | O96: 5.8 | P96: 0.02 | Q96: 0.22 | S96: 6.2 | T96: 0.011 | U96: 7.48 | V96: 2 | W96: 24 | X96: B8H031R01 | Y96: B81B | Z96: =VLOOKUP(A96,'DWS Websnap'!$B$4:$M$158,4,FALSE) -> Dwarsfontein 541 LT Duiwelskloof Treatment Works Vergelegen Dam Raw Water | AA96: =VLOOKUP(A96,'DWS Websnap'!$B$4:$M$158,5,FALSE) -> Potable Water Treatment Works | AB96: =VLOOKUP(A96,'DWS Websnap'!$B$4:$M$158,10,FALSE) -> B8H031 | AC96: =VLOOKUP(A96,'DWS Websnap'!$B$4:$M$158,11,FALSE) -> -23.775 | AD96: =VLOOKUP(A96,'DWS Websnap'!$B$4:$M$158,12,FALSE) -> 30.1
A97: B81 103038 | B97: 103038 | C97: 1982-02-24T09:00:00 | D97: 0 | E97: DWA-RQS | F97: NONE | G97: 4.7 | H97: 4 | I97: 56 | J97: 6.8 | K97: 0.27 | L97: 1.08 | N97: 2.1 | O97: 5.9 | P97: 0.09 | Q97: 0.22 | S97: 7.17 | T97: 0.009 | U97: 6.87 | V97: 4.6 | W97: 26.5 | X97: B8H031R01 | Y97: B81B | Z97: =VLOOKUP(A97,'DWS Websnap'!$B$4:$M$158,4,FALSE) -> Dwarsfontein 541 LT Duiwelskloof Treatment Works Vergelegen Dam Raw Water | AA97: =VLOOKUP(A97,'DWS Websnap'!$B$4:$M$158,5,FALSE) -> Potable Water Treatment Works | AB97: =VLOOKUP(A97,'DWS Websnap'!$B$4:$M$158,10,FALSE) -> B8H031 | AC97: =VLOOKUP(A97,'DWS Websnap'!$B$4:$M$158,11,FALSE) -> -23.775 | AD97: =VLOOKUP(A97,'DWS Websnap'!$B$4:$M$158,12,FALSE) -> 30.1
A98: B81 103038 | B98: 103038 | C98: 1982-03-31T08:00:00 | D98: 0 | E98: DWA-RQS | F98: NONE | G98: 4 | H98: 3.6 | I98: 47 | J98: 6.2 | K98: 0.21 | L98: 1.25 | N98: 1.7 | O98: 5.2 | P98: 0.02 | Q98: 0.16 | S98: 6.8 | T98: 0.005 | U98: 7.5 | V98: 2 | W98: 25.1 | X98: B8H031R01 | Y98: B81B | Z98: =VLOOKUP(A98,'DWS Websnap'!$B$4:$M$158,4,FALSE) -> Dwarsfontein 541 LT Duiwelskloof Treatment Works Vergelegen Dam Raw Water | AA98: =VLOOKUP(A98,'DWS Websnap'!$B$4:$M$158,5,FALSE) -> Potable Water Treatment Works | AB98: =VLOOKUP(A98,'DWS Websnap'!$B$4:$M$158,10,FALSE) -> B8H031 | AC98: =VLOOKUP(A98,'DWS Websnap'!$B$4:$M$158,11,FALSE) -> -23.775 | AD98: =VLOOKUP(A98,'DWS Websnap'!$B$4:$M$158,12,FALSE) -> 30.1
A99: B81 103038 | B99: 103038 | C99: 1982-05-09T09:00:00 | D99: 0 | E99: DWA-RQS | F99: NONE | G99: 9.8 | H99: 4.5 | I99: 69 | J99: 8.7 | K99: 0.05 | L99: 1.39 | N99: 1.5 | O99: 5.6 | P99: 0.19 | Q99: 0.26 | S99: 7.52 | T99: 0.014 | U99: 6.6 | V99: 2 | W99: 33.8 | X99: B8H031R01 | Y99: B81B | Z99: =VLOOKUP(A99,'DWS Websnap'!$B$4:$M$158,4,FALSE) -> Dwarsfontein 541 LT Duiwelskloof Treatment Works Vergelegen Dam Raw Water | AA99: =VLOOKUP(A99,'DWS Websnap'!$B$4:$M$158,5,FALSE) -> Potable Water Treatment Works | AB99: =VLOOKUP(A99,'DWS Websnap'!$B$4:$M$158,10,FALSE) -> B8H031 | AC99: =VLOOKUP(A99,'DWS Websnap'!$B$4:$M$158,11,FALSE) -> -23.775 | AD99: =VLOOKUP(A99,'DWS Websnap'!$B$4:$M$158,12,FALSE) -> 30.1
A100: B81 103038 | B100: 103038 | C100: 1982-06-01T09:00:00 | D100: 0 | E100: DWA-RQS | F100: NONE | G100: 2.9 | H100: 6 | I100: 41 | J100: 5.6 | K100: 0.05 | L100: 1.25 | N100: 1.7 | O100: 5.8 | P100: 0.02 | Q100: 0.25 | S100: 6.8 | T100: 0.026 | U100: 7.08 | V100: 2 | W100: 17.9 | X100: B8H031R01 | Y100: B81B | Z100: =VLOOKUP(A100,'DWS Websnap'!$B$4:$M$158,4,FALSE) -> Dwarsfontein 541 LT Duiwelskloof Treatment Works Vergelegen Dam Raw Water | AA100: =VLOOKUP(A100,'DWS Websnap'!$B$4:$M$158,5,FALSE) -> Potable Water Treatment Works | AB100: =VLOOKUP(A100,'DWS Websnap'!$B$4:$M$158,10,FALSE) -> B8H031 | AC100: =VLOOKUP(A100,'DWS Websnap'!$B$4:$M$158,11,FALSE) -> -23.775 | AD100: =VLOOKUP(A100,'DWS Websnap'!$B$4:$M$158,12,FALSE) -> 30.1
A101: B81 103038 | B101: 103038 | C101: 1982-06-30T09:00:00 | D101: 0 | E101: DWA-RQS | F101: NONE | G101: 5.2 | H101: 3.9 | I101: 37 | J101: 5.3 | K101: 0.15 | L101: 1.13 | N101: 1.7 | O101: 4.7 | P101: 0.09 | Q101: 0.26 | S101: 6.82 | T101: 0.011 | U101: 6.65 | V101: 2 | W101: 15.8 | X101: B8H031R01 | Y101: B81B | Z101: =VLOOKUP(A101,'DWS Websnap'!$B$4:$M$158,4,FALSE) -> Dwarsfontein 541 LT Duiwelskloof Treatment Works Vergelegen Dam Raw Water | AA101: =VLOOKUP(A101,'DWS Websnap'!$B$4:$M$158,5,FALSE) -> Potable Water Treatment Works | AB101: =VLOOKUP(A101,'DWS Websnap'!$B$4:$M$158,10,FALSE) -> B8H031 | AC101: =VLOOKUP(A101,'DWS Websnap'!$B$4:$M$158,11,FALSE) -> -23.775 | AD101: =VLOOKUP(A101,'DWS Websnap'!$B$4:$M$158,12,FALSE) -> 30.1
A102: B81 103038 | B102: 103038 | C102: 1982-08-03T09:00:00 | D102: 0 | E102: DWA-RQS | F102: NONE | G102: 3.5 | H102: 3.4 | I102: 40 | J102: 5.5 | K102: 0.14 | L102: 1.09 | N102: 0.5 | O102: 5.8 | P102: 0.02 | Q102: 0.23 | S102: 6.85 | T102: 0.01 | U102: 7.09 | V102: 2 | W102: 19.5 | X102: B8H031R01 | Y102: B81B | Z102: =VLOOKUP(A102,'DWS Websnap'!$B$4:$M$158,4,FALSE) -> Dwarsfontein 541 LT Duiwelskloof Treatment Works Vergelegen Dam Raw Water | AA102: =VLOOKUP(A102,'DWS Websnap'!$B$4:$M$158,5,FALSE) -> Potable Water Treatment Works | AB102: =VLOOKUP(A102,'DWS Websnap'!$B$4:$M$158,10,FALSE) -> B8H031 | AC102: =VLOOKUP(A102,'DWS Websnap'!$B$4:$M$158,11,FALSE) -> -23.775 | AD102: =VLOOKUP(A102,'DWS Websnap'!$B$4:$M$158,12,FALSE) -> 30.1
A103: B81 103038 | B103: 103038 | C103: 1982-09-02T09:00:00 | D103: 0 | E103: DWA-RQS | F103: NONE | G103: 3.8 | H103: 3.8 | I103: 44 | J103: 5.6 | K103: 0.16 | L103: 1 | N103: 1.7 | O103: 5.2 | P103: 0.04 | Q103: 0.2 | S103: 7.1 | T103: 0.012 | U103: 6.82 | V103: 2 | W103: 22.1 | X103: B8H031R01 | Y103: B81B | Z103: =VLOOKUP(A103,'DWS Websnap'!$B$4:$M$158,4,FALSE) -> Dwarsfontein 541 LT Duiwelskloof Treatment Works Vergelegen Dam Raw Water | AA103: =VLOOKUP(A103,'DWS Websnap'!$B$4:$M$158,5,FALSE) -> Potable Water Treatment Works | AB103: =VLOOKUP(A103,'DWS Websnap'!$B$4:$M$158,10,FALSE) -> B8H031 | AC103: =VLOOKUP(A103,'DWS Websnap'!$B$4:$M$158,11,FALSE) -> -23.775 | AD103: =VLOOKUP(A103,'DWS Websnap'!$B$4:$M$158,12,FALSE) -> 30.1
A104: B81 103038 | B104: 103038 | C104: 1982-12-31T09:00:00 | D104: 0 | E104: DWA-RQS | F104: NONE | J104: 6.2 | Q104: 0.02 | S104: 7.2 | W104: 23.8 | X104: B8H031R01 | Y104: B81B | Z104: =VLOOKUP(A104,'DWS Websnap'!$B$4:$M$158,4,FALSE) -> Dwarsfontein 541 LT Duiwelskloof Treatment Works Vergelegen Dam Raw Water | AA104: =VLOOKUP(A104,'DWS Websnap'!$B$4:$M$158,5,FALSE) -> Potable Water Treatment Works | AB104: =VLOOKUP(A104,'DWS Websnap'!$B$4:$M$158,10,FALSE) -> B8H031 | AC104: =VLOOKUP(A104,'DWS Websnap'!$B$4:$M$158,11,FALSE) -> -23.775 | AD104: =VLOOKUP(A104,'DWS Websnap'!$B$4:$M$158,12,FALSE) -> 30.1
A105: B81 103038 | B105: 103038 | C105: 1983-01-31T09:00:00 | D105: 0 | E105: DWA-RQS | F105: NONE | J105: 6.1 | Q105: 0.13 | S105: 6.7 | W105: 23.6 | X105: B8H031R01 | Y105: B81B | Z105: =VLOOKUP(A105,'DWS Websnap'!$B$4:$M$158,4,FALSE) -> Dwarsfontein 541 LT Duiwelskloof Treatment Works Vergelegen Dam Raw Water | AA105: =VLOOKUP(A105,'DWS Websnap'!$B$4:$M$158,5,FALSE) -> Potable Water Treatment Works | AB105: =VLOOKUP(A105,'DWS Websnap'!$B$4:$M$158,10,FALSE) -> B8H031 | AC105: =VLOOKUP(A105,'DWS Websnap'!$B$4:$M$158,11,FALSE) -> -23.775 | AD105: =VLOOKUP(A105,'DWS Websnap'!$B$4:$M$158,12,FALSE) -> 30.1
A106: B81 103038 | B106: 103038 | C106: 1983-02-28T12:00:00 | D106: 0 | E106: DWA-RQS | F106: NONE | J106: 5.8 | Q106: 0.02 | S106: 7.02 | W106: 26.6 | X106: B8H031R01 | Y106: B81B | Z106: =VLOOKUP(A106,'DWS Websnap'!$B$4:$M$158,4,FALSE) -> Dwarsfontein 541 LT Duiwelskloof Treatment Works Vergelegen Dam Raw Water | AA106: =VLOOKUP(A106,'DWS Websnap'!$B$4:$M$158,5,FALSE) -> Potable Water Treatment Works | AB106: =VLOOKUP(A106,'DWS Websnap'!$B$4:$M$158,10,FALSE) -> B8H031 | AC106: =VLOOKUP(A106,'DWS Websnap'!$B$4:$M$158,11,FALSE) -> -23.775 | AD106: =VLOOKUP(A106,'DWS Websnap'!$B$4:$M$158,12,FALSE) -> 30.1
A107: B81 103038 | B107: 103038 | C107: 1983-03-31T09:00:00 | D107: 0 | E107: DWA-RQS | F107: NONE | G107: 3.7 | H107: 3 | I107: 46 | J107: 5.9 | K107: 0.05 | L107: 1.12 | N107: 1.8 | O107: 4.7 | P107: 0.05 | Q107: 0.14 | S107: 7.4 | T107: 0.007 | U107: 5.11 | V107: 8.4 | W107: 18.1 | X107: B8H031R01 | Y107: B81B | Z107: =VLOOKUP(A107,'DWS Websnap'!$B$4:$M$158,4,FALSE) -> Dwarsfontein 541 LT Duiwelskloof Treatment Works Vergelegen Dam Raw Water | AA107: =VLOOKUP(A107,'DWS Websnap'!$B$4:$M$158,5,FALSE) -> Potable Water Treatment Works | AB107: =VLOOKUP(A107,'DWS Websnap'!$B$4:$M$158,10,FALSE) -> B8H031 | AC107: =VLOOKUP(A107,'DWS Websnap'!$B$4:$M$158,11,FALSE) -> -23.775 | AD107: =VLOOKUP(A107,'DWS Websnap'!$B$4:$M$158,12,FALSE) -> 30.1
A108: B81 103038 | B108: 103038 | C108: 1983-04-29T09:00:00 | D108: 0 | E108: DWA-RQS | F108: NONE | G108: 4 | H108: 4.9 | I108: 54 | J108: 6.8 | K108: 0.19 | L108: 1.16 | N108: 2 | O108: 4.4 | P108: 0.05 | Q108: 0.12 | S108: 6.95 | T108: 0.017 | U108: 5.88 | V108: 9.1 | W108: 22.8 | X108: B8H031R01 | Y108: B81B | Z108: =VLOOKUP(A108,'DWS Websnap'!$B$4:$M$158,4,FALSE) -> Dwarsfontein 541 LT Duiwelskloof Treatment Works Vergelegen Dam Raw Water | AA108: =VLOOKUP(A108,'DWS Websnap'!$B$4:$M$158,5,FALSE) -> Potable Water Treatment Works | AB108: =VLOOKUP(A108,'DWS Websnap'!$B$4:$M$158,10,FALSE) -> B8H031 | AC108: =VLOOKUP(A108,'DWS Websnap'!$B$4:$M$158,11,FALSE) -> -23.775 | AD108: =VLOOKUP(A108,'DWS Websnap'!$B$4:$M$158,12,FALSE) -> 30.1
A109: B81 103038 | B109: 103038 | C109: 1983-05-31T09:00:00 | D109: 0 | E109: DWA-RQS | F109: NONE | G109: 2.1 | H109: 1.5 | I109: 48 | J109: 5.3 | K109: 0.28 | L109: 1.36 | N109: 2.2 | O109: 6.4 | P109: 0.04 | Q109: 0.07 | S109: 5.62 | T109: 0.009 | U109: 4.7 | V109: 8.3 | W109: 20 | X109: B8H031R01 | Y109: B81B | Z109: =VLOOKUP(A109,'DWS Websnap'!$B$4:$M$158,4,FALSE) -> Dwarsfontein 541 LT Duiwelskloof Treatment Works Vergelegen Dam Raw Water | AA109: =VLOOKUP(A109,'DWS Websnap'!$B$4:$M$158,5,FALSE) -> Potable Water Treatment Works | AB109: =VLOOKUP(A109,'DWS Websnap'!$B$4:$M$158,10,FALSE) -> B8H031 | AC109: =VLOOKUP(A109,'DWS Websnap'!$B$4:$M$158,11,FALSE) -> -23.775 | AD109: =VLOOKUP(A109,'DWS Websnap'!$B$4:$M$158,12,FALSE) -> 30.1
A110: B81 103038 | B110: 103038 | C110: 1983-06-30T09:00:00 | D110: 0 | E110: DWA-RQS | F110: NONE | G110: 3.1 | H110: 1.5 | I110: 46 | J110: 6.5 | K110: 0.19 | L110: 1.06 | N110: 1.5 | O110: 5.5 | P110: 0.12 | Q110: 0.26 | S110: 6.5 | T110: 0.007 | U110: 4.3 | V110: 10 | W110: 17.1 | X110: B8H031R01 | Y110: B81B | Z110: =VLOOKUP(A110,'DWS Websnap'!$B$4:$M$158,4,FALSE) -> Dwarsfontein 541 LT Duiwelskloof Treatment Works Vergelegen Dam Raw Water | AA110: =VLOOKUP(A110,'DWS Websnap'!$B$4:$M$158,5,FALSE) -> Potable Water Treatment Works | AB110: =VLOOKUP(A110,'DWS Websnap'!$B$4:$M$158,10,FALSE) -> B8H031 | AC110: =VLOOKUP(A110,'DWS Websnap'!$B$4:$M$158,11,FALSE) -> -23.775 | AD110: =VLOOKUP(A110,'DWS Websnap'!$B$4:$M$158,12,FALSE) -> 30.1
A111: B81 103038 | B111: 103038 | C111: 1983-07-29T09:00:00 | D111: 0 | E111: DWA-RQS | F111: NONE | G111: 5 | H111: 3 | I111: 50 | J111: 6.2 | K111: 0.2 | L111: 1.2 | N111: 1.5 | O111: 4.9 | P111: 0.04 | Q111: 0.07 | S111: 6.37 | T111: 0.005 | U111: 3.28 | V111: 6.4 | W111: 22.3 | X111: B8H031R01 | Y111: B81B | Z111: =VLOOKUP(A111,'DWS Websnap'!$B$4:$M$158,4,FALSE) -> Dwarsfontein 541 LT Duiwelskloof Treatment Works Vergelegen Dam Raw Water | AA111: =VLOOKUP(A111,'DWS Websnap'!$B$4:$M$158,5,FALSE) -> Potable Water Treatment Works | AB111: =VLOOKUP(A111,'DWS Websnap'!$B$4:$M$158,10,FALSE) -> B8H031 | AC111: =VLOOKUP(A111,'DWS Websnap'!$B$4:$M$158,11,FALSE) -> -23.775 | AD111: =VLOOKUP(A111,'DWS Websnap'!$B$4:$M$158,12,FALSE) -> 30.1
A112: B81 103038 | B112: 103038 | C112: 1983-09-08T10:00:00 | D112: 0 | E112: DWA-RQS | F112: NONE | G112: 4.1 | H112: 4.1 | I112: 43 | J112: 5.9 | K112: 0.05 | L112: 1.55 | N112: 1.9 | O112: 4.7 | P112: 0.05 | Q112: 0.07 | S112: 6.9 | T112: 0.007 | U112: 3.1 | V112: 4.7 | W112: 17.7 | X112: B8H031R01 | Y112: B81B | Z112: =VLOOKUP(A112,'DWS Websnap'!$B$4:$M$158,4,FALSE) -> Dwarsfontein 541 LT Duiwelskloof Treatment Works Vergelegen Dam Raw Water | AA112: =VLOOKUP(A112,'DWS Websnap'!$B$4:$M$158,5,FALSE) -> Potable Water Treatment Works | AB112: =VLOOKUP(A112,'DWS Websnap'!$B$4:$M$158,10,FALSE) -> B8H031 | AC112: =VLOOKUP(A112,'DWS Websnap'!$B$4:$M$158,11,FALSE) -> -23.775 | AD112: =VLOOKUP(A112,'DWS Websnap'!$B$4:$M$158,12,FALSE) -> 30.1
A113: B81 103038 | B113: 103038 | C113: 1983-09-29T10:00:00 | D113: 0 | E113: DWA-RQS | F113: NONE | G113: 3.6 | H113: 3.4 | I113: 47 | J113: 5.8 | K113: 0.05 | L113: 0.79 | N113: 2.4 | O113: 5.2 | P113: 0.02 | Q113: 0.05 | S113: 6.54 | T113: 0.003 | U113: 0.57 | V113: 5.2 | W113: 21.8 | X113: B8H031R01 | Y113: B81B | Z113: =VLOOKUP(A113,'DWS Websnap'!$B$4:$M$158,4,FALSE) -> Dwarsfontein 541 LT Duiwelskloof Treatment Works Vergelegen Dam Raw Water | AA113: =VLOOKUP(A113,'DWS Websnap'!$B$4:$M$158,5,FALSE) -> Potable Water Treatment Works | AB113: =VLOOKUP(A113,'DWS Websnap'!$B$4:$M$158,10,FALSE) -> B8H031 | AC113: =VLOOKUP(A113,'DWS Websnap'!$B$4:$M$158,11,FALSE) -> -23.775 | AD113: =VLOOKUP(A113,'DWS Websnap'!$B$4:$M$158,12,FALSE) -> 30.1
A114: B81 103038 | B114: 103038 | C114: 1983-11-01T09:00:00 | D114: 0 | E114: DWA-RQS | F114: NONE | G114: 4.2 | H114: 3.3 | I114: 56 | J114: 7.2 | K114: 0.05 | L114: 1.14 | N114: 2 | O114: 4.9 | P114: 0.02 | Q114: 0.35 | S114: 6.9 | T114: 0.003 | U114: 2.47 | V114: 7.2 | W114: 26 | X114: B8H031R01 | Y114: B81B | Z114: =VLOOKUP(A114,'DWS Websnap'!$B$4:$M$158,4,FALSE) -> Dwarsfontein 541 LT Duiwelskloof Treatment Works Vergelegen Dam Raw Water | AA114: =VLOOKUP(A114,'DWS Websnap'!$B$4:$M$158,5,FALSE) -> Potable Water Treatment Works | AB114: =VLOOKUP(A114,'DWS Websnap'!$B$4:$M$158,10,FALSE) -> B8H031 | AC114: =VLOOKUP(A114,'DWS Websnap'!$B$4:$M$158,11,FALSE) -> -23.775 | AD114: =VLOOKUP(A114,'DWS Websnap'!$B$4:$M$158,12,FALSE) -> 30.1
A115: B81 103038 | B115: 103038 | C115: 1983-12-30T08:00:00 | D115: 0 | E115: DWA-RQS | F115: NONE | G115: 8.4 | H115: 3.5 | I115: 79 | J115: 9.2 | K115: 0.12 | L115: 1.13 | N115: 2.9 | O115: 4.8 | P115: 0.14 | Q115: 0.23 | S115: 7.2 | T115: 0.035 | U115: 3.25 | V115: 7.6 | W115: 40 | X115: B8H031R01 | Y115: B81B | Z115: =VLOOKUP(A115,'DWS Websnap'!$B$4:$M$158,4,FALSE) -> Dwarsfontein 541 LT Duiwelskloof Treatment Works Vergelegen Dam Raw Water | AA115: =VLOOKUP(A115,'DWS Websnap'!$B$4:$M$158,5,FALSE) -> Potable Water Treatment Works | AB115: =VLOOKUP(A115,'DWS Websnap'!$B$4:$M$158,10,FALSE) -> B8H031 | AC115: =VLOOKUP(A115,'DWS Websnap'!$B$4:$M$158,11,FALSE) -> -23.775 | AD115: =VLOOKUP(A115,'DWS Websnap'!$B$4:$M$158,12,FALSE) -> 30.1
A116: B81 103038 | B116: 103038 | C116: 1984-01-31T10:00:00 | D116: 0 | E116: DWA-RQS | F116: NONE | G116: 5.4 | H116: 4.4 | I116: 53 | J116: 6.9 | K116: 0.05 | L116: 1.34 | N116: 2.3 | O116: 6 | P116: 0.02 | Q116: 0.07 | S116: 6.8 | T116: 0.01 | U116: 3.81 | V116: 5.1 | W116: 23.3 | X116: B8H031R01 | Y116: B81B | Z116: =VLOOKUP(A116,'DWS Websnap'!$B$4:$M$158,4,FALSE) -> Dwarsfontein 541 LT Duiwelskloof Treatment Works Vergelegen Dam Raw Water | AA116: =VLOOKUP(A116,'DWS Websnap'!$B$4:$M$158,5,FALSE) -> Potable Water Treatment Works | AB116: =VLOOKUP(A116,'DWS Websnap'!$B$4:$M$158,10,FALSE) -> B8H031 | AC116: =VLOOKUP(A116,'DWS Websnap'!$B$4:$M$158,11,FALSE) -> -23.775 | AD116: =VLOOKUP(A116,'DWS Websnap'!$B$4:$M$158,12,FALSE) -> 30.1
A117: B81 103038 | B117: 103038 | C117: 1984-02-29T09:00:00 | D117: 0 | E117: DWA-RQS | F117: NONE | G117: 6.3 | H117: 4.2 | I117: 66 | J117: 7.5 | K117: 0.12 | L117: 1.18 | N117: 1.7 | O117: 7.2 | P117: 0.02 | Q117: 0.2 | S117: 6.8 | T117: 0.014 | U117: 4.06 | V117: 6.5 | W117: 30.9 | X117: B8H031R01 | Y117: B81B | Z117: =VLOOKUP(A117,'DWS Websnap'!$B$4:$M$158,4,FALSE) -> Dwarsfontein 541 LT Duiwelskloof Treatment Works Vergelegen Dam Raw Water | AA117: =VLOOKUP(A117,'DWS Websnap'!$B$4:$M$158,5,FALSE) -> Potable Water Treatment Works | AB117: =VLOOKUP(A117,'DWS Websnap'!$B$4:$M$158,10,FALSE) -> B8H031 | AC117: =VLOOKUP(A117,'DWS Websnap'!$B$4:$M$158,11,FALSE) -> -23.775 | AD117: =VLOOKUP(A117,'DWS Websnap'!$B$4:$M$158,12,FALSE) -> 30.1
A118: B81 103038 | B118: 103038 | C118: 1984-04-03T09:00:00 | D118: 0 | E118: DWA-RQS | F118: NONE | G118: 10.5 | H118: 3.4 | I118: 73 | J118: 9.4 | K118: 0.21 | L118: 1.29 | N118: 1.7 | O118: 6.2 | P118: 0.02 | Q118: 0.21 | S118: 6.74 | T118: 0.01 | U118: 3.64 | V118: 6.9 | W118: 34.1 | X118: B8H031R01 | Y118: B81B | Z118: =VLOOKUP(A118,'DWS Websnap'!$B$4:$M$158,4,FALSE) -> Dwarsfontein 541 LT Duiwelskloof Treatment Works Vergelegen Dam Raw Water | AA118: =VLOOKUP(A118,'DWS Websnap'!$B$4:$M$158,5,FALSE) -> Potable Water Treatment Works | AB118: =VLOOKUP(A118,'DWS Websnap'!$B$4:$M$158,10,FALSE) -> B8H031 | AC118: =VLOOKUP(A118,'DWS Websnap'!$B$4:$M$158,11,FALSE) -> -23.775 | AD118: =VLOOKUP(A118,'DWS Websnap'!$B$4:$M$158,12,FALSE) -> 30.1
A119: B81 103038 | B119: 103038 | C119: 1984-05-07T08:00:00 | D119: 0 | E119: DWA-RQS | F119: NONE | G119: 6.3 | H119: 4.2 | I119: 58 | J119: 7.2 | K119: 0.12 | L119: 1.25 | N119: 1.7 | O119: 5.7 | P119: 0.02 | Q119: 0.17 | S119: 6.6 | T119: 0.003 | U119: 4.87 | V119: 2 | W119: 29.1 | X119: B8H031R01 | Y119: B81B | Z119: =VLOOKUP(A119,'DWS Websnap'!$B$4:$M$158,4,FALSE) -> Dwarsfontein 541 LT Duiwelskloof Treatment Works Vergelegen Dam Raw Water | AA119: =VLOOKUP(A119,'DWS Websnap'!$B$4:$M$158,5,FALSE) -> Potable Water Treatment Works | AB119: =VLOOKUP(A119,'DWS Websnap'!$B$4:$M$158,10,FALSE) -> B8H031 | AC119: =VLOOKUP(A119,'DWS Websnap'!$B$4:$M$158,11,FALSE) -> -23.775 | AD119: =VLOOKUP(A119,'DWS Websnap'!$B$4:$M$158,12,FALSE) -> 30.1
A120: B81 103038 | B120: 103038 | C120: 1984-06-07T10:30:00 | D120: 0 | E120: DWA-RQS | F120: NONE | G120: 3.7 | H120: 3.8 | I120: 48 | J120: 6.6 | K120: 0.13 | L120: 0.92 | N120: 1.8 | O120: 5.2 | P120: 0.02 | Q120: 0.12 | S120: 5.87 | T120: 0.019 | U120: 4.95 | V120: 4.4 | W120: 22.2 | X120: B8H031R01 | Y120: B81B | Z120: =VLOOKUP(A120,'DWS Websnap'!$B$4:$M$158,4,FALSE) -> Dwarsfontein 541 LT Duiwelskloof Treatment Works Vergelegen Dam Raw Water | AA120: =VLOOKUP(A120,'DWS Websnap'!$B$4:$M$158,5,FALSE) -> Potable Water Treatment Works | AB120: =VLOOKUP(A120,'DWS Websnap'!$B$4:$M$158,10,FALSE) -> B8H031 | AC120: =VLOOKUP(A120,'DWS Websnap'!$B$4:$M$158,11,FALSE) -> -23.775 | AD120: =VLOOKUP(A120,'DWS Websnap'!$B$4:$M$158,12,FALSE) -> 30.1
A121: B81 103038 | B121: 103038 | C121: 1984-07-02T10:00:00 | D121: 0 | E121: DWA-RQS | F121: NONE | G121: 4.7 | H121: 3.1 | I121: 52 | J121: 7.4 | K121: 0.05 | L121: 0.85 | N121: 1.8 | O121: 5.2 | P121: 0.04 | Q121: 0.02 | S121: 5.87 | T121: 0.014 | U121: 5.13 | V121: 5.7 | W121: 24.9 | X121: B8H031R01 | Y121: B81B | Z121: =VLOOKUP(A121,'DWS Websnap'!$B$4:$M$158,4,FALSE) -> Dwarsfontein 541 LT Duiwelskloof Treatment Works Vergelegen Dam Raw Water | AA121: =VLOOKUP(A121,'DWS Websnap'!$B$4:$M$158,5,FALSE) -> Potable Water Treatment Works | AB121: =VLOOKUP(A121,'DWS Websnap'!$B$4:$M$158,10,FALSE) -> B8H031 | AC121: =VLOOKUP(A121,'DWS Websnap'!$B$4:$M$158,11,FALSE) -> -23.775 | AD121: =VLOOKUP(A121,'DWS Websnap'!$B$4:$M$158,12,FALSE) -> 30.1
A122: B81 103038 | B122: 103038 | C122: 1984-08-06T12:30:00 | D122: 0 | E122: DWA-RQS | F122: NONE | G122: 4.5 | H122: 3.1 | I122: 58 | J122: 6.9 | K122: 0.27 | L122: 1.21 | N122: 2.8 | O122: 5.5 | P122: 0.11 | Q122: 0.15 | S122: 5.78 | T122: 0.04 | U122: 5.49 | V122: 6 | W122: 27.8 | X122: B8H031R01 | Y122: B81B | Z122: =VLOOKUP(A122,'DWS Websnap'!$B$4:$M$158,4,FALSE) -> Dwarsfontein 541 LT Duiwelskloof Treatment Works Vergelegen Dam Raw Water | AA122: =VLOOKUP(A122,'DWS Websnap'!$B$4:$M$158,5,FALSE) -> Potable Water Treatment Works | AB122: =VLOOKUP(A122,'DWS Websnap'!$B$4:$M$158,10,FALSE) -> B8H031 | AC122: =VLOOKUP(A122,'DWS Websnap'!$B$4:$M$158,11,FALSE) -> -23.775 | AD122: =VLOOKUP(A122,'DWS Websnap'!$B$4:$M$158,12,FALSE) -> 30.1
A123: B81 103038 | B123: 103038 | C123: 1984-09-03T10:00:00 | D123: 0 | E123: DWA-RQS | F123: NONE | G123: 7.5 | H123: 3.8 | I123: 51 | J123: 7.9 | K123: 0.14 | L123: 1.05 | N123: 1.7 | O123: 4.3 | P123: 0.06 | Q123: 0.02 | S123: 7.1 | T123: 0.009 | U123: 5.19 | V123: 5.4 | W123: 22 | X123: B8H031R01 | Y123: B81B | Z123: =VLOOKUP(A123,'DWS Websnap'!$B$4:$M$158,4,FALSE) -> Dwarsfontein 541 LT Duiwelskloof Treatment Works Vergelegen Dam Raw Water | AA123: =VLOOKUP(A123,'DWS Websnap'!$B$4:$M$158,5,FALSE) -> Potable Water Treatment Works | AB123: =VLOOKUP(A123,'DWS Websnap'!$B$4:$M$158,10,FALSE) -> B8H031 | AC123: =VLOOKUP(A123,'DWS Websnap'!$B$4:$M$158,11,FALSE) -> -23.775 | AD123: =VLOOKUP(A123,'DWS Websnap'!$B$4:$M$158,12,FALSE) -> 30.1
A124: B81 103038 | B124: 103038 | C124: 1984-12-04T08:00:00 | D124: 0 | E124: DWA-RQS | F124: NONE | G124: 4.7 | H124: 3.6 | I124: 47 | J124: 7.3 | K124: 0.1 | L124: 0.84 | N124: 0.5 | O124: 4.2 | P124: 0.02 | Q124: 0.02 | S124: 6.82 | T124: 0.069 | U124: 4.55 | V124: 4.1 | W124: 23.5 | X124: B8H031R01 | Y124: B81B | Z124: =VLOOKUP(A124,'DWS Websnap'!$B$4:$M$158,4,FALSE) -> Dwarsfontein 541 LT Duiwelskloof Treatment Works Vergelegen Dam Raw Water | AA124: =VLOOKUP(A124,'DWS Websnap'!$B$4:$M$158,5,FALSE) -> Potable Water Treatment Works | AB124: =VLOOKUP(A124,'DWS Websnap'!$B$4:$M$158,10,FALSE) -> B8H031 | AC124: =VLOOKUP(A124,'DWS Websnap'!$B$4:$M$158,11,FALSE) -> -23.775 | AD124: =VLOOKUP(A124,'DWS Websnap'!$B$4:$M$158,12,FALSE) -> 30.1
A125: B81 103038 | B125: 103038 | C125: 1985-01-03T08:00:00 | D125: 0 | E125: DWA-RQS | F125: NONE | G125: 5.5 | H125: 4.5 | I125: 42 | J125: 6.6 | K125: 0.19 | L125: 0.69 | N125: 1.1 | O125: 2.6 | P125: 0.02 | Q125: 0.02 | S125: 6.24 | T125: 0.152 | U125: 3.81 | V125: 5 | W125: 18.2 | X125: B8H031R01 | Y125: B81B | Z125: =VLOOKUP(A125,'DWS Websnap'!$B$4:$M$158,4,FALSE) -> Dwarsfontein 541 LT Duiwelskloof Treatment Works Vergelegen Dam Raw Water | AA125: =VLOOKUP(A125,'DWS Websnap'!$B$4:$M$158,5,FALSE) -> Potable Water Treatment Works | AB125: =VLOOKUP(A125,'DWS Websnap'!$B$4:$M$158,10,FALSE) -> B8H031 | AC125: =VLOOKUP(A125,'DWS Websnap'!$B$4:$M$158,11,FALSE) -> -23.775 | AD125: =VLOOKUP(A125,'DWS Websnap'!$B$4:$M$158,12,FALSE) -> 30.1
A126: B81 103038 | B126: 103038 | C126: 1985-02-05T12:00:00 | D126: 0 | E126: DWA-RQS | F126: NONE | G126: 2.6 | H126: 1.5 | I126: 31 | J126: 4.1 | K126: 0.05 | L126: 0.93 | N126: 0.5 | O126: 3.1 | P126: 0.02 | Q126: 0.02 | S126: 6.5 | T126: 0.024 | U126: 2.8 | V126: 6.2 | W126: 11.9 | X126: B8H031R01 | Y126: B81B | Z126: =VLOOKUP(A126,'DWS Websnap'!$B$4:$M$158,4,FALSE) -> Dwarsfontein 541 LT Duiwelskloof Treatment Works Vergelegen Dam Raw Water | AA126: =VLOOKUP(A126,'DWS Websnap'!$B$4:$M$158,5,FALSE) -> Potable Water Treatment Works | AB126: =VLOOKUP(A126,'DWS Websnap'!$B$4:$M$158,10,FALSE) -> B8H031 | AC126: =VLOOKUP(A126,'DWS Websnap'!$B$4:$M$158,11,FALSE) -> -23.775 | AD126: =VLOOKUP(A126,'DWS Websnap'!$B$4:$M$158,12,FALSE) -> 30.1
A127: B81 103038 | B127: 103038 | C127: 1985-03-06T12:00:00 | D127: 0 | E127: DWA-RQS | F127: NONE | G127: 1.7 | H127: 1.5 | I127: 25 | J127: 3 | K127: 0.1 | L127: 0.32 | N127: 0.5 | O127: 1 | P127: 0.08 | Q127: 0.08 | S127: 6.3 | T127: 0.067 | U127: 2.09 | V127: 7.2 | W127: 9 | X127: B8H031R01 | Y127: B81B | Z127: =VLOOKUP(A127,'DWS Websnap'!$B$4:$M$158,4,FALSE) -> Dwarsfontein 541 LT Duiwelskloof Treatment Works Vergelegen Dam Raw Water | AA127: =VLOOKUP(A127,'DWS Websnap'!$B$4:$M$158,5,FALSE) -> Potable Water Treatment Works | AB127: =VLOOKUP(A127,'DWS Websnap'!$B$4:$M$158,10,FALSE) -> B8H031 | AC127: =VLOOKUP(A127,'DWS Websnap'!$B$4:$M$158,11,FALSE) -> -23.775 | AD127: =VLOOKUP(A127,'DWS Websnap'!$B$4:$M$158,12,FALSE) -> 30.1
A128: B81 103038 | B128: 103038 | C128: 1985-05-06T13:00:00 | D128: 0 | E128: DWA-RQS | F128: NONE | G128: 5.4 | H128: 4.9 | I128: 49 | J128: 7.3 | K128: 0.05 | L128: 1.25 | N128: 0.5 | O128: 5.7 | P128: 0.08 | Q128: 0.24 | S128: 6.43 | T128: 0.059 | U128: 6.5 | V128: 2 | W128: 23.6 | X128: B8H031R01 | Y128: B81B | Z128: =VLOOKUP(A128,'DWS Websnap'!$B$4:$M$158,4,FALSE) -> Dwarsfontein 541 LT Duiwelskloof Treatment Works Vergelegen Dam Raw Water | AA128: =VLOOKUP(A128,'DWS Websnap'!$B$4:$M$158,5,FALSE) -> Potable Water Treatment Works | AB128: =VLOOKUP(A128,'DWS Websnap'!$B$4:$M$158,10,FALSE) -> B8H031 | AC128: =VLOOKUP(A128,'DWS Websnap'!$B$4:$M$158,11,FALSE) -> -23.775 | AD128: =VLOOKUP(A128,'DWS Websnap'!$B$4:$M$158,12,FALSE) -> 30.1
A129: =LEFT(Y129,3) & " "&B129 -> B81 103038 | B129: 103038 | C129: 1985-06-17T12:00:00 | D129: 0 | E129: DWA-RQS | F129: NONE | G129: 6 | H129: 5.7 | I129: 55 | J129: 8.2 | K129: 0.34 | L129: 1.15 | N129: 2.2 | O129: 5.5 | P129: 0.09 | Q129: 0.18 | S129: 6.9 | T129: 0.132 | U129: 6.3 | V129: 2 | W129: 26.7 | X129: B8H031R01 | Y129: B81B | Z129: =VLOOKUP(A129,'DWS Websnap'!$B$4:$M$158,4,FALSE) -> Dwarsfontein 541 LT Duiwelskloof Treatment Works Vergelegen Dam Raw Water | AA129: =VLOOKUP(A129,'DWS Websnap'!$B$4:$M$158,5,FALSE) -> Potable Water Treatment Works | AB129: =VLOOKUP(A129,'DWS Websnap'!$B$4:$M$158,10,FALSE) -> B8H031 | AC129: =VLOOKUP(A129,'DWS Websnap'!$B$4:$M$158,11,FALSE) -> -23.775 | AD129: =VLOOKUP(A129,'DWS Websnap'!$B$4:$M$158,12,FALSE) -> 30.1
A130: B81 103038 | B130: 103038 | C130: 1985-08-06T09:00:00 | D130: 0 | E130: DWA-RQS | F130: NONE | G130: 4.4 | H130: 4.2 | I130: 51 | J130: 5.6 | K130: 0.05 | L130: 1.28 | N130: 2.2 | O130: 4.1 | P130: 0.02 | Q130: 0.09 | S130: 6.5 | T130: 0.006 | U130: 6.49 | V130: 2 | W130: 25 | X130: B8H031R01 | Y130: B81B | Z130: =VLOOKUP(A130,'DWS Websnap'!$B$4:$M$158,4,FALSE) -> Dwarsfontein 541 LT Duiwelskloof Treatment Works Vergelegen Dam Raw Water | AA130: =VLOOKUP(A130,'DWS Websnap'!$B$4:$M$158,5,FALSE) -> Potable Water Treatment Works | AB130: =VLOOKUP(A130,'DWS Websnap'!$B$4:$M$158,10,FALSE) -> B8H031 | AC130: =VLOOKUP(A130,'DWS Websnap'!$B$4:$M$158,11,FALSE) -> -23.775 | AD130: =VLOOKUP(A130,'DWS Websnap'!$B$4:$M$158,12,FALSE) -> 30.1
A131: B81 103038 | B131: 103038 | C131: 1985-09-02T09:00:00 | D131: 0 | E131: DWA-RQS | F131: NONE | G131: 4.1 | H131: 5 | I131: 47 | J131: 5.1 | K131: 0.05 | L131: 0.94 | N131: 1.7 | O131: 4.5 | P131: 0.02 | Q131: 0.26 | S131: 6.5 | T131: 0.005 | U131: 6.56 | V131: 2 | W131: 22.1 | X131: B8H031R01 | Y131: B81B | Z131: =VLOOKUP(A131,'DWS Websnap'!$B$4:$M$158,4,FALSE) -> Dwarsfontein 541 LT Duiwelskloof Treatment Works Vergelegen Dam Raw Water | AA131: =VLOOKUP(A131,'DWS Websnap'!$B$4:$M$158,5,FALSE) -> Potable Water Treatment Works | AB131: =VLOOKUP(A131,'DWS Websnap'!$B$4:$M$158,10,FALSE) -> B8H031 | AC131: =VLOOKUP(A131,'DWS Websnap'!$B$4:$M$158,11,FALSE) -> -23.775 | AD131: =VLOOKUP(A131,'DWS Websnap'!$B$4:$M$158,12,FALSE) -> 30.1
A132: B81 103038 | B132: 103038 | C132: 1985-10-07T08:00:00 | D132: 0 | E132: DWA-RQS | F132: NONE | G132: 4 | H132: 4.2 | I132: 54 | J132: 9 | K132: 0.05 | L132: 1.1 | N132: 1.5 | O132: 5.4 | P132: 0.02 | Q132: 0.02 | S132: 6.8 | T132: 0.003 | U132: 5.38 | V132: 8.6 | W132: 23.5 | X132: B8H031R01 | Y132: B81B | Z132: =VLOOKUP(A132,'DWS Websnap'!$B$4:$M$158,4,FALSE) -> Dwarsfontein 541 LT Duiwelskloof Treatment Works Vergelegen Dam Raw Water | AA132: =VLOOKUP(A132,'DWS Websnap'!$B$4:$M$158,5,FALSE) -> Potable Water Treatment Works | AB132: =VLOOKUP(A132,'DWS Websnap'!$B$4:$M$158,10,FALSE) -> B8H031 | AC132: =VLOOKUP(A132,'DWS Websnap'!$B$4:$M$158,11,FALSE) -> -23.775 | AD132: =VLOOKUP(A132,'DWS Websnap'!$B$4:$M$158,12,FALSE) -> 30.1
A133: B81 103038 | B133: 103038 | C133: 1985-11-04T10:00:00 | D133: 0 | E133: DWA-RQS | F133: NONE | G133: 3.9 | H133: 3.2 | I133: 56 | J133: 6.7 | K133: 0.12 | L133: 0.93 | N133: 1.6 | O133: 4.4 | P133: 0.02 | Q133: 0.14 | S133: 7 | T133: 0.008 | U133: 5.97 | V133: 7.4 | W133: 27.4 | X133: B8H031R01 | Y133: B81B | Z133: =VLOOKUP(A133,'DWS Websnap'!$B$4:$M$158,4,FALSE) -> Dwarsfontein 541 LT Duiwelskloof Treatment Works Vergelegen Dam Raw Water | AA133: =VLOOKUP(A133,'DWS Websnap'!$B$4:$M$158,5,FALSE) -> Potable Water Treatment Works | AB133: =VLOOKUP(A133,'DWS Websnap'!$B$4:$M$158,10,FALSE) -> B8H031 | AC133: =VLOOKUP(A133,'DWS Websnap'!$B$4:$M$158,11,FALSE) -> -23.775 | AD133: =VLOOKUP(A133,'DWS Websnap'!$B$4:$M$158,12,FALSE) -> 30.1
A134: B81 103038 | B134: 103038 | C134: 1985-12-02T09:00:00 | D134: 0 | E134: DWA-RQS | F134: NONE | G134: 3.9 | H134: 3.2 | I134: 53 | J134: 6.9 | K134: 0.05 | L134: 0.75 | N134: 1.9 | O134: 4.8 | P134: 0.02 | Q134: 0.02 | S134: 7.1 | T134: 0.008 | U134: 6.21 | V134: 7.9 | W134: 24.6 | X134: B8H031R01 | Y134: B81B | Z134: =VLOOKUP(A134,'DWS Websnap'!$B$4:$M$158,4,FALSE) -> Dwarsfontein 541 LT Duiwelskloof Treatment Works Vergelegen Dam Raw Water | AA134: =VLOOKUP(A134,'DWS Websnap'!$B$4:$M$158,5,FALSE) -> Potable Water Treatment Works | AB134: =VLOOKUP(A134,'DWS Websnap'!$B$4:$M$158,10,FALSE) -> B8H031 | AC134: =VLOOKUP(A134,'DWS Websnap'!$B$4:$M$158,11,FALSE) -> -23.775 | AD134: =VLOOKUP(A134,'DWS Websnap'!$B$4:$M$158,12,FALSE) -> 30.1
A135: B81 103038 | B135: 103038 | C135: 1986-01-06T08:00:00 | D135: 0 | E135: DWA-RQS | F135: NONE | G135: 4.9 | H135: 4.9 | I135: 54 | J135: 7.1 | K135: 0.05 | L135: 1.17 | N135: 1.9 | O135: 4.2 | P135: 0.11 | Q135: 0.02 | S135: 6.97 | T135: 0.009 | U135: 6.55 | V135: 2 | W135: 28.3 | X135: B8H031R01 | Y135: B81B | Z135: =VLOOKUP(A135,'DWS Websnap'!$B$4:$M$158,4,FALSE) -> Dwarsfontein 541 LT Duiwelskloof Treatment Works Vergelegen Dam Raw Water | AA135: =VLOOKUP(A135,'DWS Websnap'!$B$4:$M$158,5,FALSE) -> Potable Water Treatment Works | AB135: =VLOOKUP(A135,'DWS Websnap'!$B$4:$M$158,10,FALSE) -> B8H031 | AC135: =VLOOKUP(A135,'DWS Websnap'!$B$4:$M$158,11,FALSE) -> -23.775 | AD135: =VLOOKUP(A135,'DWS Websnap'!$B$4:$M$158,12,FALSE) -> 30.1
A136: B81 103038 | B136: 103038 | C136: 1986-02-05T09:00:00 | D136: 0 | E136: DWA-RQS | F136: NONE | G136: 5.1 | H136: 4.9 | I136: 59 | J136: 7.4 | K136: 0.1 | L136: 1.98 | N136: 1.8 | O136: 5.3 | P136: 0.06 | Q136: 0.16 | S136: 6.9 | T136: 0.003 | U136: 6.16 | V136: 7.1 | W136: 25.9 | X136: B8H031R01 | Y136: B81B | Z136: =VLOOKUP(A136,'DWS Websnap'!$B$4:$M$158,4,FALSE) -> Dwarsfontein 541 LT Duiwelskloof Treatment Works Vergelegen Dam Raw Water | AA136: =VLOOKUP(A136,'DWS Websnap'!$B$4:$M$158,5,FALSE) -> Potable Water Treatment Works | AB136: =VLOOKUP(A136,'DWS Websnap'!$B$4:$M$158,10,FALSE) -> B8H031 | AC136: =VLOOKUP(A136,'DWS Websnap'!$B$4:$M$158,11,FALSE) -> -23.775 | AD136: =VLOOKUP(A136,'DWS Websnap'!$B$4:$M$158,12,FALSE) -> 30.1
A137: B81 103038 | B137: 103038 | C137: 1986-03-05T08:00:00 | D137: 0 | E137: DWA-RQS | F137: NONE | G137: 4.9 | H137: 5.2 | I137: 60 | J137: 7.8 | K137: 0.05 | L137: 1.68 | N137: 1.9 | O137: 5.3 | P137: 0.02 | Q137: 0.18 | S137: 6.9 | T137: 0.01 | U137: 7 | V137: 6.6 | W137: 27.3 | X137: B8H031R01 | Y137: B81B | Z137: =VLOOKUP(A137,'DWS Websnap'!$B$4:$M$158,4,FALSE) -> Dwarsfontein 541 LT Duiwelskloof Treatment Works Vergelegen Dam Raw Water | AA137: =VLOOKUP(A137,'DWS Websnap'!$B$4:$M$158,5,FALSE) -> Potable Water Treatment Works | AB137: =VLOOKUP(A137,'DWS Websnap'!$B$4:$M$158,10,FALSE) -> B8H031 | AC137: =VLOOKUP(A137,'DWS Websnap'!$B$4:$M$158,11,FALSE) -> -23.775 | AD137: =VLOOKUP(A137,'DWS Websnap'!$B$4:$M$158,12,FALSE) -> 30.1
A138: B81 103038 | B138: 103038 | C138: 1986-04-01T08:00:00 | D138: 0 | E138: DWA-RQS | F138: HGCL2 | G138: 5.2 | H138: 4.5 | I138: 57 | J138: 8 | K138: 0.05 | L138: 2.09 | N138: 2 | O138: 4.9 | P138: 0.11 | Q138: 0.23 | S138: 6.48 | T138: 0.003 | U138: 6.41 | V138: 4.2 | W138: 26.9 | X138: B8H031R01 | Y138: B81B | Z138: =VLOOKUP(A138,'DWS Websnap'!$B$4:$M$158,4,FALSE) -> Dwarsfontein 541 LT Duiwelskloof Treatment Works Vergelegen Dam Raw Water | AA138: =VLOOKUP(A138,'DWS Websnap'!$B$4:$M$158,5,FALSE) -> Potable Water Treatment Works | AB138: =VLOOKUP(A138,'DWS Websnap'!$B$4:$M$158,10,FALSE) -> B8H031 | AC138: =VLOOKUP(A138,'DWS Websnap'!$B$4:$M$158,11,FALSE) -> -23.775 | AD138: =VLOOKUP(A138,'DWS Websnap'!$B$4:$M$158,12,FALSE) -> 30.1
A139: B81 103038 | B139: 103038 | C139: 1986-05-05T09:00:00 | D139: 0 | E139: DWA-RQS | F139: NONE | G139: 5 | H139: 6.5 | I139: 61 | J139: 8.8 | K139: 0.05 | L139: 2.58 | N139: 2.1 | O139: 5.5 | P139: 0.24 | Q139: 1.67 | S139: 6.29 | T139: 0.03 | U139: 7.14 | V139: 4.1 | W139: 22.2 | X139: B8H031R01 | Y139: B81B | Z139: =VLOOKUP(A139,'DWS Websnap'!$B$4:$M$158,4,FALSE) -> Dwarsfontein 541 LT Duiwelskloof Treatment Works Vergelegen Dam Raw Water | AA139: =VLOOKUP(A139,'DWS Websnap'!$B$4:$M$158,5,FALSE) -> Potable Water Treatment Works | AB139: =VLOOKUP(A139,'DWS Websnap'!$B$4:$M$158,10,FALSE) -> B8H031 | AC139: =VLOOKUP(A139,'DWS Websnap'!$B$4:$M$158,11,FALSE) -> -23.775 | AD139: =VLOOKUP(A139,'DWS Websnap'!$B$4:$M$158,12,FALSE) -> 30.1
A140: B81 103038 | B140: 103038 | C140: 1986-06-02T09:00:00 | D140: 0 | E140: DWA-RQS | F140: NONE | G140: 4.9 | H140: 4.4 | I140: 56 | J140: 7.6 | K140: 0.1 | L140: 1.69 | N140: 2.2 | O140: 4.8 | P140: 0.02 | Q140: 0.66 | S140: 6.3 | T140: 0.013 | U140: 7.24 | V140: 2 | W140: 26.1 | X140: B8H031R01 | Y140: B81B | Z140: =VLOOKUP(A140,'DWS Websnap'!$B$4:$M$158,4,FALSE) -> Dwarsfontein 541 LT Duiwelskloof Treatment Works Vergelegen Dam Raw Water | AA140: =VLOOKUP(A140,'DWS Websnap'!$B$4:$M$158,5,FALSE) -> Potable Water Treatment Works | AB140: =VLOOKUP(A140,'DWS Websnap'!$B$4:$M$158,10,FALSE) -> B8H031 | AC140: =VLOOKUP(A140,'DWS Websnap'!$B$4:$M$158,11,FALSE) -> -23.775 | AD140: =VLOOKUP(A140,'DWS Websnap'!$B$4:$M$158,12,FALSE) -> 30.1
A141: B81 103038 | B141: 103038 | C141: 1986-07-01T10:00:00 | D141: 0 | E141: DWA-RQS | F141: NONE | G141: 4.4 | H141: 4.7 | I141: 60 | J141: 7 | K141: 0.05 | L141: 1.35 | N141: 1.9 | O141: 5.4 | P141: 0.09 | Q141: 0.45 | S141: 6.9 | T141: 0.003 | U141: 7.67 | V141: 2 | W141: 30.4 | X141: B8H031R01 | Y141: B81B | Z141: =VLOOKUP(A141,'DWS Websnap'!$B$4:$M$158,4,FALSE) -> Dwarsfontein 541 LT Duiwelskloof Treatment Works Vergelegen Dam Raw Water | AA141: =VLOOKUP(A141,'DWS Websnap'!$B$4:$M$158,5,FALSE) -> Potable Water Treatment Works | AB141: =VLOOKUP(A141,'DWS Websnap'!$B$4:$M$158,10,FALSE) -> B8H031 | AC141: =VLOOKUP(A141,'DWS Websnap'!$B$4:$M$158,11,FALSE) -> -23.775 | AD141: =VLOOKUP(A141,'DWS Websnap'!$B$4:$M$158,12,FALSE) -> 30.1
A142: B81 103038 | B142: 103038 | C142: 1986-08-05T11:00:00 | D142: 0 | E142: DWA-RQS | F142: NONE | G142: 4.9 | H142: 3.6 | I142: 45 | J142: 7.5 | K142: 0.05 | L142: 0.64 | M142: 0.631 | N142: 2.7 | O142: 2.5 | P142: 0.1 | Q142: 0.22 | R142: 0.034 | S142: 6.91 | T142: 0.003 | U142: 6.68 | V142: 2 | W142: 22.1 | X142: B8H031R01 | Y142: B81B | Z142: =VLOOKUP(A142,'DWS Websnap'!$B$4:$M$158,4,FALSE) -> Dwarsfontein 541 LT Duiwelskloof Treatment Works Vergelegen Dam Raw Water | AA142: =VLOOKUP(A142,'DWS Websnap'!$B$4:$M$158,5,FALSE) -> Potable Water Treatment Works | AB142: =VLOOKUP(A142,'DWS Websnap'!$B$4:$M$158,10,FALSE) -> B8H031 | AC142: =VLOOKUP(A142,'DWS Websnap'!$B$4:$M$158,11,FALSE) -> -23.775 | AD142: =VLOOKUP(A142,'DWS Websnap'!$B$4:$M$158,12,FALSE) -> 30.1
A143: B81 103038 | B143: 103038 | C143: 1986-08-28T08:00:00 | D143: 0 | E143: DWA-RQS | F143: NONE | G143: 3.4 | H143: 3.3 | I143: 39 | J143: 5.9 | K143: 0.05 | L143: 1.09 | N143: 1.4 | O143: 5.1 | P143: 0.05 | Q143: 0.43 | S143: 6.7 | T143: 0.003 | U143: 6.91 | V143: 2 | W143: 16.8 | X143: B8H031R01 | Y143: B81B | Z143: =VLOOKUP(A143,'DWS Websnap'!$B$4:$M$158,4,FALSE) -> Dwarsfontein 541 LT Duiwelskloof Treatment Works Vergelegen Dam Raw Water | AA143: =VLOOKUP(A143,'DWS Websnap'!$B$4:$M$158,5,FALSE) -> Potable Water Treatment Works | AB143: =VLOOKUP(A143,'DWS Websnap'!$B$4:$M$158,10,FALSE) -> B8H031 | AC143: =VLOOKUP(A143,'DWS Websnap'!$B$4:$M$158,11,FALSE) -> -23.775 | AD143: =VLOOKUP(A143,'DWS Websnap'!$B$4:$M$158,12,FALSE) -> 30.1
A144: B81 103038 | B144: 103038 | C144: 1986-10-07T09:00:00 | D144: 0 | E144: DWA-RQS | F144: NONE | G144: 4 | H144: 3.7 | I144: 43 | J144: 5.9 | K144: 0.05 | L144: 0.85 | N144: 1.6 | O144: 4 | P144: 0.14 | Q144: 0.28 | S144: 7.1 | T144: 0.003 | U144: 6.77 | V144: 2 | W144: 20.3 | X144: B8H031R01 | Y144: B81B | Z144: =VLOOKUP(A144,'DWS Websnap'!$B$4:$M$158,4,FALSE) -> Dwarsfontein 541 LT Duiwelskloof Treatment Works Vergelegen Dam Raw Water | AA144: =VLOOKUP(A144,'DWS Websnap'!$B$4:$M$158,5,FALSE) -> Potable Water Treatment Works | AB144: =VLOOKUP(A144,'DWS Websnap'!$B$4:$M$158,10,FALSE) -> B8H031 | AC144: =VLOOKUP(A144,'DWS Websnap'!$B$4:$M$158,11,FALSE) -> -23.775 | AD144: =VLOOKUP(A144,'DWS Websnap'!$B$4:$M$158,12,FALSE) -> 30.1
A145: B81 103038 | B145: 103038 | C145: 1986-10-30T09:00:00 | D145: 0 | E145: DWA-RQS | F145: NONE | G145: 4.6 | H145: 4.4 | I145: 48 | J145: 7.2 | K145: 0.14 | L145: 1.62 | N145: 1.7 | O145: 3.9 | P145: 0.07 | Q145: 0.49 | S145: 6.48 | T145: 0.029 | U145: 6.38 | V145: 2 | W145: 22.2 | X145: B8H031R01 | Y145: B81B | Z145: =VLOOKUP(A145,'DWS Websnap'!$B$4:$M$158,4,FALSE) -> Dwarsfontein 541 LT Duiwelskloof Treatment Works Vergelegen Dam Raw Water | AA145: =VLOOKUP(A145,'DWS Websnap'!$B$4:$M$158,5,FALSE) -> Potable Water Treatment Works | AB145: =VLOOKUP(A145,'DWS Websnap'!$B$4:$M$158,10,FALSE) -> B8H031 | AC145: =VLOOKUP(A145,'DWS Websnap'!$B$4:$M$158,11,FALSE) -> -23.775 | AD145: =VLOOKUP(A145,'DWS Websnap'!$B$4:$M$158,12,FALSE) -> 30.1
A146: B81 103038 | B146: 103038 | C146: 1986-12-03T09:00:00 | D146: 0 | E146: DWA-RQS | F146: NONE | G146: 6.1 | H146: 6.4 | I146: 54 | J146: 8 | K146: 0.05 | L146: 1.67 | N146: 2.4 | O146: 5.2 | P146: 0.04 | Q146: 0.37 | S146: 6.7 | T146: 0.018 | U146: 6.76 | V146: 2 | W146: 24.7 | X146: B8H031R01 | Y146: B81B | Z146: =VLOOKUP(A146,'DWS Websnap'!$B$4:$M$158,4,FALSE) -> Dwarsfontein 541 LT Duiwelskloof Treatment Works Vergelegen Dam Raw Water | AA146: =VLOOKUP(A146,'DWS Websnap'!$B$4:$M$158,5,FALSE) -> Potable Water Treatment Works | AB146: =VLOOKUP(A146,'DWS Websnap'!$B$4:$M$158,10,FALSE) -> B8H031 | AC146: =VLOOKUP(A146,'DWS Websnap'!$B$4:$M$158,11,FALSE) -> -23.775 | AD146: =VLOOKUP(A146,'DWS Websnap'!$B$4:$M$158,12,FALSE) -> 30.1
A147: B81 103038 | B147: 103038 | C147: 1987-01-05T10:00:00 | D147: 0 | E147: DWA-RQS | F147: HGCL2 | G147: 2.3 | H147: 1.5 | I147: 29 | J147: 4.8 | K147: 0.05 | L147: 0.64 | N147: 1.3 | O147: 2.3 | P147: 0.08 | Q147: 0.09 | S147: 6.7 | T147: 0.009 | U147: 3.27 | V147: 5.3 | W147: 12.1 | X147: B8H031R01 | Y147: B81B | Z147: =VLOOKUP(A147,'DWS Websnap'!$B$4:$M$158,4,FALSE) -> Dwarsfontein 541 LT Duiwelskloof Treatment Works Vergelegen Dam Raw Water | AA147: =VLOOKUP(A147,'DWS Websnap'!$B$4:$M$158,5,FALSE) -> Potable Water Treatment Works | AB147: =VLOOKUP(A147,'DWS Websnap'!$B$4:$M$158,10,FALSE) -> B8H031 | AC147: =VLOOKUP(A147,'DWS Websnap'!$B$4:$M$158,11,FALSE) -> -23.775 | AD147: =VLOOKUP(A147,'DWS Websnap'!$B$4:$M$158,12,FALSE) -> 30.1
A148: B81 103038 | B148: 103038 | C148: 1987-03-04T07:00:00 | D148: 0 | E148: DWA-RQS | F148: HGCL2 | G148: 4.9 | H148: 5.3 | I148: 65 | J148: 8.6 | K148: 0.05 | L148: 2.54 | N148: 2.5 | O148: 4.7 | P148: 0.06 | Q148: 0.51 | S148: 6.8 | T148: 0.019 | U148: 6.04 | V148: 5.1 | W148: 30.8 | X148: B8H031R01 | Y148: B81B | Z148: =VLOOKUP(A148,'DWS Websnap'!$B$4:$M$158,4,FALSE) -> Dwarsfontein 541 LT Duiwelskloof Treatment Works Vergelegen Dam Raw Water | AA148: =VLOOKUP(A148,'DWS Websnap'!$B$4:$M$158,5,FALSE) -> Potable Water Treatment Works | AB148: =VLOOKUP(A148,'DWS Websnap'!$B$4:$M$158,10,FALSE) -> B8H031 | AC148: =VLOOKUP(A148,'DWS Websnap'!$B$4:$M$158,11,FALSE) -> -23.775 | AD148: =VLOOKUP(A148,'DWS Websnap'!$B$4:$M$158,12,FALSE) -> 30.1
A149: B81 103038 | B149: 103038 | C149: 1987-04-01T07:00:00 | D149: 0 | E149: DWA-RQS | F149: NONE | G149: 7 | H149: 5.2 | I149: 77 | J149: 9 | K149: 0.05 | L149: 2.17 | N149: 2.9 | O149: 5.6 | P149: 0.27 | Q149: 0.05 | S149: 6.9 | T149: 0.008 | U149: 7.22 | V149: 5 | W149: 39.5 | X149: B8H031R01 | Y149: B81B | Z149: =VLOOKUP(A149,'DWS Websnap'!$B$4:$M$158,4,FALSE) -> Dwarsfontein 541 LT Duiwelskloof Treatment Works Vergelegen Dam Raw Water | AA149: =VLOOKUP(A149,'DWS Websnap'!$B$4:$M$158,5,FALSE) -> Potable Water Treatment Works | AB149: =VLOOKUP(A149,'DWS Websnap'!$B$4:$M$158,10,FALSE) -> B8H031 | AC149: =VLOOKUP(A149,'DWS Websnap'!$B$4:$M$158,11,FALSE) -> -23.775 | AD149: =VLOOKUP(A149,'DWS Websnap'!$B$4:$M$158,12,FALSE) -> 30.1
A150: B81 103038 | B150: 103038 | C150: 1987-05-05T08:00:00 | D150: 0 | E150: DWA-RQS | F150: NONE | G150: 3.5 | H150: 4.9 | I150: 48 | J150: 7.4 | K150: 0.05 | L150: 1.66 | N150: 2.5 | O150: 5.9 | P150: 0.02 | Q150: 0.21 | S150: 6.8 | T150: 0.01 | U150: 7.04 | V150: 2 | W150: 21.4 | X150: B8H031R01 | Y150: B81B | Z150: =VLOOKUP(A150,'DWS Websnap'!$B$4:$M$158,4,FALSE) -> Dwarsfontein 541 LT Duiwelskloof Treatment Works Vergelegen Dam Raw Water | AA150: =VLOOKUP(A150,'DWS Websnap'!$B$4:$M$158,5,FALSE) -> Potable Water Treatment Works | AB150: =VLOOKUP(A150,'DWS Websnap'!$B$4:$M$158,10,FALSE) -> B8H031 | AC150: =VLOOKUP(A150,'DWS Websnap'!$B$4:$M$158,11,FALSE) -> -23.775 | AD150: =VLOOKUP(A150,'DWS Websnap'!$B$4:$M$158,12,FALSE) -> 30.1
A151: B81 103038 | B151: 103038 | C151: 1987-06-03T07:00:00 | D151: 0 | E151: DWA-RQS | F151: HGCL2 | G151: 4.8 | H151: 4.9 | I151: 50 | J151: 7.1 | K151: 0.05 | L151: 1.42 | N151: 2.3 | O151: 5.1 | P151: 0.19 | Q151: 0.5 | S151: 6.5 | T151: 0.014 | U151: 6.82 | V151: 4.7 | W151: 19.5 | X151: B8H031R01 | Y151: B81B | Z151: =VLOOKUP(A151,'DWS Websnap'!$B$4:$M$158,4,FALSE) -> Dwarsfontein 541 LT Duiwelskloof Treatment Works Vergelegen Dam Raw Water | AA151: =VLOOKUP(A151,'DWS Websnap'!$B$4:$M$158,5,FALSE) -> Potable Water Treatment Works | AB151: =VLOOKUP(A151,'DWS Websnap'!$B$4:$M$158,10,FALSE) -> B8H031 | AC151: =VLOOKUP(A151,'DWS Websnap'!$B$4:$M$158,11,FALSE) -> -23.775 | AD151: =VLOOKUP(A151,'DWS Websnap'!$B$4:$M$158,12,FALSE) -> 30.1
A152: B81 103038 | B152: 103038 | C152: 1987-07-07T07:00:00 | D152: 0 | E152: DWA-RQS | F152: HGCL2 | G152: 4.6 | H152: 4.1 | I152: 54 | J152: 7 | K152: 0.05 | L152: 1.59 | N152: 2.5 | O152: 5.8 | P152: 0.05 | Q152: 0.2 | S152: 6.9 | T152: 0.009 | U152: 6.98 | V152: 2 | W152: 26.2 | X152: B8H031R01 | Y152: B81B | Z152: =VLOOKUP(A152,'DWS Websnap'!$B$4:$M$158,4,FALSE) -> Dwarsfontein 541 LT Duiwelskloof Treatment Works Vergelegen Dam Raw Water | AA152: =VLOOKUP(A152,'DWS Websnap'!$B$4:$M$158,5,FALSE) -> Potable Water Treatment Works | AB152: =VLOOKUP(A152,'DWS Websnap'!$B$4:$M$158,10,FALSE) -> B8H031 | AC152: =VLOOKUP(A152,'DWS Websnap'!$B$4:$M$158,11,FALSE) -> -23.775 | AD152: =VLOOKUP(A152,'DWS Websnap'!$B$4:$M$158,12,FALSE) -> 30.1
A153: B81 103038 | B153: 103038 | C153: 1987-08-05T08:00:00 | D153: 0 | E153: DWA-RQS | F153: NONE | G153: 4.6 | H153: 4.1 | I153: 46 | J153: 6.4 | K153: 0.12 | L153: 1.19 | N153: 2.2 | O153: 4.7 | P153: 0.02 | Q153: 0.39 | S153: 5.9 | T153: 0.01 | U153: 6.58 | V153: 2 | W153: 19.6 | X153: B8H031R01 | Y153: B81B | Z153: =VLOOKUP(A153,'DWS Websnap'!$B$4:$M$158,4,FALSE) -> Dwarsfontein 541 LT Duiwelskloof Treatment Works Vergelegen Dam Raw Water | AA153: =VLOOKUP(A153,'DWS Websnap'!$B$4:$M$158,5,FALSE) -> Potable Water Treatment Works | AB153: =VLOOKUP(A153,'DWS Websnap'!$B$4:$M$158,10,FALSE) -> B8H031 | AC153: =VLOOKUP(A153,'DWS Websnap'!$B$4:$M$158,11,FALSE) -> -23.775 | AD153: =VLOOKUP(A153,'DWS Websnap'!$B$4:$M$158,12,FALSE) -> 30.1
A154: B81 103038 | B154: 103038 | C154: 1987-10-29T07:00:00 | D154: 0 | E154: DWA-RQS | F154: NONE | G154: 6.2 | H154: 4.7 | I154: 76 | J154: 9.5 | K154: 0.12 | L154: 1.48 | N154: 1.9 | O154: 5.3 | P154: 0.1 | Q154: 5.93 | S154: 5.8 | T154: 0.007 | U154: 6.86 | V154: 2 | W154: 21.8 | X154: B8H031R01 | Y154: B81B | Z154: =VLOOKUP(A154,'DWS Websnap'!$B$4:$M$158,4,FALSE) -> Dwarsfontein 541 LT Duiwelskloof Treatment Works Vergelegen Dam Raw Water | AA154: =VLOOKUP(A154,'DWS Websnap'!$B$4:$M$158,5,FALSE) -> Potable Water Treatment Works | AB154: =VLOOKUP(A154,'DWS Websnap'!$B$4:$M$158,10,FALSE) -> B8H031 | AC154: =VLOOKUP(A154,'DWS Websnap'!$B$4:$M$158,11,FALSE) -> -23.775 | AD154: =VLOOKUP(A154,'DWS Websnap'!$B$4:$M$158,12,FALSE) -> 30.1
A155: B81 103038 | B155: 103038 | C155: 1987-12-01T07:00:00 | D155: 0 | E155: DWA-RQS | F155: NONE | G155: 4.2 | H155: 3.9 | I155: 42 | J155: 6 | K155: 0.05 | L155: 1.05 | N155: 2.3 | O155: 4.8 | P155: 0.08 | Q155: 0.26 | S155: 6.9 | T155: 0.017 | U155: 6.74 | V155: 2 | W155: 19.3 | X155: B8H031R01 | Y155: B81B | Z155: =VLOOKUP(A155,'DWS Websnap'!$B$4:$M$158,4,FALSE) -> Dwarsfontein 541 LT Duiwelskloof Treatment Works Vergelegen Dam Raw Water | AA155: =VLOOKUP(A155,'DWS Websnap'!$B$4:$M$158,5,FALSE) -> Potable Water Treatment Works | AB155: =VLOOKUP(A155,'DWS Websnap'!$B$4:$M$158,10,FALSE) -> B8H031 | AC155: =VLOOKUP(A155,'DWS Websnap'!$B$4:$M$158,11,FALSE) -> -23.775 | AD155: =VLOOKUP(A155,'DWS Websnap'!$B$4:$M$158,12,FALSE) -> 30.1
A156: B81 103038 | B156: 103038 | C156: 1988-02-03T07:00:00 | D156: 0 | E156: DWA-RQS | F156: NONE | G156: 4.3 | H156: 4.8 | I156: 51 | J156: 7.5 | K156: 0.05 | L156: 2.32 | N156: 2.1 | O156: 6.1 | P156: 0.1 | Q156: 0.58 | S156: 6.49 | T156: 0.006 | U156: 7.14 | V156: 4.5 | W156: 19.8 | X156: B8H031R01 | Y156: B81B | Z156: =VLOOKUP(A156,'DWS Websnap'!$B$4:$M$158,4,FALSE) -> Dwarsfontein 541 LT Duiwelskloof Treatment Works Vergelegen Dam Raw Water | AA156: =VLOOKUP(A156,'DWS Websnap'!$B$4:$M$158,5,FALSE) -> Potable Water Treatment Works | AB156: =VLOOKUP(A156,'DWS Websnap'!$B$4:$M$158,10,FALSE) -> B8H031 | AC156: =VLOOKUP(A156,'DWS Websnap'!$B$4:$M$158,11,FALSE) -> -23.775 | AD156: =VLOOKUP(A156,'DWS Websnap'!$B$4:$M$158,12,FALSE) -> 30.1
A157: B81 103038 | B157: 103038 | C157: 1988-03-08T07:00:00 | D157: 0 | E157: DWA-RQS | F157: NONE | G157: 4.8 | H157: 5.5 | I157: 56 | J157: 8.5 | K157: 0.43 | L157: 2.89 | N157: 2.7 | O157: 4.8 | P157: 0.2 | Q157: 1.58 | S157: 6.19 | T157: 0.013 | U157: 7.13 | V157: 2 | W157: 20 | X157: B8H031R01 | Y157: B81B | Z157: =VLOOKUP(A157,'DWS Websnap'!$B$4:$M$158,4,FALSE) -> Dwarsfontein 541 LT Duiwelskloof Treatment Works Vergelegen Dam Raw Water | AA157: =VLOOKUP(A157,'DWS Websnap'!$B$4:$M$158,5,FALSE) -> Potable Water Treatment Works | AB157: =VLOOKUP(A157,'DWS Websnap'!$B$4:$M$158,10,FALSE) -> B8H031 | AC157: =VLOOKUP(A157,'DWS Websnap'!$B$4:$M$158,11,FALSE) -> -23.775 | AD157: =VLOOKUP(A157,'DWS Websnap'!$B$4:$M$158,12,FALSE) -> 30.1
A158: B81 103038 | B158: 103038 | C158: 1988-04-11T07:00:00 | D158: 0 | E158: DWA-RQS | F158: NONE | G158: 5 | H158: 5.2 | I158: 57 | J158: 8.4 | K158: 0.2 | L158: 2.17 | N158: 2.8 | O158: 4.3 | P158: 0.25 | Q158: 0.95 | S158: 6.77 | T158: 0.012 | U158: 7.56 | V158: 4.2 | W158: 23.5 | X158: B8H031R01 | Y158: B81B | Z158: =VLOOKUP(A158,'DWS Websnap'!$B$4:$M$158,4,FALSE) -> Dwarsfontein 541 LT Duiwelskloof Treatment Works Vergelegen Dam Raw Water | AA158: =VLOOKUP(A158,'DWS Websnap'!$B$4:$M$158,5,FALSE) -> Potable Water Treatment Works | AB158: =VLOOKUP(A158,'DWS Websnap'!$B$4:$M$158,10,FALSE) -> B8H031 | AC158: =VLOOKUP(A158,'DWS Websnap'!$B$4:$M$158,11,FALSE) -> -23.775 | AD158: =VLOOKUP(A158,'DWS Websnap'!$B$4:$M$158,12,FALSE) -> 30.1
A159: B81 103038 | B159: 103038 | C159: 1988-05-04T07:00:00 | D159: 0 | E159: DWA-RQS | F159: NONE | G159: 4.8 | H159: 4.9 | I159: 55 | J159: 8.7 | K159: 0.18 | L159: 1.61 | N159: 2.8 | O159: 5.6 | P159: 0.05 | Q159: 1.1 | S159: 6.97 | T159: 0.017 | U159: 8.15 | V159: 4.5 | W159: 21.1 | X159: B8H031R01 | Y159: B81B | Z159: =VLOOKUP(A159,'DWS Websnap'!$B$4:$M$158,4,FALSE) -> Dwarsfontein 541 LT Duiwelskloof Treatment Works Vergelegen Dam Raw Water | AA159: =VLOOKUP(A159,'DWS Websnap'!$B$4:$M$158,5,FALSE) -> Potable Water Treatment Works | AB159: =VLOOKUP(A159,'DWS Websnap'!$B$4:$M$158,10,FALSE) -> B8H031 | AC159: =VLOOKUP(A159,'DWS Websnap'!$B$4:$M$158,11,FALSE) -> -23.775 | AD159: =VLOOKUP(A159,'DWS Websnap'!$B$4:$M$158,12,FALSE) -> 30.1
A160: B81 103038 | B160: 103038 | C160: 1988-05-31T07:00:00 | D160: 0 | E160: DWA-RQS | F160: NONE | G160: 5.2 | H160: 4.8 | I160: 55 | J160: 8 | K160: 0.05 | L160: 1.33 | N160: 2.7 | O160: 4.6 | P160: 0.1 | Q160: 0.73 | S160: 6.94 | T160: 0.017 | U160: 8.33 | V160: 4.1 | W160: 23.8 | X160: B8H031R01 | Y160: B81B | Z160: =VLOOKUP(A160,'DWS Websnap'!$B$4:$M$158,4,FALSE) -> Dwarsfontein 541 LT Duiwelskloof Treatment Works Vergelegen Dam Raw Water | AA160: =VLOOKUP(A160,'DWS Websnap'!$B$4:$M$158,5,FALSE) -> Potable Water Treatment Works | AB160: =VLOOKUP(A160,'DWS Websnap'!$B$4:$M$158,10,FALSE) -> B8H031 | AC160: =VLOOKUP(A160,'DWS Websnap'!$B$4:$M$158,11,FALSE) -> -23.775 | AD160: =VLOOKUP(A160,'DWS Websnap'!$B$4:$M$158,12,FALSE) -> 30.1
A161: B81 103038 | B161: 103038 | C161: 1988-07-12T08:00:00 | D161: 0 | E161: DWA-RQS | F161: NONE | G161: 4.6 | H161: 5 | I161: 52 | J161: 8.2 | K161: 0.45 | L161: 1.72 | N161: 2.5 | O161: 6.3 | P161: 0.05 | Q161: 0.16 | S161: 6.2 | T161: 0.015 | U161: 7.52 | V161: 2 | W161: 24.9 | X161: B8H031R01 | Y161: B81B | Z161: =VLOOKUP(A161,'DWS Websnap'!$B$4:$M$158,4,FALSE) -> Dwarsfontein 541 LT Duiwelskloof Treatment Works Vergelegen Dam Raw Water | AA161: =VLOOKUP(A161,'DWS Websnap'!$B$4:$M$158,5,FALSE) -> Potable Water Treatment Works | AB161: =VLOOKUP(A161,'DWS Websnap'!$B$4:$M$158,10,FALSE) -> B8H031 | AC161: =VLOOKUP(A161,'DWS Websnap'!$B$4:$M$158,11,FALSE) -> -23.775 | AD161: =VLOOKUP(A161,'DWS Websnap'!$B$4:$M$158,12,FALSE) -> 30.1
A162: B81 103038 | B162: 103038 | C162: 1988-08-03T07:00:00 | D162: 0 | E162: DWA-RQS | F162: NONE | G162: 4.2 | H162: 5.2 | I162: 53 | J162: 6.3 | K162: 0.37 | L162: 1.37 | N162: 1.9 | O162: 4.9 | P162: 0.07 | Q162: 0.68 | S162: 6.26 | T162: 0.025 | U162: 8.05 | V162: 4.6 | W162: 22.6 | X162: B8H031R01 | Y162: B81B | Z162: =VLOOKUP(A162,'DWS Websnap'!$B$4:$M$158,4,FALSE) -> Dwarsfontein 541 LT Duiwelskloof Treatment Works Vergelegen Dam Raw Water | AA162: =VLOOKUP(A162,'DWS Websnap'!$B$4:$M$158,5,FALSE) -> Potable Water Treatment Works | AB162: =VLOOKUP(A162,'DWS Websnap'!$B$4:$M$158,10,FALSE) -> B8H031 | AC162: =VLOOKUP(A162,'DWS Websnap'!$B$4:$M$158,11,FALSE) -> -23.775 | AD162: =VLOOKUP(A162,'DWS Websnap'!$B$4:$M$158,12,FALSE) -> 30.1
A163: B81 103038 | B163: 103038 | C163: 1988-09-01T07:00:00 | D163: 0 | E163: DWA-RQS | F163: NONE | G163: 3.7 | H163: 4.6 | I163: 47 | J163: 7 | K163: 0.36 | L163: 1.12 | N163: 2 | O163: 5.7 | P163: 0.07 | Q163: 0.46 | S163: 7 | T163: 0.028 | U163: 7.92 | V163: 2 | W163: 20.4 | X163: B8H031R01 | Y163: B81B | Z163: =VLOOKUP(A163,'DWS Websnap'!$B$4:$M$158,4,FALSE) -> Dwarsfontein 541 LT Duiwelskloof Treatment Works Vergelegen Dam Raw Water | AA163: =VLOOKUP(A163,'DWS Websnap'!$B$4:$M$158,5,FALSE) -> Potable Water Treatment Works | AB163: =VLOOKUP(A163,'DWS Websnap'!$B$4:$M$158,10,FALSE) -> B8H031 | AC163: =VLOOKUP(A163,'DWS Websnap'!$B$4:$M$158,11,FALSE) -> -23.775 | AD163: =VLOOKUP(A163,'DWS Websnap'!$B$4:$M$158,12,FALSE) -> 30.1
A164: B81 103038 | B164: 103038 | C164: 1988-10-05T09:00:00 | D164: 0 | E164: DWA-RQS | F164: NONE | G164: 4.1 | H164: 4.2 | I164: 50 | J164: 6.8 | K164: 0.26 | L164: 1.19 | N164: 1.9 | O164: 5.7 | P164: 0.02 | Q164: 0.7 | S164: 6.26 | T164: 0.011 | U164: 5.31 | V164: 2 | W164: 21.9 | X164: B8H031R01 | Y164: B81B | Z164: =VLOOKUP(A164,'DWS Websnap'!$B$4:$M$158,4,FALSE) -> Dwarsfontein 541 LT Duiwelskloof Treatment Works Vergelegen Dam Raw Water | AA164: =VLOOKUP(A164,'DWS Websnap'!$B$4:$M$158,5,FALSE) -> Potable Water Treatment Works | AB164: =VLOOKUP(A164,'DWS Websnap'!$B$4:$M$158,10,FALSE) -> B8H031 | AC164: =VLOOKUP(A164,'DWS Websnap'!$B$4:$M$158,11,FALSE) -> -23.775 | AD164: =VLOOKUP(A164,'DWS Websnap'!$B$4:$M$158,12,FALSE) -> 30.1
A165: B81 103038 | B165: 103038 | C165: 1988-11-02T07:00:00 | D165: 0 | E165: DWA-RQS | F165: NONE | G165: 4.1 | H165: 4.1 | I165: 51 | J165: 6.5 | K165: 0.3 | L165: 1.36 | N165: 1.9 | O165: 5.6 | P165: 0.02 | Q165: 0.47 | S165: 5.94 | T165: 0.018 | U165: 7.14 | V165: 2 | W165: 24.6 | X165: B8H031R01 | Y165: B81B | Z165: =VLOOKUP(A165,'DWS Websnap'!$B$4:$M$158,4,FALSE) -> Dwarsfontein 541 LT Duiwelskloof Treatment Works Vergelegen Dam Raw Water | AA165: =VLOOKUP(A165,'DWS Websnap'!$B$4:$M$158,5,FALSE) -> Potable Water Treatment Works | AB165: =VLOOKUP(A165,'DWS Websnap'!$B$4:$M$158,10,FALSE) -> B8H031 | AC165: =VLOOKUP(A165,'DWS Websnap'!$B$4:$M$158,11,FALSE) -> -23.775 | AD165: =VLOOKUP(A165,'DWS Websnap'!$B$4:$M$158,12,FALSE) -> 30.1
A166: B81 103038 | B166: 103038 | C166: 1988-12-05T07:00:00 | D166: 0 | E166: DWA-RQS | F166: NONE | G166: 4.6 | H166: 4.3 | I166: 56 | J166: 7.6 | K166: 0.12 | L166: 1.28 | N166: 1.9 | O166: 5.7 | P166: 0.28 | Q166: 0.49 | S166: 6.03 | T166: 0.017 | U166: 7.5 | V166: 5 | W166: 25.2 | X166: B8H031R01 | Y166: B81B | Z166: =VLOOKUP(A166,'DWS Websnap'!$B$4:$M$158,4,FALSE) -> Dwarsfontein 541 LT Duiwelskloof Treatment Works Vergelegen Dam Raw Water | AA166: =VLOOKUP(A166,'DWS Websnap'!$B$4:$M$158,5,FALSE) -> Potable Water Treatment Works | AB166: =VLOOKUP(A166,'DWS Websnap'!$B$4:$M$158,10,FALSE) -> B8H031 | AC166: =VLOOKUP(A166,'DWS Websnap'!$B$4:$M$158,11,FALSE) -> -23.775 | AD166: =VLOOKUP(A166,'DWS Websnap'!$B$4:$M$158,12,FALSE) -> 30.1
A167: B81 103038 | B167: 103038 | C167: 1989-01-09T14:00:00 | D167: 0 | E167: DWA-RQS | F167: NONE | G167: 3.6 | H167: 1.5 | I167: 58 | J167: 7.6 | K167: 0.29 | L167: 1.46 | N167: 2.6 | O167: 6.9 | P167: 0.11 | Q167: 0.37 | S167: 6.5 | T167: 0.022 | U167: 7.65 | V167: 2 | W167: 29.8 | X167: B8H031R01 | Y167: B81B | Z167: =VLOOKUP(A167,'DWS Websnap'!$B$4:$M$158,4,FALSE) -> Dwarsfontein 541 LT Duiwelskloof Treatment Works Vergelegen Dam Raw Water | AA167: =VLOOKUP(A167,'DWS Websnap'!$B$4:$M$158,5,FALSE) -> Potable Water Treatment Works | AB167: =VLOOKUP(A167,'DWS Websnap'!$B$4:$M$158,10,FALSE) -> B8H031 | AC167: =VLOOKUP(A167,'DWS Websnap'!$B$4:$M$158,11,FALSE) -> -23.775 | AD167: =VLOOKUP(A167,'DWS Websnap'!$B$4:$M$158,12,FALSE) -> 30.1
A168: B81 103038 | B168: 103038 | C168: 1989-02-02T07:00:00 | D168: 0 | E168: DWA-RQS | F168: NONE | G168: 5.1 | H168: 5.2 | I168: 61 | J168: 8.3 | K168: 0.23 | L168: 0.99 | N168: 2.4 | O168: 5 | P168: 0.04 | Q168: 0.43 | S168: 6.23 | T168: 0.006 | U168: 7.37 | V168: 2 | W168: 29.8 | X168: B8H031R01 | Y168: B81B | Z168: =VLOOKUP(A168,'DWS Websnap'!$B$4:$M$158,4,FALSE) -> Dwarsfontein 541 LT Duiwelskloof Treatment Works Vergelegen Dam Raw Water | AA168: =VLOOKUP(A168,'DWS Websnap'!$B$4:$M$158,5,FALSE) -> Potable Water Treatment Works | AB168: =VLOOKUP(A168,'DWS Websnap'!$B$4:$M$158,10,FALSE) -> B8H031 | AC168: =VLOOKUP(A168,'DWS Websnap'!$B$4:$M$158,11,FALSE) -> -23.775 | AD168: =VLOOKUP(A168,'DWS Websnap'!$B$4:$M$158,12,FALSE) -> 30.1
A169: B81 103038 | B169: 103038 | C169: 1989-03-06T06:00:00 | D169: 0 | E169: DWA-RQS | F169: NONE | G169: 4 | H169: 6 | I169: 53 | J169: 8.2 | K169: 0.2 | L169: 1.8 | N169: 2 | O169: 6 | P169: 0.17 | Q169: 0.65 | S169: 6.2 | T169: 0.03 | U169: 7.7 | V169: 2 | W169: 22 | X169: B8H031R01 | Y169: B81B | Z169: =VLOOKUP(A169,'DWS Websnap'!$B$4:$M$158,4,FALSE) -> Dwarsfontein 541 LT Duiwelskloof Treatment Works Vergelegen Dam Raw Water | AA169: =VLOOKUP(A169,'DWS Websnap'!$B$4:$M$158,5,FALSE) -> Potable Water Treatment Works | AB169: =VLOOKUP(A169,'DWS Websnap'!$B$4:$M$158,10,FALSE) -> B8H031 | AC169: =VLOOKUP(A169,'DWS Websnap'!$B$4:$M$158,11,FALSE) -> -23.775 | AD169: =VLOOKUP(A169,'DWS Websnap'!$B$4:$M$158,12,FALSE) -> 30.1
A170: B81 103038 | B170: 103038 | C170: 1989-04-04T10:00:00 | D170: 0 | E170: DWA-RQS | F170: NONE | G170: 5.6 | H170: 8.6 | I170: 67 | J170: 8.4 | K170: 0.6 | L170: 1.34 | N170: 2.6 | O170: 5.3 | P170: 0.04 | Q170: 0.34 | S170: 7.47 | T170: 0.008 | U170: 7.34 | V170: 2 | W170: 32.3 | X170: B8H031R01 | Y170: B81B | Z170: =VLOOKUP(A170,'DWS Websnap'!$B$4:$M$158,4,FALSE) -> Dwarsfontein 541 LT Duiwelskloof Treatment Works Vergelegen Dam Raw Water | AA170: =VLOOKUP(A170,'DWS Websnap'!$B$4:$M$158,5,FALSE) -> Potable Water Treatment Works | AB170: =VLOOKUP(A170,'DWS Websnap'!$B$4:$M$158,10,FALSE) -> B8H031 | AC170: =VLOOKUP(A170,'DWS Websnap'!$B$4:$M$158,11,FALSE) -> -23.775 | AD170: =VLOOKUP(A170,'DWS Websnap'!$B$4:$M$158,12,FALSE) -> 30.1
A171: B81 103038 | B171: 103038 | C171: 1989-05-04T11:00:00 | D171: 0 | E171: DWA-RQS | F171: NONE | G171: 5.7 | H171: 3.2 | I171: 53 | J171: 6.4 | K171: 0.22 | L171: 1.36 | N171: 2 | O171: 5.2 | P171: 0.1 | Q171: 0.16 | S171: 7.95 | T171: 0.008 | U171: 6.77 | V171: 2 | W171: 25.9 | X171: B8H031R01 | Y171: B81B | Z171: =VLOOKUP(A171,'DWS Websnap'!$B$4:$M$158,4,FALSE) -> Dwarsfontein 541 LT Duiwelskloof Treatment Works Vergelegen Dam Raw Water | AA171: =VLOOKUP(A171,'DWS Websnap'!$B$4:$M$158,5,FALSE) -> Potable Water Treatment Works | AB171: =VLOOKUP(A171,'DWS Websnap'!$B$4:$M$158,10,FALSE) -> B8H031 | AC171: =VLOOKUP(A171,'DWS Websnap'!$B$4:$M$158,11,FALSE) -> -23.775 | AD171: =VLOOKUP(A171,'DWS Websnap'!$B$4:$M$158,12,FALSE) -> 30.1
A172: B81 103038 | B172: 103038 | C172: 1989-06-05T07:00:00 | D172: 0 | E172: DWA-RQS | F172: NONE | G172: 5.1 | H172: 5.5 | I172: 63 | J172: 7.9 | K172: 0.19 | L172: 1.56 | N172: 2.2 | O172: 5.7 | P172: 0.45 | Q172: 0.28 | S172: 7.1 | T172: 0.042 | U172: 7.03 | V172: 2 | W172: 31.5 | X172: B8H031R01 | Y172: B81B | Z172: =VLOOKUP(A172,'DWS Websnap'!$B$4:$M$158,4,FALSE) -> Dwarsfontein 541 LT Duiwelskloof Treatment Works Vergelegen Dam Raw Water | AA172: =VLOOKUP(A172,'DWS Websnap'!$B$4:$M$158,5,FALSE) -> Potable Water Treatment Works | AB172: =VLOOKUP(A172,'DWS Websnap'!$B$4:$M$158,10,FALSE) -> B8H031 | AC172: =VLOOKUP(A172,'DWS Websnap'!$B$4:$M$158,11,FALSE) -> -23.775 | AD172: =VLOOKUP(A172,'DWS Websnap'!$B$4:$M$158,12,FALSE) -> 30.1
A173: B81 103038 | B173: 103038 | C173: 1989-07-04T07:00:00 | D173: 0 | E173: DWA-RQS | F173: NONE | G173: 4.9 | H173: 4.5 | I173: 59 | J173: 7.7 | K173: 0.24 | L173: 1.54 | N173: 2 | O173: 6.3 | P173: 0.25 | Q173: 0.28 | S173: 7.87 | T173: 0.009 | U173: 7.3 | V173: 2 | W173: 29.6 | X173: B8H031R01 | Y173: B81B | Z173: =VLOOKUP(A173,'DWS Websnap'!$B$4:$M$158,4,FALSE) -> Dwarsfontein 541 LT Duiwelskloof Treatment Works Vergelegen Dam Raw Water | AA173: =VLOOKUP(A173,'DWS Websnap'!$B$4:$M$158,5,FALSE) -> Potable Water Treatment Works | AB173: =VLOOKUP(A173,'DWS Websnap'!$B$4:$M$158,10,FALSE) -> B8H031 | AC173: =VLOOKUP(A173,'DWS Websnap'!$B$4:$M$158,11,FALSE) -> -23.775 | AD173: =VLOOKUP(A173,'DWS Websnap'!$B$4:$M$158,12,FALSE) -> 30.1
A174: B81 103038 | B174: 103038 | C174: 1989-08-02T10:00:00 | D174: 0 | E174: DWA-RQS | F174: NONE | G174: 4.2 | H174: 5.6 | I174: 48 | J174: 7.3 | K174: 0.19 | L174: 0.99 | N174: 1.8 | O174: 4.3 | P174: 0.02 | Q174: 0.31 | S174: 8.81 | T174: 0.009 | U174: 7.61 | V174: 4.3 | W174: 20.4 | X174: B8H031R01 | Y174: B81B | Z174: =VLOOKUP(A174,'DWS Websnap'!$B$4:$M$158,4,FALSE) -> Dwarsfontein 541 LT Duiwelskloof Treatment Works Vergelegen Dam Raw Water | AA174: =VLOOKUP(A174,'DWS Websnap'!$B$4:$M$158,5,FALSE) -> Potable Water Treatment Works | AB174: =VLOOKUP(A174,'DWS Websnap'!$B$4:$M$158,10,FALSE) -> B8H031 | AC174: =VLOOKUP(A174,'DWS Websnap'!$B$4:$M$158,11,FALSE) -> -23.775 | AD174: =VLOOKUP(A174,'DWS Websnap'!$B$4:$M$158,12,FALSE) -> 30.1
A175: B81 103038 | B175: 103038 | C175: 1989-09-06T10:00:00 | D175: 0 | E175: DWA-RQS | F175: NONE | G175: 3.5 | H175: 4.3 | I175: 41 | J175: 5.9 | K175: 0.29 | L175: 0.95 | N175: 1.6 | O175: 4.2 | P175: 0.15 | Q175: 0.32 | S175: 7.86 | T175: 0.016 | U175: 6.74 | V175: 2 | W175: 19.4 | X175: B8H031R01 | Y175: B81B | Z175: =VLOOKUP(A175,'DWS Websnap'!$B$4:$M$158,4,FALSE) -> Dwarsfontein 541 LT Duiwelskloof Treatment Works Vergelegen Dam Raw Water | AA175: =VLOOKUP(A175,'DWS Websnap'!$B$4:$M$158,5,FALSE) -> Potable Water Treatment Works | AB175: =VLOOKUP(A175,'DWS Websnap'!$B$4:$M$158,10,FALSE) -> B8H031 | AC175: =VLOOKUP(A175,'DWS Websnap'!$B$4:$M$158,11,FALSE) -> -23.775 | AD175: =VLOOKUP(A175,'DWS Websnap'!$B$4:$M$158,12,FALSE) -> 30.1
A176: B81 103038 | B176: 103038 | C176: 1989-10-04T06:00:00 | D176: 0 | E176: DWA-RQS | F176: NONE | G176: 3.4 | H176: 4.5 | I176: 46 | J176: 6.6 | K176: 0.25 | L176: 1.14 | N176: 1.4 | O176: 4.9 | P176: 0.09 | Q176: 0.66 | S176: 7.1 | T176: 0.007 | U176: 7.01 | V176: 2 | W176: 20.4 | X176: B8H031R01 | Y176: B81B | Z176: =VLOOKUP(A176,'DWS Websnap'!$B$4:$M$158,4,FALSE) -> Dwarsfontein 541 LT Duiwelskloof Treatment Works Vergelegen Dam Raw Water | AA176: =VLOOKUP(A176,'DWS Websnap'!$B$4:$M$158,5,FALSE) -> Potable Water Treatment Works | AB176: =VLOOKUP(A176,'DWS Websnap'!$B$4:$M$158,10,FALSE) -> B8H031 | AC176: =VLOOKUP(A176,'DWS Websnap'!$B$4:$M$158,11,FALSE) -> -23.775 | AD176: =VLOOKUP(A176,'DWS Websnap'!$B$4:$M$158,12,FALSE) -> 30.1
A177: B81 103038 | B177: 103038 | C177: 1989-11-08T10:00:00 | D177: 0 | E177: DWA-RQS | F177: NONE | G177: 2.2 | H177: 4.2 | I177: 44 | J177: 5.4 | K177: 0.14 | L177: 1.15 | N177: 1.6 | O177: 4.2 | P177: 0.05 | Q177: 0.4 | S177: 7.48 | T177: 0.003 | U177: 6.41 | V177: 2 | W177: 21.7 | X177: B8H031R01 | Y177: B81B | Z177: =VLOOKUP(A177,'DWS Websnap'!$B$4:$M$158,4,FALSE) -> Dwarsfontein 541 LT Duiwelskloof Treatment Works Vergelegen Dam Raw Water | AA177: =VLOOKUP(A177,'DWS Websnap'!$B$4:$M$158,5,FALSE) -> Potable Water Treatment Works | AB177: =VLOOKUP(A177,'DWS Websnap'!$B$4:$M$158,10,FALSE) -> B8H031 | AC177: =VLOOKUP(A177,'DWS Websnap'!$B$4:$M$158,11,FALSE) -> -23.775 | AD177: =VLOOKUP(A177,'DWS Websnap'!$B$4:$M$158,12,FALSE) -> 30.1
A178: B81 103038 | B178: 103038 | C178: 1989-12-05T14:00:00 | D178: 0 | E178: DWA-RQS | F178: NONE | G178: 4.1 | H178: 4.2 | I178: 47 | J178: 6.8 | K178: 0.05 | L178: 1.41 | N178: 1.8 | O178: 5.3 | P178: 0.11 | Q178: 1.96 | S178: 7.18 | T178: 0.011 | U178: 6.45 | V178: 2 | W178: 17 | X178: B8H031R01 | Y178: B81B | Z178: =VLOOKUP(A178,'DWS Websnap'!$B$4:$M$158,4,FALSE) -> Dwarsfontein 541 LT Duiwelskloof Treatment Works Vergelegen Dam Raw Water | AA178: =VLOOKUP(A178,'DWS Websnap'!$B$4:$M$158,5,FALSE) -> Potable Water Treatment Works | AB178: =VLOOKUP(A178,'DWS Websnap'!$B$4:$M$158,10,FALSE) -> B8H031 | AC178: =VLOOKUP(A178,'DWS Websnap'!$B$4:$M$158,11,FALSE) -> -23.775 | AD178: =VLOOKUP(A178,'DWS Websnap'!$B$4:$M$158,12,FALSE) -> 30.1
A179: B81 103038 | B179: 103038 | C179: 1990-01-04T10:00:00 | D179: 0 | E179: DWA-RQS | F179: HGCL2 | G179: 4.7 | H179: 6.4 | I179: 61 | J179: 7.5 | K179: 0.19 | L179: 1.74 | N179: 2.2 | O179: 5.1 | P179: 0.441 | Q179: 0.216 | S179: 7.43 | T179: 0.016 | U179: 6.69 | V179: 2 | W179: 29.5 | X179: B8H031R01 | Y179: B81B | Z179: =VLOOKUP(A179,'DWS Websnap'!$B$4:$M$158,4,FALSE) -> Dwarsfontein 541 LT Duiwelskloof Treatment Works Vergelegen Dam Raw Water | AA179: =VLOOKUP(A179,'DWS Websnap'!$B$4:$M$158,5,FALSE) -> Potable Water Treatment Works | AB179: =VLOOKUP(A179,'DWS Websnap'!$B$4:$M$158,10,FALSE) -> B8H031 | AC179: =VLOOKUP(A179,'DWS Websnap'!$B$4:$M$158,11,FALSE) -> -23.775 | AD179: =VLOOKUP(A179,'DWS Websnap'!$B$4:$M$158,12,FALSE) -> 30.1
A180: B81 103038 | B180: 103038 | C180: 1990-02-05T10:00:00 | D180: 0 | E180: DWA-RQS | F180: HGCL2 | G180: 4.7 | H180: 6.8 | I180: 65 | J180: 8 | K180: 0.16 | L180: 1.77 | N180: 2.3 | O180: 5.6 | P180: 0.406 | Q180: 0.07 | S180: 7.11 | T180: 0.024 | U180: 6.75 | V180: 2 | W180: 32.1 | X180: B8H031R01 | Y180: B81B | Z180: =VLOOKUP(A180,'DWS Websnap'!$B$4:$M$158,4,FALSE) -> Dwarsfontein 541 LT Duiwelskloof Treatment Works Vergelegen Dam Raw Water | AA180: =VLOOKUP(A180,'DWS Websnap'!$B$4:$M$158,5,FALSE) -> Potable Water Treatment Works | AB180: =VLOOKUP(A180,'DWS Websnap'!$B$4:$M$158,10,FALSE) -> B8H031 | AC180: =VLOOKUP(A180,'DWS Websnap'!$B$4:$M$158,11,FALSE) -> -23.775 | AD180: =VLOOKUP(A180,'DWS Websnap'!$B$4:$M$158,12,FALSE) -> 30.1
A181: B81 103038 | B181: 103038 | C181: 1990-04-02T10:02:00 | D181: 0 | E181: DWA-RQS | F181: HGCL2 | G181: 5 | H181: 5.6 | I181: 63 | J181: 8 | K181: 0.15 | L181: 2.13 | N181: 2.3 | O181: 5.7 | P181: 0.393 | Q181: 0.374 | S181: 8.48 | T181: 0.016 | U181: 6.55 | V181: 2 | W181: 30.2 | X181: B8H031R01 | Y181: B81B | Z181: =VLOOKUP(A181,'DWS Websnap'!$B$4:$M$158,4,FALSE) -> Dwarsfontein 541 LT Duiwelskloof Treatment Works Vergelegen Dam Raw Water | AA181: =VLOOKUP(A181,'DWS Websnap'!$B$4:$M$158,5,FALSE) -> Potable Water Treatment Works | AB181: =VLOOKUP(A181,'DWS Websnap'!$B$4:$M$158,10,FALSE) -> B8H031 | AC181: =VLOOKUP(A181,'DWS Websnap'!$B$4:$M$158,11,FALSE) -> -23.775 | AD181: =VLOOKUP(A181,'DWS Websnap'!$B$4:$M$158,12,FALSE) -> 30.1
A182: B81 103038 | B182: 103038 | C182: 1990-05-02T10:02:00 | D182: 0 | E182: DWA-RQS | F182: HGCL2 | G182: 5.2 | H182: 6.1 | I182: 65 | J182: 8.4 | K182: 0.18 | L182: 2.7 | N182: 2.3 | O182: 5.7 | P182: 0.235 | Q182: 1.301 | S182: 7.64 | T182: 0.014 | U182: 7.19 | V182: 2 | W182: 27.1 | X182: B8H031R01 | Y182: B81B | Z182: =VLOOKUP(A182,'DWS Websnap'!$B$4:$M$158,4,FALSE) -> Dwarsfontein 541 LT Duiwelskloof Treatment Works Vergelegen Dam Raw Water | AA182: =VLOOKUP(A182,'DWS Websnap'!$B$4:$M$158,5,FALSE) -> Potable Water Treatment Works | AB182: =VLOOKUP(A182,'DWS Websnap'!$B$4:$M$158,10,FALSE) -> B8H031 | AC182: =VLOOKUP(A182,'DWS Websnap'!$B$4:$M$158,11,FALSE) -> -23.775 | AD182: =VLOOKUP(A182,'DWS Websnap'!$B$4:$M$158,12,FALSE) -> 30.1
A183: B81 103038 | B183: 103038 | C183: 1990-06-01T10:02:00 | D183: 0 | E183: DWA-RQS | F183: HGCL2 | G183: 4.3 | H183: 6.5 | I183: 50 | J183: 8.5 | K183: 0.19 | L183: 2.21 | N183: 2.1 | O183: 6.2 | P183: 0.156 | Q183: 0.476 | S183: 7.31 | T183: 0.034 | U183: 7.44 | V183: 2 | W183: 21 | X183: B8H031R01 | Y183: B81B | Z183: =VLOOKUP(A183,'DWS Websnap'!$B$4:$M$158,4,FALSE) -> Dwarsfontein 541 LT Duiwelskloof Treatment Works Vergelegen Dam Raw Water | AA183: =VLOOKUP(A183,'DWS Websnap'!$B$4:$M$158,5,FALSE) -> Potable Water Treatment Works | AB183: =VLOOKUP(A183,'DWS Websnap'!$B$4:$M$158,10,FALSE) -> B8H031 | AC183: =VLOOKUP(A183,'DWS Websnap'!$B$4:$M$158,11,FALSE) -> -23.775 | AD183: =VLOOKUP(A183,'DWS Websnap'!$B$4:$M$158,12,FALSE) -> 30.1
A184: B81 103038 | B184: 103038 | C184: 1990-08-01T08:07:00 | D184: 0 | E184: DWA-RQS | F184: HGCL2 | G184: 4.4 | H184: 5.7 | I184: 58 | J184: 10.1 | K184: 0.15 | L184: 1.26 | N184: 1.8 | O184: 4.7 | P184: 0.02 | Q184: 0.383 | S184: 8.12 | T184: 0.017 | U184: 7.21 | V184: 8.6 | W184: 24.6 | X184: B8H031R01 | Y184: B81B | Z184: =VLOOKUP(A184,'DWS Websnap'!$B$4:$M$158,4,FALSE) -> Dwarsfontein 541 LT Duiwelskloof Treatment Works Vergelegen Dam Raw Water | AA184: =VLOOKUP(A184,'DWS Websnap'!$B$4:$M$158,5,FALSE) -> Potable Water Treatment Works | AB184: =VLOOKUP(A184,'DWS Websnap'!$B$4:$M$158,10,FALSE) -> B8H031 | AC184: =VLOOKUP(A184,'DWS Websnap'!$B$4:$M$158,11,FALSE) -> -23.775 | AD184: =VLOOKUP(A184,'DWS Websnap'!$B$4:$M$158,12,FALSE) -> 30.1
A185: B81 103038 | B185: 103038 | C185: 1990-09-04T10:00:00 | D185: 0 | E185: DWA-RQS | F185: HGCL2 | G185: 3.8 | H185: 4.8 | I185: 52 | J185: 8.7 | K185: 0.18 | L185: 1.1 | N185: 2 | O185: 4.4 | P185: 0.147 | Q185: 0.438 | S185: 7.7 | T185: 0.01 | U185: 6.66 | V185: 2 | W185: 24.8 | X185: B8H031R01 | Y185: B81B | Z185: =VLOOKUP(A185,'DWS Websnap'!$B$4:$M$158,4,FALSE) -> Dwarsfontein 541 LT Duiwelskloof Treatment Works Vergelegen Dam Raw Water | AA185: =VLOOKUP(A185,'DWS Websnap'!$B$4:$M$158,5,FALSE) -> Potable Water Treatment Works | AB185: =VLOOKUP(A185,'DWS Websnap'!$B$4:$M$158,10,FALSE) -> B8H031 | AC185: =VLOOKUP(A185,'DWS Websnap'!$B$4:$M$158,11,FALSE) -> -23.775 | AD185: =VLOOKUP(A185,'DWS Websnap'!$B$4:$M$158,12,FALSE) -> 30.1
A186: B81 103038 | B186: 103038 | C186: 1990-10-03T09:00:00 | D186: 0 | E186: DWA-RQS | F186: HGCL2 | G186: 2.9 | H186: 5 | I186: 40 | J186: 6.5 | K186: 0.13 | L186: 0.88 | N186: 1.8 | O186: 4.3 | P186: 0.02 | Q186: 0.348 | S186: 8.09 | T186: 0.008 | U186: 6.38 | V186: 2 | W186: 17.7 | X186: B8H031R01 | Y186: B81B | Z186: =VLOOKUP(A186,'DWS Websnap'!$B$4:$M$158,4,FALSE) -> Dwarsfontein 541 LT Duiwelskloof Treatment Works Vergelegen Dam Raw Water | AA186: =VLOOKUP(A186,'DWS Websnap'!$B$4:$M$158,5,FALSE) -> Potable Water Treatment Works | AB186: =VLOOKUP(A186,'DWS Websnap'!$B$4:$M$158,10,FALSE) -> B8H031 | AC186: =VLOOKUP(A186,'DWS Websnap'!$B$4:$M$158,11,FALSE) -> -23.775 | AD186: =VLOOKUP(A186,'DWS Websnap'!$B$4:$M$158,12,FALSE) -> 30.1
A187: B81 103038 | B187: 103038 | C187: 1990-11-05T10:00:00 | D187: 0 | E187: DWA-RQS | F187: HGCL2 | G187: 3.3 | H187: 3.9 | I187: 47 | J187: 7.9 | K187: 0.05 | L187: 0.88 | N187: 1.7 | O187: 4.7 | P187: 0.135 | Q187: 0.288 | S187: 7.75 | T187: 0.022 | U187: 6.38 | V187: 4.6 | W187: 21.3 | X187: B8H031R01 | Y187: B81B | Z187: =VLOOKUP(A187,'DWS Websnap'!$B$4:$M$158,4,FALSE) -> Dwarsfontein 541 LT Duiwelskloof Treatment Works Vergelegen Dam Raw Water | AA187: =VLOOKUP(A187,'DWS Websnap'!$B$4:$M$158,5,FALSE) -> Potable Water Treatment Works | AB187: =VLOOKUP(A187,'DWS Websnap'!$B$4:$M$158,10,FALSE) -> B8H031 | AC187: =VLOOKUP(A187,'DWS Websnap'!$B$4:$M$158,11,FALSE) -> -23.775 | AD187: =VLOOKUP(A187,'DWS Websnap'!$B$4:$M$158,12,FALSE) -> 30.1
A188: B81 103038 | B188: 103038 | C188: 1990-12-03T10:30:00 | D188: 0 | E188: DWA-RQS | F188: HGCL2 | G188: 4.4 | H188: 4.4 | I188: 49 | J188: 6.6 | K188: 0.13 | L188: 1.13 | N188: 2.5 | O188: 4.1 | P188: 0.064 | Q188: 0.117 | S188: 8.21 | T188: 0.003 | U188: 6.07 | V188: 2 | W188: 23.8 | X188: B8H031R01 | Y188: B81B | Z188: =VLOOKUP(A188,'DWS Websnap'!$B$4:$M$158,4,FALSE) -> Dwarsfontein 541 LT Duiwelskloof Treatment Works Vergelegen Dam Raw Water | AA188: =VLOOKUP(A188,'DWS Websnap'!$B$4:$M$158,5,FALSE) -> Potable Water Treatment Works | AB188: =VLOOKUP(A188,'DWS Websnap'!$B$4:$M$158,10,FALSE) -> B8H031 | AC188: =VLOOKUP(A188,'DWS Websnap'!$B$4:$M$158,11,FALSE) -> -23.775 | AD188: =VLOOKUP(A188,'DWS Websnap'!$B$4:$M$158,12,FALSE) -> 30.1
A189: B81 103038 | B189: 103038 | C189: 1991-01-10T11:03:00 | D189: 0 | E189: DWA-RQS | F189: HGCL2 | G189: 4.2 | H189: 5.7 | I189: 59 | J189: 7.3 | K189: 0.12 | L189: 1.36 | N189: 1.9 | O189: 6.3 | P189: 0.02 | Q189: 0.057 | S189: 7.78 | T189: 0.008 | U189: 6.42 | V189: 2 | W189: 29.4 | X189: B8H031R01 | Y189: B81B | Z189: =VLOOKUP(A189,'DWS Websnap'!$B$4:$M$158,4,FALSE) -> Dwarsfontein 541 LT Duiwelskloof Treatment Works Vergelegen Dam Raw Water | AA189: =VLOOKUP(A189,'DWS Websnap'!$B$4:$M$158,5,FALSE) -> Potable Water Treatment Works | AB189: =VLOOKUP(A189,'DWS Websnap'!$B$4:$M$158,10,FALSE) -> B8H031 | AC189: =VLOOKUP(A189,'DWS Websnap'!$B$4:$M$158,11,FALSE) -> -23.775 | AD189: =VLOOKUP(A189,'DWS Websnap'!$B$4:$M$158,12,FALSE) -> 30.1
A190: B81 103038 | B190: 103038 | C190: 1991-04-02T10:00:00 | D190: 0 | E190: DWA-RQS | F190: HGCL2 | G190: 5.2 | H190: 8.6 | I190: 60 | J190: 8 | K190: 0.24 | L190: 2.28 | N190: 2.5 | O190: 6.3 | P190: 0.273 | Q190: 0.557 | S190: 7.44 | T190: 0.024 | U190: 7.41 | V190: 5.4 | W190: 22.2 | X190: B8H031R01 | Y190: B81B | Z190: =VLOOKUP(A190,'DWS Websnap'!$B$4:$M$158,4,FALSE) -> Dwarsfontein 541 LT Duiwelskloof Treatment Works Vergelegen Dam Raw Water | AA190: =VLOOKUP(A190,'DWS Websnap'!$B$4:$M$158,5,FALSE) -> Potable Water Treatment Works | AB190: =VLOOKUP(A190,'DWS Websnap'!$B$4:$M$158,10,FALSE) -> B8H031 | AC190: =VLOOKUP(A190,'DWS Websnap'!$B$4:$M$158,11,FALSE) -> -23.775 | AD190: =VLOOKUP(A190,'DWS Websnap'!$B$4:$M$158,12,FALSE) -> 30.1
A191: B81 103038 | B191: 103038 | C191: 1991-05-06T10:01:00 | D191: 0 | E191: DWA-RQS | F191: HGCL2 | G191: 4.4 | H191: 8.3 | I191: 55 | J191: 8.7 | K191: 0.1 | L191: 1.51 | N191: 2.2 | O191: 6 | P191: 0.154 | Q191: 0.396 | S191: 7.66 | T191: 0.02 | U191: 7.63 | V191: 2 | W191: 22.7 | X191: B8H031R01 | Y191: B81B | Z191: =VLOOKUP(A191,'DWS Websnap'!$B$4:$M$158,4,FALSE) -> Dwarsfontein 541 LT Duiwelskloof Treatment Works Vergelegen Dam Raw Water | AA191: =VLOOKUP(A191,'DWS Websnap'!$B$4:$M$158,5,FALSE) -> Potable Water Treatment Works | AB191: =VLOOKUP(A191,'DWS Websnap'!$B$4:$M$158,10,FALSE) -> B8H031 | AC191: =VLOOKUP(A191,'DWS Websnap'!$B$4:$M$158,11,FALSE) -> -23.775 | AD191: =VLOOKUP(A191,'DWS Websnap'!$B$4:$M$158,12,FALSE) -> 30.1
A192: B81 103038 | B192: 103038 | C192: 1991-06-04T10:03:00 | D192: 0 | E192: DWA-RQS | F192: HGCL2 | G192: 3.1 | H192: 9.5 | I192: 45 | J192: 6.1 | K192: 0.19 | L192: 1.2 | N192: 2.3 | O192: 4.3 | P192: 0.04 | Q192: 0.41 | S192: 7.37 | T192: 0.019 | U192: 7.11 | V192: 2 | W192: 15.5 | X192: B8H031R01 | Y192: B81B | Z192: =VLOOKUP(A192,'DWS Websnap'!$B$4:$M$158,4,FALSE) -> Dwarsfontein 541 LT Duiwelskloof Treatment Works Vergelegen Dam Raw Water | AA192: =VLOOKUP(A192,'DWS Websnap'!$B$4:$M$158,5,FALSE) -> Potable Water Treatment Works | AB192: =VLOOKUP(A192,'DWS Websnap'!$B$4:$M$158,10,FALSE) -> B8H031 | AC192: =VLOOKUP(A192,'DWS Websnap'!$B$4:$M$158,11,FALSE) -> -23.775 | AD192: =VLOOKUP(A192,'DWS Websnap'!$B$4:$M$158,12,FALSE) -> 30.1
A193: =LEFT(Y193,3) & " "&B193 -> B81 103038 | B193: 103038 | C193: 1991-07-01T10:00:00 | D193: 0 | E193: DWA-RQS | F193: HGCL2 | G193: 3.8 | H193: 6.7 | I193: 49 | J193: 6 | K193: 0.12 | L193: 1.5 | N193: 2 | O193: 4.7 | P193: 0.06 | Q193: 0.45 | S193: 7.85 | T193: 0.021 | U193: 7.63 | V193: 5.1 | W193: 18.6 | X193: B8H031R01 | Y193: B81B | Z193: =VLOOKUP(A193,'DWS Websnap'!$B$4:$M$158,4,FALSE) -> Dwarsfontein 541 LT Duiwelskloof Treatment Works Vergelegen Dam Raw Water | AA193: =VLOOKUP(A193,'DWS Websnap'!$B$4:$M$158,5,FALSE) -> Potable Water Treatment Works | AB193: =VLOOKUP(A193,'DWS Websnap'!$B$4:$M$158,10,FALSE) -> B8H031 | AC193: =VLOOKUP(A193,'DWS Websnap'!$B$4:$M$158,11,FALSE) -> -23.775 | AD193: =VLOOKUP(A193,'DWS Websnap'!$B$4:$M$158,12,FALSE) -> 30.1
A194: B81 103038 | B194: 103038 | C194: 1991-09-03T10:00:00 | D194: 0 | E194: DWA-RQS | F194: HGCL2 | G194: 3.2 | H194: 7.2 | I194: 38 | J194: 6.5 | K194: 0.13 | L194: 0.92 | N194: 1.8 | O194: 4 | P194: 0.054 | Q194: 0.336 | S194: 7.78 | T194: 0.021 | U194: 6.93 | V194: 2 | W194: 14.1 | X194: B8H031R01 | Y194: B81B | Z194: =VLOOKUP(A194,'DWS Websnap'!$B$4:$M$158,4,FALSE) -> Dwarsfontein 541 LT Duiwelskloof Treatment Works Vergelegen Dam Raw Water | AA194: =VLOOKUP(A194,'DWS Websnap'!$B$4:$M$158,5,FALSE) -> Potable Water Treatment Works | AB194: =VLOOKUP(A194,'DWS Websnap'!$B$4:$M$158,10,FALSE) -> B8H031 | AC194: =VLOOKUP(A194,'DWS Websnap'!$B$4:$M$158,11,FALSE) -> -23.775 | AD194: =VLOOKUP(A194,'DWS Websnap'!$B$4:$M$158,12,FALSE) -> 30.1
A195: B81 103038 | B195: 103038 | C195: 1991-10-01T10:00:00 | D195: 0 | E195: DWA-RQS | F195: HGCL2 | G195: 2.8 | H195: 7 | I195: 47 | J195: 6.2 | K195: 0.12 | L195: 1.33 | N195: 2.5 | O195: 3.7 | P195: 0.057 | Q195: 0.408 | S195: 7.98 | T195: 0.019 | U195: 7.15 | V195: 5 | W195: 18.4 | X195: B8H031R01 | Y195: B81B | Z195: =VLOOKUP(A195,'DWS Websnap'!$B$4:$M$158,4,FALSE) -> Dwarsfontein 541 LT Duiwelskloof Treatment Works Vergelegen Dam Raw Water | AA195: =VLOOKUP(A195,'DWS Websnap'!$B$4:$M$158,5,FALSE) -> Potable Water Treatment Works | AB195: =VLOOKUP(A195,'DWS Websnap'!$B$4:$M$158,10,FALSE) -> B8H031 | AC195: =VLOOKUP(A195,'DWS Websnap'!$B$4:$M$158,11,FALSE) -> -23.775 | AD195: =VLOOKUP(A195,'DWS Websnap'!$B$4:$M$158,12,FALSE) -> 30.1
A196: B81 103038 | B196: 103038 | C196: 1991-11-05T10:01:00 | D196: 0 | E196: DWA-RQS | F196: HGCL2 | G196: 3.7 | H196: 7.5 | I196: 47 | J196: 6.3 | K196: 0.21 | L196: 0.79 | N196: 2 | O196: 3.5 | P196: 0.085 | Q196: 0.259 | S196: 8.1 | T196: 0.021 | U196: 7 | V196: 6.3 | W196: 17.8 | X196: B8H031R01 | Y196: B81B | Z196: =VLOOKUP(A196,'DWS Websnap'!$B$4:$M$158,4,FALSE) -> Dwarsfontein 541 LT Duiwelskloof Treatment Works Vergelegen Dam Raw Water | AA196: =VLOOKUP(A196,'DWS Websnap'!$B$4:$M$158,5,FALSE) -> Potable Water Treatment Works | AB196: =VLOOKUP(A196,'DWS Websnap'!$B$4:$M$158,10,FALSE) -> B8H031 | AC196: =VLOOKUP(A196,'DWS Websnap'!$B$4:$M$158,11,FALSE) -> -23.775 | AD196: =VLOOKUP(A196,'DWS Websnap'!$B$4:$M$158,12,FALSE) -> 30.1
A197: B81 103038 | B197: 103038 | C197: 1991-12-02T10:02:00 | D197: 0 | E197: DWA-RQS | F197: HGCL2 | G197: 4.3 | H197: 8.3 | I197: 48 | J197: 7.1 | K197: 0.13 | L197: 0.8 | N197: 1.9 | O197: 3.3 | P197: 0.087 | Q197: 0.185 | S197: 7.68 | T197: 0.025 | U197: 7.12 | V197: 5.8 | W197: 18.5 | X197: B8H031R01 | Y197: B81B | Z197: =VLOOKUP(A197,'DWS Websnap'!$B$4:$M$158,4,FALSE) -> Dwarsfontein 541 LT Duiwelskloof Treatment Works Vergelegen Dam Raw Water | AA197: =VLOOKUP(A197,'DWS Websnap'!$B$4:$M$158,5,FALSE) -> Potable Water Treatment Works | AB197: =VLOOKUP(A197,'DWS Websnap'!$B$4:$M$158,10,FALSE) -> B8H031 | AC197: =VLOOKUP(A197,'DWS Websnap'!$B$4:$M$158,11,FALSE) -> -23.775 | AD197: =VLOOKUP(A197,'DWS Websnap'!$B$4:$M$158,12,FALSE) -> 30.1
A198: B81 103038 | B198: 103038 | C198: 1992-01-07T10:00:00 | D198: 0 | E198: DWA-RQS | F198: HGCL2 | G198: 3.8 | H198: 3.8 | I198: 36 | J198: 6.7 | K198: 0.16 | L198: 0.84 | N198: 2 | O198: 3.5 | P198: 0.02 | Q198: 0.107 | S198: 8.08 | T198: 0.013 | U198: 7.28 | V198: 2 | W198: 15.6 | X198: B8H031R01 | Y198: B81B | Z198: =VLOOKUP(A198,'DWS Websnap'!$B$4:$M$158,4,FALSE) -> Dwarsfontein 541 LT Duiwelskloof Treatment Works Vergelegen Dam Raw Water | AA198: =VLOOKUP(A198,'DWS Websnap'!$B$4:$M$158,5,FALSE) -> Potable Water Treatment Works | AB198: =VLOOKUP(A198,'DWS Websnap'!$B$4:$M$158,10,FALSE) -> B8H031 | AC198: =VLOOKUP(A198,'DWS Websnap'!$B$4:$M$158,11,FALSE) -> -23.775 | AD198: =VLOOKUP(A198,'DWS Websnap'!$B$4:$M$158,12,FALSE) -> 30.1
A199: B81 103038 | B199: 103038 | C199: 1992-02-04T10:01:00 | D199: 0 | E199: DWA-RQS | F199: HGCL2 | G199: 5 | H199: 6.2 | I199: 47 | J199: 7.8 | K199: 0.14 | L199: 1.07 | N199: 1.6 | O199: 4.3 | P199: 0.127 | Q199: 0.125 | S199: 7.85 | T199: 0.038 | U199: 7.12 | V199: 2 | W199: 22 | X199: B8H031R01 | Y199: B81B | Z199: =VLOOKUP(A199,'DWS Websnap'!$B$4:$M$158,4,FALSE) -> Dwarsfontein 541 LT Duiwelskloof Treatment Works Vergelegen Dam Raw Water | AA199: =VLOOKUP(A199,'DWS Websnap'!$B$4:$M$158,5,FALSE) -> Potable Water Treatment Works | AB199: =VLOOKUP(A199,'DWS Websnap'!$B$4:$M$158,10,FALSE) -> B8H031 | AC199: =VLOOKUP(A199,'DWS Websnap'!$B$4:$M$158,11,FALSE) -> -23.775 | AD199: =VLOOKUP(A199,'DWS Websnap'!$B$4:$M$158,12,FALSE) -> 30.1
A200: B81 103038 | B200: 103038 | C200: 1992-03-31T10:01:00 | D200: 0 | E200: DWA-RQS | F200: HGCL2 | G200: 4.3 | H200: 3.6 | I200: 42 | J200: 7.7 | K200: 0.05 | L200: 0.97 | N200: 1.9 | O200: 3 | P200: 0.125 | Q200: 0.249 | S200: 7.63 | T200: 0.021 | U200: 6.59 | V200: 2 | W200: 19 | X200: B8H031R01 | Y200: B81B | Z200: =VLOOKUP(A200,'DWS Websnap'!$B$4:$M$158,4,FALSE) -> Dwarsfontein 541 LT Duiwelskloof Treatment Works Vergelegen Dam Raw Water | AA200: =VLOOKUP(A200,'DWS Websnap'!$B$4:$M$158,5,FALSE) -> Potable Water Treatment Works | AB200: =VLOOKUP(A200,'DWS Websnap'!$B$4:$M$158,10,FALSE) -> B8H031 | AC200: =VLOOKUP(A200,'DWS Websnap'!$B$4:$M$158,11,FALSE) -> -23.775 | AD200: =VLOOKUP(A200,'DWS Websnap'!$B$4:$M$158,12,FALSE) -> 30.1
... 2050 more rows

Sheet DWS Websnap
B2: Water quality | E2: Description | F2: Type | G2: n | H2: First date | I2: Last date | J2: med | K2: Flow, | L2: Latitude | M2: Longitude
J3: EC | K3: if any
B4: B81 1000013519 | C4: plot | D4: data | E4: Nondwene ptn. Crocodile River | F4: Rivers | G4: 2 | H4: 2005-12-06 | I4: 2005-12-06 | J4: 164 | K4: n/a | L4: -23.6811 | M4: 30.88162
B5: B81 1000013521 | C5: plot | D5: data | E5: Mbaula Ranche ptn. Groot Letaba River | F5: Rivers | G5: 2 | H5: 2005-12-06 | I5: 2005-12-06 | J5: 157 | K5: n/a | L5: -23.66932 | M5: 30.99061
B6: B81 90523 | C6: plot | D6: data | E6: At Manorvlei on Groot Letaba | F6: Rivers | G6: 4 | H6: 1969-11-22 | I6: 1984-02-02 | J6: 7 | K6: B8H002 | L6: -23.81667 | M6: 30.165
B7: B81 85545 | C7: plot | D7: data | E7: At Mahale on Groot-Letaba | F7: Rivers | G7: 2 | H7: 2005-06-23 | I7: 2005-06-23 | J7: 85 | K7: B8H007 | L7: -23.67028 | M7: 30.99028
B8: B81 90524 | C8: plot | D8: data | E8: At Letaba Ranch on Groot Letaba (NCMP) | F8: Rivers | G8: 1036 | H8: 1977-09-21 | I8: 2015-10-06 | J8: 35 | K8: B8H008 | L8: -23.65806 | M8: 31.05
B9: B81 90525 | C9: plot | D9: data | E9: The Junction on Groot-Letaba | F9: Rivers | G9: 785 | H9: 1969-11-20 | I9: 2015-07-07 | J9: 10 | K9: B8H009 | L9: -23.88028 | M9: 30.36694
B10: B81 90526 | C10: plot | D10: data | E10: Letsitele River at Mohlaba S Reserve 567 | F10: Rivers | G10: 803 | H10: 1969-11-20 | I10: 2015-07-07 | J10: 20 | K10: B8H010 | L10: -23.89222 | M10: 30.35583
B11: B81 90527 | C11: plot | D11: data | E11: At Grysappel on Groot Letaba (nemp) | F11: Rivers | G11: 553 | H11: 1969-11-21 | I11: 2015-07-13 | J11: 6 | K11: B8H014 | L11: -23.88056 | M11: 30.07972
B12: B81 90528 | C12: plot | D12: data | E12: At Prieska on Groot Letaba | F12: Rivers | G12: 137 | H12: 1980-03-10 | I12: 2015-07-07 | J12: 24 | K12: B8H017 | L12: -23.64556 | M12: 30.71861
B13: B83 90529 | C13: plot | D13: data | E13: Great Letaba River at Engelhardt Dam/Kruger National Park (NCMP) | F13: Rivers | G13: 321 | H13: 1983-11-29 | I13: 2015-02-09 | J13: 40 | K13: B8H018 | L13: -23.83861 | M13: 31.64083
B14: B81 90530 | C14: plot | D14: data | E14: Little Letaba Tributary 3 at Fredericksdal/Westfa | F14: Rivers | G14: 321 | H14: 1981-10-20 | I14: 1990-06-25 | J14: 3 | K14: B8H022 | L14: -23.73333 | M14: 30.06972
B15: B81 90531 | C15: plot | D15: data | E15: Little Letaba Tributary 4 at Fredericksdal/Westfa | F15: Rivers | G15: 321 | H15: 1981-10-20 | I15: 1998-06-15 | J15: 4 | K15: B8H023 | L15: -23.73194 | M15: 30.06972
B16: B83 90536 | C16: plot | D16: data | E16: Great Letaba River at Mahlangene/Kruger National Park (NCMP) | F16: Rivers | G16: 789 | H16: 1983-11-09 | I16: 2015-11-16 | J16: 43 | K16: B8H028 | L16: -23.64861 | M16: 31.14722
B17: B83 90537 | C17: plot | D17: data | E17: Great Letaba River at Mingerhout Dam/Kruger Nat P | F17: Rivers | G17: 41 | H17: 1983-11-29 | I17: 1991-10-23 | J17: 30 | K17: B8H029 | L17: -23.75917 | M17: 31.50083
B18: B83 90538 | C18: plot | D18: data | E18: Kruger National Park at Klipkoppiesdrif on Letaba | F18: Rivers | G18: 27 | H18: 1983-11-21 | I18: 1987-04-15 | J18: 31 | K18: B8H030 | L18: -23.94167 | M18: 31.73056
B19: B82 90539 | C19: plot | D19: data | E19: Tabaan State Land on Klein-Letaba (NCMP) | F19: Rivers | G19: 144 | H19: 1996-01-23 | I19: 2015-02-10 | J19: 46 | K19: B8H033 | L19: -23.281 | M19: 30.54306
B20: B81 90540 | C20: plot | D20: data | E20: Hans Merensky Dam on Ramadiepa River: Down Stream W | F20: Rivers | G20: 3 | H20: 1983-06-01 | I20: 1992-02-26 | J20: 8 | K20: B8H043 | L20: -23.75 | M20: 30.10833
B21: B81 90542 | C21: plot | D21: data | E21: Magoebaskloof Dam at Down Stream Weir on Politsi | F21: Rivers | G21: 163 | H21: 1983-06-02 | I21: 2011-04-07 | J21: 6 | K21: B8H046 | L21: -23.81667 | M21: 30.0625
B22: B81 90543 | C22: plot | D22: data | E22: Tzaneen Dam on Great Letaba River: Down Stream We | F22: Rivers | G22: 174 | H22: 1980-01-24 | I22: 2010-07-02 | J22: 7 | K22: B8H050 | L22: -23.8 | M22: 30.16667
B23: B81 90546 | C23: plot | D23: data | E23: Dap Naude Dam on Broederstroom River: Down Stream W | F23: Rivers | G23: 86 | H23: 1993-04-30 | I23: 2011-11-29 | J23: 4 | K23: B8H053 | L23: -23.8125 | M23: 29.96667
B24: B82 90548 | C24: plot | D24: data | E24: Middle Letaba Dam on Mid Letaba River: Down Stream | F24: Rivers | G24: 1 | H24: 1992-04-01 | I24: 1992-04-01 | J24: 22 | K24: B8H056 | L24: -23.27167 | M24: 30.40306
B25: B81 90549 | C25: plot | D25: data | E25: At Onverwacht Ebenezer Dam on Groot Letaba | F25: Rivers | G25: 177 | H25: 1998-07-16 | I25: 2015-07-08 | J25: 5 | K25: B8H064 | L25: -23.94583 | M25: 29.98389
B26: B83 191197 | C26: plot | D26: data | E26: 04/09 - Kruger Nationa Park on Nhlanganini River near Nhlanganini Dam | F26: Rivers | G26: 3 | H26: 2011-03-21 | I26: 2012-12-20 | J26: 71 | K26: n/a | L26: -23.935 | M26: 31.48444
B27: B82 183878 | C27: plot | D27: data | E27: Giyani upstream of STW near R81 Adolf Mhinga Bridge on Klein Letaba River (nmmp) | F27: Rivers | G27: 1043 | H27: 2001-11-06 | I27: 2015-07-29 | J27: 73 | K27: n/a | L27: -23.312 | M27: 30.68342
B28: B82 183879 | C28: plot | D28: data | E28: Downstream of Giyani Sewage Works at Irrigation Abstraction (nmmp) | F28: Rivers | G28: 887 | H28: 2001-11-06 | I28: 2015-07-29 | J28: 82 | K28: n/a | L28: -23.3299 | M28: 30.7064
B29: B81 187157 | C29: plot | D29: data | E29: Letaba downstream of Bridge on Groot Letaba (nmmp) | F29: Rivers | G29: 392 | H29: 2003-08-13 | I29: 2013-05-23 | J29: n/a | K29: n/a | L29: -23.87478 | M29: 30.27303
B30: B81 187159 | C30: plot | D30: data | E30: Berlyn Letsitele Tank on Ritshidele Stream (nmmp) | F30: Rivers | G30: 401 | H30: 2003-08-13 | I30: 2013-05-23 | J30: n/a | K30: n/a | L30: -23.8992 | M30: 30.3622
B31: B81 187161 | C31: plot | D31: data | E31: Letabasdrift on Marive Stream (nmmp) | F31: Rivers | G31: 352 | H31: 2004-04-14 | I31: 2010-01-18 | J31: n/a | K31: n/a | L31: -23.86781 | M31: 30.26919
B32: B81 187684 | C32: plot | D32: data | E32: At Craig Head on Letsitele | F32: Rivers | G32: 3 | H32: 2003-12-02 | I32: 2003-12-02 | J32: 14 | K32: n/a | L32: -23.97472 | M32: 30.16508
B33: B81 187685 | C33: plot | D33: data | E33: At Letsitele Tank Just downstream of R36 on Letsitele | F33: Rivers | G33: 3 | H33: 2003-12-02 | I33: 2003-12-02 | J33: 48 | K33: n/a | L33: -23.89181 | M33: 30.35839
B34: B81 187686 | C34: plot | D34: data | E34: Nagude Estate on Groot Letaba | F34: Rivers | G34: 3 | H34: 2003-12-03 | I34: 2003-12-03 | J34: 15 | K34: n/a | L34: -23.78885 | M34: 30.46947
B35: B81 187687 | C35: plot | D35: data | E35: At Letaba Drift at Bridge on R529 to Giyani on Groot Letaba | F35: Rivers | G35: 3 | H35: 2003-12-03 | I35: 2003-12-03 | J35: 22 | K35: n/a | L35: -23.68403 | M35: 30.60964
B36: B82 187688 | C36: plot | D36: data | E36: Downstream of Giyani North of Ka-Nkomo on Klein Letaba | F36: Rivers | G36: 3 | H36: 2003-12-03 | I36: 2003-12-03 | J36: 83 | K36: n/a | L36: -23.3882 | M36: 30.7809
B37: B81 187689 | C37: plot | D37: data | E37: Letaba Hospital near Valencia Estate at the Bridge on Great Letaba River | F37: Rivers | G37: 109 | H37: 2003-12-02 | I37: 2015-07-29 | J37: 10 | K37: n/a | L37: -23.8715 | M37: 30.27068
B38: B82 187690 | C38: plot | D38: data | E38: At Old Mine on Klein Letaba | F38: Rivers | G38: 3 | H38: 2003-12-03 | I38: 2003-12-03 | J38: 60 | K38: n/a | L38: -23.29161 | M38: 30.56278
B39: B81 187691 | C39: plot | D39: data | E39: Letaba Ranch at Rondaliakamp on Groot Letaba | F39: Rivers | G39: 3 | H39: 2003-12-04 | I39: 2003-12-04 | J39: 94 | K39: n/a | L39: -23.66869 | M39: 31.03839
B40: B81 187692 | C40: plot | D40: data | E40: The Junction 521 LT South of the Gravelotte Tzaneen Road on Groot-Letaba (nmmp) | F40: Rivers | G40: 48 | H40: 2003-12-03 | I40: 2008-11-25 | J40: 16 | K40: n/a | L40: -23.86667 | M40: 30.39222
B41: B81 187693 | C41: plot | D41: data | E41: Downstream of Nondweni on Groot Letaba | F41: Rivers | G41: 5 | H41: 2003-12-04 | I41: 2005-06-23 | J41: 61 | K41: n/a | L41: -23.68444 | M41: 30.87167
B42: B83 187694 | C42: plot | D42: data | E42: At Lonely Bull in Kruger National Park on Letaba | F42: Rivers | G42: 3 | H42: 2003-12-04 | I42: 2003-12-04 | J42: 189 | K42: n/a | L42: -23.7539 | M42: 31.4003
B43: B83 187695 | C43: plot | D43: data | E43: Upstream of Letaba Rest Camp 0N Letaba | F43: Rivers | G43: 3 | H43: 2003-12-04 | I43: 2003-12-04 | J43: 90 | K43: n/a | L43: -23.8128 | M43: 31.5822
B44: B81 187730 | C44: plot | D44: data | E44: Site 8 East of Ka-Dzumeri on Molototsi | F44: Rivers | G44: 3 | H44: 2004-03-24 | I44: 2004-03-24 | J44: 14 | K44: n/a | L44: -23.57225 | M44: 30.71108
B45: B82 187967 | C45: plot | D45: data | E45: Site 12 Locatie van de Knopneuzen on Klein Letaba | F45: Rivers | G45: 2 | H45: 2004-03-25 | I45: 2004-03-25 | J45: 20 | K45: n/a | L45: -23.25081 | M45: 30.49572
B46: B82 187968 | C46: plot | D46: data | E46: Site 13 Sterkwater on Middel Letaba | F46: Rivers | G46: 3 | H46: 2004-03-23 | I46: 2004-03-23 | J46: 32 | K46: n/a | L46: -23.37161 | M46: 30.32183
B47: B81 187969 | C47: plot | D47: data | E47: Site 19 at Diggers Rest on Groot Letaba | F47: Rivers | G47: 3 | H47: 2004-03-26 | I47: 2004-03-26 | J47: 7 | K47: n/a | L47: -23.91769 | M47: 30.05083
B48: B83 188133 | C48: plot | D48: data | E48: Makhadzi at Inflow to Engelhard Dam in KNP (nemp) | F48: Rivers | G48: 32 | H48: 2004-09-07 | I48: 2008-04-10 | J48: 85 | K48: n/a | L48: -23.83419 | M48: 31.63342
B49: B81 188196 | C49: plot | D49: data | E49: Yamorna Weir Tzaneen on Groot-Letaba (nemp) | F49: Rivers | G49: 23 | H49: 2004-09-27 | I49: 2007-01-26 | J49: 14 | K49: n/a | L49: -23.82806 | M49: 30.21861
B50: B81 188764 | C50: plot | D50: data | E50: Site 1 downstream of Tzaneen Dam on Groot Letaba | F50: Rivers | G50: 20 | H50: 2005-12-06 | I50: 2006-10-12 | J50: 8 | K50: n/a | L50: -23.80632 | M50: 30.16473
B51: B81 188765 | C51: plot | D51: data | E51: Site 2 Manorvlei on Groot Letaba | F51: Rivers | G51: 20 | H51: 2005-12-06 | I51: 2006-10-12 | J51: 9 | K51: n/a | L51: -23.8286 | M51: 30.16713
B52: B81 188766 | C52: plot | D52: data | E52: Site 3 Manorvlei on Groot Letaba | F52: Rivers | G52: 20 | H52: 2005-12-06 | I52: 2006-10-12 | J52: 14 | K52: n/a | L52: -23.8223 | M52: 30.17442
B53: B81 188767 | C53: plot | D53: data | E53: Site 4 Lushof on Groot Letaba | F53: Rivers | G53: 20 | H53: 2005-12-06 | I53: 2006-10-12 | J53: 12 | K53: n/a | L53: -23.8335 | M53: 30.19203
B54: B81 188768 | C54: plot | D54: data | E54: Yamorna at Site 5 on Groot-Letaba | F54: Rivers | G54: 20 | H54: 2005-12-06 | I54: 2006-10-12 | J54: 15 | K54: n/a | L54: -23.8267 | M54: 30.21913
B55: B82 190140 | C55: plot | D55: data | E55: Ga-Kgapane downstream of Sewage Treatment Works on Modubatse River (NMMP) | F55: Rivers | G55: 116 | H55: 2004-12-07 | I55: 2015-07-29 | J55: 44 | K55: n/a | L55: -23.6314 | M55: 30.21577
B56: B82 190141 | C56: plot | D56: data | E56: Ga-Kgapane upstream of Waste Water Treatment Works on Modubatse | F56: Rivers | G56: 111 | H56: 2004-12-07 | I56: 2015-07-29 | J56: 38 | K56: n/a | L56: -23.63237 | M56: 30.21691
B57: B81 190449 | C57: plot | D57: data | E57: Lenyenye Location near R36 Road upstream of Lenyenye Oxidation Ponds on Mokonyane River | F57: Rivers | G57: 98 | H57: 2004-12-07 | I57: 2015-07-29 | J57: 57 | K57: n/a | L57: -23.96281 | M57: 30.27154
B58: B81 190450 | C58: plot | D58: data | E58: Lenyenye Location near R36 Lydenburg Road Bridge downstream of Lenyenye Oxidation Ponds on Mokonya | F58: Rivers | G58: 105 | H58: 2005-07-12 | I58: 2015-07-29 | J58: 57 | K58: n/a | L58: -23.96282 | M58: 30.27922
B59: B81 191499 | C59: plot | D59: data | E59: Tzaneen Pusela 555 LT - downstream of Tzaneen WWTW on Groot-Letaba | F59: Rivers | G59: 100 | H59: 2007-01-15 | I59: 2015-07-29 | J59: 10 | K59: n/a | L59: -23.82287 | M59: 30.17367
B60: B81 191500 | C60: plot | D60: data | E60: Tzaneen Pusela 555 LT - upstream of Tzaneen WWTW on Groot Letaba | F60: Rivers | G60: 98 | H60: 2007-01-15 | I60: 2015-07-29 | J60: 8 | K60: n/a | L60: -23.82202 | M60: 30.1724
B61: B81 191501 | C61: plot | D61: data | E61: Tzaneen Lushof 540 LT - near R71 on Groot Letaba | F61: Rivers | G61: 30 | H61: 2006-10-12 | I61: 2010-03-16 | J61: 11 | K61: n/a | L61: -23.81717 | M61: 30.20358
B62: B81 191502 | C62: plot | D62: data | E62: Tsaneen Pusela 555 LT - at Taxi Rank near Tzaneen Mall on Groot-Letaba | F62: Rivers | G62: 70 | H62: 2006-10-12 | I62: 2014-06-10 | J62: 8 | K62: n/a | L62: -23.82587 | M62: 30.16482
B63: B81 1000015225 | C63: plot | D63: data | E63: Nondwene Geohydro Point 1 on Groot Letaba | F63: Rivers | G63: 2 | H63: 2006-06-27 | I63: 2006-06-27 | J63: 42 | K63: n/a | L63: -23.68242 | M63: 30.87304
B64: B81 1000015226 | C64: plot | D64: data | E64: Nondwene Geohydro Point 2 on Groot Letaba | F64: Rivers | G64: 2 | H64: 2006-06-27 | I64: 2006-06-27 | J64: 58 | K64: n/a | L64: -23.67071 | M64: 30.99082
B65: B90 90582 | C65: plot | D65: data | E65: At Silvervis Dam/Kruger National Park on Shingwidzi (NCMP) | F65: Rivers | G65: 421 | H65: 1983-10-18 | I65: 2015-04-03 | J65: 34 | K65: B9H002 | L65: -23.21528 | M65: 31.22
B66: B90 90583 | C66: plot | D66: data | E66: At Kanniedood Dam Kruger National Park on Shingwidzi (NCMP) | F66: Rivers | G66: 384 | H66: 1984-01-20 | I66: 2015-04-04 | J66: 38 | K66: B9H003 | L66: -23.13611 | M66: 31.45472
B67: B90 188499 | C67: plot | D67: data | E67: Boltman 211 LT - Malamulele downstream of Malamulele STW near Dam on Manzworo River | F67: Rivers | G67: 67 | H67: 2009-01-20 | I67: 2015-03-16 | J67: 64 | K67: n/a | L67: -23.00812 | M67: 30.71813
B68: B90 190155 | C68: plot | D68: data | E68: Malamulele upstream of Malamulele STW near Dept. of Agriculture on Manzworo River | F68: Rivers | G68: 62 | H68: 2007-06-26 | I68: 2014-11-14 | J68: 76 | K68: n/a | L68: -23.00564 | M68: 30.70083
B69: B90 190183 | C69: plot | D69: data | E69: Boltman 211 LT - Malamulele downstream Malamulele STW Bridge After Dam on Manzworo River (NMMP) | F69: Rivers | G69: 59 | H69: 2007-06-26 | I69: 2015-03-16 | J69: 70 | K69: n/a | L69: -23.00839 | M69: 30.70203
B70: B90 193797 | C70: plot | D70: data | E70: Kruger National Park - at Malahlapanga River Fountain | F70: Rivers | G70: 3 | H70: 2014-10-20 | I70: 2014-10-20 | J70: 112 | K70: n/a | L70: -22.88904 | M70: 31.03963
B71: A91 90405 | C71: plot | D71: data | E71: Albasini Dam on Luvuvhu River: near Dam Wall (nemp) Q01 | F71: Dam / Barrage | G71: 612 | H71: 1966-02-23 | I71: 2016-01-08 | J71: 23 | K71: A9R001 | L71: -23.10686 | M71: 30.12506
B72: B81 90550 | C72: plot | D72: data | E72: Ebenezer Dam - Ebenezer Dam on Groot-Letaba: near Dam Wall (nemp) Q01 | F72: Dam / Barrage | G72: 418 | H72: 1968-05-02 | I72: 2014-10-21 | J72: 5 | K72: B8R001 | L72: -23.9408 | M72: 29.9851
B73: B81 90551 | C73: plot | D73: data | E73: Ebenezer Dam - Ebenezer Dam on Great Letaba River: Point in Dam Q02 | F73: Dam / Barrage | G73: 1 | H73: 1973-06-20 | I73: 1973-06-20 | J73: 4 | K73: B8R001 | L73: -23.93793 | M73: 29.98626
B74: B81 90552 | C74: plot | D74: data | E74: Ebenezer Dam - Ebenezer Dam on Great Letaba River: Point in Dam Q03 | F74: Dam / Barrage | G74: 72 | H74: 1973-06-20 | I74: 1977-10-04 | J74: 4 | K74: B8R001 | L74: -23.93465 | M74: 29.98554
B75: B81 90553 | C75: plot | D75: data | E75: Van Zylsrust 1021 LS - Ebenezer Dam on Great Lataba River: Point in Dam Q04 | F75: Dam / Barrage | G75: 1 | H75: 1973-06-20 | I75: 1973-06-20 | J75: 4 | K75: B8R001 | L75: -23.93213 | M75: 29.988
B76: B81 90554 | C76: plot | D76: data | E76: Van Zylsrust 1021 LS - Ebenezer Dam on Great Letaba River: Point in Dam Q05 | F76: Dam / Barrage | G76: 1 | H76: 1973-06-20 | I76: 1973-06-20 | J76: 4 | K76: B8R001 | L76: -23.93072 | M76: 29.98622
B77: B81 90555 | C77: plot | D77: data | E77: Goedehoop 1022 LS - Ebenezer Dam on Great Letaba River: Point in Dam Q06 | F77: Dam / Barrage | G77: 1 | H77: 1973-06-20 | I77: 1973-06-20 | J77: 4 | K77: B8R001 | L77: -23.92957 | M77: 29.98447
B78: B81 90556 | C78: plot | D78: data | E78: Goedehoop 1022 LS - Ebenezer Dam on Great Letaba River: Point in Dam Q07 | F78: Dam / Barrage | G78: 1 | H78: 1973-06-20 | I78: 1973-06-20 | J78: 4 | K78: B8R001 | L78: -23.92811 | M78: 29.98217
B79: B81 90557 | C79: plot | D79: data | E79: Goedehoop 1022 LS - Ebenezer Dam on Great Letaba River: Point in Dam Q08 | F79: Dam / Barrage | G79: 1 | H79: 1973-06-20 | I79: 1973-06-20 | J79: 5 | K79: B8R001 | L79: -23.92628 | M79: 29.98038
B80: B81 90558 | C80: plot | D80: data | E80: Goedehoop 1022 LS - Ebenezer Dam on Great Letaba River: Point in Dam Q09 | F80: Dam / Barrage | G80: 1 | H80: 1973-06-20 | I80: 1973-06-20 | J80: 4 | K80: B8R001 | L80: -23.92294 | M80: 29.98256
B81: B81 90559 | C81: plot | D81: data | E81: Goedehoop 1022 LS - Ebenezer Dam on Great Letaba River: Point in Dam Q10 | F81: Dam / Barrage | G81: 1 | H81: 1973-06-20 | I81: 1973-06-20 | J81: 4 | K81: B8R001 | L81: -23.92142 | M81: 29.98301
B82: B81 90560 | C82: plot | D82: data | E82: Goedehoop 1022 LS - Ebenezer Dam on Great Letaba River: Point in Dam Q11 | F82: Dam / Barrage | G82: 1 | H82: 1973-06-20 | I82: 1973-06-20 | J82: 4 | K82: B8R001 | L82: -23.91712 | M82: 29.98382
B83: B81 90561 | C83: plot | D83: data | E83: Goedehoop 1022 LS - Ebenezer Dam on Great Letaba River: Point in Dam Q12 | F83: Dam / Barrage | G83: 27 | H83: 1976-11-11 | I83: 1977-10-04 | J83: 4 | K83: B8R001 | L83: -23.91446 | M83: 29.9844
B84: B81 90562 | C84: plot | D84: data | E84: Ebenezer Dam - Ebenezer Dam on Great Letaba River: Point in Dam Q13 | F84: Dam / Barrage | G84: 1 | H84: 1973-06-20 | I84: 1973-06-20 | J84: 5 | K84: B8R001 | L84: -23.93567 | M84: 29.98334
B85: B81 90563 | C85: plot | D85: data | E85: Vechtkraal 1118 LS - Ebenezer Dam on Great Letaba River: Point in Dam Q14 | F85: Dam / Barrage | G85: 4 | H85: 1973-06-20 | I85: 1975-03-15 | J85: 4 | K85: B8R001 | L85: -23.9387 | M85: 29.97993
B86: B81 90564 | C86: plot | D86: data | E86: Ebenezer Dam - Ebenezer Dam on Great Letaba River: Point in Dam Q15 | F86: Dam / Barrage | G86: 1 | H86: 1973-06-20 | I86: 1973-06-20 | J86: 4 | K86: B8R001 | L86: -23.94208 | M86: 29.97672
B87: B81 90565 | C87: plot | D87: data | E87: De Beers 1125 LS - Ebenezer Dam on Great Letaba River: Point in Dam Q16 | F87: Dam / Barrage | G87: 1 | H87: 1973-06-20 | I87: 1973-06-20 | J87: 4 | K87: B8R001 | L87: -23.94602 | M87: 29.97406
B88: B81 90566 | C88: plot | D88: data | E88: Bekkersvlei 1126 LS - Ebenezer Dam on Great Letaba River: Point in Dam Q17 | F88: Dam / Barrage | G88: 1 | H88: 1973-06-20 | I88: 1973-06-20 | J88: 5 | K88: B8R001 | L88: -23.94904 | M88: 29.97277
B89: B81 90567 | C89: plot | D89: data | E89: Rondebult 1120 LS - Ebenezer Dam on Great Letaba River: Point in Dam Q18 | F89: Dam / Barrage | G89: 1 | H89: 1973-06-20 | I89: 1973-06-20 | J89: 3 | K89: B8R001 | L89: -23.95203 | M89: 29.97178
B90: B81 90568 | C90: plot | D90: data | E90: Rondebult 1120 LS - Ebenezer Dam on Great Letaba River: Point in Dam Q19 | F90: Dam / Barrage | G90: 1 | H90: 1973-06-20 | I90: 1973-06-20 | J90: 4 | K90: B8R001 | L90: -23.95485 | M90: 29.96951
B91: B81 90569 | C91: plot | D91: data | E91: Pienaarsvalley 1128 LS - Ebenezer Dam on Great Letaba River: Point in Dam Q20 | F91: Dam / Barrage | G91: 1 | H91: 1973-06-20 | I91: 1973-06-20 | J91: 4 | K91: B8R001 | L91: -23.95685 | M91: 29.96629
B92: B81 90570 | C92: plot | D92: data | E92: Stevensrust 1119 LS - Ebenezer Dam on Great Letaba River: Point in Dam Q21 | F92: Dam / Barrage | G92: 1 | H92: 1973-06-20 | I92: 1973-06-20 | J92: 4 | K92: B8R001 | L92: -23.9547 | M92: 29.96332
B93: B81 90571 | C93: plot | D93: data | E93: Uitkyk 1117 LS - Ebenezer Dam on Great Letaba River: Point in Dam Q22 | F93: Dam / Barrage | G93: 1 | H93: 1973-06-20 | I93: 1973-06-20 | J93: 5 | K93: B8R001 | L93: -23.9503 | M93: 29.96262
B94: B81 90572 | C94: plot | D94: data | E94: Stevensrust 1119 LS - Ebenezer Dam on Great Letaba River: Point in Dam Q23 | F94: Dam / Barrage | G94: 1 | H94: 1973-06-20 | I94: 1973-06-20 | J94: 5 | K94: B8R001 | L94: -23.94398 | M94: 29.96531
B95: B81 90573 | C95: plot | D95: data | E95: Kromdraai 1111 LS - Ebenezer Dam on Great Letaba River: Point in Dam Q24 | F95: Dam / Barrage | G95: 1 | H95: 1973-06-20 | I95: 1973-06-20 | J95: 4 | K95: B8R001 | L95: -23.93783 | M95: 29.96394
B96: B81 90574 | C96: plot | D96: data | E96: Spruit 1103 LS - Ebenezer Dam on Great Letaba River: Point in Dam Q25 | F96: Dam / Barrage | G96: 11 | H96: 1977-07-06 | I96: 1977-10-04 | J96: 4 | K96: B8R001 | L96: -23.94151 | M96: 29.95667
B97: B81 90575 | C97: plot | D97: data | E97: Spruit 1103 LS - Ebenezer Dam on Great Letaba River: Point in Dam Q26 | F97: Dam / Barrage | G97: 1 | H97: 1973-06-20 | I97: 1973-06-20 | J97: 4 | K97: B8R001 | L97: -23.94227 | M97: 29.95113
B98: B81 90576 | C98: plot | D98: data | E98: Doornfontein 196 LT - Hans Merensky Dam on Ramadiepa River: near Dam Wall Q01 | F98: Dam / Barrage | G98: 252 | H98: 1973-06-21 | I98: 2015-07-13 | J98: 6 | K98: B8R002 | L98: -23.7492 | M98: 30.1076
B99: B81 90577 | C99: plot | D99: data | E99: Turksvygbult 550 LT - Magoebaskloof Dam on Politsirivier: near Dam Wall (nemp) Q01 | F99: Dam / Barrage | G99: 655 | H99: 1975-11-19 | I99: 2014-12-04 | J99: 5 | K99: B8R003 | L99: -23.8162 | M99: 30.0554
B100: B81 90578 | C100: plot | D100: data | E100: Doornhoek 535 LT - Tzaneen Dam on Groot Letaba: near Dam Wall (nemp) Q01 | F100: Dam / Barrage | G100: 597 | H100: 1977-05-11 | I100: 2015-07-17 | J100: 7 | K100: B8R005 | L100: -23.8 | M100: 30.16667
B101: B81 90579 | C101: plot | D101: data | E101: Woodbush Reserve - Dap Naude Dam on Broederstroom: near Dam Wall Q01 | F101: Dam / Barrage | G101: 166 | H101: 1975-11-14 | I101: 2009-09-07 | J101: 3 | K101: B8R006 | L101: -23.8125 | M101: 29.96667
B102: B82 90580 | C102: plot | D102: data | E102: Sterkrivier 97 LT - Middle Letaba Dam on Middel Letaba: near Dam Wall (nemp) Q01 | F102: Dam / Barrage | G102: 425 | H102: 1996-02-06 | I102: 2016-01-07 | J102: 26 | K102: B8R007 | L102: -23.274 | M102: 30.4037
B103: B82 90581 | C103: plot | D103: data | E103: Nsami at Nsami Dam near Dam Wall (nemp) Q01 | F103: Dam / Barrage | G103: 422 | H103: 1996-01-16 | I103: 2016-01-22 | J103: 24 | K103: B8R009 | L103: -23.2545 | M103: 30.77072
B104: B81 177868 | C104: plot | D104: data | E104: Modjadjes 424 LT Ga-Matswe - Modjadji Dam on Molototsi near Dam Wall (nemp) Q01 | F104: Dam / Barrage | G104: 54 | H104: 2009-03-31 | I104: 2015-03-06 | J104: 22 | K104: B8R011 | L104: -23.58646 | M104: 30.34954
B105: B82 185112 | C105: plot | D105: data | E105: Pallakop Irrigation Dam Extraction Point (nmmp) | F105: Dam / Barrage | G105: 962 | H105: 2001-11-06 | I105: 2009-12-22 | J105: n/a | K105: n/a | L105: -23.2995 | M105: 30.532
B106: B81 190778 | C106: plot | D106: data | E106: Magoboya S Location Thabina Dam - near Dam Wall on Thabina (nemp) | F106: Dam / Barrage | G106: 25 | H106: 2010-07-13 | I106: 2014-12-01 | J106: 6 | K106: n/a | L106: -24.02877 | M106: 30.16866
B107: B82 1000009607 | C107: plot | D107: data | E107: Mapaana H07F1221 | F107: Spring/Eye | G107: 2 | H107: 2004-06-10 | I107: 2004-06-10 | J107: 18 | K107: n/a | L107: -23.63277 | M107: 30.23666
B108: B82 1000009609 | C108: plot | D108: data | E108: Mapaana H07F1220 | F108: Spring/Eye | G108: 2 | H108: 2004-06-10 | I108: 2004-06-10 | J108: 30 | K108: n/a | L108: -23.63622 | M108: 30.23741
B109: B81 103038 | C109: plot | D109: data | E109: Dwarsfontein 541 LT Duiwelskloof Treatment Works Vergelegen Dam Raw Water | F109: Potable Water Treatment Works | G109: 428 | H109: 1979-06-21 | I109: 1997-02-03 | J109: 7 | K109: B8H031 | L109: -23.775 | M109: 30.1
B110: B81 103039 | C110: plot | D110: data | E110: Duiwelskloof Treatment Works - Treated Water | F110: Potable Water Treatment Works | G110: 399 | H110: 1979-06-21 | I110: 1997-02-03 | J110: 11 | K110: B8H031 | L110: -23.775 | M110: 30.1
B111: B81 103040 | C111: plot | D111: data | E111: Pietersburg Treatment Works - Ebenezer Dam Raw Wa | F111: Potable Water Treatment Works | G111: 342 | H111: 1979-06-19 | I111: 1997-04-09 | J111: 5 | K111: B8H032 | L111: -23.94167 | M111: 29.99167
B112: B81 103041 | C112: plot | D112: data | E112: Pietersburg Treatment Works - Treated Water | F112: Potable Water Treatment Works | G112: 332 | H112: 1979-06-19 | I112: 1997-04-08 | J112: 7 | K112: B8H032 | L112: -23.94167 | M112: 29.99167
B113: B82 188524 | C113: plot | D113: data | E113: Ga-Kgapane at Kgapane Sewage Works Discharge Point | F113: Waste Water Treatment Works | G113: 120 | H113: 2005-04-06 | I113: 2015-07-29 | J113: 56 | K113: n/a | L113: -23.63171 | M113: 30.21698
B114: B81 188527 | C114: plot | D114: data | E114: Tzaneen Manorvlei 556 LT - at Tzaneen STW Effluent Discharge Point to Great Letaba River | F114: Waste Water Treatment Works | G114: 116 | H114: 2006-11-21 | I114: 2015-07-29 | J114: 42 | K114: n/a | L114: -23.82232 | M114: 30.17268
B115: B81 188529 | C115: plot | D115: data | E115: Lenyenye Oxidation Ponds Discharge | F115: Waste Water Treatment Works | G115: 55 | H115: 2004-12-07 | I115: 2015-07-29 | J115: 58 | K115: n/a | L115: -23.96362 | M115: 30.27589
B116: B83 190184 | C116: plot | D116: data | E116: Kruger National Park Letaba STW Discharge near Nhlohlori River on Letaba Camp | F116: Waste Water Treatment Works | G116: 70 | H116: 2007-11-13 | I116: 2015-07-31 | J116: 107 | K116: n/a | L116: -23.85861 | M116: 31.58067
B117: B82 190187 | C117: plot | D117: data | E117: Giyani Town Biofilters STW Effluent Discharge Point on Klein Letaba River | F117: Waste Water Treatment Works | G117: 179 | H117: 2005-03-09 | I117: 2015-07-29 | J117: 79 | K117: n/a | L117: -23.32661 | M117: 30.70636
B118: B82 190188 | C118: plot | D118: data | E118: Giyani Town Oxidation Ponds STW Effluent Discharge Point to Klein Letaba River | F118: Waste Water Treatment Works | G118: 172 | H118: 2005-03-09 | I118: 2015-07-29 | J118: 83 | K118: n/a | L118: -23.32497 | M118: 30.70656
B119: B90 188495 | C119: plot | D119: data | E119: Kruger National Park Punda Maria Sewage Treatment Works Final Effluent Discharge near Punda Maria Re | F119: Waste Water Treatment Works | G119: 61 | H119: 2007-11-27 | I119: 2015-06-03 | J119: 88 | K119: n/a | L119: -22.6939 | M119: 31.02523
B120: B90 188497 | C120: plot | D120: data | E120: Boltman 211 LT - Malamulele S/W Final Effluent | F120: Waste Water Treatment Works | G120: 68 | H120: 2009-01-20 | I120: 2015-05-06 | J120: 56 | K120: n/a | L120: -23.00737 | M120: 30.71543
B121: B90 188505 | C121: plot | D121: data | E121: Shingwedzi Rest Camp KNP STW Final Efluent | F121: Waste Water Treatment Works | G121: 6 | H121: 2007-11-27 | I121: 2014-08-05 | J121: 126 | K121: n/a | L121: -23.10991 | M121: 31.43981
B122: B81 187101 | C122: plot | D122: data | E122: Letaba 1 Next to Letaba Hospital Run Off to Letaba | F122: Industrial Property | G122: 69 | H122: 2003-04-29 | I122: 2003-12-03 | J122: 9 | K122: n/a | L122: -23.88785 | M122: 30.27165
B123: B81 187102 | C123: plot | D123: data | E123: Letaba 2 Storm Water Channel at Robertsons + Peppadew Mix | F123: Industrial Property | G123: 38 | H123: 2003-04-29 | I123: 2003-08-05 | J123: 32 | K123: n/a | L123: -23.88715 | M123: 30.2707
B124: B81 187103 | C124: plot | D124: data | E124: Letaba 3 Storm Water Channel at Exit of Robertsons Industry | F124: Industrial Property | G124: 38 | H124: 2003-04-29 | I124: 2003-08-05 | J124: 275 | K124: n/a | L124: -23.88765 | M124: 30.27065
B125: B81 187104 | C125: plot | D125: data | E125: Letaba 4 at Storm Water Outlet from Peppadew and Robertsons | F125: Industrial Property | G125: 58 | H125: 2003-04-29 | I125: 2003-12-03 | J125: 102 | K125: n/a | L125: -23.88445 | M125: 30.27065
B126: B81 187105 | C126: plot | D126: data | E126: Letaba 5 Nkowakowa - Nkowakowa Industrial Area downstream of Maribe | F126: Industrial Property | G126: 179 | H126: 2003-04-29 | I126: 2015-07-29 | J126: 33 | K126: n/a | L126: -23.88415 | M126: 30.28185
B127: B81 187106 | C127: plot | D127: data | E127: Letaba 6 Nkowankowa Industrial Area upstream of Maribe River (NMMP) | F127: Industrial Property | G127: 83 | H127: 2003-04-29 | I127: 2011-06-09 | J127: 15 | K127: n/a | L127: -23.88495 | M127: 30.26755
B128: B81 187107 | C128: plot | D128: data | E128: Letaba 7 Storm Water Chan at Peppadew Solids Effluent Separat | F128: Industrial Property | G128: 39 | H128: 2003-04-29 | I128: 2003-08-05 | J128: 70 | K128: n/a | L128: -23.88967 | M128: 30.27107
B129: B81 187108 | C129: plot | D129: data | E129: Letaba 8 Storm Water at Peppadew Peppers + Containers Wash | F129: Industrial Property | G129: 23 | H129: 2003-04-29 | I129: 2003-11-20 | J129: 134 | K129: n/a | L129: -23.89033 | M129: 30.27118
B130: B81 187109 | C130: plot | D130: data | E130: Letaba 9 Storm Water at Peppadew at Boiler and Coal | F130: Industrial Property | G130: 8 | H130: 2003-05-21 | I130: 2003-07-08 | J130: 24 | K130: n/a | L130: -23.88895 | M130: 30.27063
B131: B81 90532 | C131: plot | D131: data | E131: Great Letaba Irrig. North Canal Inlet at Fleurbaa | F131: Canal | G131: 89 | H131: 1980-02-05 | I131: 1983-01-12 | J131: 8 | K131: B8H024 | L131: -23.84167 | M131: 30.24167
B132: B81 90533 | C132: plot | D132: data | E132: Great Letaba Irrigation N + N Canal Outlet at Lab | F132: Canal | G132: 89 | H132: 1980-02-05 | I132: 1982-04-17 | J132: 10 | K132: B8H025 | L132: -23.7875 | M132: 30.475
B133: B81 90534 | C133: plot | D133: data | E133: Great Letaba Irrig. Masalaal Canal Inlet at Pries | F133: Canal | G133: 91 | H133: 1980-02-05 | I133: 1983-03-05 | J133: 18 | K133: B8H026 | L133: -23.65417 | M133: 30.74167
B134: B81 90535 | C134: plot | D134: data | E134: Great Letaba Irri. Masalaal Canal Outlet at Water | F134: Canal | G134: 87 | H134: 1980-02-05 | I134: 1991-05-30 | J134: 20 | K134: B8H027 | L134: -23.69583 | M134: 30.82917
B135: B81 177709 | C135: plot | D135: data | E135: At Prieska on Right Canal from Groot-Letaba | F135: Canal | G135: 2 | H135: 2011-03-02 | I135: 2011-04-06 | J135: 27 | K135: B8H038 | L135: -23.64556 | M135: 30.71861
B136: B81 177720 | C136: plot | D136: data | E136: Great Letaba River: Onverwacht - Big Sluice-Right | F136: Canal | G136: 1 | H136: 2015-06-15 | I136: 2015-06-15 | J136: 41 | K136: B8H039 | L136: -23.94167 | M136: 29.9875
B137: B81 90541 | C137: plot | D137: data | E137: Turksvygbult on Left Canal from Magoebaskloof Dam (nemp) | F137: Canal | G137: 131 | H137: 1998-01-27 | I137: 2010-02-23 | J137: 6 | K137: B8H045 | L137: -23.82222 | M137: 30.05694
B138: B81 85587 | C138: plot | D138: data | E138: Doornhoek Tzaneen Dam on Pipeline from Tzaneen Dam to Treatment Works | F138: Pipeline | G138: 1 | H138: 2009-02-19 | I138: 2009-02-19 | J138: 7 | K138: B8H049 | L138: -23.8 | M138: 30.16667
B139: B81 90544 | C139: plot | D139: data | E139: Tzaneen Dam on Great Letaba River: Left Canal | F139: Canal | G139: 156 | H139: 1985-01-30 | I139: 2007-01-22 | J139: 7 | K139: B8H051 | L139: -23.8 | M139: 30.16667
B140: B82 90547 | C140: plot | D140: data | E140: Middle Letaba Dam on Mid. Letaba River: Right Can | F140: Canal | G140: 256 | H140: 1986-12-29 | I140: 2015-07-16 | J140: 22 | K140: B8H054 | L140: -23.27167 | M140: 30.40306
B141: B81 1000003138 | C141: plot | D141: data | E141: Nkowankowa Sewage Treatment Works Discharge Point to Letsitele River | F141: Pipeline | G141: 141 | H141: 2004-12-07 | I141: 2015-07-29 | J141: 45 | K141: n/a | L141: -23.89532 | M141: 30.31705
B142: B81 1000262079 | C142: plot | D142: data | E142: 2330CB Modjadjes Loc. ptn. Mapitlula - H07P0794 | F142: Lateral Collector | G142: 2 | H142: 2012-11-20 | I142: 2012-11-20 | J142: 19 | K142: n/a | L142: -23.70051 | M142: 30.32086
B143: B82 1000190066 | C143: plot | D143: data | E143: Ossenhoek ptn. Mahatlani - H17-0112 | F143: unknown | G143: 2 | H143: 2007-07-12 | I143: 2007-07-12 | J143: 119 | K143: n/a | L143: -23.24847 | M143: 30.2728
B144: B82 1000190070 | C144: plot | D144: data | E144: Nieuwveld ptn. Nwamatane - H17-0258 | F144: unknown | G144: 3 | H144: 2007-07-09 | I144: 2008-02-07 | J144: 87 | K144: n/a | L144: -23.24136 | M144: 30.3683
B145: B82 1000190048 | C145: plot | D145: data | E145: Loc. van Tabaan ptn. Ha-Davhana H20-0232 | F145: unknown | G145: 2 | H145: 2007-06-02 | I145: 2007-06-02 | J145: 95 | K145: n/a | L145: -23.21961 | M145: 30.46402
B146: B82 1000190132 | C146: plot | D146: data | E146: Vyeboomsdrift ptn. Vyeboom - H20-1518 | F146: unknown | G146: 2 | H146: 2007-06-01 | I146: 2007-06-01 | J146: 89 | K146: n/a | L146: -23.16872 | M146: 30.39672
B147: B82 1000190160 | C147: plot | D147: data | E147: Onverwacht ptn. Vhangani - H17-0193 | F147: unknown | G147: 2 | H147: 2007-07-07 | I147: 2007-07-07 | J147: 89 | K147: n/a | L147: -23.19894 | M147: 30.31852
B148: B82 1000190166 | C148: plot | D148: data | E148: Nieuw England ptn. Vhangani - H17-1095 | F148: unknown | G148: 2 | H148: 2007-07-04 | I148: 2007-07-04 | J148: 237 | K148: n/a | L148: -23.18272 | M148: 30.32219
B149: B82 1000190164 | C149: plot | D149: data | E149: Magon ptn. Ntsuki - H17-0367 | F149: unknown | G149: 2 | H149: 2007-07-09 | I149: 2007-07-09 | J149: 72 | K149: n/a | L149: -23.26322 | M149: 30.34945
B150: B81 85569 | C150: plot | D150: data | E150: Vergelegen Dam | F150: unknown | G150: 1 | H150: 2001-05-21 | I150: 2001-05-21 | J150: n/a | K150: B8H031 | L150: -23.775 | M150: 30.1
B151: B82 100444 | C151: plot | D151: data | E151: Gazankulu Homeland | F151: unknown | G151: 1 | H151: 1980-10-31 | I151: 1980-10-31 | J151: 287 | K151: n/a | L151: -23.41944 | M151: 30.9125
B152: B81 100741 | C152: plot | D152: data | E152: Eiland (dup name 6509) | F152: unknown | G152: 1 | H152: 1982-09-17 | I152: 1982-09-17 | J152: 174 | K152: n/a | L152: -23.65 | M152: 30.66667
B153: B81 100742 | C153: plot | D153: data | E153: Eiland (dup name 6510) | F153: unknown | G153: 1 | H153: 1982-09-15 | I153: 1982-09-15 | J153: 115 | K153: n/a | L153: -23.68333 | M153: 30.68333
B154: B82 101374 | C154: plot | D154: data | E154: Muwaweni Goedehoop (dup name 6888) | F154: unknown | G154: 2 | H154: 1994-11-25 | I154: 1994-11-25 | J154: 80 | K154: n/a | L154: -23.33278 | M154: 30.11444
B155: B82 101375 | C155: plot | D155: data | E155: Lambani Horingfontein | F155: unknown | G155: 2 | H155: 1994-11-16 | I155: 1994-11-23 | J155: 40 | K155: n/a | L155: -23.29722 | M155: 30.05861
B156: B82 101376 | C156: plot | D156: data | E156: Mpofu Buffelshoek (dup name 6889) | F156: unknown | G156: 1 | H156: 1994-11-16 | I156: 1994-11-16 | J156: 120 | K156: n/a | L156: -23.30167 | M156: 29.99417
B157: B82 101377 | C157: plot | D157: data | E157: Mpofu Buffelshoek (dup name 6890) | F157: unknown | G157: 1 | H157: 1994-11-16 | I157: 1994-11-16 | J157: 123 | K157: n/a | L157: -23.30167 | M157: 29.99222
B158: B82 101378 | C158: plot | D158: data | E158: Muwaweni Goedehoop (dup name 6891) | F158: unknown | G158: 2 | H158: 1994-11-28 | I158: 1994-11-28 | J158: 59 | K158: n/a | L158: -23.32583 | M158: 30.11222

Sheet WQ DB
A1: Station_name | B1: Date | C1: Ca_Diss_Water | D1: Cl_Diss_Water | E1: DMS_Tot_Water | F1: EC_Phys_Water | G1: F_Diss_Water | H1: K_Diss_Water | I1: KJEL_N_Tot_Water | J1: Mg_Diss_Water | K1: Na_Diss_Water | L1: NH4_N_Diss_Water | M1: NO3_NO2_N_Diss_Water | N1: P_Tot_Water | O1: pH_Diss_Water | P1: PO4_P_Diss_Water | Q1: Si_Diss_Water | R1: SO4_Diss_Water | S1: TAL_Diss_Water | T1: Station | U1: Qat | V1: Description | W1: Type | X1: Flow, if any | Y1: Latitude | Z1: Longitude
A2: A91 1000001740 | B2: 2002-12-13 | C2: 23.808 | D2: 13.096 | E2: 236.303 | F2: 31.6 | G2: 0.11 | H2: 0.15 | J2: 16.731 | K2: 9.353 | L2: 0.02 | M2: 0.674 | O2: 7.688 | P2: 0.022 | Q2: 29.006 | R2: 6.083 | S2: 134.422 | T2: 2230DC00438 | U2: A91H | V2: Paswanes H20S0907 | W2: Spring/Eye | Y2: -22.7902 | Z2: 30.72548
A3: A91 1000001742 | B3: 2002-12-13 | C3: 14.41 | D3: 5 | E3: 142.139 | F3: 20.1 | G3: 0.126 | H3: 0.366 | J3: 8.782 | K3: 8.16 | L3: 0.02 | M3: 0.102 | O3: 7.954 | P3: 0.047 | Q3: 21.987 | R3: 2 | S3: 84.21 | T3: 2230DC00439 | U3: A91H | V3: Paswanes H20S0908 | W3: Spring/Eye | Y3: -22.79582 | Z3: 30.71538
A4: A91 1000001744 | B4: 2003-01-08 | C4: 7.855 | D4: 5 | E4: 52.839 | F4: 9.56 | G4: 0.115 | H4: 0.399 | J4: 4.05 | K4: 3.476 | L4: 0.052 | M4: 0.565 | O4: 7.651 | P4: 0.006 | Q4: 9.73 | R4: 5.23 | S4: 19.789 | T4: 2230CD00146 | U4: A91E | V4: Chibase H20S0921 | W4: Spring/Eye | Y4: -22.97229 | Z4: 30.33396
A5: A91 1000003139 | B5: 2004-09-28 | C5: 23.885 | D5: 52.178 | E5: 457.214 | F5: 64 | G5: 0.1 | H5: 11.546 | I5: 3.967 | J5: 28.332 | K5: 56.478 | L5: 0.061 | M5: 3.066 | N5: 3.915 | O5: 7.313 | P5: 3.121 | Q5: 25.308 | R5: 25.27 | S5: 193.728 | U5: A91C | V5: Waterval S/W Final Dicharge Point to Mudzwiriti River | W5: Waste Water Treatment Works | Y5: -23.1519 | Z5: 30.0803
A6: A91 1000003139 | B6: 2005-03-17 | C6: 24.486 | D6: 43.979 | E6: 431.209 | F6: 58.8 | G6: 0.102 | H6: 10.897 | J6: 30.153 | K6: 46.818 | L6: 0.158 | M6: 7.176 | O6: 8.8 | P6: 3.638 | Q6: 27.124 | R6: 18.649 | S6: 174.697 | U6: A91C | V6: Waterval S/W Final Dicharge Point to Mudzwiriti River | W6: Waste Water Treatment Works | Y6: -23.1519 | Z6: 30.0803
A7: A91 1000003139 | B7: 2005-04-19 | C7: 26.365 | D7: 44.801 | E7: 462.621 | F7: 62.8 | G7: 0.26 | H7: 11.602 | J7: 31.698 | K7: 47.797 | L7: 0.466 | M7: 3.743 | O7: 8.378 | P7: 5.062 | Q7: 30.071 | R7: 23.969 | S7: 199.661 | U7: A91C | V7: Waterval S/W Final Dicharge Point to Mudzwiriti River | W7: Waste Water Treatment Works | Y7: -23.1519 | Z7: 30.0803
A8: A91 1000003139 | B8: 2005-06-20 | C8: 27.335 | D8: 61.173 | E8: 516.372 | F8: 70.2 | G8: 0.122 | H8: 16.013 | J8: 32.88 | K8: 60.92 | L8: 0.346 | M8: 12.006 | O8: 8.283 | P8: 6.72 | Q8: 26.231 | R8: 29.475 | S8: 175.726 | U8: A91C | V8: Waterval S/W Final Dicharge Point to Mudzwiriti River | W8: Waste Water Treatment Works | Y8: -23.1519 | Z8: 30.0803
A9: A91 1000003139 | B9: 2005-07-12 | C9: 25 | D9: 58 | F9: 65 | G9: 0.2 | H9: 17 | J9: 20.6 | K9: 52.4 | O9: 8.7 | P9: 22.3 | R9: 34 | S9: 190 | U9: A91C | V9: Waterval S/W Final Dicharge Point to Mudzwiriti River | W9: Waste Water Treatment Works | Y9: -23.1519 | Z9: 30.0803
A10: A91 1000003139 | B10: 2005-07-13 | C10: 25.25 | D10: 63.335 | E10: 486.999 | F10: 66.9 | G10: 0.111 | H10: 15.214 | J10: 30.399 | K10: 57.213 | L10: 0.333 | M10: 3.856 | O10: 8.495 | P10: 6.532 | Q10: 26.551 | R10: 32.511 | S10: 184.899 | U10: A91C | V10: Waterval S/W Final Dicharge Point to Mudzwiriti River | W10: Waste Water Treatment Works | Y10: -23.1519 | Z10: 30.0803
A11: A91 1000003139 | B11: 2005-08-26 | C11: 23.1 | D11: 61 | F11: 63 | G11: 0.05 | H11: 24 | J11: 22.3 | K11: 67.1 | O11: 8 | P11: 4 | R11: 41 | S11: 136 | U11: A91C | V11: Waterval S/W Final Dicharge Point to Mudzwiriti River | W11: Waste Water Treatment Works | Y11: -23.1519 | Z11: 30.0803
A12: A91 1000003139 | B12: 2005-08-26 | C12: 22.721 | D12: 58.783 | E12: 445.693 | F12: 66 | G12: 0.05 | H12: 13.888 | J12: 31.04 | K12: 52.665 | L12: 0.287 | M12: 15.697 | O12: 8.128 | P12: 4.103 | Q12: 23.861 | R12: 31.395 | S12: 125.251 | U12: A91C | V12: Waterval S/W Final Dicharge Point to Mudzwiriti River | W12: Waste Water Treatment Works | Y12: -23.1519 | Z12: 30.0803
A13: A91 1000003139 | B13: 2005-10-11 | C13: 16.425 | D13: 59.567 | E13: 405.203 | F13: 65.1 | G13: 0.161 | H13: 16.979 | J13: 23.475 | K13: 59.984 | L13: 0.065 | M13: 15.836 | O13: 8.885 | P13: 2.01 | Q13: 24.829 | R13: 34.796 | S13: 96.343 | U13: A91C | V13: Waterval S/W Final Dicharge Point to Mudzwiriti River | W13: Waste Water Treatment Works | Y13: -23.1519 | Z13: 30.0803
A14: A91 1000003139 | B14: 2005-10-13 | C14: 5.6 | D14: 66 | F14: 60 | G14: 0.05 | H14: 0.05 | J14: 22.8 | K14: 54.9 | O14: 9.5 | P14: 2.1 | R14: 42 | S14: 96 | U14: A91C | V14: Waterval S/W Final Dicharge Point to Mudzwiriti River | W14: Waste Water Treatment Works | Y14: -23.1519 | Z14: 30.0803
A15: A91 1000003139 | B15: 2005-11-09 | C15: 23.622 | D15: 45.12 | E15: 370.597 | F15: 62.5 | G15: 0.108 | H15: 13.304 | J15: 28.377 | K15: 46.302 | L15: 0.252 | M15: 3.937 | O15: 8.085 | P15: 8.284 | Q15: 25.219 | R15: 24.027 | S15: 120.224 | U15: A91C | V15: Waterval S/W Final Dicharge Point to Mudzwiriti River | W15: Waste Water Treatment Works | Y15: -23.1519 | Z15: 30.0803
A16: A91 1000003139 | B16: 2006-01-17 | F16: 44 | O16: 8.1 | P16: 2.5 | U16: A91C | V16: Waterval S/W Final Dicharge Point to Mudzwiriti River | W16: Waste Water Treatment Works | Y16: -23.1519 | Z16: 30.0803
A17: A91 1000003139 | B17: 2006-02-14 | F17: 46 | O17: 8.5 | P17: 3.1 | U17: A91C | V17: Waterval S/W Final Dicharge Point to Mudzwiriti River | W17: Waste Water Treatment Works | Y17: -23.1519 | Z17: 30.0803
A18: A91 1000003139 | B18: 2006-04-26 | C18: 26 | D18: 42 | F18: 55.4 | G18: 0.23 | H18: 8 | K18: 45 | O18: 8 | P18: 4.3 | R18: 24 | S18: 148 | U18: A91C | V18: Waterval S/W Final Dicharge Point to Mudzwiriti River | W18: Waste Water Treatment Works | Y18: -23.1519 | Z18: 30.0803
A19: A91 1000003139 | B19: 2006-06-20 | C19: 9.2 | D19: 63 | F19: 68 | G19: 0.2 | H19: 20.6 | J19: 26.9 | K19: 55.7 | O19: 8.1 | P19: 0.05 | R19: 35 | S19: 180 | U19: A91C | V19: Waterval S/W Final Dicharge Point to Mudzwiriti River | W19: Waste Water Treatment Works | Y19: -23.1519 | Z19: 30.0803
A20: A91 1000003139 | B20: 2006-07-25 | F20: 64.2 | K20: 50 | M20: 21 | O20: 8.4 | P20: 0.95 | R20: 33 | U20: A91C | V20: Waterval S/W Final Dicharge Point to Mudzwiriti River | W20: Waste Water Treatment Works | Y20: -23.1519 | Z20: 30.0803
A21: A91 1000003139 | B21: 2006-07-25 | L21: 0.17 | U21: A91C | V21: Waterval S/W Final Dicharge Point to Mudzwiriti River | W21: Waste Water Treatment Works | Y21: -23.1519 | Z21: 30.0803
A22: A91 1000003139 | B22: 2006-08-31 | L22: 1.5 | U22: A91C | V22: Waterval S/W Final Dicharge Point to Mudzwiriti River | W22: Waste Water Treatment Works | Y22: -23.1519 | Z22: 30.0803
A23: A91 1000003139 | B23: 2006-09-28 | L23: 0.17 | U23: A91C | V23: Waterval S/W Final Dicharge Point to Mudzwiriti River | W23: Waste Water Treatment Works | Y23: -23.1519 | Z23: 30.0803
A24: A91 1000003139 | B24: 2006-10-12 | L24: 0.15 | U24: A91C | V24: Waterval S/W Final Dicharge Point to Mudzwiriti River | W24: Waste Water Treatment Works | Y24: -23.1519 | Z24: 30.0803
A25: A91 1000003139 | B25: 2006-11-22 | L25: 0.16 | U25: A91C | V25: Waterval S/W Final Dicharge Point to Mudzwiriti River | W25: Waste Water Treatment Works | Y25: -23.1519 | Z25: 30.0803
A26: A91 1000003139 | B26: 2007-01-30 | L26: 0.41 | U26: A91C | V26: Waterval S/W Final Dicharge Point to Mudzwiriti River | W26: Waste Water Treatment Works | Y26: -23.1519 | Z26: 30.0803
A27: A91 1000003139 | B27: 2007-05-29 | L27: 0.25 | U27: A91C | V27: Waterval S/W Final Dicharge Point to Mudzwiriti River | W27: Waste Water Treatment Works | Y27: -23.1519 | Z27: 30.0803
A28: A91 1000003139 | B28: 2009-01-21 | F28: 56.1 | N28: 3.4 | S28: 166 | U28: A91C | V28: Waterval S/W Final Dicharge Point to Mudzwiriti River | W28: Waste Water Treatment Works | Y28: -23.1519 | Z28: 30.0803
A29: A91 1000003139 | B29: 2009-05-12 | D29: 65 | F29: 83.3 | K29: 67 | O29: 8.8 | P29: 3.8 | R29: 43 | U29: A91C | V29: Waterval S/W Final Dicharge Point to Mudzwiriti River | W29: Waste Water Treatment Works | Y29: -23.1519 | Z29: 30.0803
A30: A91 1000003139 | B30: 2009-05-12 | F30: 83.3 | K30: 67 | O30: 8.8 | P30: 3.8 | R30: 43 | U30: A91C | V30: Waterval S/W Final Dicharge Point to Mudzwiriti River | W30: Waste Water Treatment Works | Y30: -23.1519 | Z30: 30.0803
A31: A91 1000003139 | B31: 2009-07-07 | D31: 34 | M31: 0.2 | O31: 8 | P31: 6.9 | R31: 18 | S31: 69 | U31: A91C | V31: Waterval S/W Final Dicharge Point to Mudzwiriti River | W31: Waste Water Treatment Works | Y31: -23.1519 | Z31: 30.0803
A32: A91 1000003139 | B32: 2009-09-08 | D32: 81 | F32: 77.4 | M32: 0.99 | O32: 8.4 | P32: 7.8 | S32: 222 | U32: A91C | V32: Waterval S/W Final Dicharge Point to Mudzwiriti River | W32: Waste Water Treatment Works | Y32: -23.1519 | Z32: 30.0803
A33: A91 1000003139 | B33: 2009-12-09 | D33: 52 | P33: 2.2 | S33: 175 | U33: A91C | V33: Waterval S/W Final Dicharge Point to Mudzwiriti River | W33: Waste Water Treatment Works | Y33: -23.1519 | Z33: 30.0803
A34: A91 1000003139 | B34: 2010-10-21 | F34: 71.6 | O34: 7.4 | U34: A91C | V34: Waterval S/W Final Dicharge Point to Mudzwiriti River | W34: Waste Water Treatment Works | Y34: -23.1519 | Z34: 30.0803
A35: A91 1000003139 | B35: 2010-11-03 | R35: 57 | U35: A91C | V35: Waterval S/W Final Dicharge Point to Mudzwiriti River | W35: Waste Water Treatment Works | Y35: -23.1519 | Z35: 30.0803
A36: A91 1000003139 | B36: 2010-12-08 | D36: 58 | F36: 63 | K36: 47 | O36: 7.6 | R36: 52 | U36: A91C | V36: Waterval S/W Final Dicharge Point to Mudzwiriti River | W36: Waste Water Treatment Works | Y36: -23.1519 | Z36: 30.0803
A37: A91 1000003139 | B37: 2011-07-21 | D37: 90 | F37: 95.9 | M37: 0.7 | P37: 4.9 | S37: 320 | U37: A91C | V37: Waterval S/W Final Dicharge Point to Mudzwiriti River | W37: Waste Water Treatment Works | Y37: -23.1519 | Z37: 30.0803
A38: A91 1000003139 | B38: 2011-09-01 | D38: 81 | F38: 98.7 | M38: 0.6 | P38: 8.5 | S38: 336 | U38: A91C | V38: Waterval S/W Final Dicharge Point to Mudzwiriti River | W38: Waste Water Treatment Works | Y38: -23.1519 | Z38: 30.0803
A39: A91 1000003139 | B39: 2011-10-31 | F39: 102.7 | S39: 338 | U39: A91C | V39: Waterval S/W Final Dicharge Point to Mudzwiriti River | W39: Waste Water Treatment Works | Y39: -23.1519 | Z39: 30.0803
A40: A91 1000003139 | B40: 2013-10-29 | F40: 136.8 | O40: 2 | U40: A91C | V40: Waterval S/W Final Dicharge Point to Mudzwiriti River | W40: Waste Water Treatment Works | Y40: -23.1519 | Z40: 30.0803
A41: A91 1000003139 | B41: 2013-11-28 | F41: 109.3 | O41: 8 | P41: 10.56 | U41: A91C | V41: Waterval S/W Final Dicharge Point to Mudzwiriti River | W41: Waste Water Treatment Works | Y41: -23.1519 | Z41: 30.0803
A42: A91 1000003139 | B42: 2014-01-23 | F42: 74.5 | O42: 8 | P42: 1.39 | U42: A91C | V42: Waterval S/W Final Dicharge Point to Mudzwiriti River | W42: Waste Water Treatment Works | Y42: -23.1519 | Z42: 30.0803
A43: A91 1000003139 | B43: 2014-02-27 | F43: 68.9 | O43: 7.4 | P43: 1.21 | U43: A91C | V43: Waterval S/W Final Dicharge Point to Mudzwiriti River | W43: Waste Water Treatment Works | Y43: -23.1519 | Z43: 30.0803
A44: A91 1000003139 | B44: 2014-03-12 | F44: 56.4 | O44: 7.3 | P44: 1.3 | U44: A91C | V44: Waterval S/W Final Dicharge Point to Mudzwiriti River | W44: Waste Water Treatment Works | Y44: -23.1519 | Z44: 30.0803
A45: A91 1000003139 | B45: 2014-05-19 | F45: 111.8 | O45: 7.4 | P45: 3.73 | U45: A91C | V45: Waterval S/W Final Dicharge Point to Mudzwiriti River | W45: Waste Water Treatment Works | Y45: -23.1519 | Z45: 30.0803
A46: A91 1000003139 | B46: 2014-06-12 | F46: 48.2 | O46: 9.9 | P46: 6.72 | U46: A91C | V46: Waterval S/W Final Dicharge Point to Mudzwiriti River | W46: Waste Water Treatment Works | Y46: -23.1519 | Z46: 30.0803
A47: A91 1000003139 | B47: 2014-08-07 | F47: 79.3 | O47: 7.2 | P47: 1.5 | U47: A91C | V47: Waterval S/W Final Dicharge Point to Mudzwiriti River | W47: Waste Water Treatment Works | Y47: -23.1519 | Z47: 30.0803
A48: A91 1000003139 | B48: 2014-09-03 | F48: 96.6 | O48: 7.4 | P48: 2.78 | U48: A91C | V48: Waterval S/W Final Dicharge Point to Mudzwiriti River | W48: Waste Water Treatment Works | Y48: -23.1519 | Z48: 30.0803
A49: A91 1000003139 | B49: 2014-10-06 | F49: 114.3 | O49: 8 | P49: 7.2 | U49: A91C | V49: Waterval S/W Final Dicharge Point to Mudzwiriti River | W49: Waste Water Treatment Works | Y49: -23.1519 | Z49: 30.0803
A50: A91 1000003139 | B50: 2014-10-29 | F50: 123.6 | O50: 7.8 | P50: 8.49 | U50: A91C | V50: Waterval S/W Final Dicharge Point to Mudzwiriti River | W50: Waste Water Treatment Works | Y50: -23.1519 | Z50: 30.0803
A51: A91 1000003139 | B51: 2014-11-25 | C51: 35.9 | D51: 70 | F51: 111.2 | G51: 0.21 | H51: 18.8 | J51: 34.3 | K51: 77.1 | O51: 7.7 | P51: 6.52 | R51: 39.64 | S51: 402 | U51: A91C | V51: Waterval S/W Final Dicharge Point to Mudzwiriti River | W51: Waste Water Treatment Works | Y51: -23.1519 | Z51: 30.0803
A52: A91 1000003139 | B52: 2015-01-21 | F52: 105.6 | O52: 7.3 | P52: 9.9 | U52: A91C | V52: Waterval S/W Final Dicharge Point to Mudzwiriti River | W52: Waste Water Treatment Works | Y52: -23.1519 | Z52: 30.0803
A53: A91 1000003139 | B53: 2015-02-18 | F53: 113.2 | O53: 7.3 | P53: 6.72 | U53: A91C | V53: Waterval S/W Final Dicharge Point to Mudzwiriti River | W53: Waste Water Treatment Works | Y53: -23.1519 | Z53: 30.0803
A54: A91 1000003139 | B54: 2015-03-16 | F54: 114.7 | O54: 7.8 | P54: 3.01 | U54: A91C | V54: Waterval S/W Final Dicharge Point to Mudzwiriti River | W54: Waste Water Treatment Works | Y54: -23.1519 | Z54: 30.0803
A55: A91 1000003139 | B55: 2015-04-15 | F55: 113 | O55: 7.6 | P55: 2.89 | U55: A91C | V55: Waterval S/W Final Dicharge Point to Mudzwiriti River | W55: Waste Water Treatment Works | Y55: -23.1519 | Z55: 30.0803
A56: A91 1000003139 | B56: 2015-05-11 | F56: 131.5 | O56: 7.8 | P56: 10.55 | U56: A91C | V56: Waterval S/W Final Dicharge Point to Mudzwiriti River | W56: Waste Water Treatment Works | Y56: -23.1519 | Z56: 30.0803
A57: A91 1000003139 | B57: 2015-06-04 | F57: 117.9 | O57: 7.5 | P57: 2.91 | U57: A91C | V57: Waterval S/W Final Dicharge Point to Mudzwiriti River | W57: Waste Water Treatment Works | Y57: -23.1519 | Z57: 30.0803
A58: A91 1000003139 | B58: 2015-07-30 | F58: 89.6 | O58: 7.3 | P58: 1.89 | U58: A91C | V58: Waterval S/W Final Dicharge Point to Mudzwiriti River | W58: Waste Water Treatment Works | Y58: -23.1519 | Z58: 30.0803
A59: A91 1000003257 | B59: 2003-02-14 | C59: 4.041 | D59: 12.375 | E59: 47.932 | F59: 9.02 | G59: 0.184 | H59: 0.15 | J59: 3.377 | K59: 3.177 | L59: 0.02 | M59: 0.054 | O59: 8.135 | P59: 0.037 | Q59: 6.47 | R59: 4.153 | S59: 16.483 | T59: 2230DC00441 | U59: A91G | V59: Chibase H20S0905 | W59: Spring/Eye | Y59: -22.80333 | Z59: 30.56722
A60: A91 1000005466 | B60: 2013-10-31 | C60: 9.18 | D60: 8.7 | F60: 13 | G60: 0.05 | J60: 5.99 | O60: 7.7 | R60: 2.29 | U60: A91H | V60: Tributary of Luvuvhu River at Mhinga upstream of the Ponds - Please Check Position | W60: Rivers | Y60: -22.77825 | Z60: 30.89155
A61: A91 1000005466 | B61: 2013-11-26 | C61: 7.5 | D61: 6.6 | F61: 11.7 | G61: 0.05 | H61: 1.3 | J61: 5.23 | K61: 6.86 | O61: 7.7 | R61: 1.85 | S61: 47.6 | U61: A91H | V61: Tributary of Luvuvhu River at Mhinga upstream of the Ponds - Please Check Position | W61: Rivers | Y61: -22.77825 | Z61: 30.89155
A62: A91 1000005466 | B62: 2013-12-11 | C62: 8.73 | D62: 7.7 | F62: 12.3 | G62: 0.14 | J62: 6.02 | K62: 7.64 | O62: 7.6 | R62: 1.91 | S62: 51.2 | U62: A91H | V62: Tributary of Luvuvhu River at Mhinga upstream of the Ponds - Please Check Position | W62: Rivers | Y62: -22.77825 | Z62: 30.89155
A63: A91 1000005466 | B63: 2014-01-23 | C63: 8.81 | D63: 8.1 | F63: 12.1 | G63: 0.14 | H63: 1.23 | J63: 5.71 | K63: 7.57 | O63: 7.8 | R63: 1.81 | S63: 45.4 | U63: A91H | V63: Tributary of Luvuvhu River at Mhinga upstream of the Ponds - Please Check Position | W63: Rivers | Y63: -22.77825 | Z63: 30.89155
A64: A91 1000005466 | B64: 2014-02-19 | C64: 7.21 | D64: 8 | F64: 10 | G64: 0.05 | H64: 1.03 | J64: 4.57 | K64: 6.38 | O64: 7.7 | R64: 2.03 | S64: 40.6 | U64: A91H | V64: Tributary of Luvuvhu River at Mhinga upstream of the Ponds - Please Check Position | W64: Rivers | Y64: -22.77825 | Z64: 30.89155
A65: A91 1000005466 | B65: 2014-03-13 | C65: 6.07 | D65: 5.5 | F65: 8.3 | G65: 0.05 | H65: 1.56 | J65: 3.63 | K65: 2.48 | O65: 7.5 | R65: 9.33 | S65: 33.8 | U65: A91H | V65: Tributary of Luvuvhu River at Mhinga upstream of the Ponds - Please Check Position | W65: Rivers | Y65: -22.77825 | Z65: 30.89155
A66: A91 1000005466 | B66: 2014-04-30 | C66: 8.35 | D66: 8.6 | F66: 11.8 | G66: 0.05 | H66: 1 | J66: 5.5 | K66: 6.88 | O66: 7.9 | R66: 2.85 | S66: 50.4 | U66: A91H | V66: Tributary of Luvuvhu River at Mhinga upstream of the Ponds - Please Check Position | W66: Rivers | Y66: -22.77825 | Z66: 30.89155
A67: A91 1000005466 | B67: 2014-05-14 | C67: 8.94 | D67: 7.4 | F67: 11.8 | G67: 0.05 | H67: 0.105 | J67: 5.83 | K67: 7.16 | O67: 7.9 | R67: 2.29 | S67: 47 | U67: A91H | V67: Tributary of Luvuvhu River at Mhinga upstream of the Ponds - Please Check Position | W67: Rivers | Y67: -22.77825 | Z67: 30.89155
A68: A91 1000005466 | B68: 2014-06-12 | C68: 9.6 | D68: 8.7 | F68: 13.2 | G68: 0.05 | H68: 0.94 | J68: 5.8 | K68: 7.16 | O68: 8 | R68: 1.3 | S68: 48.6 | U68: A91H | V68: Tributary of Luvuvhu River at Mhinga upstream of the Ponds - Please Check Position | W68: Rivers | Y68: -22.77825 | Z68: 30.89155
A69: A91 1000005466 | B69: 2014-07-09 | C69: 9.9 | D69: 8.6 | F69: 14.9 | G69: 0.05 | H69: 0.85 | J69: 5.94 | K69: 9.96 | O69: 8.3 | R69: 2.7 | S69: 56.4 | U69: A91H | V69: Tributary of Luvuvhu River at Mhinga upstream of the Ponds - Please Check Position | W69: Rivers | Y69: -22.77825 | Z69: 30.89155
A70: A91 1000005466 | B70: 2014-08-05 | C70: 9.7 | D70: 8.7 | F70: 13.7 | G70: 0.05 | H70: 0.77 | J70: 5.95 | K70: 8.37 | O70: 8 | R70: 2.46 | S70: 60 | U70: A91H | V70: Tributary of Luvuvhu River at Mhinga upstream of the Ponds - Please Check Position | W70: Rivers | Y70: -22.77825 | Z70: 30.89155
A71: A91 1000005466 | B71: 2014-09-02 | C71: 10.73 | D71: 8.8 | F71: 14 | G71: 0.05 | H71: 0.91 | J71: 6.55 | K71: 8.08 | O71: 8.1 | R71: 2.44 | S71: 62 | U71: A91H | V71: Tributary of Luvuvhu River at Mhinga upstream of the Ponds - Please Check Position | W71: Rivers | Y71: -22.77825 | Z71: 30.89155
A72: A91 1000005466 | B72: 2014-09-30 | C72: 10.86 | D72: 9.4 | F72: 14.7 | G72: 0.14 | H72: 0.89 | J72: 6.91 | K72: 8.37 | O72: 7.8 | R72: 1.47 | S72: 60.4 | U72: A91H | V72: Tributary of Luvuvhu River at Mhinga upstream of the Ponds - Please Check Position | W72: Rivers | Y72: -22.77825 | Z72: 30.89155
A73: A91 1000005466 | B73: 2014-10-29 | C73: 10.83 | D73: 9.4 | F73: 15.2 | G73: 0.05 | H73: 1 | J73: 7.15 | K73: 9.17 | O73: 8 | P73: 0.05 | R73: 4.6 | S73: 64.4 | U73: A91H | V73: Tributary of Luvuvhu River at Mhinga upstream of the Ponds - Please Check Position | W73: Rivers | Y73: -22.77825 | Z73: 30.89155
A74: A91 1000005466 | B74: 2014-11-14 | C74: 8.98 | D74: 9.5 | F74: 14.3 | G74: 0.82 | H74: 0.92 | J74: 6.81 | K74: 9.02 | O74: 7.8 | P74: 0.05 | R74: 2.78 | S74: 60.8 | U74: A91H | V74: Tributary of Luvuvhu River at Mhinga upstream of the Ponds - Please Check Position | W74: Rivers | Y74: -22.77825 | Z74: 30.89155
A75: A91 1000005466 | B75: 2015-03-17 | C75: 7.91 | D75: 8.4 | F75: 13.7 | G75: 0.05 | H75: 0.87 | J75: 6.11 | K75: 7.84 | O75: 7.9 | P75: 0.05 | R75: 2.2 | S75: 56 | U75: A91H | V75: Tributary of Luvuvhu River at Mhinga upstream of the Ponds - Please Check Position | W75: Rivers | Y75: -22.77825 | Z75: 30.89155
A76: A91 1000005468 | B76: 2004-09-28 | C76: 11.696 | D76: 9.783 | E76: 157.264 | F76: 20.6 | G76: 0.265 | H76: 0.351 | I76: 0.519 | J76: 11.051 | K76: 9.896 | L76: 0.054 | M76: 0.055 | N76: 0.015 | O76: 7.591 | P76: 0.012 | Q76: 12.683 | R76: 3 | S76: 90.934 | U76: A91C | V76: Styldrift 46 LT - Duplicate of Point 188152 | W76: Rivers | Y76: -23.15758 | Z76: 30.07111
A77: A91 1000005468 | B77: 2005-03-17 | C77: 11.225 | D77: 10.554 | E77: 165.105 | F77: 21.7 | G77: 0.151 | H77: 0.611 | J77: 12.71 | K77: 9.495 | L77: 0.054 | M77: 2.983 | O77: 7.939 | P77: 0.048 | Q77: 12.454 | R77: 4.388 | S77: 84.108 | U77: A91C | V77: Styldrift 46 LT - Duplicate of Point 188152 | W77: Rivers | Y77: -23.15758 | Z77: 30.07111
A78: A91 1000005468 | B78: 2005-04-19 | C78: 11.066 | D78: 11.645 | E78: 157.302 | F78: 22.5 | G78: 0.13 | H78: 0.863 | J78: 12.731 | K78: 9.45 | L78: 0.02 | M78: 0.12 | O78: 7.884 | P78: 0.052 | Q78: 13.385 | R78: 2 | S78: 89.153 | U78: A91C | V78: Styldrift 46 LT - Duplicate of Point 188152 | W78: Rivers | Y78: -23.15758 | Z78: 30.07111
A79: A91 1000005468 | B79: 2005-06-20 | C79: 10.268 | D79: 10.456 | E79: 146.457 | F79: 20.7 | G79: 0.139 | H79: 0.605 | J79: 11.954 | K79: 9.124 | L79: 0.066 | M79: 0.04 | O79: 7.774 | P79: 0.019 | Q79: 11.809 | R79: 2 | S79: 83.322 | U79: A91C | V79: Styldrift 46 LT - Duplicate of Point 188152 | W79: Rivers | Y79: -23.15758 | Z79: 30.07111
A80: A91 1000005468 | B80: 2005-07-13 | C80: 10.66 | D80: 11.776 | E80: 145.575 | F80: 19.8 | G80: 0.105 | H80: 0.83 | J80: 10.97 | K80: 9.269 | L80: 0.073 | M80: 0.04 | O80: 7.684 | P80: 0.034 | Q80: 12.565 | R80: 2 | S80: 81.681 | U80: A91C | V80: Styldrift 46 LT - Duplicate of Point 188152 | W80: Rivers | Y80: -23.15758 | Z80: 30.07111
A81: A91 1000005468 | B81: 2005-08-26 | C81: 11.054 | D81: 7.415 | E81: 151.62 | F81: 21.8 | G81: 0.12 | H81: 0.845 | J81: 12.234 | K81: 9.213 | L81: 0.02 | M81: 0.04 | O81: 7.742 | P81: 0.006 | Q81: 11.487 | R81: 2 | S81: 89.003 | U81: A91C | V81: Styldrift 46 LT - Duplicate of Point 188152 | W81: Rivers | Y81: -23.15758 | Z81: 30.07111
A82: A91 1000005468 | B82: 2005-11-09 | C82: 9.886 | D82: 19.125 | E82: 132.291 | F82: 23 | G82: 0.108 | H82: 3.526 | J82: 8.923 | K82: 12.079 | L82: 0.062 | M82: 0.099 | O82: 7.959 | P82: 0.028 | Q82: 12.419 | R82: 23.932 | S82: 44.378 | U82: A91C | V82: Styldrift 46 LT - Duplicate of Point 188152 | W82: Rivers | Y82: -23.15758 | Z82: 30.07111
A83: A91 1000005468 | B83: 2009-05-12 | F83: 112 | K83: 14 | O83: 7.4 | P83: 0.2 | R83: 5 | U83: A91C | V83: Styldrift 46 LT - Duplicate of Point 188152 | W83: Rivers | Y83: -23.15758 | Z83: 30.07111
A84: A91 1000005469 | B84: 2004-09-28 | C84: 20.245 | D84: 23.837 | E84: 284.79 | F84: 40.2 | G84: 0.1 | H84: 3.747 | I84: 0.874 | J84: 20.767 | K84: 26.388 | L84: 0.046 | M84: 1.194 | N84: 1.163 | O84: 8.118 | P84: 0.97 | Q84: 19.651 | R84: 6.568 | S84: 143.382 | U84: A91C | V84: Mudzwiriti River downstream of Waterval S/W - Check Position (NMMP) | W84: Rivers | Y84: -23.1494 | Z84: 30.08302
A85: A91 1000005469 | B85: 2005-03-17 | C85: 22.875 | D85: 27.767 | E85: 310.535 | F85: 45.7 | G85: 0.15 | H85: 5.5 | J85: 23.716 | K85: 28.097 | L85: 0.064 | M85: 0.189 | O85: 8.096 | P85: 1.594 | Q85: 21.505 | R85: 9.219 | S85: 153.704 | U85: A91C | V85: Mudzwiriti River downstream of Waterval S/W - Check Position (NMMP) | W85: Rivers | Y85: -23.1494 | Z85: 30.08302
A86: A91 1000005469 | B86: 2005-04-19 | C86: 23.377 | D86: 33.85 | E86: 375.428 | F86: 51.6 | G86: 0.127 | H86: 6.871 | J86: 26.874 | K86: 32.878 | L86: 0.111 | M86: 2.537 | O86: 7.857 | P86: 2.583 | Q86: 24.905 | R86: 14.803 | S86: 178.268 | U86: A91C | V86: Mudzwiriti River downstream of Waterval S/W - Check Position (NMMP) | W86: Rivers | Y86: -23.1494 | Z86: 30.08302
A87: A91 1000005469 | B87: 2005-06-20 | C87: 10.4 | D87: 40 | F87: 55 | G87: 0.2 | H87: 10.1 | J87: 25.4 | K87: 38.6 | O87: 7.8 | P87: 3.3 | R87: 21 | S87: 180 | U87: A91C | V87: Mudzwiriti River downstream of Waterval S/W - Check Position (NMMP) | W87: Rivers | Y87: -23.1494 | Z87: 30.08302
A88: A91 1000005469 | B88: 2005-06-20 | C88: 27.604 | D88: 44.662 | E88: 432.998 | F88: 58.3 | G88: 0.159 | H88: 9.533 | J88: 30.256 | K88: 41.576 | L88: 0.283 | M88: 6.721 | O88: 7.821 | P88: 3.452 | Q88: 25.357 | R88: 24.42 | S88: 175.588 | U88: A91C | V88: Mudzwiriti River downstream of Waterval S/W - Check Position (NMMP) | W88: Rivers | Y88: -23.1494 | Z88: 30.08302
A89: A91 1000005469 | B89: 2005-07-12 | C89: 24.28 | D89: 34.003 | E89: 382.194 | F89: 50.6 | G89: 0.174 | H89: 7.928 | J89: 25.619 | K89: 36.071 | L89: 0.1 | M89: 3.194 | O89: 8.042 | P89: 2.619 | Q89: 23.419 | R89: 22.566 | S89: 171.625 | U89: A91C | V89: Mudzwiriti River downstream of Waterval S/W - Check Position (NMMP) | W89: Rivers | Y89: -23.1494 | Z89: 30.08302
A90: A91 1000005469 | B90: 2005-08-25 | C90: 27.997 | D90: 39.64 | E90: 410.409 | F90: 57.8 | G90: 0.146 | H90: 8.634 | J90: 29.181 | K90: 39.335 | L90: 0.2 | M90: 7.565 | O90: 8.134 | P90: 1.741 | Q90: 23.626 | R90: 14.768 | S90: 173.568 | U90: A91C | V90: Mudzwiriti River downstream of Waterval S/W - Check Position (NMMP) | W90: Rivers | Y90: -23.1494 | Z90: 30.08302
A91: A91 1000005469 | B91: 2005-10-11 | C91: 23.398 | D91: 50.449 | E91: 414.482 | F91: 59.7 | G91: 0.163 | H91: 11.116 | J91: 27.11 | K91: 44.345 | L91: 0.459 | M91: 8.698 | O91: 7.937 | P91: 1.367 | Q91: 25.64 | R91: 29.346 | S91: 151.952 | U91: A91C | V91: Mudzwiriti River downstream of Waterval S/W - Check Position (NMMP) | W91: Rivers | Y91: -23.1494 | Z91: 30.08302
A92: A91 1000005469 | B92: 2005-11-09 | C92: 26.858 | D92: 40.076 | E92: 360.959 | F92: 55.1 | G92: 0.133 | H92: 9.675 | J92: 23.847 | K92: 35.802 | L92: 0.21 | M92: 3.937 | O92: 8.168 | P92: 4.464 | Q92: 21.258 | R92: 43.973 | S92: 122.377 | U92: A91C | V92: Mudzwiriti River downstream of Waterval S/W - Check Position (NMMP) | W92: Rivers | Y92: -23.1494 | Z92: 30.08302
A93: A91 1000005469 | B93: 2009-05-12 | F93: 17.9 | K93: 70 | O93: 8 | P93: 0.28 | R93: 36 | U93: A91C | V93: Mudzwiriti River downstream of Waterval S/W - Check Position (NMMP) | W93: Rivers | Y93: -23.1494 | Z93: 30.08302
A94: A91 1000005469 | B94: 2009-09-08 | D94: 51 | F94: 61.8 | M94: 1.1 | O94: 8.8 | P94: 3.8 | S94: 202 | U94: A91C | V94: Mudzwiriti River downstream of Waterval S/W - Check Position (NMMP) | W94: Rivers | Y94: -23.1494 | Z94: 30.08302
A95: A91 1000005469 | B95: 2009-12-09 | D95: 19 | P95: 0.52 | S95: 121 | U95: A91C | V95: Mudzwiriti River downstream of Waterval S/W - Check Position (NMMP) | W95: Rivers | Y95: -23.1494 | Z95: 30.08302
A96: A91 1000005469 | B96: 2010-10-21 | F96: 52.7 | O96: 7.7 | U96: A91C | V96: Mudzwiriti River downstream of Waterval S/W - Check Position (NMMP) | W96: Rivers | Y96: -23.1494 | Z96: 30.08302
A97: A91 1000005469 | B97: 2010-11-03 | R97: 48 | U97: A91C | V97: Mudzwiriti River downstream of Waterval S/W - Check Position (NMMP) | W97: Rivers | Y97: -23.1494 | Z97: 30.08302
A98: A91 1000005469 | B98: 2010-12-08 | D98: 18 | F98: 23 | K98: 12 | O98: 8.3 | R98: 35 | U98: A91C | V98: Mudzwiriti River downstream of Waterval S/W - Check Position (NMMP) | W98: Rivers | Y98: -23.1494 | Z98: 30.08302
A99: A91 1000005469 | B99: 2011-07-21 | D99: 34 | F99: 33.7 | M99: 4.1 | P99: 0.7 | S99: 108 | U99: A91C | V99: Mudzwiriti River downstream of Waterval S/W - Check Position (NMMP) | W99: Rivers | Y99: -23.1494 | Z99: 30.08302
A100: A91 1000005469 | B100: 2011-09-01 | D100: 27 | F100: 36.8 | M100: 4.8 | P100: 1.4 | S100: 128 | U100: A91C | V100: Mudzwiriti River downstream of Waterval S/W - Check Position (NMMP) | W100: Rivers | Y100: -23.1494 | Z100: 30.08302
A101: A91 1000005469 | B101: 2011-10-31 | F101: 54.3 | S101: 192 | U101: A91C | V101: Mudzwiriti River downstream of Waterval S/W - Check Position (NMMP) | W101: Rivers | Y101: -23.1494 | Z101: 30.08302
A102: A91 1000005469 | B102: 2013-10-29 | C102: 21.89 | D102: 23 | F102: 43.8 | G102: 0.05 | H102: 5.15 | J102: 19.9 | K102: 24.75 | O102: 7.6 | R102: 7.06 | U102: A91C | V102: Mudzwiriti River downstream of Waterval S/W - Check Position (NMMP) | W102: Rivers | Y102: -23.1494 | Z102: 30.08302
A103: A91 1000005469 | B103: 2013-12-11 | C103: 24.07 | D103: 19.4 | F103: 37.3 | G103: 0.14 | J103: 19.89 | K103: 22.39 | O103: 7.4 | R103: 8.02 | S103: 153 | U103: A91C | V103: Mudzwiriti River downstream of Waterval S/W - Check Position (NMMP) | W103: Rivers | Y103: -23.1494 | Z103: 30.08302
A104: A91 1000005469 | B104: 2014-01-23 | C104: 25.01 | D104: 18.4 | F104: 39.1 | G104: 0.22 | H104: 2.83 | J104: 21.47 | K104: 24.49 | O104: 7.2 | R104: 13.46 | S104: 158 | U104: A91C | V104: Mudzwiriti River downstream of Waterval S/W - Check Position (NMMP) | W104: Rivers | Y104: -23.1494 | Z104: 30.08302
A105: A91 1000005469 | B105: 2014-02-27 | C105: 17.14 | D105: 14.8 | F105: 26.8 | G105: 0.05 | H105: 1.42 | J105: 15.41 | K105: 15.58 | O105: 7.6 | R105: 4.64 | S105: 115 | U105: A91C | V105: Mudzwiriti River downstream of Waterval S/W - Check Position (NMMP) | W105: Rivers | Y105: -23.1494 | Z105: 30.08302
A106: A91 1000005469 | B106: 2014-03-11 | C106: 14.15 | D106: 12.7 | F106: 21.1 | G106: 0.05 | H106: 1.99 | J106: 10.67 | K106: 11.28 | O106: 7.6 | R106: 4.3 | S106: 90.8 | U106: A91C | V106: Mudzwiriti River downstream of Waterval S/W - Check Position (NMMP) | W106: Rivers | Y106: -23.1494 | Z106: 30.08302
A107: A91 1000005469 | B107: 2014-05-19 | C107: 17.32 | D107: 19.8 | F107: 33 | G107: 0.05 | H107: 2.67 | J107: 18.05 | K107: 19.96 | O107: 7.4 | R107: 6.28 | S107: 131 | U107: A91C | V107: Mudzwiriti River downstream of Waterval S/W - Check Position (NMMP) | W107: Rivers | Y107: -23.1494 | Z107: 30.08302
A108: A91 1000005469 | B108: 2014-06-12 | C108: 17.42 | D108: 20.1 | F108: 31.8 | G108: 0.05 | H108: 2.53 | J108: 16.7 | K108: 18.77 | O108: 7.4 | R108: 8.27 | S108: 118 | U108: A91C | V108: Mudzwiriti River downstream of Waterval S/W - Check Position (NMMP) | W108: Rivers | Y108: -23.1494 | Z108: 30.08302
A109: A91 1000005469 | B109: 2014-07-14 | C109: 18.09 | D109: 22.2 | F109: 32.2 | G109: 0.11 | H109: 2.55 | J109: 17.27 | K109: 20.42 | O109: 7.4 | R109: 9.65 | S109: 120.8 | U109: A91C | V109: Mudzwiriti River downstream of Waterval S/W - Check Position (NMMP) | W109: Rivers | Y109: -23.1494 | Z109: 30.08302
A110: A91 1000005469 | B110: 2014-08-07 | C110: 17.86 | D110: 21.6 | F110: 31.8 | G110: 0.05 | H110: 2.77 | J110: 17.45 | K110: 21.47 | O110: 7.5 | R110: 7.53 | S110: 124.4 | U110: A91C | V110: Mudzwiriti River downstream of Waterval S/W - Check Position (NMMP) | W110: Rivers | Y110: -23.1494 | Z110: 30.08302
A111: A91 1000005469 | B111: 2014-09-02 | C111: 21.09 | D111: 26 | F111: 38.2 | G111: 0.05 | H111: 4.44 | J111: 19.94 | K111: 25.45 | O111: 7.4 | R111: 9.36 | S111: 138.4 | U111: A91C | V111: Mudzwiriti River downstream of Waterval S/W - Check Position (NMMP) | W111: Rivers | Y111: -23.1494 | Z111: 30.08302
A112: A91 1000005469 | B112: 2014-10-06 | C112: 24.33 | D112: 27.3 | F112: 43.1 | G112: 0.16 | H112: 5.1 | J112: 22.62 | K112: 30.2 | O112: 7.6 | R112: 12.49 | S112: 174 | U112: A91C | V112: Mudzwiriti River downstream of Waterval S/W - Check Position (NMMP) | W112: Rivers | Y112: -23.1494 | Z112: 30.08302
A113: A91 1000005469 | B113: 2014-10-29 | C113: 22.53 | D113: 23.8 | F113: 40.6 | G113: 0.14 | H113: 3.62 | J113: 20.94 | K113: 25.97 | O113: 7.4 | P113: 0.9 | R113: 10.28 | S113: 169 | U113: A91C | V113: Mudzwiriti River downstream of Waterval S/W - Check Position (NMMP) | W113: Rivers | Y113: -23.1494 | Z113: 30.08302
A114: A91 1000005469 | B114: 2014-11-25 | F114: 43.2 | O114: 7.4 | P114: 0.85 | U114: A91C | V114: Mudzwiriti River downstream of Waterval S/W - Check Position (NMMP) | W114: Rivers | Y114: -23.1494 | Z114: 30.08302
A115: A91 1000005469 | B115: 2015-01-21 | C115: 19.89 | D115: 19.7 | F115: 38.2 | G115: 0.05 | H115: 2.92 | J115: 20.07 | K115: 20.9 | O115: 7.4 | P115: 0.95 | R115: 5.68 | S115: 160 | U115: A91C | V115: Mudzwiriti River downstream of Waterval S/W - Check Position (NMMP) | W115: Rivers | Y115: -23.1494 | Z115: 30.08302
A116: A91 1000005469 | B116: 2015-03-16 | C116: 25.49 | D116: 39.5 | F116: 60.6 | G116: 0.12 | H116: 5.92 | J116: 24.97 | K116: 36.95 | O116: 7.6 | P116: 0.6 | R116: 21.73 | S116: 225 | U116: A91C | V116: Mudzwiriti River downstream of Waterval S/W - Check Position (NMMP) | W116: Rivers | Y116: -23.1494 | Z116: 30.08302
A117: A91 1000005469 | B117: 2015-04-15 | C117: 20.54 | D117: 29.5 | F117: 42.3 | G117: 0.05 | H117: 3.42 | J117: 20.8 | K117: 25.91 | O117: 7.3 | P117: 0.25 | R117: 14.99 | S117: 149.2 | U117: A91C | V117: Mudzwiriti River downstream of Waterval S/W - Check Position (NMMP) | W117: Rivers | Y117: -23.1494 | Z117: 30.08302
A118: A91 1000005469 | B118: 2015-05-11 | C118: 21.8 | D118: 31.4 | F118: 43.7 | G118: 0.12 | H118: 6.02 | J118: 22.38 | K118: 29.52 | O118: 7.5 | P118: 1.68 | R118: 9.08 | S118: 122.9 | U118: A91C | V118: Mudzwiriti River downstream of Waterval S/W - Check Position (NMMP) | W118: Rivers | Y118: -23.1494 | Z118: 30.08302
A119: A91 1000005469 | B119: 2015-06-04 | C119: 27.36 | D119: 42.8 | F119: 56.5 | G119: 0.14 | H119: 5.45 | J119: 27.71 | K119: 38.45 | O119: 7.4 | P119: 0.54 | R119: 23.87 | S119: 204.2 | U119: A91C | V119: Mudzwiriti River downstream of Waterval S/W - Check Position (NMMP) | W119: Rivers | Y119: -23.1494 | Z119: 30.08302
A120: A91 1000005469 | B120: 2015-07-30 | C120: 27.38 | D120: 40.9 | F120: 50.4 | G120: 0.05 | H120: 5.32 | J120: 26.51 | K120: 38.55 | O120: 7.6 | P120: 0.35 | R120: 17.33 | S120: 180 | U120: A91C | V120: Mudzwiriti River downstream of Waterval S/W - Check Position (NMMP) | W120: Rivers | Y120: -23.1494 | Z120: 30.08302
A121: A91 1000005471 | B121: 2004-09-28 | C121: 38.185 | D121: 55.305 | E121: 503.786 | F121: 68.6 | G121: 0.228 | H121: 4.293 | I121: 1.081 | J121: 33.373 | K121: 53.788 | L121: 0.055 | M121: 0.055 | N121: 0.345 | O121: 8.177 | P121: 0.182 | Q121: 13.753 | R121: 3 | S121: 258.142 | U121: A91B | V121: Tributary of Muhohode downstream of Elim S/W | W121: Rivers | Y121: -23.14625 | Z121: 30.05822
A122: A91 1000005471 | B122: 2005-03-17 | C122: 41.978 | D122: 60.703 | E122: 568.98 | F122: 72.4 | G122: 0.317 | H122: 4.631 | J122: 36.076 | K122: 52.967 | L122: 0.02 | M122: 0.04 | O122: 7.968 | P122: 0.071 | Q122: 13.632 | R122: 21.414 | S122: 287.449 | U122: A91B | V122: Tributary of Muhohode downstream of Elim S/W | W122: Rivers | Y122: -23.14625 | Z122: 30.05822
A123: A91 1000005471 | B123: 2005-04-19 | C123: 47.169 | D123: 79.096 | E123: 661.604 | F123: 87.4 | G123: 0.252 | H123: 4.542 | J123: 50.389 | K123: 54.783 | L123: 0.166 | M123: 0.04 | O123: 7.804 | P123: 0.074 | Q123: 15.639 | R123: 2 | S123: 346.732 | U123: A91B | V123: Tributary of Muhohode downstream of Elim S/W | W123: Rivers | Y123: -23.14625 | Z123: 30.05822
A124: A91 1000005471 | B124: 2005-06-20 | C124: 38.016 | D124: 68.146 | E124: 497.952 | F124: 69.3 | G124: 0.199 | H124: 6.154 | J124: 31.384 | K124: 55.531 | L124: 0.076 | M124: 0.04 | O124: 7.91 | P124: 0.095 | Q124: 13.222 | R124: 58.644 | S124: 196.277 | U124: A91B | V124: Tributary of Muhohode downstream of Elim S/W | W124: Rivers | Y124: -23.14625 | Z124: 30.05822
A125: A91 1000005471 | B125: 2005-07-13 | C125: 33.574 | D125: 70.028 | E125: 470.833 | F125: 64.5 | G125: 0.172 | H125: 5.89 | J125: 28.02 | K125: 52.348 | L125: 0.079 | M125: 0.136 | O125: 8.168 | P125: 0.285 | Q125: 13.472 | R125: 33.899 | S125: 201.208 | U125: A91B | V125: Tributary of Muhohode downstream of Elim S/W | W125: Rivers | Y125: -23.14625 | Z125: 30.05822
A126: A91 1000005471 | B126: 2005-08-26 | C126: 35.245 | D126: 50.923 | E126: 466.017 | F126: 65.8 | G126: 0.181 | H126: 5.152 | J126: 27.975 | K126: 53.223 | L126: 0.066 | M126: 0.099 | O126: 8.161 | P126: 0.066 | Q126: 12.508 | R126: 21.045 | S126: 222.716 | U126: A91B | V126: Tributary of Muhohode downstream of Elim S/W | W126: Rivers | Y126: -23.14625 | Z126: 30.05822
A127: A91 1000005471 | B127: 2005-10-11 | C127: 38.539 | D127: 57.426 | E127: 531.678 | F127: 70.9 | G127: 0.196 | H127: 7.375 | J127: 32.118 | K127: 55.368 | L127: 0.02 | M127: 0.119 | O127: 7.86 | P127: 0.134 | Q127: 15.387 | R127: 9.666 | S127: 270.679 | U127: A91B | V127: Tributary of Muhohode downstream of Elim S/W | W127: Rivers | Y127: -23.14625 | Z127: 30.05822
A128: A91 1000005471 | B128: 2005-11-09 | C128: 38.401 | D128: 59.977 | E128: 549.748 | F128: 73.8 | G128: 0.177 | H128: 8.64 | J128: 37.062 | K128: 53.244 | L128: 0.055 | M128: 0.089 | O128: 8.066 | P128: 0.154 | Q128: 14.926 | R128: 28.884 | S128: 264.445 | U128: A91B | V128: Tributary of Muhohode downstream of Elim S/W | W128: Rivers | Y128: -23.14625 | Z128: 30.05822
A129: A91 1000005471 | B129: 2009-01-21 | N129: 0.2 | U129: A91B | V129: Tributary of Muhohode downstream of Elim S/W | W129: Rivers | Y129: -23.14625 | Z129: 30.05822
A130: A91 1000007325 | B130: 2003-12-12 | C130: 1.776 | D130: 12.867 | E130: 50.122 | F130: 7.33 | G130: 0.1 | H130: 0.483 | J130: 2.771 | K130: 6.907 | L130: 0.015 | M130: 0.439 | O130: 6.952 | P130: 0.036 | Q130: 5.19 | R130: 13.237 | S130: 8.126 | T130: 2230DB00098 | U130: A91H | V130: Thondoni H20S1126 | W130: Spring/Eye | Y130: -22.70792 | Z130: 30.76401
A131: A91 1000009909 | B131: 2004-09-28 | C131: 12.683 | D131: 34.008 | E131: 237.857 | F131: 38.4 | G131: 0.1 | H131: 7.403 | I131: 22.27 | J131: 7.928 | K131: 38.351 | L131: 0.063 | M131: 17.393 | N131: 0.097 | O131: 7.202 | P131: 0.097 | Q131: 13.914 | R131: 6.776 | S131: 43.661 | U131: A91G | V131: Tshinane River downstream of Thsitereke Discharge Point | W131: Rivers | Y131: -22.89817 | Z131: 30.50117
A132: A91 1000009909 | B132: 2004-11-10 | C132: 17.732 | D132: 32.34 | E132: 395.524 | F132: 55.1 | G132: 0.1 | H132: 9.22 | J132: 9.73 | K132: 42.099 | L132: 19.89 | M132: 0.055 | O132: 7.471 | P132: 2.475 | Q132: 8.256 | R132: 9.562 | S132: 197.902 | U132: A91G | V132: Tshinane River downstream of Thsitereke Discharge Point | W132: Rivers | Y132: -22.89817 | Z132: 30.50117
A133: A91 1000009909 | B133: 2005-03-16 | C133: 8.271 | D133: 28.97 | E133: 190.369 | F133: 31.9 | G133: 0.05 | H133: 5.622 | J133: 5.535 | K133: 30.359 | L133: 4.836 | M133: 2.342 | O133: 6.785 | P133: 0.894 | Q133: 5.983 | R133: 6.46 | S133: 70.342 | U133: A91G | V133: Tshinane River downstream of Thsitereke Discharge Point | W133: Rivers | Y133: -22.89817 | Z133: 30.50117
A134: A91 1000009909 | B134: 2005-04-19 | C134: 7.345 | D134: 33.645 | E134: 242.052 | F134: 37.4 | G134: 0.05 | H134: 5.679 | J134: 4.991 | K134: 33.698 | L134: 10.386 | M134: 0.734 | O134: 7.586 | P134: 1.16 | Q134: 5.945 | R134: 7.03 | S134: 106.157 | U134: A91G | V134: Tshinane River downstream of Thsitereke Discharge Point | W134: Rivers | Y134: -22.89817 | Z134: 30.50117
A135: A91 1000009909 | B135: 2005-06-20 | C135: 5.1 | D135: 22 | F135: 39 | G135: 0.2 | H135: 7.6 | J135: 5 | K135: 35.6 | O135: 7.1 | P135: 1.2 | R135: 5 | S135: 118 | U135: A91G | V135: Tshinane River downstream of Thsitereke Discharge Point | W135: Rivers | Y135: -22.89817 | Z135: 30.50117
A136: A91 1000009909 | B136: 2005-06-20 | C136: 7.88 | D136: 35.086 | E136: 278.435 | F136: 41.6 | G136: 0.135 | H136: 7.136 | J136: 4.671 | K136: 37.51 | L136: 15.386 | M136: 1.375 | O136: 8.194 | P136: 1.513 | Q136: 4.867 | R136: 10.998 | S136: 118.497 | U136: A91G | V136: Tshinane River downstream of Thsitereke Discharge Point | W136: Rivers | Y136: -22.89817 | Z136: 30.50117
A137: A91 1000009909 | B137: 2005-07-12 | C137: 8.767 | D137: 34.847 | E137: 294.302 | F137: 41.7 | G137: 0.05 | H137: 7.239 | J137: 4.444 | K137: 37.155 | L137: 18.76 | M137: 1.477 | O137: 7.985 | P137: 1.765 | Q137: 4.653 | R137: 9.042 | S137: 128.478 | U137: A91G | V137: Tshinane River downstream of Thsitereke Discharge Point | W137: Rivers | Y137: -22.89817 | Z137: 30.50117
A138: A91 1000009909 | B138: 2005-08-25 | C138: 8.046 | D138: 33.769 | E138: 313.852 | F138: 47.4 | G138: 0.05 | H138: 9.053 | J138: 4.651 | K138: 40.399 | L138: 17.677 | M138: 0.331 | O138: 8.238 | P138: 2.454 | Q138: 4.849 | R138: 11.739 | S138: 143.03 | U138: A91G | V138: Tshinane River downstream of Thsitereke Discharge Point | W138: Rivers | Y138: -22.89817 | Z138: 30.50117
A139: A91 1000009909 | B139: 2005-08-26 | C139: 7.2 | D139: 9 | F139: 11 | G139: 0.05 | H139: 0.9 | J139: 4.6 | K139: 8.6 | O139: 6.9 | P139: 0.05 | R139: 5 | S139: 49 | U139: A91G | V139: Tshinane River downstream of Thsitereke Discharge Point | W139: Rivers | Y139: -22.89817 | Z139: 30.50117
A140: A91 1000009909 | B140: 2005-10-11 | C140: 8.148 | D140: 33.433 | E140: 298.076 | F140: 46.2 | G140: 0.05 | H140: 9.905 | J140: 3.756 | K140: 36.505 | L140: 19.187 | M140: 0.04 | O140: 7.718 | P140: 2.879 | Q140: 5.243 | R140: 17.427 | S140: 127.239 | U140: A91G | V140: Tshinane River downstream of Thsitereke Discharge Point | W140: Rivers | Y140: -22.89817 | Z140: 30.50117
A141: A91 1000190042 | B141: 2007-05-24 | C141: 58.103 | D141: 76.267 | E141: 661.256 | F141: 86.6 | G141: 0.311 | H141: 1.051 | J141: 49.58 | K141: 44.365 | L141: 0.096 | M141: 0.107 | O141: 8.079 | P141: 0.015 | Q141: 25.743 | R141: 13.642 | S141: 342.253 | T141: 2230DC00359 | U141: A91F | V141: Mpapuli ptn. Mutoti - H20-0163 | W141: unknown | Y141: -22.96191 | Z141: 30.58911
A142: A91 1000190044 | B142: 2007-05-28 | C142: 37.37 | D142: 47.778 | E142: 369.674 | F142: 56.2 | G142: 0.201 | H142: 2.207 | J142: 28.093 | K142: 23.606 | L142: 0.07 | M142: 16.609 | O142: 7.963 | P142: 0.012 | Q142: 36.359 | R142: 12.125 | S142: 118.632 | T142: 2330AB00268 | U142: A91E | V142: Mpapuli ptn. Manamani - H20-0204 | W142: unknown | Y142: -23.03938 | Z142: 30.43195
A143: A91 1000190046 | B143: 2007-05-27 | C143: 12.697 | D143: 8.764 | E143: 102.964 | F143: 17 | G143: 0.154 | H143: 0.625 | J143: 5.545 | K143: 5.912 | L143: 0.046 | M143: 0.567 | O143: 7.862 | P143: 0.02 | Q143: 17.243 | R143: 2 | S143: 53.013 | T143: 2330AB00277 | U143: A91E | V143: Reubander ptn. Tsianda - H20-0210 | W143: unknown | Y143: -23.04786 | Z143: 30.34036
A144: A91 1000190050 | B144: 2007-05-23 | C144: 10.416 | D144: 6.509 | E144: 101.26 | F144: 16.2 | G144: 0.05 | H144: 0.615 | J144: 7.56 | K144: 5.338 | L144: 0.02 | M144: 0.391 | O144: 8.037 | P144: 0.012 | Q144: 18.874 | R144: 2 | S144: 54.934 | T144: 2230CD00135 | U144: A91E | V144: Limondo ptn. Makambe - H20-0617 | W144: unknown | Y144: -22.99967 | Z144: 30.36645
A145: A91 1000190064 | B145: 2007-06-28 | C145: 16.324 | D145: 11.919 | E145: 201.012 | F145: 29.5 | G145: 0.193 | H145: 2.343 | J145: 14.986 | K145: 11.184 | L145: 0.074 | M145: 2.596 | O145: 7.93 | P145: 0.025 | Q145: 27.439 | R145: 4.643 | S145: 104.782 | T145: 2330AA00333 | U145: A91C | V145: Driefontein ptn. Mashau-Tondoni - H17-0069 | W145: unknown | Y145: -23.14422 | Z145: 30.21147
A146: A91 1000190068 | B146: 2007-06-21 | C146: 11.628 | D146: 11.934 | E146: 156.94 | F146: 21.2 | G146: 0.189 | H146: 1.921 | J146: 10.324 | K146: 12.704 | L146: 0.092 | M146: 2.15 | O146: 7.978 | P146: 0.043 | Q146: 25.612 | R146: 2 | S146: 79.124 | T146: 2330AA00383 | U146: A91C | V146: Klipfontein ptn. Ndhekeni - H17-0140 | W146: unknown | Y146: -23.1213 | Z146: 30.21561
A147: A91 1000190100 | B147: 2007-06-25 | C147: 21.751 | D147: 16.345 | E147: 188.008 | F147: 24.5 | G147: 0.31 | H147: 1.257 | J147: 8.756 | K147: 13.956 | L147: 0.081 | M147: 3.085 | O147: 8.084 | P147: 0.038 | Q147: 28.203 | R147: 2 | S147: 90.018 | T147: 2330AA00226 | U147: A91C | V147: Klipfontein ptn. Valdezia - H17-0695 | W147: unknown | Y147: -23.10852 | Z147: 30.17683
A148: A91 1000190162 | B148: 2007-06-20 | C148: 18.189 | D148: 13.687 | E148: 223.738 | F148: 27.4 | G148: 0.322 | H148: 0.721 | J148: 13.932 | K148: 15.992 | L148: 0.098 | M148: 2.755 | O148: 8.175 | P148: 0.013 | Q148: 23.589 | R148: 2 | S148: 120.182 | T148: 2330AA00233 | U148: A91C | V148: Klipfontein ptn. Maboko - H17-0218 | W148: unknown | Y148: -23.12011 | Z148: 30.18847
A149: A91 1000190168 | B149: 2007-06-16 | C149: 11.948 | D149: 11.958 | E149: 157.843 | F149: 21.6 | G149: 0.196 | H149: 2.085 | J149: 10.373 | K149: 12.519 | L149: 0.105 | M149: 2.254 | O149: 8.045 | P149: 0.043 | Q149: 26.248 | R149: 2 | S149: 79.162 | T149: 2330AB00356 | U149: A91E | V149: Lomondo ptn. Lukau - H20-0619 | W149: unknown | Y149: -23.00547 | Z149: 30.32883
A150: A91 101078 | B150: 1992-04-13 | C150: 3.5 | D150: 1.5 | E150: 42 | F150: 5.8 | G150: 0.28 | H150: 0.45 | J150: 2.6 | K150: 2 | L150: 0.02 | M150: 0.02 | O150: 7.96 | P150: 0.013 | Q150: 5.41 | R150: 2 | S150: 23.5 | U150: A91D | V150: Lisbon (dup name 6723) | W150: unknown | Y150: -23.00833 | Z150: 30.21167
A151: A91 101379 | B151: 1994-11-08 | C151: 29.2 | D151: 24.5 | E151: 293 | F151: 37.5 | G151: 0.23 | H151: 0.39 | J151: 21.6 | K151: 20.9 | L151: 0.02 | M151: 0.32 | O151: 8.61 | P151: 0.019 | Q151: 22.58 | R151: 5.1 | S151: 155.8 | U151: A91H | V151: Lambani (dup name 6892) | W151: unknown | Y151: -22.71528 | Z151: 30.74889
A152: A91 103117 | B152: 2014-11-05 | C152: 1.25 | D152: 4.933 | E152: 36.166 | F152: 4.25 | G152: 0.05 | H152: 1.679 | J152: 1.711 | K152: 4.834 | L152: 0.05 | M152: 0.156 | O152: 7.186 | P152: 0.01 | Q152: 2.866 | R152: 1.292 | S152: 16.101 | U152: A91F | V152: Vondo Damwall | W152: Rivers | Y152: -23.06 | Z152: 30.44
A153: A91 103117 | B153: 2014-11-21 | C153: 1.25 | D153: 4.991 | F153: 4.22 | G153: 0.025 | J153: 1.577 | L153: 0.05 | M153: 0.681 | O153: 7.3 | P153: 0.01 | Q153: 2.882 | R153: 1.5 | S153: 5 | U153: A91F | V153: Vondo Damwall | W153: Rivers | Y153: -23.06 | Z153: 30.44
A154: A91 103117 | B154: 2015-01-26 | C154: 1.25 | D154: 4.648 | F154: 4.05 | G154: 0.05 | H154: 1.307 | J154: 1.601 | K154: 3.928 | L154: 0.05 | M154: 0.153 | O154: 7.175 | P154: 0.01 | Q154: 2.919 | R154: 1.5 | U154: A91F | V154: Vondo Damwall | W154: Rivers | Y154: -23.06 | Z154: 30.44
A155: A91 177703 | B155: 2000-05-16 | C155: 10.418 | D155: 10.761 | E155: 106.617 | F155: 16.1 | G155: 0.12 | H155: 0.897 | J155: 5.795 | K155: 8.28 | L155: 0.02 | M155: 0.79 | O155: 7.869 | P155: 0.038 | Q155: 10.181 | R155: 6.241 | S155: 49.592 | T155: A9H015Q01 | U155: A91D | V155: Livhungwa River: Barotta Canal | W155: Canal | X155: A9H015 | Y155: -23.03694 | Z155: 30.27694
A156: A91 177703 | B156: 2000-05-30 | C156: 5.034 | D156: 5 | E156: 45.273 | F156: 6.34 | G156: 0.05 | H156: 0.398 | J156: 2.214 | K156: 3.779 | L156: 0.02 | M156: 0.188 | O156: 7.633 | P156: 0.01 | Q156: 6.57 | R156: 2 | S156: 21.25 | T156: A9H015Q01 | U156: A91D | V156: Livhungwa River: Barotta Canal | W156: Canal | X156: A9H015 | Y156: -23.03694 | Z156: 30.27694
A157: A91 177703 | B157: 2000-10-30 | C157: 4.485 | D157: 5 | E157: 42.653 | F157: 6.35 | G157: 0.05 | H157: 0.315 | J157: 2.259 | K157: 3.07 | L157: 0.02 | M157: 0.143 | O157: 7.513 | P157: 0.014 | Q157: 6.741 | R157: 4.277 | S157: 18.45 | T157: A9H015Q01 | U157: A91D | V157: Livhungwa River: Barotta Canal | W157: Canal | X157: A9H015 | Y157: -23.03694 | Z157: 30.27694
A158: A91 177703 | B158: 2000-11-29 | C158: 3.903 | D158: 5 | E158: 45.973 | F158: 5.81 | G158: 0.104 | H158: 0.337 | J158: 2.527 | K158: 3.301 | L158: 0.02 | M158: 0.177 | O158: 7.55 | P158: 0.032 | Q158: 7.077 | R158: 7.32 | S158: 18.514 | T158: A9H015Q01 | U158: A91D | V158: Livhungwa River: Barotta Canal | W158: Canal | X158: A9H015 | Y158: -23.03694 | Z158: 30.27694
A159: A91 177703 | B159: 2000-12-28 | C159: 4.069 | D159: 5 | E159: 40.731 | F159: 6.02 | G159: 0.112 | H159: 0.15 | J159: 3.175 | K159: 3.347 | L159: 0.02 | M159: 0.929 | O159: 7.503 | P159: 0.013 | Q159: 7.145 | R159: 2 | S159: 15.337 | T159: A9H015Q01 | U159: A91D | V159: Livhungwa River: Barotta Canal | W159: Canal | X159: A9H015 | Y159: -23.03694 | Z159: 30.27694
A160: A91 177703 | B160: 2001-02-28 | C160: 4.206 | D160: 5 | E160: 49.669 | F160: 5.69 | G160: 0.11 | H160: 0.463 | J160: 2.531 | K160: 3.389 | L160: 0.02 | M160: 0.194 | O160: 7.434 | P160: 0.038 | Q160: 6.333 | R160: 7.16 | S160: 21.168 | T160: A9H015Q01 | U160: A91D | V160: Livhungwa River: Barotta Canal | W160: Canal | X160: A9H015 | Y160: -23.03694 | Z160: 30.27694
A161: A91 177703 | B161: 2001-05-29 | C161: 8.526 | D161: 5 | E161: 64.918 | F161: 8.37 | G161: 0.132 | H161: 0.389 | J161: 2.539 | K161: 3.731 | L161: 0.02 | M161: 0.206 | O161: 7.858 | P161: 0.074 | Q161: 6.845 | R161: 5.647 | S161: 30.994 | T161: A9H015Q01 | U161: A91D | V161: Livhungwa River: Barotta Canal | W161: Canal | X161: A9H015 | Y161: -23.03694 | Z161: 30.27694
A162: A91 177703 | B162: 2001-06-28 | C162: 6.445 | D162: 5 | E162: 50.677 | F162: 7.41 | G162: 0.102 | H162: 0.318 | J162: 2.69 | K162: 4.029 | L162: 0.049 | M162: 0.184 | O162: 7.586 | P162: 0.028 | Q162: 6.287 | R162: 2 | S162: 23.891 | T162: A9H015Q01 | U162: A91D | V162: Livhungwa River: Barotta Canal | W162: Canal | X162: A9H015 | Y162: -23.03694 | Z162: 30.27694
A163: A91 177703 | B163: 2001-07-31 | C163: 5.021 | D163: 5 | E163: 43.599 | F163: 6.91 | G163: 0.105 | H163: 1.113 | J163: 2.338 | K163: 3.638 | L163: 0.02 | M163: 0.134 | O163: 7.613 | P163: 0.006 | Q163: 5.8 | R163: 2 | S163: 19.476 | T163: A9H015Q01 | U163: A91D | V163: Livhungwa River: Barotta Canal | W163: Canal | X163: A9H015 | Y163: -23.03694 | Z163: 30.27694
A164: A91 177703 | B164: 2001-08-30 | C164: 4.075 | D164: 5 | E164: 42.822 | F164: 5.83 | G164: 0.114 | H164: 0.435 | J164: 2.343 | K164: 3.601 | L164: 0.02 | M164: 0.184 | O164: 7.574 | P164: 0.017 | Q164: 7.196 | R164: 2 | S164: 19.981 | T164: A9H015Q01 | U164: A91D | V164: Livhungwa River: Barotta Canal | W164: Canal | X164: A9H015 | Y164: -23.03694 | Z164: 30.27694
A165: A91 177703 | B165: 2001-09-28 | C165: 3.082 | D165: 5 | E165: 52.143 | F165: 7.37 | G165: 0.101 | H165: 0.15 | J165: 5.2 | K165: 3.556 | L165: 0.02 | M165: 0.172 | O165: 7.678 | P165: 0.013 | Q165: 7.152 | R165: 2 | S165: 26.432 | T165: A9H015Q01 | U165: A91D | V165: Livhungwa River: Barotta Canal | W165: Canal | X165: A9H015 | Y165: -23.03694 | Z165: 30.27694
A166: A91 177703 | B166: 2001-10-31 | C166: 4.433 | D166: 5 | E166: 45.413 | F166: 6.09 | G166: 0.05 | H166: 0.15 | J166: 2.218 | K166: 2.496 | L166: 0.02 | M166: 0.158 | O166: 7.514 | P166: 0.018 | Q166: 6.504 | R166: 4.434 | S166: 21.203 | T166: A9H015Q01 | U166: A91D | V166: Livhungwa River: Barotta Canal | W166: Canal | X166: A9H015 | Y166: -23.03694 | Z166: 30.27694
A167: A91 177703 | B167: 2001-12-27 | C167: 3.751 | D167: 5 | E167: 44.484 | F167: 5.95 | G167: 0.111 | H167: 0.385 | J167: 2.501 | K167: 3.29 | L167: 0.02 | M167: 0.174 | O167: 7.44 | P167: 0.021 | Q167: 6.312 | R167: 2 | S167: 21.805 | T167: A9H015Q01 | U167: A91D | V167: Livhungwa River: Barotta Canal | W167: Canal | X167: A9H015 | Y167: -23.03694 | Z167: 30.27694
A168: A91 177703 | B168: 2002-01-31 | C168: 4.299 | D168: 5 | E168: 45.97 | F168: 6.01 | G168: 0.104 | H168: 0.522 | J168: 2.956 | K168: 3.223 | L168: 0.044 | M168: 0.125 | O168: 7.539 | P168: 0.018 | Q168: 6.25 | R168: 2 | S168: 22.309 | T168: A9H015Q01 | U168: A91D | V168: Livhungwa River: Barotta Canal | W168: Canal | X168: A9H015 | Y168: -23.03694 | Z168: 30.27694
A169: A91 177703 | B169: 2002-02-27 | C169: 4.559 | D169: 5 | E169: 48.779 | F169: 6.09 | G169: 0.05 | H169: 0.412 | J169: 2.386 | K169: 2.78 | L169: 0.02 | M169: 0.115 | O169: 7.658 | P169: 0.006 | Q169: 6.262 | R169: 2 | S169: 25.457 | T169: A9H015Q01 | U169: A91D | V169: Livhungwa River: Barotta Canal | W169: Canal | X169: A9H015 | Y169: -23.03694 | Z169: 30.27694
A170: A91 177703 | B170: 2002-03-27 | C170: 4.536 | D170: 5 | E170: 47.919 | F170: 5.69 | G170: 0.05 | H170: 0.332 | J170: 1.982 | K170: 2.024 | L170: 1.02 | M170: 0.148 | O170: 7.418 | P170: 0.137 | Q170: 6.453 | R170: 4.954 | S170: 21.859 | T170: A9H015Q01 | U170: A91D | V170: Livhungwa River: Barotta Canal | W170: Canal | X170: A9H015 | Y170: -23.03694 | Z170: 30.27694
A171: A91 177703 | B171: 2002-04-29 | C171: 4.327 | D171: 5 | E171: 38.48 | F171: 5.53 | G171: 0.05 | H171: 0.15 | J171: 2.112 | K171: 2.383 | L171: 0.02 | M171: 0.133 | O171: 7.514 | P171: 0.006 | Q171: 6.718 | R171: 2 | S171: 17.9 | T171: A9H015Q01 | U171: A91D | V171: Livhungwa River: Barotta Canal | W171: Canal | X171: A9H015 | Y171: -23.03694 | Z171: 30.27694
A172: A91 177703 | B172: 2002-05-30 | C172: 4.973 | D172: 5 | E172: 53.766 | F172: 6.93 | G172: 0.121 | H172: 0.421 | J172: 2.972 | K172: 3.196 | L172: 0.02 | M172: 0.055 | O172: 7.597 | P172: 0.014 | Q172: 6.408 | R172: 7.332 | S172: 24.145 | T172: A9H015Q01 | U172: A91D | V172: Livhungwa River: Barotta Canal | W172: Canal | X172: A9H015 | Y172: -23.03694 | Z172: 30.27694
A173: A91 177703 | B173: 2002-06-27 | C173: 2.731 | D173: 5 | E173: 40.024 | F173: 5.86 | G173: 0.05 | H173: 0.15 | J173: 2.118 | K173: 3.315 | L173: 0.02 | M173: 0.179 | O173: 7.216 | P173: 0.022 | Q173: 6.396 | R173: 2 | S173: 19.499 | T173: A9H015Q01 | U173: A91D | V173: Livhungwa River: Barotta Canal | W173: Canal | X173: A9H015 | Y173: -23.03694 | Z173: 30.27694
A174: A91 177703 | B174: 2002-07-31 | C174: 3.858 | D174: 5 | E174: 47.08 | F174: 6.43 | G174: 0.111 | H174: 0.442 | J174: 2.145 | K174: 3.214 | L174: 0.058 | M174: 0.193 | O174: 7.624 | P174: 0.018 | Q174: 7.28 | R174: 7.299 | S174: 19.706 | T174: A9H015Q01 | U174: A91D | V174: Livhungwa River: Barotta Canal | W174: Canal | X174: A9H015 | Y174: -23.03694 | Z174: 30.27694
A175: A91 177703 | B175: 2002-08-29 | C175: 13.678 | D175: 5 | E175: 79.604 | F175: 11 | G175: 0.149 | H175: 0.15 | J175: 2.111 | K175: 2.914 | L175: 0.02 | M175: 0.161 | O175: 8.174 | P175: 0.012 | Q175: 6.427 | R175: 2 | S175: 43.327 | T175: A9H015Q01 | U175: A91D | V175: Livhungwa River: Barotta Canal | W175: Canal | X175: A9H015 | Y175: -23.03694 | Z175: 30.27694
A176: A91 177703 | B176: 2002-09-25 | C176: 4.103 | D176: 5 | E176: 38.161 | F176: 5.97 | G176: 0.101 | H176: 0.15 | J176: 2.098 | K176: 2.429 | L176: 0.02 | M176: 0.146 | O176: 7.738 | P176: 0.006 | Q176: 6.29 | R176: 2 | S176: 17.707 | T176: A9H015Q01 | U176: A91D | V176: Livhungwa River: Barotta Canal | W176: Canal | X176: A9H015 | Y176: -23.03694 | Z176: 30.27694
A177: A91 177703 | B177: 2002-10-31 | C177: 7.018 | D177: 5 | E177: 65.264 | F177: 10.32 | G177: 0.05 | H177: 0.902 | J177: 3.524 | K177: 4.321 | L177: 0.042 | M177: 0.469 | O177: 7.946 | P177: 0.016 | Q177: 7.752 | R177: 9.913 | S177: 26.538 | T177: A9H015Q01 | U177: A91D | V177: Livhungwa River: Barotta Canal | W177: Canal | X177: A9H015 | Y177: -23.03694 | Z177: 30.27694
A178: A91 177703 | B178: 2003-01-31 | C178: 3.523 | D178: 5 | E178: 32.657 | F178: 6.01 | G178: 0.139 | H178: 0.15 | J178: 1.977 | K178: 2.547 | L178: 0.02 | M178: 0.133 | O178: 7.466 | P178: 0.023 | Q178: 6.516 | R178: 2 | S178: 13.644 | T178: A9H015Q01 | U178: A91D | V178: Livhungwa River: Barotta Canal | W178: Canal | X178: A9H015 | Y178: -23.03694 | Z178: 30.27694
A179: A91 177703 | B179: 2003-02-27 | C179: 3.954 | D179: 5 | E179: 43.37 | F179: 6.08 | G179: 0.127 | H179: 0.15 | J179: 1.76 | K179: 2.607 | L179: 0.02 | M179: 0.096 | O179: 7.471 | P179: 0.017 | Q179: 6.585 | R179: 5.251 | S179: 19.699 | T179: A9H015Q01 | U179: A91D | V179: Livhungwa River: Barotta Canal | W179: Canal | X179: A9H015 | Y179: -23.03694 | Z179: 30.27694
A180: A91 177703 | B180: 2003-03-31 | D180: 5 | F180: 5.94 | G180: 0.137 | H180: 0.15 | J180: 1.433 | K180: 2.732 | L180: 0.054 | M180: 0.148 | O180: 7.356 | P180: 0.022 | Q180: 6.711 | R180: 2 | T180: A9H015Q01 | U180: A91D | V180: Livhungwa River: Barotta Canal | W180: Canal | X180: A9H015 | Y180: -23.03694 | Z180: 30.27694
A181: A91 177703 | B181: 2003-04-29 | C181: 4.355 | D181: 5 | E181: 39.185 | F181: 6.45 | G181: 0.116 | H181: 0.15 | J181: 1.948 | K181: 2.531 | L181: 0.02 | M181: 0.123 | O181: 7.665 | P181: 0.029 | Q181: 6.317 | R181: 2 | S181: 18.393 | T181: A9H015Q01 | U181: A91D | V181: Livhungwa River: Barotta Canal | W181: Canal | X181: A9H015 | Y181: -23.03694 | Z181: 30.27694
A182: A91 177703 | B182: 2003-05-30 | C182: 4.121 | D182: 5 | E182: 39.887 | F182: 5.97 | G182: 0.159 | H182: 0.15 | J182: 1.483 | K182: 3.304 | L182: 0.02 | M182: 0.171 | O182: 7.307 | P182: 0.018 | Q182: 6.401 | R182: 2 | S182: 18.726 | T182: A9H015Q01 | U182: A91D | V182: Livhungwa River: Barotta Canal | W182: Canal | X182: A9H015 | Y182: -23.03694 | Z182: 30.27694
A183: A91 177703 | B183: 2003-06-30 | C183: 3.894 | D183: 5 | E183: 37.137 | F183: 5.86 | G183: 0.153 | H183: 0.15 | J183: 1.33 | K183: 3.497 | L183: 0.02 | M183: 0.131 | O183: 7.583 | P183: 0.017 | Q183: 6.924 | R183: 2 | S183: 16.777 | T183: A9H015Q01 | U183: A91D | V183: Livhungwa River: Barotta Canal | W183: Canal | X183: A9H015 | Y183: -23.03694 | Z183: 30.27694
A184: A91 177703 | B184: 2003-07-30 | C184: 4.368 | D184: 5 | E184: 37.845 | F184: 6.06 | G184: 0.162 | H184: 0.15 | J184: 1.323 | K184: 3.009 | L184: 0.02 | M184: 0.343 | O184: 7.594 | P184: 0.012 | Q184: 5.468 | R184: 2 | S184: 16.61 | T184: A9H015Q01 | U184: A91D | V184: Livhungwa River: Barotta Canal | W184: Canal | X184: A9H015 | Y184: -23.03694 | Z184: 30.27694
A185: A91 177703 | B185: 2003-08-28 | C185: 3.944 | D185: 5.034 | E185: 36.688 | F185: 5.93 | G185: 0.1 | H185: 0.344 | J185: 2.164 | K185: 4.037 | L185: 0.015 | M185: 0.124 | O185: 7.53 | P185: 0.012 | Q185: 6.053 | R185: 3 | S185: 14.32 | T185: A9H015Q01 | U185: A91D | V185: Livhungwa River: Barotta Canal | W185: Canal | X185: A9H015 | Y185: -23.03694 | Z185: 30.27694
A186: A91 177703 | B186: 2003-09-29 | C186: 5.866 | D186: 5 | E186: 54.539 | F186: 7.92 | G186: 0.114 | H186: 0.594 | J186: 3.416 | K186: 4.52 | L186: 0.02 | M186: 0.02 | O186: 7.722 | P186: 0.02 | Q186: 5.036 | R186: 5.213 | S186: 24.31 | T186: A9H015Q01 | U186: A91D | V186: Livhungwa River: Barotta Canal | W186: Canal | X186: A9H015 | Y186: -23.03694 | Z186: 30.27694
A187: A91 177703 | B187: 2003-12-09 | C187: 5.195 | D187: 5.097 | E187: 47.441 | F187: 6.21 | G187: 0.1 | H187: 0.15 | J187: 2.188 | K187: 4.085 | L187: 0.015 | M187: 0.055 | O187: 7.585 | P187: 0.012 | Q187: 6.174 | R187: 3 | S187: 22.412 | T187: A9H015Q01 | U187: A91D | V187: Livhungwa River: Barotta Canal | W187: Canal | X187: A9H015 | Y187: -23.03694 | Z187: 30.27694
A188: A91 177703 | B188: 2004-07-02 | C188: 4.366 | D188: 7.496 | E188: 42.115 | F188: 6 | G188: 0.1 | H188: 0.15 | J188: 2.415 | K188: 3.408 | L188: 0.04 | M188: 0.123 | O188: 7.662 | P188: 0.038 | Q188: 5.338 | R188: 3 | S188: 16.787 | T188: A9H015Q01 | U188: A91D | V188: Livhungwa River: Barotta Canal | W188: Canal | X188: A9H015 | Y188: -23.03694 | Z188: 30.27694
A189: A91 177703 | B189: 2005-04-30 | C189: 4.299 | D189: 5.182 | E189: 35.437 | F189: 6.17 | G189: 0.05 | H189: 0.414 | J189: 2.291 | K189: 3.77 | L189: 0.045 | M189: 0.1 | O189: 7.53 | P189: 0.076 | Q189: 6.853 | R189: 2 | S189: 13.695 | T189: A9H015Q01 | U189: A91D | V189: Livhungwa River: Barotta Canal | W189: Canal | X189: A9H015 | Y189: -23.03694 | Z189: 30.27694
A190: A91 177703 | B190: 2005-07-26 | C190: 4.554 | D190: 5.333 | E190: 41.81 | F190: 6.22 | G190: 0.05 | H190: 0.15 | J190: 2.518 | K190: 3.778 | L190: 0.02 | M190: 0.117 | O190: 7.685 | P190: 0.036 | Q190: 6.565 | R190: 2 | S190: 18.678 | T190: A9H015Q01 | U190: A91D | V190: Livhungwa River: Barotta Canal | W190: Canal | X190: A9H015 | Y190: -23.03694 | Z190: 30.27694
A191: A91 177703 | B191: 2005-10-19 | C191: 3.927 | D191: 6.265 | E191: 40.083 | F191: 6.69 | G191: 0.05 | H191: 0.394 | J191: 2.403 | K191: 3.829 | L191: 0.02 | M191: 0.104 | O191: 7.463 | P191: 0.006 | Q191: 6.411 | R191: 2 | S191: 16.986 | T191: A9H015Q01 | U191: A91D | V191: Livhungwa River: Barotta Canal | W191: Canal | X191: A9H015 | Y191: -23.03694 | Z191: 30.27694
A192: A91 177703 | B192: 2006-01-25 | C192: 4.628 | D192: 5.646 | E192: 41.239 | F192: 6.17 | G192: 0.05 | H192: 0.387 | J192: 2.706 | K192: 4.329 | L192: 0.044 | M192: 0.244 | O192: 7.801 | P192: 0.04 | Q192: 6.707 | R192: 2 | S192: 16.595 | T192: A9H015Q01 | U192: A91D | V192: Livhungwa River: Barotta Canal | W192: Canal | X192: A9H015 | Y192: -23.03694 | Z192: 30.27694
A193: A91 177703 | B193: 2006-02-08 | C193: 3.995 | D193: 4.431 | E193: 34.42 | F193: 6.13 | G193: 0.05 | H193: 0.484 | J193: 2.272 | K193: 3.247 | L193: 0.02 | M193: 0.216 | O193: 6.692 | P193: 0.006 | Q193: 6.58 | R193: 2 | S193: 13.894 | T193: A9H015Q01 | U193: A91D | V193: Livhungwa River: Barotta Canal | W193: Canal | X193: A9H015 | Y193: -23.03694 | Z193: 30.27694
A194: A91 177703 | B194: 2006-10-26 | C194: 4.056 | D194: 5.132 | E194: 50.28 | F194: 5.67 | G194: 0.05 | H194: 0.34 | J194: 2.673 | K194: 3.379 | L194: 0.053 | M194: 0.097 | O194: 7.548 | P194: 0.006 | Q194: 7.166 | R194: 5.102 | S194: 23.811 | T194: A9H015Q01 | U194: A91D | V194: Livhungwa River: Barotta Canal | W194: Canal | X194: A9H015 | Y194: -23.03694 | Z194: 30.27694
A195: A91 177703 | B195: 2006-11-28 | C195: 5.282 | D195: 6.717 | E195: 49.622 | F195: 7.27 | G195: 0.05 | H195: 0.4 | J195: 2.281 | K195: 4.155 | L195: 0.02 | M195: 0.127 | O195: 7.56 | P195: 0.006 | Q195: 7.075 | R195: 2 | S195: 23.072 | T195: A9H015Q01 | U195: A91D | V195: Livhungwa River: Barotta Canal | W195: Canal | X195: A9H015 | Y195: -23.03694 | Z195: 30.27694
A196: A91 177703 | B196: 2007-01-17 | C196: 4.788 | D196: 7.024 | E196: 44.406 | F196: 7.37 | G196: 0.107 | H196: 0.44 | J196: 2.455 | K196: 3.707 | L196: 0.095 | M196: 0.122 | O196: 7.498 | P196: 0.117 | Q196: 6.815 | R196: 2 | S196: 18.752 | T196: A9H015Q01 | U196: A91D | V196: Livhungwa River: Barotta Canal | W196: Canal | X196: A9H015 | Y196: -23.03694 | Z196: 30.27694
A197: A91 177703 | B197: 2007-04-13 | C197: 5.163 | D197: 6.403 | E197: 39.534 | F197: 6.22 | G197: 0.05 | H197: 0.351 | J197: 2.31 | K197: 3.368 | L197: 0.07 | M197: 0.114 | O197: 7.242 | P197: 0.016 | Q197: 7.147 | R197: 2 | S197: 15.784 | T197: A9H015Q01 | U197: A91D | V197: Livhungwa River: Barotta Canal | W197: Canal | X197: A9H015 | Y197: -23.03694 | Z197: 30.27694
A198: A91 177703 | B198: 2007-06-19 | C198: 4.46 | D198: 6.125 | E198: 43.747 | F198: 6.96 | G198: 0.117 | H198: 0.15 | J198: 1.756 | K198: 4.078 | L198: 0.063 | M198: 0.134 | O198: 7.802 | P198: 0.012 | Q198: 6.403 | R198: 2 | S198: 19.971 | T198: A9H015Q01 | U198: A91D | V198: Livhungwa River: Barotta Canal | W198: Canal | X198: A9H015 | Y198: -23.03694 | Z198: 30.27694
A199: A91 177703 | B199: 2007-07-18 | C199: 4.917 | D199: 5.036 | E199: 41.823 | F199: 6.22 | G199: 0.05 | H199: 0.15 | J199: 2.417 | K199: 4.32 | L199: 0.121 | M199: 0.095 | O199: 7.707 | P199: 0.012 | Q199: 6.07 | R199: 2 | S199: 18.306 | T199: A9H015Q01 | U199: A91D | V199: Livhungwa River: Barotta Canal | W199: Canal | X199: A9H015 | Y199: -23.03694 | Z199: 30.27694
A200: A91 177703 | B200: 2007-08-22 | C200: 4.213 | D200: 4.388 | E200: 41.425 | F200: 6.14 | G200: 0.05 | H200: 0.15 | J200: 2.165 | K200: 3.738 | L200: 0.063 | M200: 0.136 | O200: 7.063 | P200: 0.018 | Q200: 6.76 | R200: 2 | S200: 19.67 | T200: A9H015Q01 | U200: A91D | V200: Livhungwa River: Barotta Canal | W200: Canal | X200: A9H015 | Y200: -23.03694 | Z200: 30.27694
... 2050 more rows

Sheet Pivot Tables
A1: LastRow Data | B1: =MATCH("Grand Total",A:A,0) -1 -> 863
B3: Ca_dissolved | C3: Cl_Diss_Water | D3: DMS_Tot_Water | E3: EC_Phys_Water | F3: F_Diss_Water | G3: K_Diss_Water | H3: Mg_Diss_Water | I3: Na_Diss_Water | J3: NH4_N_Diss_Water | K3: NO3_NO2_N_Diss_Water | L3: P_Tot_Water | M3: pH_Diss_Water | N3: PO4_P_Diss_Water | O3: Si_Diss_Water | P3: SO4_Diss_Water | Q3: TAL_Diss_Water
A4: 0.05 | B4: =PERCENTILE(B20:INDIRECT(CONCATENATE("B",$B$1)),0.05) -> 8.7 | C4: =PERCENTILE(C20:INDIRECT(CONCATENATE("C",$B$1)),0.05) -> 12.92 | D4: =PERCENTILE(D20:INDIRECT(CONCATENATE("D",$B$1)),0.05) -> 102 | E4: =PERCENTILE(E20:INDIRECT(CONCATENATE("E",$B$1)),0.05) -> 14.715 | F4: =PERCENTILE(F20:INDIRECT(CONCATENATE("F",$B$1)),0.05) -> 0.05 | G4: =PERCENTILE(G20:INDIRECT(CONCATENATE("G",$B$1)),0.05) -> 1.222 | H4: =PERCENTILE(H20:INDIRECT(CONCATENATE("H",$B$1)),0.05) -> 4.1 | I4: =PERCENTILE(I20:INDIRECT(CONCATENATE("I",$B$1)),0.05) -> 11.7196 | J4: =PERCENTILE(J20:INDIRECT(CONCATENATE("J",$B$1)),0.05) -> 0.02 | K4: =PERCENTILE(K20:INDIRECT(CONCATENATE("K",$B$1)),0.05) -> 0.02 | L4: =PERCENTILE(L20:INDIRECT(CONCATENATE("L",$B$1)),0.05) -> 0.0182 | M4: =PERCENTILE(M20:INDIRECT(CONCATENATE("M",$B$1)),0.05) -> 6.76 | N4: =PERCENTILE(N20:INDIRECT(CONCATENATE("N",$B$1)),0.05) -> 0.003 | O4: =PERCENTILE(O20:INDIRECT(CONCATENATE("O",$B$1)),0.05) -> 4.87 | P4: =PERCENTILE(P20:INDIRECT(CONCATENATE("P",$B$1)),0.05) -> 2 | Q4: =PERCENTILE(Q20:INDIRECT(CONCATENATE("Q",$B$1)),0.05) -> 42.03
A5: 0.25 | B5: =PERCENTILE(B20:INDIRECT(CONCATENATE("B",$B$1)),0.25) -> 12.9 | C5: =PERCENTILE(C20:INDIRECT(CONCATENATE("C",$B$1)),0.25) -> 25.18 | D5: =PERCENTILE(D20:INDIRECT(CONCATENATE("D",$B$1)),0.25) -> 161 | E5: =PERCENTILE(E20:INDIRECT(CONCATENATE("E",$B$1)),0.25) -> 24.2 | F5: =PERCENTILE(F20:INDIRECT(CONCATENATE("F",$B$1)),0.25) -> 0.16 | G5: =PERCENTILE(G20:INDIRECT(CONCATENATE("G",$B$1)),0.25) -> 1.82 | H5: =PERCENTILE(H20:INDIRECT(CONCATENATE("H",$B$1)),0.25) -> 7.5 | I5: =PERCENTILE(I20:INDIRECT(CONCATENATE("I",$B$1)),0.25) -> 21.3 | J5: =PERCENTILE(J20:INDIRECT(CONCATENATE("J",$B$1)),0.25) -> 0.02 | K5: =PERCENTILE(K20:INDIRECT(CONCATENATE("K",$B$1)),0.25) -> 0.05 | L5: =PERCENTILE(L20:INDIRECT(CONCATENATE("L",$B$1)),0.25) -> 0.038 | M5: =PERCENTILE(M20:INDIRECT(CONCATENATE("M",$B$1)),0.25) -> 7.38 | N5: =PERCENTILE(N20:INDIRECT(CONCATENATE("N",$B$1)),0.25) -> 0.007 | O5: =PERCENTILE(O20:INDIRECT(CONCATENATE("O",$B$1)),0.25) -> 6.35 | P5: =PERCENTILE(P20:INDIRECT(CONCATENATE("P",$B$1)),0.25) -> 7 | Q5: =PERCENTILE(Q20:INDIRECT(CONCATENATE("Q",$B$1)),0.25) -> 68.286
A6: 0.5 | B6: =PERCENTILE(B20:INDIRECT(CONCATENATE("B",$B$1)),0.5) -> 17.047 | C6: =PERCENTILE(C20:INDIRECT(CONCATENATE("C",$B$1)),0.5) -> 40.758 | D6: =PERCENTILE(D20:INDIRECT(CONCATENATE("D",$B$1)),0.5) -> 230.5 | E6: =PERCENTILE(E20:INDIRECT(CONCATENATE("E",$B$1)),0.5) -> 35.2 | F6: =PERCENTILE(F20:INDIRECT(CONCATENATE("F",$B$1)),0.5) -> 0.23 | G6: =PERCENTILE(G20:INDIRECT(CONCATENATE("G",$B$1)),0.5) -> 2.51 | H6: =PERCENTILE(H20:INDIRECT(CONCATENATE("H",$B$1)),0.5) -> 10.7 | I6: =PERCENTILE(I20:INDIRECT(CONCATENATE("I",$B$1)),0.5) -> 33.9 | J6: =PERCENTILE(J20:INDIRECT(CONCATENATE("J",$B$1)),0.5) -> 0.045 | K6: =PERCENTILE(K20:INDIRECT(CONCATENATE("K",$B$1)),0.5) -> 0.1565 | L6: =PERCENTILE(L20:INDIRECT(CONCATENATE("L",$B$1)),0.5) -> 0.056 | M6: =PERCENTILE(M20:INDIRECT(CONCATENATE("M",$B$1)),0.5) -> 7.86 | N6: =PERCENTILE(N20:INDIRECT(CONCATENATE("N",$B$1)),0.5) -> 0.014 | O6: =PERCENTILE(O20:INDIRECT(CONCATENATE("O",$B$1)),0.5) -> 7.8 | P6: =PERCENTILE(P20:INDIRECT(CONCATENATE("P",$B$1)),0.5) -> 11.9 | Q6: =PERCENTILE(Q20:INDIRECT(CONCATENATE("Q",$B$1)),0.5) -> 91.7
A7: 0.75 | B7: =PERCENTILE(B20:INDIRECT(CONCATENATE("B",$B$1)),0.75) -> 22.8 | C7: =PERCENTILE(C20:INDIRECT(CONCATENATE("C",$B$1)),0.75) -> 65.8 | D7: =PERCENTILE(D20:INDIRECT(CONCATENATE("D",$B$1)),0.75) -> 329.89575 | E7: =PERCENTILE(E20:INDIRECT(CONCATENATE("E",$B$1)),0.75) -> 48.9 | F7: =PERCENTILE(F20:INDIRECT(CONCATENATE("F",$B$1)),0.75) -> 0.32 | G7: =PERCENTILE(G20:INDIRECT(CONCATENATE("G",$B$1)),0.75) -> 3.43 | H7: =PERCENTILE(H20:INDIRECT(CONCATENATE("H",$B$1)),0.75) -> 15.2645 | I7: =PERCENTILE(I20:INDIRECT(CONCATENATE("I",$B$1)),0.75) -> 55 | J7: =PERCENTILE(J20:INDIRECT(CONCATENATE("J",$B$1)),0.75) -> 0.07 | K7: =PERCENTILE(K20:INDIRECT(CONCATENATE("K",$B$1)),0.75) -> 0.33 | L7: =PERCENTILE(L20:INDIRECT(CONCATENATE("L",$B$1)),0.75) -> 0.118 | M7: =PERCENTILE(M20:INDIRECT(CONCATENATE("M",$B$1)),0.75) -> 8.171 | N7: =PERCENTILE(N20:INDIRECT(CONCATENATE("N",$B$1)),0.75) -> 0.025 | O7: =PERCENTILE(O20:INDIRECT(CONCATENATE("O",$B$1)),0.75) -> 8.77 | P7: =PERCENTILE(P20:INDIRECT(CONCATENATE("P",$B$1)),0.75) -> 18.3285 | Q7: =PERCENTILE(Q20:INDIRECT(CONCATENATE("Q",$B$1)),0.75) -> 125.109
A8: 0.95 | B8: =PERCENTILE(B20:INDIRECT(CONCATENATE("B",$B$1)),0.95) -> 34.3738 | C8: =PERCENTILE(C20:INDIRECT(CONCATENATE("C",$B$1)),0.95) -> 139.9888 | D8: =PERCENTILE(D20:INDIRECT(CONCATENATE("D",$B$1)),0.95) -> 586.08505 | E8: =PERCENTILE(E20:INDIRECT(CONCATENATE("E",$B$1)),0.95) -> 85.905 | F8: =PERCENTILE(F20:INDIRECT(CONCATENATE("F",$B$1)),0.95) -> 0.52 | G8: =PERCENTILE(G20:INDIRECT(CONCATENATE("G",$B$1)),0.95) -> 4.838 | H8: =PERCENTILE(H20:INDIRECT(CONCATENATE("H",$B$1)),0.95) -> 27.39 | I8: =PERCENTILE(I20:INDIRECT(CONCATENATE("I",$B$1)),0.95) -> 105.9548 | J8: =PERCENTILE(J20:INDIRECT(CONCATENATE("J",$B$1)),0.95) -> 0.15925 | K8: =PERCENTILE(K20:INDIRECT(CONCATENATE("K",$B$1)),0.95) -> 0.84175 | L8: =PERCENTILE(L20:INDIRECT(CONCATENATE("L",$B$1)),0.95) -> 0.5406 | M8: =PERCENTILE(M20:INDIRECT(CONCATENATE("M",$B$1)),0.95) -> 8.4746 | N8: =PERCENTILE(N20:INDIRECT(CONCATENATE("N",$B$1)),0.95) -> 0.0678 | O8: =PERCENTILE(O20:INDIRECT(CONCATENATE("O",$B$1)),0.95) -> 9.98 | P8: =PERCENTILE(P20:INDIRECT(CONCATENATE("P",$B$1)),0.95) -> 36.595 | Q8: =PERCENTILE(Q20:INDIRECT(CONCATENATE("Q",$B$1)),0.95) -> 192.0644
A11: 25% - 5% | B11: =B5-B4 -> 4.2 | C11: =C5-C4 -> 12.26 | D11: 59 | E11: 9.485 | F11: =F5-F4 -> 0.11 | G11: 0.598 | H11: 3.4 | I11: 9.5804 | J11: 0 | K11: 0.03 | L11: 0.0198 | M11: 0.62 | N11: 0.004 | O11: 1.48 | P11: 5 | Q11: 26.256
A12: 25% | B12: =B5 -> 12.9 | C12: =C5 -> 25.18 | D12: 161 | E12: 24.2 | F12: =F5 -> 0.16 | G12: 1.82 | H12: 7.5 | I12: 21.3 | J12: 0.02 | K12: 0.05 | L12: 0.038 | M12: 7.38 | N12: 0.007 | O12: 6.35 | P12: 7 | Q12: 68.286
A13: 50% - 25% | B13: =B6-B5 -> 4.147 | C13: =C6-C5 -> 15.578 | D13: 69.5 | E13: 11 | F13: =F6-F5 -> 0.07 | G13: 0.69 | H13: 3.2 | I13: 12.6 | J13: 0.025 | K13: 0.1065 | L13: 0.018 | M13: 0.48 | N13: 0.007 | O13: 1.45 | P13: 4.9 | Q13: 23.414
A14: 75% - 50% | B14: =B7-B6 -> 5.753 | C14: =C7-C6 -> 25.042 | D14: 99.39575 | E14: 13.7 | F14: =F7-F6 -> 0.09 | G14: 0.92 | H14: 4.5645 | I14: 21.1 | J14: 0.025 | K14: 0.1735 | L14: 0.062 | M14: 0.311 | N14: 0.011 | O14: 0.97 | P14: 6.4285 | Q14: 33.409
A15: 95% - 75% | B15: =B8-B7 -> 11.5738 | C15: =C8-C7 -> 74.1888 | D15: 256.1893 | E15: 37.005 | F15: =F8-F7 -> 0.2 | G15: 1.408 | H15: 12.1255 | I15: 50.9548 | J15: 0.08925 | K15: 0.51175 | L15: 0.4226 | M15: 0.3036 | N15: 0.0428 | O15: 1.21 | P15: 18.2665 | Q15: 66.9554
A18: Row Labels | B18: Sum of Ca_Diss_Water | C18: Sum of Cl_Diss_Water | D18: Sum of DMS_Tot_Water | E18: Sum of EC_Phys_Water | F18: Sum of F_Diss_Water | G18: Sum of K_Diss_Water | H18: Sum of Mg_Diss_Water | I18: Sum of Na_Diss_Water | J18: Sum of NH4_N_Diss_Water | K18: Sum of NO3_NO2_N_Diss_Water | L18: Sum of P_Tot_Water | M18: Sum of pH_Diss_Water | N18: Sum of PO4_P_Diss_Water | O18: Sum of Si_Diss_Water | P18: Sum of SO4_Diss_Water | Q18: Sum of TAL_Diss_Water
A19: B81 90524 | B19: 14560.515 | C19: 41534.959 | D19: 204012.14 | E19: 33838.116 | F19: 194.812 | G19: 2064.777 | H19: 9647.439 | I19: 33165.074 | J19: 47.194 | K19: 204.063 | L19: 18.765 | M19: 6388.516 | N19: 18.108 | O19: 5999.273 | P19: 11567.141 | Q19: 80507.393
A20: 1977-09-21 | B20: 20 | C20: 40.2 | D20: 272 | E20: 36 | F20: 0.3 | G20: 1.8 | H20: 12.2 | I20: 41.5 | J20: 0.02 | K20: 0.02 | M20: 7.71 | N20: 0.05 | O20: 8.61 | P20: 12 | Q20: 117.7
A21: 1977-10-05 | B21: 12.2 | C21: 23.5 | D21: 186 | E21: 24.9 | F21: 0.14 | G21: 2.09 | H21: 8.8 | I21: 29.2 | J21: 0.04 | K21: 0.13 | M21: 7.1 | N21: 0.022 | O21: 7.41 | P21: 4.7 | Q21: 86.1
A22: 1977-10-11 | B22: 11.6 | C22: 29.6 | D22: 191 | E22: 27 | F22: 0.16 | G22: 1.91 | H22: 9.4 | I22: 32.4 | J22: 0.02 | K22: 0.06 | M22: 7.09 | N22: 0.022 | O22: 9.03 | P22: 5.7 | Q22: 82.3
A23: 1977-10-17 | B23: 12.9 | C23: 37.7 | D23: 214 | E23: 30.5 | F23: 0.18 | G23: 2.49 | H23: 10.2 | I23: 34.3 | J23: 0.02 | K23: 0.09 | M23: 7.07 | N23: 0.011 | O23: 9.43 | P23: 9.9 | Q23: 87.2
A24: 1977-10-24 | B24: 11.8 | C24: 44.3 | D24: 239 | E24: 35.8 | F24: 0.1 | G24: 2.34 | H24: 10.8 | I24: 39.9 | J24: 0.02 | K24: 0.02 | M24: 7.34 | N24: 0.003 | O24: 9.05 | P24: 9.4 | Q24: 98.4
A25: 1977-10-31 | B25: 13 | C25: 52 | D25: 278 | E25: 41.6 | F25: 0.17 | G25: 2.25 | H25: 12.3 | I25: 49.7 | J25: 0.02 | K25: 0.02 | M25: 7.37 | N25: 0.003 | O25: 9.53 | P25: 11.9 | Q25: 111.8
A26: 1977-11-07 | B26: 14.1 | C26: 51.7 | D26: 285 | E26: 39 | F26: 0.26 | G26: 1.82 | H26: 13 | I26: 49.6 | J26: 0.02 | K26: 0.02 | M26: 7.21 | N26: 0.007 | O26: 9.08 | P26: 11.8 | Q26: 116.6
A27: 1977-11-14 | B27: 14.7 | C27: 43.8 | D27: 256 | E27: 37.1 | F27: 0.32 | G27: 2.24 | H27: 11.8 | I27: 43.8 | J27: 0.78 | K27: 0.07 | M27: 7.09 | N27: 0.007 | O27: 9.34 | P27: 17.5 | Q27: 99
A28: 1977-11-21 | B28: 43.6 | C28: 14.1 | D28: 267 | E28: 33.4 | F28: 0.05 | G28: 3.57 | H28: 6.6 | I28: 18.4 | J28: 0.02 | K28: 0.1 | M28: 7.39 | N28: 0.003 | O28: 5.91 | P28: 6 | Q28: 143.1
A29: 1977-11-28 | B29: 14.3 | C29: 31.3 | D29: 189 | E29: 27.3 | F29: 0.21 | G29: 2.77 | H29: 7.8 | I29: 31.1 | J29: 0.02 | K29: 0.22 | M29: 7.21 | N29: 0.014 | O29: 7.63 | P29: 6.5 | Q29: 77.3
A30: 1977-12-05 | B30: 14.7 | C30: 23.2 | D30: 182 | E30: 24.3 | F30: 0.12 | G30: 2.56 | H30: 7.1 | I30: 25 | J30: 0.02 | K30: 0.12 | M30: 6.9 | N30: 0.011 | O30: 7.47 | P30: 9.6 | Q30: 81.2
A31: 1977-12-12 | B31: 23.1 | C31: 33 | D31: 241 | E31: 34.3 | F31: 0.2 | G31: 2 | H31: 9.6 | I31: 31.1 | J31: 0.11 | K31: 0.02 | M31: 7.29 | N31: 0.018 | O31: 9.98 | P31: 4.3 | Q31: 112.5
A32: 1977-12-19 | B32: 32.8 | C32: 29.9 | D32: 278 | E32: 38.2 | F32: 0.24 | G32: 2.02 | H32: 10.4 | I32: 32.2 | J32: 0.07 | K32: 0.02 | M32: 7.39 | N32: 0.014 | O32: 10.03 | P32: 5.2 | Q32: 135.3
A33: 1977-12-26 | B33: 17.3 | C33: 44.7 | D33: 254 | E33: 38.1 | F33: 0.25 | G33: 2.57 | H33: 11.3 | I33: 44.1 | J33: 0.05 | K33: 0.09 | M33: 7.26 | N33: 0.018 | O33: 9.82 | P33: 7.7 | Q33: 103.1
A34: 1978-01-02 | B34: 13.5 | C34: 26.4 | D34: 183 | E34: 25.4 | F34: 0.17 | G34: 2.71 | H34: 7.9 | I34: 24.4 | J34: 0.12 | K34: 0.02 | M34: 7.07 | N34: 0.011 | O34: 9.46 | P34: 4.3 | Q34: 85
A35: 1978-01-09 | B35: 5.1 | C35: 9.9 | D35: 72 | E35: 9.8 | F35: 0.05 | G35: 1.77 | H35: 3.3 | I35: 9 | J35: 0.09 | K35: 0.02 | M35: 6.76 | N35: 0.007 | O35: 7.6 | P35: 2 | Q35: 33.5
A36: 1978-01-16 | B36: 10 | C36: 10.8 | D36: 106 | E36: 13.8 | F36: 0.1 | G36: 0.15 | H36: 4.7 | I36: 10.7 | J36: 0.02 | K36: 0.02 | M36: 6.99 | N36: 0.011 | O36: 7.81 | P36: 4.6 | Q36: 53.6
A37: 1978-01-23 | B37: 13.7 | C37: 20.6 | D37: 133 | E37: 27.1 | F37: 0.16 | G37: 0.46 | H37: 3.4 | I37: 16.7 | J37: 0.16 | K37: 0.1 | M37: 7.1 | N37: 0.029 | O37: 9.36 | P37: 2 | Q37: 63.6
A38: 1978-01-30 | B38: 5 | C38: 8 | D38: 56 | E38: 11.1 | F38: 0.05 | G38: 0.5 | H38: 3 | I38: 8 | J38: 0.09 | K38: 0.04 | M38: 6.65 | N38: 0.025 | O38: 7.61 | P38: 2 | Q38: 25.4
A39: 1978-02-07 | B39: 7 | C39: 9 | D39: 88 | E39: 12.8 | F39: 0.05 | G39: 0.96 | H39: 2 | I39: 11 | J39: 0.16 | K39: 0.02 | M39: 6.93 | N39: 0.007 | O39: 8.86 | P39: 2 | Q39: 45.9
A40: 1978-02-13 | B40: 7 | C40: 10 | D40: 78 | E40: 11.2 | F40: 0.05 | G40: 2.07 | H40: 1 | I40: 11 | J40: 0.18 | K40: 0.02 | M40: 6.95 | N40: 0.018 | O40: 6.83 | P40: 8 | Q40: 31.2
A41: 1978-02-20 | B41: 9.2 | C41: 8.1 | D41: 99 | E41: 12.6 | F41: 0.53 | G41: 1.18 | H41: 4.1 | I41: 11.2 | J41: 0.06 | K41: 0.02 | M41: 6.8 | N41: 0.025 | O41: 9.19 | P41: 2 | Q41: 50.9
A42: 1978-02-27 | B42: 9 | C42: 9.7 | D42: 101 | E42: 13.9 | F42: 0.05 | G42: 0.76 | H42: 6.8 | I42: 11.1 | J42: 0.05 | K42: 0.02 | M42: 7 | N42: 0.003 | O42: 8.74 | P42: 2 | Q42: 49.6
A43: 1978-03-06 | B43: 6 | C43: 11.2 | D43: 82 | E43: 14.2 | F43: 0.11 | G43: 1.84 | H43: 3 | I43: 15.1 | J43: 0.02 | K43: 0.04 | M43: 6.99 | N43: 0.025 | O43: 8.23 | P43: 2 | Q43: 34.4
A44: 1978-03-13 | B44: 7.1 | C44: 9.8 | D44: 80 | E44: 12.6 | F44: 0.05 | G44: 1.09 | H44: 3.7 | I44: 10.3 | J44: 0.18 | K44: 0.02 | M44: 7.15 | N44: 0.018 | O44: 11.31 | P44: 2 | Q44: 36.5
A45: 1978-04-03 | B45: 6.7 | C45: 10.3 | D45: 75 | E45: 13.2 | F45: 0.05 | G45: 1.26 | H45: 3.9 | I45: 10.8 | J45: 0.15 | K45: 0.04 | M45: 7.41 | N45: 0.022 | O45: 7.83 | P45: 2 | Q45: 32.8
A46: 1978-04-10 | B46: 2.9 | C46: 12.5 | D46: 110 | E46: 17.4 | F46: 0.11 | G46: 0.73 | H46: 8.2 | I46: 18.1 | J46: 0.13 | K46: 0.26 | M46: 7.11 | N46: 0.007 | O46: 12.49 | P46: 2 | Q46: 54.5
A47: 1978-04-17 | B47: 6 | C47: 14 | D47: 115 | E47: 17.2 | F47: 0.05 | G47: 0.91 | H47: 6.4 | I47: 15.8 | J47: 0.13 | K47: 0.02 | M47: 7.2 | N47: 0.018 | O47: 9.04 | P47: 2 | Q47: 58.4
A48: 1978-04-24 | B48: 10.4 | C48: 15.3 | D48: 121 | E48: 17.9 | F48: 0.05 | G48: 0.91 | H48: 6.3 | I48: 16.6 | J48: 0.12 | K48: 0.02 | M48: 7.17 | N48: 0.011 | O48: 9.31 | P48: 2 | Q48: 56.9
A49: 1978-05-01 | B49: 10.3 | C49: 14 | D49: 119 | E49: 18 | F49: 0.05 | G49: 0.59 | H49: 5.8 | I49: 16.9 | J49: 0.14 | K49: 0.23 | M49: 7.2 | N49: 0.018 | O49: 9.2 | P49: 2 | Q49: 55.5
A50: 1978-05-08 | E50: 18
A51: 1978-05-15 | B51: 10.2 | C51: 16.6 | D51: 129 | E51: 27.9 | F51: 0.05 | G51: 0.74 | H51: 7 | I51: 18.8 | J51: 0.26 | K51: 0.02 | M51: 7.3 | N51: 0.014 | O51: 8.79 | P51: 2 | Q51: 61.3
A52: 1978-05-22 | B52: 12.8 | C52: 18.8 | D52: 141 | E52: 28.8 | F52: 0.05 | G52: 0.86 | H52: 6.4 | I52: 19.8 | J52: 0.05 | K52: 0.07 | M52: 7.3 | N52: 0.014 | O52: 8.73 | P52: 2 | Q52: 66.1
A53: 1978-05-29 | B53: 12.6 | C53: 20.1 | D53: 156 | E53: 21.8 | F53: 0.12 | G53: 1.23 | H53: 7.3 | I53: 21 | J53: 0.13 | K53: 0.22 | M53: 7.3 | N53: 0.003 | O53: 8.8 | P53: 2 | Q53: 73.8
A54: 1978-06-05 | B54: 11.7 | C54: 18.3 | D54: 141 | E54: 21.1 | F54: 0.05 | G54: 1.36 | H54: 7.4 | I54: 19 | J54: 0.04 | K54: 0.19 | M54: 7.6 | N54: 0.007 | O54: 8.66 | P54: 2 | Q54: 65.5
A55: 1978-06-12 | B55: 13.7 | C55: 21.4 | D55: 177 | E55: 27.4 | F55: 0.1 | G55: 2.67 | H55: 7.8 | I55: 22.6 | J55: 0.05 | K55: 0.08 | M55: 7.18 | N55: 0.011 | O55: 8.89 | P55: 2 | Q55: 88.7
A56: 1978-06-19 | B56: 14.2 | C56: 22.6 | D56: 198 | E56: 27 | F56: 0.05 | G56: 1.33 | H56: 8.4 | I56: 23.2 | J56: 0.16 | K56: 0.02 | M56: 6.91 | N56: 0.022 | O56: 8.84 | P56: 2 | Q56: 102.9
A57: 1978-06-26 | E57: 24
A58: 1978-07-03 | E58: 25
A59: 1978-07-10 | B59: 13 | C59: 26.8 | D59: 191 | E59: 27.8 | F59: 0.05 | G59: 1.11 | H59: 9 | I59: 27.9 | J59: 0.14 | K59: 0.02 | M59: 7.4 | N59: 0.003 | O59: 9.16 | P59: 2 | Q59: 90.2
A60: 1978-07-17 | B60: 16.1 | C60: 30 | D60: 195 | E60: 28.2 | F60: 0.15 | G60: 1.53 | H60: 9.5 | I60: 27 | J60: 0.06 | K60: 0.09 | M60: 7.51 | N60: 0.003 | O60: 9.16 | P60: 4 | Q60: 87.1
A61: 1978-07-24 | B61: 15.2 | C61: 27.2 | D61: 181 | E61: 26.9 | F61: 0.05 | G61: 1.11 | H61: 7.7 | I61: 27.2 | J61: 0.17 | K61: 0.12 | M61: 7.4 | N61: 0.003 | O61: 9.12 | P61: 4.4 | Q61: 80
A62: 1978-07-31 | B62: 14.9 | C62: 29.5 | D62: 196 | E62: 29.5 | F62: 0.05 | G62: 1.37 | H62: 9.6 | I62: 30 | J62: 0.09 | K62: 0.11 | M62: 7.55 | N62: 0.011 | O62: 8.59 | P62: 4.1 | Q62: 86.8
A63: 1978-08-07 | B63: 14 | C63: 31.7 | D63: 204 | E63: 32.2 | F63: 0.05 | G63: 0.86 | H63: 9.5 | I63: 32.5 | J63: 0.1 | K63: 0.18 | M63: 7.8 | N63: 0.007 | O63: 9.28 | P63: 4.4 | Q63: 90.6
A64: 1978-08-14 | B64: 16.3 | C64: 40.4 | D64: 239 | E64: 36.2 | F64: 0.05 | G64: 1.28 | H64: 11.9 | I64: 36.8 | J64: 0.12 | K64: 0.11 | M64: 7.21 | N64: 0.003 | O64: 8.47 | P64: 4.5 | Q64: 103.9
A65: 1978-08-21 | B65: 20.9 | C65: 46.8 | D65: 287 | E65: 41 | F65: 0.24 | G65: 1.36 | H65: 13.3 | I65: 44.7 | J65: 0.16 | K65: 0.26 | M65: 7.35 | N65: 0.018 | O65: 8.79 | P65: 10.6 | Q65: 121.1
A66: 1978-08-28 | B66: 19.9 | C66: 56.3 | D66: 307 | E66: 44 | F66: 0.23 | G66: 1.45 | H66: 14.3 | I66: 50.2 | J66: 0.05 | K66: 0.14 | M66: 7.7 | N66: 0.014 | O66: 8.67 | P66: 13.5 | Q66: 123.6
A67: 1978-09-05 | B67: 21.6 | C67: 64.5 | D67: 346 | E67: 49 | F67: 0.28 | G67: 1.61 | H67: 16.1 | I67: 58 | J67: 0.07 | K67: 0.14 | M67: 7.8 | N67: 0.014 | O67: 8.48 | P67: 15.1 | Q67: 137.5
A68: 1978-09-11 | B68: 22 | C68: 66.3 | D68: 359 | E68: 53 | F68: 0.18 | G68: 1.45 | H68: 16.5 | I68: 64.6 | J68: 0.04 | K68: 0.09 | M68: 7.89 | N68: 0.018 | O68: 8.72 | P68: 13.5 | Q68: 142.6
A69: 1978-09-25 | B69: 20.3 | C69: 51.9 | D69: 330 | E69: 45.8 | F69: 0.31 | G69: 1.29 | H69: 15.3 | I69: 54.8 | J69: 0.09 | K69: 0.02 | M69: 7.1 | N69: 0.068 | O69: 9 | P69: 12.1 | Q69: 142.6
A70: 1978-10-02 | B70: 18.6 | C70: 55.5 | D70: 325 | E70: 45.5 | F70: 0.31 | G70: 1.54 | H70: 16.6 | I70: 50.2 | J70: 0.07 | K70: 0.02 | M70: 7.4 | N70: 0.022 | O70: 8.98 | P70: 8.3 | Q70: 142.6
A71: 1978-10-09 | B71: 18.6 | C71: 61.6 | D71: 341 | E71: 49.3 | F71: 0.32 | G71: 1.4 | H71: 16.6 | I71: 58.5 | J71: 0.16 | K71: 0.08 | M71: 7.14 | N71: 0.014 | O71: 8.89 | P71: 11.2 | Q71: 141
A72: 1978-10-16 | B72: 15.7 | C72: 45.8 | D72: 275 | E72: 29.7 | F72: 0.16 | G72: 1.23 | H72: 13.3 | I72: 44.3 | J72: 0.06 | K72: 0.13 | M72: 7.44 | N72: 0.014 | O72: 9.24 | P72: 7 | Q72: 120.2
A73: 1978-10-23 | B73: 13.5 | C73: 38.3 | D73: 228 | E73: 33.9 | F73: 0.23 | G73: 1.92 | H73: 10.9 | I73: 36.3 | J73: 0.12 | K73: 0.26 | M73: 7.31 | N73: 0.011 | O73: 9.48 | P73: 2 | Q73: 100.8
A74: 1978-10-30 | B74: 12.3 | C74: 29.3 | D74: 191 | E74: 28.1 | F74: 0.23 | G74: 1.48 | H74: 9.1 | I74: 28 | J74: 0.08 | K74: 0.02 | M74: 7.1 | N74: 0.014 | O74: 9.07 | P74: 5.8 | Q74: 85.6
A75: 1978-11-06 | B75: 15.3 | C75: 41.3 | D75: 247 | E75: 36.7 | F75: 0.28 | G75: 2.09 | H75: 11.1 | I75: 41.6 | J75: 0.02 | K75: 0.02 | M75: 6.87 | N75: 0.011 | O75: 8.77 | P75: 13.3 | Q75: 100
A76: 1978-11-13 | B76: 12.4 | C76: 25.5 | D76: 168 | E76: 27.2 | F76: 0.21 | G76: 1.67 | H76: 9.2 | I76: 24.8 | J76: 0.09 | K76: 0.05 | M76: 8.08 | N76: 0.014 | O76: 8.87 | P76: 2 | Q76: 76
A77: 1978-11-20 | B77: 13.5 | C77: 27.4 | D77: 184 | E77: 26.2 | F77: 0.15 | G77: 1.54 | H77: 9.2 | I77: 26.7 | J77: 0.02 | K77: 0.12 | M77: 7.2 | N77: 0.014 | O77: 8.32 | P77: 10.1 | Q77: 77.5
A78: 1978-11-27 | B78: 13.8 | C78: 34.5 | D78: 197 | E78: 29.3 | F78: 0.15 | G78: 1.56 | H78: 9.3 | I78: 30.6 | J78: 0.07 | K78: 0.05 | M78: 7.01 | N78: 0.022 | O78: 9.11 | P78: 5.6 | Q78: 82.8
A79: 1978-12-04 | B79: 15.2 | C79: 31 | D79: 209 | E79: 26.9 | F79: 0.26 | G79: 2.12 | H79: 9 | I79: 28.3 | J79: 0.05 | K79: 0.28 | M79: 7.21 | N79: 0.029 | O79: 8.4 | P79: 12.3 | Q79: 89.5
A80: 1978-12-11 | B80: 14.4 | C80: 27 | D80: 180 | E80: 29.9 | F80: 0.15 | G80: 1.95 | H80: 9 | I80: 26.3 | J80: 0.05 | K80: 0.09 | M80: 7.24 | N80: 0.065 | O80: 9.01 | P80: 2 | Q80: 82.4
A81: 1978-12-18 | B81: 14.6 | C81: 24.6 | D81: 181 | E81: 29.7 | F81: 0.12 | G81: 1.64 | H81: 9.2 | I81: 26 | J81: 0.06 | K81: 0.27 | M81: 7.37 | N81: 0.011 | O81: 9.52 | P81: 2 | Q81: 83.9
A82: 1979-01-02 | B82: 14.1 | C82: 31.5 | D82: 200 | E82: 29.9 | F82: 0.16 | G82: 1.4 | H82: 10 | I82: 30 | J82: 0.02 | K82: 0.04 | M82: 7.5 | N82: 0.014 | O82: 9.85 | P82: 2 | Q82: 89.6
A83: 1979-01-08 | B83: 14.7 | C83: 29.1 | D83: 198 | E83: 27.3 | F83: 0.22 | G83: 1.96 | H83: 9.7 | I83: 28 | J83: 0.02 | K83: 0.08 | M83: 7.29 | N83: 0.022 | O83: 8.73 | P83: 4 | Q83: 90.2
A84: 1979-04-23 | B84: 12.4 | C84: 24.7 | D84: 167 | E84: 24.9 | F84: 0.13 | G84: 1.92 | H84: 7.6 | I84: 25.2 | J84: 0.02 | K84: 0.08 | M84: 7.08 | N84: 0.059 | O84: 8.35 | P84: 5.9 | Q84: 72.7
A85: 1979-04-30 | B85: 14.1 | C85: 27.9 | D85: 195 | E85: 27.6 | F85: 0.14 | G85: 1.24 | H85: 8.8 | I85: 28.3 | J85: 0.02 | K85: 0.13 | M85: 7.32 | N85: 0.047 | O85: 9.49 | P85: 8.1 | Q85: 86.6
A86: 1979-05-07 | B86: 14.3 | C86: 32.3 | D86: 208 | E86: 30.6 | F86: 0.1 | G86: 1.24 | H86: 9.5 | I86: 31.7 | J86: 0.02 | K86: 0.26 | M86: 7.32 | N86: 0.413 | O86: 9.7 | P86: 9.8 | Q86: 87.8
A87: 1979-05-14 | B87: 12.7 | C87: 21.5 | D87: 151 | E87: 22.6 | F87: 0.05 | G87: 1.2 | H87: 8 | I87: 19.8 | J87: 0.02 | K87: 0.34 | M87: 7.44 | N87: 0.044 | O87: 8.93 | P87: 4.5 | Q87: 67.1
A88: 1979-05-21 | B88: 12.4 | C88: 22.7 | D88: 159 | E88: 22.3 | F88: 0.12 | G88: 1.29 | H88: 7.7 | I88: 22.6 | J88: 0.02 | K88: 0.28 | M88: 7.35 | N88: 0.062 | O88: 9.23 | P88: 4 | Q88: 70.9
A89: 1979-05-28 | B89: 14.5 | C89: 28.3 | D89: 178 | E89: 26.6 | F89: 0.11 | G89: 1.5 | H89: 8.7 | I89: 26.8 | J89: 0.02 | K89: 0.29 | M89: 7.41 | N89: 0.055 | O89: 9.39 | P89: 6.2 | Q89: 74.1
A90: 1979-06-04 | B90: 15 | C90: 36.3 | D90: 210 | E90: 32.3 | F90: 0.21 | G90: 1.48 | H90: 9.3 | I90: 33.9 | J90: 0.02 | K90: 0.19 | M90: 7.47 | N90: 0.071 | O90: 9.48 | P90: 8 | Q90: 86.2
A91: 1979-06-18 | B91: 16.6 | C91: 45.8 | D91: 255 | E91: 38.7 | F91: 0.25 | G91: 1.26 | H91: 10.9 | I91: 44.2 | J91: 0.02 | K91: 0.27 | M91: 7.33 | N91: 0.033 | O91: 9.13 | P91: 11.9 | Q91: 101
A92: 1979-06-23 | B92: 17.5 | C92: 51.3 | D92: 281 | E92: 41.5 | F92: 0.33 | G92: 1.34 | H92: 12.2 | I92: 50.1 | J92: 0.02 | K92: 0.15 | M92: 7.57 | N92: 0.037 | O92: 8.5 | P92: 11.8 | Q92: 111.4
A93: 1979-10-15 | B93: 18.7 | C93: 55.4 | D93: 317 | E93: 46.3 | F93: 0.33 | G93: 1.83 | H93: 13.5 | I93: 56.2 | J93: 0.04 | K93: 0.02 | M93: 7.7 | N93: 0.003 | O93: 9.88 | P93: 12.8 | Q93: 129.9
A94: 1979-11-12 | B94: 16 | C94: 42.5 | D94: 243 | E94: 35.8 | F94: 0.26 | G94: 2.02 | H94: 11.5 | I94: 39.3 | J94: 0.02 | K94: 0.14 | M94: 7.26 | N94: 0.003 | O94: 10.15 | P94: 6.5 | Q94: 102
A95: 1979-11-19 | B95: 19 | C95: 51.1 | D95: 269 | E95: 42.9 | F95: 0.28 | G95: 1.8 | H95: 11.9 | I95: 46.2 | J95: 0.02 | K95: 0.04 | M95: 7.4 | N95: 0.003 | O95: 10.02 | P95: 9.8 | Q95: 105.6
A96: 1979-11-26 | B96: 18.7 | C96: 59.5 | D96: 295 | E96: 46.1 | F96: 0.3 | G96: 1.78 | H96: 13 | I96: 54 | J96: 0.02 | K96: 0.15 | M96: 7.4 | N96: 0.003 | O96: 10.41 | P96: 2 | Q96: 119.4
A97: 1979-12-08 | B97: 14.6 | C97: 34.4 | D97: 228 | E97: 33.9 | F97: 0.26 | G97: 1.81 | H97: 11.1 | I97: 34.3 | J97: 0.02 | K97: 0.02 | M97: 7.35 | N97: 0.003 | O97: 9.29 | P97: 9.2 | Q97: 100.6
A98: 1979-12-10 | B98: 13.1 | C98: 26.4 | D98: 198 | E98: 25.6 | F98: 0.13 | G98: 2.68 | H98: 8.6 | I98: 26 | J98: 0.02 | K98: 0.76 | M98: 7.1 | N98: 0.01 | O98: 9.38 | P98: 8.7 | Q98: 89.5
A99: 1979-12-17 | B99: 10.9 | C99: 18.8 | D99: 143 | E99: 19.3 | F99: 0.11 | G99: 2.5 | H99: 6.5 | I99: 18 | J99: 0.02 | K99: 0.5 | M99: 7.17 | N99: 0.003 | O99: 10.2 | P99: 5.2 | Q99: 64.2
A100: 1979-12-31 | B100: 12.2 | C100: 22.3 | D100: 155 | E100: 21.7 | F100: 0.05 | G100: 2.97 | H100: 6.8 | I100: 20 | J100: 0.02 | K100: 0.52 | M100: 7.08 | N100: 0.012 | O100: 10.1 | P100: 8.9 | Q100: 64.8
A101: 1980-01-07 | B101: 9.1 | C101: 13.3 | D101: 118 | E101: 14.8 | F101: 0.05 | G101: 4.72 | H101: 4.5 | I101: 12 | J101: 0.06 | K101: 1.93 | M101: 7 | N101: 0.046 | O101: 6.79 | P101: 12.5 | Q101: 43.2
A102: 1980-01-14 | B102: 14.2 | C102: 30 | D102: 187 | E102: 25.9 | F102: 0.12 | G102: 3.3 | H102: 7.6 | I102: 25.5 | J102: 0.05 | K102: 1.38 | M102: 7.2 | N102: 0.03 | O102: 11.15 | P102: 11.5 | Q102: 72.8
A103: 1980-01-21 | B103: 15.2 | C103: 29.3 | D103: 189 | E103: 27.7 | F103: 0.16 | G103: 1.81 | H103: 8.8 | I103: 25.5 | J103: 0.02 | K103: 1.37 | M103: 7.26 | N103: 0.008 | O103: 12.21 | P103: 6.8 | Q103: 78.5
A104: 1980-01-28 | B104: 10.6 | C104: 34.9 | D104: 139 | E104: 18.8 | F104: 0.05 | G104: 2.57 | H104: 5.9 | I104: 18.7 | J104: 0.09 | K104: 1.41 | M104: 6.82 | N104: 0.039 | O104: 10.58 | P104: 17.6 | Q104: 34.2
A105: 1980-02-04 | B105: 13.7 | C105: 25.6 | D105: 168 | E105: 25.4 | F105: 0.14 | G105: 1.93 | H105: 8.6 | I105: 23.2 | J105: 0.02 | K105: 0.93 | M105: 7.32 | N105: 0.006 | O105: 11.75 | P105: 5.1 | Q105: 69.8
A106: 1980-02-11 | B106: 10.8 | C106: 22.9 | D106: 143 | E106: 19.2 | F106: 0.14 | G106: 2.78 | H106: 6.2 | I106: 18.8 | J106: 0.02 | K106: 0.25 | M106: 7 | N106: 0.022 | O106: 7.31 | P106: 12.1 | Q106: 55.5
A107: 1980-02-18 | B107: 9.2 | C107: 16.9 | D107: 106 | E107: 15.3 | F107: 0.05 | G107: 2.74 | H107: 4.4 | I107: 13.6 | J107: 0.02 | K107: 0.41 | M107: 6.76 | N107: 0.025 | O107: 6.21 | P107: 9.3 | Q107: 39.4
A108: 1980-03-03 | B108: 9.5 | C108: 18.3 | D108: 117 | E108: 16.3 | F108: 0.1 | G108: 1.79 | H108: 4.8 | I108: 14.6 | J108: 0.04 | K108: 0.08 | M108: 6.55 | N108: 0.017 | O108: 10.54 | P108: 2 | Q108: 52.6
A109: 1980-03-10 | B109: 9.6 | C109: 16.2 | D109: 106 | E109: 16.2 | F109: 0.05 | G109: 1.33 | H109: 5.2 | I109: 12.9 | J109: 0.02 | K109: 0.18 | M109: 6.82 | N109: 0.003 | O109: 8.19 | P109: 2 | Q109: 48.4
A110: 1980-03-17 | B110: 10.1 | C110: 19.5 | D110: 128 | E110: 19 | F110: 0.39 | G110: 1.46 | H110: 6.9 | I110: 18 | J110: 0.02 | K110: 0.02 | M110: 7.14 | N110: 0.003 | O110: 8.74 | P110: 2 | Q110: 56.4
A111: 1980-03-24 | B111: 10.4 | C111: 19.4 | D111: 118 | E111: 19 | F111: 0.05 | G111: 1.82 | H111: 6.1 | I111: 18.7 | J111: 0.02 | K111: 0.02 | M111: 6.7 | N111: 0.022 | O111: 8.99 | P111: 2 | Q111: 48
A112: 1980-03-31 | B112: 11.4 | C112: 21 | D112: 128 | E112: 17.8 | F112: 0.1 | G112: 1.5 | H112: 6.9 | I112: 20.9 | J112: 0.02 | K112: 0.05 | M112: 6.76 | N112: 0.014 | O112: 9.15 | P112: 2 | Q112: 51.3
A113: 1980-04-07 | B113: 12.3 | C113: 24.9 | D113: 138 | E113: 23.1 | F113: 0.1 | G113: 1.37 | H113: 7.6 | I113: 22.1 | J113: 0.02 | K113: 0.02 | M113: 6.82 | N113: 0.005 | O113: 9.32 | P113: 2 | Q113: 54.9
A114: 1980-04-14 | B114: 12.7 | C114: 24.9 | D114: 152 | E114: 23.9 | F114: 0.12 | G114: 1.82 | H114: 7.4 | I114: 25.1 | J114: 0.02 | K114: 0.02 | M114: 6.82 | N114: 0.048 | O114: 8.75 | P114: 5.2 | Q114: 61.2
A115: 1980-04-21 | B115: 12.9 | C115: 24.1 | D115: 144 | E115: 24.2 | F115: 0.1 | G115: 1.63 | H115: 8 | I115: 23.6 | J115: 0.02 | K115: 0.02 | M115: 6.79 | N115: 0.007 | O115: 9.16 | P115: 2 | Q115: 57.5
A116: 1980-04-28 | B116: 15.2 | C116: 30.8 | D116: 172 | E116: 28.3 | F116: 0.05 | G116: 1.56 | H116: 9.3 | I116: 28.4 | J116: 0.02 | K116: 0.02 | M116: 7.2 | N116: 0.005 | O116: 9.28 | P116: 8.7 | Q116: 63.8
A117: 1980-05-05 | B117: 16 | C117: 37.3 | D117: 195 | E117: 32.5 | F117: 0.2 | G117: 1.3 | H117: 10.6 | I117: 33 | J117: 0.02 | K117: 0.02 | M117: 7.3 | N117: 0.006 | O117: 9.65 | P117: 9.2 | Q117: 71.8
A118: 1980-05-12 | B118: 18.1 | C118: 45.2 | D118: 232 | E118: 38.5 | F118: 0.18 | G118: 1.36 | H118: 12 | I118: 42.2 | J118: 0.02 | K118: 0.02 | M118: 7.02 | N118: 0.003 | O118: 9.58 | P118: 11 | Q118: 83.4
A119: 1980-05-19 | B119: 20 | C119: 53.4 | D119: 260 | E119: 43.4 | F119: 0.24 | G119: 1.42 | H119: 13.9 | I119: 47.7 | J119: 0.02 | K119: 0.02 | M119: 7.2 | N119: 0.003 | O119: 9.49 | P119: 11.3 | Q119: 91.5
A120: 1980-05-26 | B120: 21.5 | C120: 55.5 | D120: 276 | E120: 46 | F120: 0.28 | G120: 1.3 | H120: 14.4 | I120: 51.1 | J120: 0.04 | K120: 0.02 | M120: 7.34 | N120: 0.003 | O120: 8.95 | P120: 11.9 | Q120: 98.1
A121: 1980-06-02 | B121: 22.5 | C121: 62.1 | D121: 302 | E121: 49.8 | F121: 0.32 | G121: 1.42 | H121: 15.3 | I121: 58.9 | J121: 0.02 | K121: 0.04 | M121: 7.4 | N121: 0.003 | O121: 8.95 | P121: 12.9 | Q121: 105.5
A122: 1980-06-09 | B122: 22.9 | C122: 67.2 | D122: 324 | E122: 52.9 | F122: 0.33 | G122: 1.3 | H122: 16.7 | I122: 62.8 | J122: 0.02 | K122: 0.02 | M122: 7.4 | N122: 0.003 | O122: 8.59 | P122: 14.2 | Q122: 113.8
A123: 1980-06-16 | B123: 23.6 | C123: 68.4 | D123: 367 | E123: 53.6 | F123: 0.3 | G123: 1.3 | H123: 16.9 | I123: 63 | J123: 0.02 | K123: 0.13 | M123: 7.37 | N123: 0.003 | O123: 8.9 | P123: 19.1 | Q123: 142.6
A124: 1980-06-20 | B124: 25.4 | C124: 81 | D124: 413 | E124: 60.3 | F124: 0.32 | G124: 1.37 | H124: 18.9 | I124: 72.1 | J124: 0.02 | K124: 0.02 | M124: 7.86 | N124: 0.003 | O124: 7.93 | P124: 21.1 | Q124: 158.1
A125: 1980-06-23 | B125: 26 | C125: 79 | D125: 404 | E125: 57.6 | F125: 0.37 | G125: 1.55 | H125: 18.7 | I125: 69.7 | J125: 0.04 | K125: 0.16 | M125: 8.38 | N125: 0.005 | O125: 8.84 | P125: 22.3 | Q125: 152
A126: 1980-07-07 | B126: 25.8 | C126: 82.8 | D126: 428 | E126: 62.8 | F126: 0.39 | G126: 1.37 | H126: 18.9 | I126: 77.5 | J126: 0.02 | K126: 0.1 | M126: 7.6 | N126: 0.003 | O126: 7.93 | P126: 23.2 | Q126: 161.9
A127: 1980-07-14 | B127: 27.4 | C127: 78.4 | D127: 426 | E127: 61.8 | F127: 0.47 | G127: 1.36 | H127: 19.5 | I127: 73.5 | J127: 0.02 | K127: 0.02 | M127: 7.57 | N127: 0.003 | O127: 6.04 | P127: 20.9 | Q127: 167.6
A128: 1980-07-21 | B128: 26 | C128: 73.3 | D128: 402 | E128: 58.6 | F128: 0.41 | G128: 1.37 | H128: 18.6 | I128: 69.6 | J128: 0.02 | K128: 0.02 | M128: 7.57 | N128: 0.006 | O128: 6.57 | P128: 18.7 | Q128: 158.9
A129: 1980-07-28 | B129: 25.2 | C129: 73.8 | D129: 396 | E129: 58.3 | F129: 0.4 | G129: 1.37 | H129: 18.9 | I129: 66.3 | J129: 0.02 | K129: 0.02 | M129: 7.63 | N129: 0.003 | O129: 6.66 | P129: 17.3 | Q129: 157.8
A130: 1980-08-04 | B130: 25.6 | C130: 74.4 | D130: 397 | E130: 58.2 | F130: 0.4 | G130: 1.3 | H130: 18.4 | I130: 68.7 | J130: 0.02 | K130: 0.21 | M130: 7.54 | N130: 0.003 | O130: 7.02 | P130: 18.7 | Q130: 154.7
A131: 1980-08-11 | B131: 23.2 | C131: 69.7 | D131: 372 | E131: 54 | F131: 0.39 | G131: 1.36 | H131: 16.5 | I131: 63.8 | J131: 0.02 | K131: 0.23 | M131: 7.51 | N131: 0.003 | O131: 7.02 | P131: 19.3 | Q131: 144.7
A132: 1980-08-18 | B132: 22.8 | C132: 65.8 | D132: 359 | E132: 53.1 | F132: 0.39 | G132: 1.54 | H132: 16.6 | I132: 65.4 | J132: 0.02 | K132: 0.24 | M132: 7.48 | N132: 0.003 | O132: 7.28 | P132: 20 | Q132: 135.5
A133: 1980-08-25 | B133: 22.3 | C133: 66.2 | D133: 341 | E133: 53.2 | F133: 0.37 | G133: 1.51 | H133: 17.6 | I133: 61.8 | J133: 0.02 | K133: 0.14 | M133: 7.2 | N133: 0.01 | O133: 6.99 | P133: 16 | Q133: 126.7
A134: 1980-09-01 | B134: 23.2 | C134: 73.1 | D134: 368 | E134: 56.5 | F134: 0.4 | G134: 1.51 | H134: 18.7 | I134: 66.9 | J134: 0.02 | K134: 0.08 | M134: 7.2 | N134: 0.012 | O134: 6.89 | P134: 17.7 | Q134: 136.3
A135: 1980-09-08 | B135: 24.2 | C135: 83.4 | D135: 403 | E135: 63.7 | F135: 0.43 | G135: 1.51 | H135: 20 | I135: 75.7 | J135: 0.02 | K135: 0.14 | M135: 7.23 | N135: 0.012 | O135: 6.98 | P135: 20.3 | Q135: 144.8
A136: 1980-09-15 | B136: 19.2 | C136: 45.7 | D136: 255 | E136: 39.5 | F136: 0.32 | G136: 2.73 | H136: 12.6 | I136: 41.8 | J136: 0.02 | K136: 0.22 | M136: 6.94 | N136: 0.01 | O136: 8.2 | P136: 13.1 | Q136: 97.5
A137: 1980-09-22 | B137: 20.8 | C137: 47.8 | D137: 273 | E137: 42.2 | F137: 0.36 | G137: 2.18 | H137: 14.4 | I137: 43.8 | J137: 0.02 | K137: 0.25 | M137: 7.05 | N137: 0.025 | O137: 10.01 | P137: 14.3 | Q137: 104.8
A138: 1980-09-29 | B138: 20.8 | C138: 59.2 | D138: 305 | E138: 47.8 | F138: 0.33 | G138: 2.11 | H138: 16 | I138: 52.9 | J138: 0.02 | K138: 0.23 | M138: 7.08 | N138: 0.013 | O138: 9.62 | P138: 16 | Q138: 112.2
A139: 1980-10-06 | B139: 19.8 | C139: 66.6 | D139: 319 | E139: 50 | F139: 0.35 | G139: 2.36 | H139: 15.7 | I139: 59.6 | J139: 0.02 | K139: 0.04 | M139: 7.11 | N139: 0.009 | O139: 9.52 | P139: 16.4 | Q139: 113.2
A140: 1980-10-13 | B140: 18.5 | C140: 72.9 | D140: 349 | E140: 54.9 | F140: 0.4 | G140: 2.11 | H140: 16.8 | I140: 71.2 | J140: 0.02 | K140: 0.08 | M140: 7.11 | N140: 0.013 | O140: 9.14 | P140: 18.1 | Q140: 121.7
A141: 1980-11-03 | B141: 17.5 | C141: 50.6 | D141: 274 | E141: 40.7 | F141: 0.24 | G141: 1.71 | H141: 15.7 | I141: 46.4 | J141: 0.1 | K141: 0.1 | M141: 6.85 | N141: 0.003 | O141: 8.35 | P141: 12.9 | Q141: 104.9
A142: 1980-11-10 | B142: 18.9 | C142: 62.1 | D142: 315 | E142: 46.1 | F142: 0.31 | G142: 1.77 | H142: 18.3 | I142: 55.9 | J142: 0.1 | K142: 0.15 | M142: 6.97 | N142: 0.003 | O142: 8.34 | P142: 14.9 | Q142: 116.4
A143: 1980-11-17 | B143: 15.7 | C143: 35.4 | D143: 215 | E143: 31.3 | F143: 0.21 | G143: 1.7 | H143: 13.3 | I143: 31.8 | J143: 0.11 | K143: 0.34 | M143: 6.73 | N143: 0.003 | O143: 8.81 | P143: 10.1 | Q143: 86
A144: 1980-11-24 | B144: 12.9 | C144: 24.3 | D144: 167 | E144: 24.4 | F144: 0.12 | G144: 2.08 | H144: 9.5 | I144: 23.5 | J144: 0.11 | K144: 0.18 | M144: 6.59 | N144: 0.003 | O144: 8.71 | P144: 9 | Q144: 69.2
A145: 1980-12-01 | B145: 11 | C145: 19.9 | D145: 137 | E145: 19.9 | F145: 0.05 | G145: 2.53 | H145: 7.5 | I145: 19.2 | J145: 0.06 | K145: 0.14 | M145: 6.42 | N145: 0.012 | O145: 7.74 | P145: 9.4 | Q145: 54.5
A146: 1980-12-08 | B146: 14.1 | C146: 29.8 | D146: 178 | E146: 26.6 | F146: 0.31 | G146: 1.75 | H146: 9.6 | I146: 25.8 | J146: 0.11 | K146: 0.11 | M146: 6.56 | N146: 0.008 | O146: 9.35 | P146: 9.8 | Q146: 70.3
A147: 1980-12-21 | B147: 12.7 | C147: 25.9 | D147: 154 | E147: 22.8 | F147: 0.05 | G147: 2.52 | H147: 7.6 | I147: 22.6 | J147: 0.11 | K147: 0.16 | M147: 6.47 | N147: 0.023 | O147: 8.28 | P147: 10.3 | Q147: 58.7
A148: 1981-01-08 | B148: 9.4 | C148: 17.9 | D148: 128 | E148: 18.4 | F148: 0.05 | G148: 2.44 | H148: 5.5 | I148: 18.1 | J148: 0.07 | K148: 0.13 | M148: 6.6 | N148: 0.044 | O148: 7.76 | P148: 2 | Q148: 57.2
A149: 1981-01-15 | B149: 7.7 | C149: 11 | D149: 93 | E149: 13.4 | F149: 0.05 | G149: 1.71 | H149: 4.7 | I149: 11.6 | J149: 0.08 | K149: 0.02 | M149: 6.5 | N149: 0.016 | O149: 7.76 | P149: 2 | Q149: 43.3
A150: 1981-01-29 | B150: 9.4 | C150: 11.6 | D150: 111 | E150: 15.5 | F150: 0.05 | G150: 2.56 | H150: 4.9 | I150: 13.8 | J150: 0.07 | K150: 0.14 | M150: 6.6 | N150: 0.04 | O150: 8.24 | P150: 4.7 | Q150: 51.8
A151: 1981-02-12 | B151: 9.4 | C151: 13.7 | D151: 102 | E151: 15 | F151: 0.05 | G151: 1.39 | H151: 4.5 | I151: 13.3 | J151: 0.04 | K151: 0.12 | M151: 6.7 | N151: 0.01 | O151: 8.83 | P151: 7 | Q151: 42.7
A152: 1981-02-19 | B152: 10.5 | C152: 17.8 | D152: 115 | E152: 16.8 | F152: 0.05 | G152: 1.2 | H152: 5.1 | I152: 14.4 | J152: 0.02 | K152: 0.15 | M152: 6.7 | N152: 0.003 | O152: 9.01 | P152: 6.9 | Q152: 48.1
A153: 1981-02-26 | B153: 9.2 | C153: 15.5 | D153: 107 | E153: 15.4 | F153: 0.05 | G153: 1.08 | H153: 4.9 | I153: 13.3 | J153: 0.02 | K153: 0.23 | M153: 6.7 | N153: 0.003 | O153: 8.83 | P153: 6.4 | Q153: 45.5
A154: 1981-03-04 | B154: 11.3 | C154: 19.6 | D154: 127 | E154: 19.1 | F154: 0.05 | G154: 1.7 | H154: 5.5 | I154: 17.7 | J154: 0.04 | K154: 0.15 | M154: 6.8 | N154: 0.014 | O154: 8.56 | P154: 6.4 | Q154: 52.7
A155: 1981-03-12 | B155: 8.5 | C155: 12.9 | D155: 94 | E155: 13.2 | F155: 0.1 | G155: 3.74 | H155: 4.9 | I155: 11.7 | J155: 0.1 | K155: 0.04 | M155: 6 | N155: 0.035 | O155: 7.36 | P155: 8.9 | Q155: 35.2
A156: 1981-03-19 | B156: 10.8 | C156: 21.3 | D156: 120 | E156: 16.9 | F156: 0.1 | G156: 1.37 | H156: 6.6 | I156: 14.5 | J156: 0.07 | K156: 0.26 | M156: 6.11 | N156: 0.009 | O156: 8.6 | P156: 8.6 | Q156: 45.8
A157: 1981-03-26 | B157: 11.5 | C157: 19.9 | D157: 126 | E157: 18 | F157: 0.05 | G157: 1.44 | H157: 7.3 | I157: 15.2 | J157: 0.06 | K157: 0.19 | M157: 6.17 | N157: 0.003 | O157: 8.78 | P157: 8.9 | Q157: 49.8
A158: 1981-04-02 | E158: 9.4
A159: 1981-04-09 | E159: 19.6
A160: 1981-04-16 | E160: 14.5
A161: 1981-04-23 | B161: 9.9 | C161: 20.6 | D161: 130 | E161: 19.8 | F161: 0.14 | G161: 0.83 | H161: 6.2 | I161: 16.5 | J161: 0.04 | K161: 0.2 | M161: 6.53 | N161: 0.006 | O161: 9.29 | P161: 7.9 | Q161: 55.1
A162: 1981-04-30 | E162: 16
A163: 1981-05-07 | B163: 10.7 | C163: 22.4 | D163: 144 | E163: 20.1 | F163: 0.05 | G163: 0.88 | H163: 6.7 | I163: 18.9 | J163: 0.02 | K163: 0.15 | M163: 6.3 | N163: 0.003 | O163: 8.79 | P163: 10.3 | Q163: 59.8
A164: 1981-05-14 | B164: 11.5 | C164: 22.9 | D164: 153 | E164: 22.2 | F164: 0.12 | G164: 0.84 | H164: 7.2 | I164: 21.3 | J164: 0.02 | K164: 0.11 | M164: 6.38 | N164: 0.003 | O164: 8.75 | P164: 9.4 | Q164: 64.7
A165: 1981-05-21 | B165: 12 | C165: 23.4 | D165: 156 | E165: 22.9 | F165: 0.1 | G165: 0.98 | H165: 7.7 | I165: 21.5 | J165: 0.02 | K165: 0.21 | M165: 6.35 | N165: 0.003 | O165: 8.94 | P165: 8 | Q165: 66.7
A166: 1981-05-28 | B166: 11.4 | C166: 21.7 | D166: 149 | E166: 21.5 | F166: 0.1 | G166: 0.86 | H166: 7.4 | I166: 20.6 | J166: 0.02 | K166: 0.13 | M166: 6.35 | N166: 0.003 | O166: 8.67 | P166: 9.4 | Q166: 62.8
A167: 1981-06-04 | B167: 12.3 | C167: 23.9 | D167: 159 | E167: 23 | F167: 0.13 | G167: 0.84 | H167: 7.7 | I167: 22.8 | J167: 0.02 | K167: 0.13 | M167: 6.41 | N167: 0.003 | O167: 8.36 | P167: 8.5 | Q167: 67.8
A168: 1981-06-11 | B168: 12.4 | C168: 24.3 | D168: 163 | E168: 25.8 | F168: 0.05 | G168: 1.02 | H168: 8.2 | I168: 24.4 | J168: 0.02 | K168: 0.15 | M168: 7.16 | N168: 0.003 | O168: 8.21 | P168: 5.3 | Q168: 70.8
A169: 1981-06-18 | B169: 14.3 | C169: 29.6 | D169: 188 | E169: 29.5 | F169: 0.13 | G169: 1.09 | H169: 9.3 | I169: 27.9 | J169: 0.02 | K169: 0.13 | M169: 7.33 | N169: 0.006 | O169: 8.12 | P169: 4.8 | Q169: 82.2
A170: 1981-06-25 | B170: 13.7 | C170: 36.7 | D170: 212 | E170: 32 | F170: 0.05 | G170: 1.02 | H170: 10.3 | I170: 33.5 | J170: 0.02 | K170: 0.08 | M170: 7.1 | N170: 0.003 | O170: 7.42 | P170: 10.1 | Q170: 87.3
A171: 1981-07-02 | B171: 14.7 | C171: 39.7 | D171: 221 | E171: 33.2 | F171: 0.18 | G171: 1.02 | H171: 10.7 | I171: 34.3 | J171: 0.05 | K171: 0.13 | M171: 7.2 | N171: 0.003 | O171: 7.15 | P171: 8.9 | Q171: 91.3
A172: 1981-07-09 | B172: 14.8 | C172: 36.6 | D172: 219 | E172: 33.2 | F172: 0.23 | G172: 1.02 | H172: 11 | I172: 33.1 | J172: 0.02 | K172: 0.18 | M172: 7.3 | N172: 0.003 | O172: 7.33 | P172: 8.9 | Q172: 92.4
A173: 1981-07-16 | B173: 15.6 | C173: 40.7 | D173: 235 | E173: 35.8 | F173: 0.26 | G173: 1.08 | H173: 11.6 | I173: 36.6 | J173: 0.02 | K173: 0.18 | M173: 7.3 | N173: 0.003 | O173: 7.98 | P173: 9.5 | Q173: 97.5
A174: 1981-07-23 | B174: 17.1 | C174: 41 | D174: 247 | E174: 37 | F174: 0.12 | G174: 1.13 | H174: 11.9 | I174: 38.1 | J174: 0.02 | K174: 0.18 | M174: 6.65 | N174: 0.003 | O174: 8.17 | P174: 12.3 | Q174: 101.9
A175: 1981-07-30 | B175: 17.5 | C175: 43 | D175: 251 | E175: 38.4 | F175: 0.22 | G175: 1.06 | H175: 12 | I175: 39.8 | J175: 0.02 | K175: 0.15 | M175: 6.68 | N175: 0.003 | O175: 8.17 | P175: 11.1 | Q175: 103
A176: 1981-08-06 | B176: 18.5 | C176: 43.5 | D176: 261 | E176: 39.8 | F176: 0.26 | G176: 1.13 | H176: 12.8 | I176: 39.9 | J176: 0.02 | K176: 0.17 | M176: 6.71 | N176: 0.003 | O176: 8.51 | P176: 11.7 | Q176: 108.3
A177: 1981-08-13 | B177: 19.6 | C177: 47.7 | D177: 278 | E177: 42.4 | F177: 0.33 | G177: 1 | H177: 13.6 | I177: 43.8 | J177: 0.02 | K177: 0.15 | M177: 6.71 | N177: 0.005 | O177: 8.25 | P177: 12.3 | Q177: 113.6
A178: 1981-08-20 | B178: 20.7 | C178: 52.2 | D178: 281 | E178: 43.8 | F178: 0.16 | G178: 1.29 | H178: 13.8 | I178: 47 | J178: 0.02 | K178: 0.2 | M178: 6.97 | N178: 0.003 | O178: 8.5 | P178: 13.1 | Q178: 108
A179: 1981-09-03 | B179: 19.8 | C179: 47.9 | D179: 268 | E179: 42 | F179: 0.18 | G179: 1.62 | H179: 13.8 | I179: 43 | J179: 0.02 | K179: 0.27 | M179: 6.94 | N179: 0.003 | O179: 9.63 | P179: 8.7 | Q179: 108
A180: 1981-09-10 | B180: 19.1 | C180: 45.7 | D180: 257 | E180: 40.6 | F180: 0.18 | G180: 1.55 | H180: 13.5 | I180: 41.4 | J180: 0.02 | K180: 0.17 | M180: 6.88 | N180: 0.003 | O180: 9.22 | P180: 7.2 | Q180: 104.9
A181: 1981-09-17 | B181: 16.8 | C181: 37.5 | D181: 210 | E181: 34.4 | F181: 0.16 | G181: 1.55 | H181: 12.2 | I181: 32.9 | J181: 0.02 | K181: 0.24 | M181: 6.8 | N181: 0.003 | O181: 8.42 | P181: 6.4 | Q181: 82.8
A182: 1981-09-24 | B182: 18.9 | C182: 48.8 | D182: 272 | E182: 39 | F182: 0.2 | G182: 2.13 | H182: 13.2 | I182: 42.3 | J182: 0.05 | K182: 0.33 | M182: 7.14 | N182: 0.006 | O182: 8.14 | P182: 12.2 | Q182: 108.5
A183: 1981-10-01 | B183: 19.6 | C183: 51.5 | D183: 292 | E183: 41.6 | F183: 0.26 | G183: 1.79 | H183: 14.2 | I183: 46.3 | J183: 0.05 | K183: 0.19 | M183: 7.11 | N183: 0.007 | O183: 8.24 | P183: 15.1 | Q183: 117
A184: 1981-10-08 | B184: 18.1 | C184: 44.3 | D184: 262 | E184: 37.1 | F184: 0.24 | G184: 1.92 | H184: 13.2 | I184: 39.6 | J184: 0.05 | K184: 0.1 | M184: 7.11 | N184: 0.003 | O184: 8.51 | P184: 11.8 | Q184: 108.5
A185: 1981-10-15 | B185: 18.9 | C185: 49.2 | D185: 280 | E185: 39.6 | F185: 0.27 | G185: 1.65 | H185: 14 | I185: 44 | J185: 0.04 | K185: 0.04 | M185: 7.2 | N185: 0.005 | O185: 8.42 | P185: 12.2 | Q185: 114.8
A186: 1981-10-22 | B186: 18.8 | C186: 50.4 | D186: 288 | E186: 41.6 | F186: 0.22 | G186: 1.66 | H186: 14.2 | I186: 46.4 | J186: 0.02 | K186: 0.13 | M186: 7.26 | N186: 0.007 | O186: 8.51 | P186: 14.2 | Q186: 116.1
A187: 1981-10-29 | B187: 17.6 | C187: 49.8 | D187: 284 | E187: 41.6 | F187: 0.34 | G187: 1.47 | H187: 13.2 | I187: 49.5 | J187: 0.02 | K187: 0.11 | M187: 7.38 | N187: 0.007 | O187: 9.26 | P187: 14.1 | Q187: 113
A188: 1981-11-05 | B188: 15.7 | C188: 50.3 | D188: 244 | E188: 35.8 | F188: 0.18 | G188: 2.04 | H188: 11.9 | I188: 37.6 | J188: 0.02 | K188: 0.63 | M188: 7.6 | N188: 0.005 | O188: 8.17 | P188: 8.6 | Q188: 94.1
A189: 1981-11-12 | B189: 17 | C189: 49.8 | D189: 271 | E189: 40.4 | F189: 0.34 | G189: 1.47 | H189: 14 | I189: 45.9 | J189: 0.02 | K189: 0.12 | M189: 7.14 | N189: 0.006 | O189: 8.61 | P189: 12 | Q189: 106.7
A190: 1981-11-19 | B190: 19.2 | C190: 66.3 | D190: 333 | E190: 50.8 | F190: 0.34 | G190: 1.76 | H190: 16.6 | I190: 61 | J190: 0.02 | K190: 0.31 | M190: 7.2 | N190: 0.006 | O190: 8.62 | P190: 18 | Q190: 121.7
A191: 1981-11-26 | B191: 17.6 | C191: 42.5 | D191: 258 | E191: 37.3 | F191: 0.35 | G191: 2.57 | H191: 12 | I191: 42.2 | J191: 0.02 | K191: 0.44 | M191: 7.08 | N191: 0.015 | O191: 8.72 | P191: 14 | Q191: 102.7
A192: 1981-12-03 | B192: 14.2 | C192: 38.4 | D192: 181 | E192: 27.6 | F192: 0.22 | G192: 1.99 | H192: 7.9 | I192: 29.1 | J192: 0.05 | K192: 0.26 | M192: 7.4 | N192: 0.024 | O192: 8.17 | P192: 2 | Q192: 71.3
A193: 1981-12-10 | B193: 15.9 | C193: 45.5 | D193: 218 | E193: 32 | F193: 0.23 | G193: 1.87 | H193: 10 | I193: 33.3 | J193: 0.02 | K193: 0.16 | M193: 7.5 | N193: 0.006 | O193: 9.75 | P193: 8.4 | Q193: 83.6
A194: 1981-12-17 | B194: 18 | C194: 50.2 | D194: 249 | E194: 36.4 | F194: 0.26 | G194: 1.76 | H194: 11.8 | I194: 37.5 | J194: 0.02 | K194: 0.13 | M194: 7.5 | N194: 0.003 | O194: 9.06 | P194: 10.4 | Q194: 97.2
A195: 1981-12-23 | B195: 17.1 | C195: 57.1 | D195: 266 | E195: 39.7 | F195: 0.28 | G195: 1.76 | H195: 12.8 | I195: 43.2 | J195: 0.02 | K195: 0.19 | M195: 7.6 | N195: 0.006 | O195: 9.76 | P195: 10.3 | Q195: 100.3
A196: 1981-12-30 | B196: 16.5 | C196: 55 | D196: 292 | E196: 39.7 | F196: 0.28 | G196: 1.51 | H196: 12.7 | I196: 46.1 | J196: 0.02 | K196: 0.04 | M196: 5.6 | N196: 0.049 | O196: 10.75 | P196: 2 | Q196: 128.6
A197: 1982-01-07 | B197: 11.1 | C197: 34.9 | D197: 147 | E197: 21.7 | F197: 0.13 | G197: 2.18 | H197: 5.9 | I197: 20.7 | J197: 0.02 | K197: 0.12 | M197: 5.03 | N197: 0.013 | O197: 8.35 | P197: 2 | Q197: 59
A198: 1982-01-14 | B198: 9.2 | C198: 22.3 | D198: 115 | E198: 17 | F198: 0.21 | G198: 1.87 | H198: 5.3 | I198: 16.3 | J198: 0.02 | K198: 0.1 | M198: 7.26 | N198: 0.022 | O198: 7.64 | P198: 2 | Q198: 48.7
A199: 1982-01-21 | B199: 11.7 | C199: 26.6 | D199: 146 | E199: 20.5 | F199: 0.24 | G199: 1.57 | H199: 6.6 | I199: 18.1 | J199: 0.02 | K199: 0.02 | M199: 7.26 | N199: 0.003 | O199: 9.34 | P199: 2 | Q199: 64.9
A200: 1982-01-28 | B200: 13.5 | C200: 31.1 | D200: 161 | E200: 23 | F200: 0.29 | G200: 1.63 | H200: 7.2 | I200: 23.1 | J200: 0.02 | K200: 0.13 | M200: 7.41 | N200: 0.009 | O200: 9.03 | P200: 2 | Q200: 68.4
A201: 1982-02-04 | B201: 12.9 | C201: 32.6 | D201: 172 | E201: 23.6 | F201: 0.3 | G201: 1.39 | H201: 7.6 | I201: 23.5 | J201: 0.04 | K201: 0.02 | M201: 7.38 | N201: 0.003 | O201: 9.42 | P201: 2 | Q201: 74.2
A202: 1982-02-11 | B202: 13.9 | C202: 35.6 | D202: 177 | E202: 26.6 | F202: 0.32 | G202: 1.4 | H202: 8.9 | I202: 27.4 | J202: 0.02 | K202: 0.02 | M202: 7.52 | N202: 0.008 | O202: 10.03 | P202: 2 | Q202: 73
A203: 1982-02-18 | B203: 15.1 | C203: 43.7 | D203: 222 | E203: 32 | F203: 0.32 | G203: 1.52 | H203: 9.9 | I203: 32.2 | J203: 0.02 | K203: 0.21 | M203: 6.53 | N203: 0.009 | O203: 9.92 | P203: 6.6 | Q203: 91.9
A204: 1982-02-25 | B204: 15.3 | C204: 46.8 | D204: 248 | E204: 37.4 | F204: 0.17 | G204: 1.66 | H204: 11.3 | I204: 43.7 | J204: 0.04 | K204: 0.05 | M204: 7.4 | N204: 0.003 | O204: 10.12 | P204: 10.2 | Q204: 97
A205: 1982-03-04 | B205: 17.6 | C205: 52.1 | D205: 278 | E205: 41.3 | F205: 0.25 | G205: 1.97 | H205: 13.1 | I205: 48.9 | J205: 0.04 | K205: 0.12 | M205: 7.6 | N205: 0.006 | O205: 10.32 | P205: 12 | Q205: 108.2
... 659 more rows

Sheet Graphs

Sheet Record Summary
E1: 2011-01-01
A2: Station | B2: Last Recored Date | C2: Record Count According to DWS | D2: Record Count according to Sample set | E2: If 10 samples and still testing in the last 5 years | F2: Flow if any | G2: Longitude | H2: Latitude
A3: A91 1000001740 | B3: 2002-12-13 | C3: 1 | D3: 1 | E3: =IF(AND(B3>$E$1, C3 >10), "True", "") ->  | F3: =IF(INDEX('WQ DB'!X:X,MATCH('Record Summary'!A3,'WQ DB'!A:A,0)) = 0, "", INDEX('WQ DB'!X:X,MATCH('Record Summary'!A3,'WQ DB'!A:A,0))) ->  | G3: =INDEX('WQ DB'!Y:Y,MATCH('Record Summary'!A3,'WQ DB'!A:A,0)) -> -22.7902 | H3: =INDEX('WQ DB'!Z:Z,MATCH('Record Summary'!A3,'WQ DB'!A:A,0)) -> 30.72548
A4: A91 1000001742 | B4: 2002-12-13 | C4: 1 | D4: 1 | F4: =IF(INDEX('WQ DB'!X:X,MATCH('Record Summary'!A4,'WQ DB'!A:A,0)) = 0, "", INDEX('WQ DB'!X:X,MATCH('Record Summary'!A4,'WQ DB'!A:A,0))) ->  | G4: =INDEX('WQ DB'!Y:Y,MATCH('Record Summary'!A4,'WQ DB'!A:A,0)) -> -22.79582 | H4: =INDEX('WQ DB'!Z:Z,MATCH('Record Summary'!A4,'WQ DB'!A:A,0)) -> 30.71538
A5: A91 1000001744 | B5: 2003-01-08 | C5: 1 | D5: 1 | F5: =IF(INDEX('WQ DB'!X:X,MATCH('Record Summary'!A5,'WQ DB'!A:A,0)) = 0, "", INDEX('WQ DB'!X:X,MATCH('Record Summary'!A5,'WQ DB'!A:A,0))) ->  | G5: =INDEX('WQ DB'!Y:Y,MATCH('Record Summary'!A5,'WQ DB'!A:A,0)) -> -22.97229 | H5: =INDEX('WQ DB'!Z:Z,MATCH('Record Summary'!A5,'WQ DB'!A:A,0)) -> 30.33396
A6: A91 1000003139 | B6: 2015-07-30 | C6: 14 | D6: 54 | E6: True | F6: =IF(INDEX('WQ DB'!X:X,MATCH('Record Summary'!A6,'WQ DB'!A:A,0)) = 0, "", INDEX('WQ DB'!X:X,MATCH('Record Summary'!A6,'WQ DB'!A:A,0))) ->  | G6: =INDEX('WQ DB'!Y:Y,MATCH('Record Summary'!A6,'WQ DB'!A:A,0)) -> -23.1519 | H6: =INDEX('WQ DB'!Z:Z,MATCH('Record Summary'!A6,'WQ DB'!A:A,0)) -> 30.0803
A7: A91 1000003257 | B7: 2003-02-14 | C7: 1 | D7: 1 | F7: =IF(INDEX('WQ DB'!X:X,MATCH('Record Summary'!A7,'WQ DB'!A:A,0)) = 0, "", INDEX('WQ DB'!X:X,MATCH('Record Summary'!A7,'WQ DB'!A:A,0))) ->  | G7: =INDEX('WQ DB'!Y:Y,MATCH('Record Summary'!A7,'WQ DB'!A:A,0)) -> -22.80333 | H7: =INDEX('WQ DB'!Z:Z,MATCH('Record Summary'!A7,'WQ DB'!A:A,0)) -> 30.56722
A8: A91 1000005466 | B8: 2015-03-17 | C8: 16 | D8: 16 | E8: True | F8: =IF(INDEX('WQ DB'!X:X,MATCH('Record Summary'!A8,'WQ DB'!A:A,0)) = 0, "", INDEX('WQ DB'!X:X,MATCH('Record Summary'!A8,'WQ DB'!A:A,0))) ->  | G8: =INDEX('WQ DB'!Y:Y,MATCH('Record Summary'!A8,'WQ DB'!A:A,0)) -> -22.77825 | H8: =INDEX('WQ DB'!Z:Z,MATCH('Record Summary'!A8,'WQ DB'!A:A,0)) -> 30.89155
A9: A91 1000005468 | B9: 2009-05-12 | C9: 7 | D9: 8 | F9: =IF(INDEX('WQ DB'!X:X,MATCH('Record Summary'!A9,'WQ DB'!A:A,0)) = 0, "", INDEX('WQ DB'!X:X,MATCH('Record Summary'!A9,'WQ DB'!A:A,0))) ->  | G9: =INDEX('WQ DB'!Y:Y,MATCH('Record Summary'!A9,'WQ DB'!A:A,0)) -> -23.15758 | H9: =INDEX('WQ DB'!Z:Z,MATCH('Record Summary'!A9,'WQ DB'!A:A,0)) -> 30.07111
A10: A91 1000005469 | B10: 2015-07-30 | C10: 27 | D10: 37 | E10: True | F10: =IF(INDEX('WQ DB'!X:X,MATCH('Record Summary'!A10,'WQ DB'!A:A,0)) = 0, "", INDEX('WQ DB'!X:X,MATCH('Record Summary'!A10,'WQ DB'!A:A,0))) ->  | G10: =INDEX('WQ DB'!Y:Y,MATCH('Record Summary'!A10,'WQ DB'!A:A,0)) -> -23.1494 | H10: =INDEX('WQ DB'!Z:Z,MATCH('Record Summary'!A10,'WQ DB'!A:A,0)) -> 30.08302
A11: A91 1000005471 | B11: 2009-01-21 | C11: 8 | D11: 9 | F11: =IF(INDEX('WQ DB'!X:X,MATCH('Record Summary'!A11,'WQ DB'!A:A,0)) = 0, "", INDEX('WQ DB'!X:X,MATCH('Record Summary'!A11,'WQ DB'!A:A,0))) ->  | G11: =INDEX('WQ DB'!Y:Y,MATCH('Record Summary'!A11,'WQ DB'!A:A,0)) -> -23.14625 | H11: =INDEX('WQ DB'!Z:Z,MATCH('Record Summary'!A11,'WQ DB'!A:A,0)) -> 30.05822
A12: A91 1000007325 | B12: 2003-12-12 | C12: 1 | D12: 1 | F12: =IF(INDEX('WQ DB'!X:X,MATCH('Record Summary'!A12,'WQ DB'!A:A,0)) = 0, "", INDEX('WQ DB'!X:X,MATCH('Record Summary'!A12,'WQ DB'!A:A,0))) ->  | G12: =INDEX('WQ DB'!Y:Y,MATCH('Record Summary'!A12,'WQ DB'!A:A,0)) -> -22.70792 | H12: =INDEX('WQ DB'!Z:Z,MATCH('Record Summary'!A12,'WQ DB'!A:A,0)) -> 30.76401
A13: A91 1000009909 | B13: 2005-10-11 | C13: 10 | D13: 10 | F13: =IF(INDEX('WQ DB'!X:X,MATCH('Record Summary'!A13,'WQ DB'!A:A,0)) = 0, "", INDEX('WQ DB'!X:X,MATCH('Record Summary'!A13,'WQ DB'!A:A,0))) ->  | G13: =INDEX('WQ DB'!Y:Y,MATCH('Record Summary'!A13,'WQ DB'!A:A,0)) -> -22.89817 | H13: =INDEX('WQ DB'!Z:Z,MATCH('Record Summary'!A13,'WQ DB'!A:A,0)) -> 30.50117
A14: A91 1000190042 | B14: 2007-05-24 | C14: 1 | D14: 1 | F14: =IF(INDEX('WQ DB'!X:X,MATCH('Record Summary'!A14,'WQ DB'!A:A,0)) = 0, "", INDEX('WQ DB'!X:X,MATCH('Record Summary'!A14,'WQ DB'!A:A,0))) ->  | G14: =INDEX('WQ DB'!Y:Y,MATCH('Record Summary'!A14,'WQ DB'!A:A,0)) -> -22.96191 | H14: =INDEX('WQ DB'!Z:Z,MATCH('Record Summary'!A14,'WQ DB'!A:A,0)) -> 30.58911
A15: A91 1000190044 | B15: 2007-05-28 | C15: 1 | D15: 1 | F15: =IF(INDEX('WQ DB'!X:X,MATCH('Record Summary'!A15,'WQ DB'!A:A,0)) = 0, "", INDEX('WQ DB'!X:X,MATCH('Record Summary'!A15,'WQ DB'!A:A,0))) ->  | G15: =INDEX('WQ DB'!Y:Y,MATCH('Record Summary'!A15,'WQ DB'!A:A,0)) -> -23.03938 | H15: =INDEX('WQ DB'!Z:Z,MATCH('Record Summary'!A15,'WQ DB'!A:A,0)) -> 30.43195
A16: A91 1000190046 | B16: 2007-05-27 | C16: 1 | D16: 1 | F16: =IF(INDEX('WQ DB'!X:X,MATCH('Record Summary'!A16,'WQ DB'!A:A,0)) = 0, "", INDEX('WQ DB'!X:X,MATCH('Record Summary'!A16,'WQ DB'!A:A,0))) ->  | G16: =INDEX('WQ DB'!Y:Y,MATCH('Record Summary'!A16,'WQ DB'!A:A,0)) -> -23.04786 | H16: =INDEX('WQ DB'!Z:Z,MATCH('Record Summary'!A16,'WQ DB'!A:A,0)) -> 30.34036
A17: A91 1000190050 | B17: 2007-05-23 | C17: 1 | D17: 1 | F17: =IF(INDEX('WQ DB'!X:X,MATCH('Record Summary'!A17,'WQ DB'!A:A,0)) = 0, "", INDEX('WQ DB'!X:X,MATCH('Record Summary'!A17,'WQ DB'!A:A,0))) ->  | G17: =INDEX('WQ DB'!Y:Y,MATCH('Record Summary'!A17,'WQ DB'!A:A,0)) -> -22.99967 | H17: =INDEX('WQ DB'!Z:Z,MATCH('Record Summary'!A17,'WQ DB'!A:A,0)) -> 30.36645
A18: A91 1000190064 | B18: 2007-06-28 | C18: 1 | D18: 1 | F18: =IF(INDEX('WQ DB'!X:X,MATCH('Record Summary'!A18,'WQ DB'!A:A,0)) = 0, "", INDEX('WQ DB'!X:X,MATCH('Record Summary'!A18,'WQ DB'!A:A,0))) ->  | G18: =INDEX('WQ DB'!Y:Y,MATCH('Record Summary'!A18,'WQ DB'!A:A,0)) -> -23.14422 | H18: =INDEX('WQ DB'!Z:Z,MATCH('Record Summary'!A18,'WQ DB'!A:A,0)) -> 30.21147
A19: A91 1000190068 | B19: 2007-06-21 | C19: 1 | D19: 1 | F19: =IF(INDEX('WQ DB'!X:X,MATCH('Record Summary'!A19,'WQ DB'!A:A,0)) = 0, "", INDEX('WQ DB'!X:X,MATCH('Record Summary'!A19,'WQ DB'!A:A,0))) ->  | G19: =INDEX('WQ DB'!Y:Y,MATCH('Record Summary'!A19,'WQ DB'!A:A,0)) -> -23.1213 | H19: =INDEX('WQ DB'!Z:Z,MATCH('Record Summary'!A19,'WQ DB'!A:A,0)) -> 30.21561
A20: A91 1000190100 | B20: 2007-06-25 | C20: 1 | D20: 1 | F20: =IF(INDEX('WQ DB'!X:X,MATCH('Record Summary'!A20,'WQ DB'!A:A,0)) = 0, "", INDEX('WQ DB'!X:X,MATCH('Record Summary'!A20,'WQ DB'!A:A,0))) ->  | G20: =INDEX('WQ DB'!Y:Y,MATCH('Record Summary'!A20,'WQ DB'!A:A,0)) -> -23.10852 | H20: =INDEX('WQ DB'!Z:Z,MATCH('Record Summary'!A20,'WQ DB'!A:A,0)) -> 30.17683
A21: A91 1000190162 | B21: 2007-06-20 | C21: 1 | D21: 1 | F21: =IF(INDEX('WQ DB'!X:X,MATCH('Record Summary'!A21,'WQ DB'!A:A,0)) = 0, "", INDEX('WQ DB'!X:X,MATCH('Record Summary'!A21,'WQ DB'!A:A,0))) ->  | G21: =INDEX('WQ DB'!Y:Y,MATCH('Record Summary'!A21,'WQ DB'!A:A,0)) -> -23.12011 | H21: =INDEX('WQ DB'!Z:Z,MATCH('Record Summary'!A21,'WQ DB'!A:A,0)) -> 30.18847
A22: A91 1000190168 | B22: 2007-06-16 | C22: 1 | D22: 1 | F22: =IF(INDEX('WQ DB'!X:X,MATCH('Record Summary'!A22,'WQ DB'!A:A,0)) = 0, "", INDEX('WQ DB'!X:X,MATCH('Record Summary'!A22,'WQ DB'!A:A,0))) ->  | G22: =INDEX('WQ DB'!Y:Y,MATCH('Record Summary'!A22,'WQ DB'!A:A,0)) -> -23.00547 | H22: =INDEX('WQ DB'!Z:Z,MATCH('Record Summary'!A22,'WQ DB'!A:A,0)) -> 30.32883
A23: A91 101078 | B23: 1992-04-13 | C23: 1 | D23: 1 | F23: =IF(INDEX('WQ DB'!X:X,MATCH('Record Summary'!A23,'WQ DB'!A:A,0)) = 0, "", INDEX('WQ DB'!X:X,MATCH('Record Summary'!A23,'WQ DB'!A:A,0))) ->  | G23: =INDEX('WQ DB'!Y:Y,MATCH('Record Summary'!A23,'WQ DB'!A:A,0)) -> -23.00833 | H23: =INDEX('WQ DB'!Z:Z,MATCH('Record Summary'!A23,'WQ DB'!A:A,0)) -> 30.21167
A24: A91 101379 | B24: 1994-11-08 | C24: 1 | D24: 1 | F24: =IF(INDEX('WQ DB'!X:X,MATCH('Record Summary'!A24,'WQ DB'!A:A,0)) = 0, "", INDEX('WQ DB'!X:X,MATCH('Record Summary'!A24,'WQ DB'!A:A,0))) ->  | G24: =INDEX('WQ DB'!Y:Y,MATCH('Record Summary'!A24,'WQ DB'!A:A,0)) -> -22.71528 | H24: =INDEX('WQ DB'!Z:Z,MATCH('Record Summary'!A24,'WQ DB'!A:A,0)) -> 30.74889
A25: A91 103117 | B25: 2015-01-26 | C25: 3 | D25: 3 | F25: =IF(INDEX('WQ DB'!X:X,MATCH('Record Summary'!A25,'WQ DB'!A:A,0)) = 0, "", INDEX('WQ DB'!X:X,MATCH('Record Summary'!A25,'WQ DB'!A:A,0))) ->  | G25: =INDEX('WQ DB'!Y:Y,MATCH('Record Summary'!A25,'WQ DB'!A:A,0)) -> -23.06 | H25: =INDEX('WQ DB'!Z:Z,MATCH('Record Summary'!A25,'WQ DB'!A:A,0)) -> 30.44
A26: A91 177703 | B26: 2015-06-03 | C26: 100 | D26: 102 | E26: True | F26: =IF(INDEX('WQ DB'!X:X,MATCH('Record Summary'!A26,'WQ DB'!A:A,0)) = 0, "", INDEX('WQ DB'!X:X,MATCH('Record Summary'!A26,'WQ DB'!A:A,0))) -> A9H015 | G26: =INDEX('WQ DB'!Y:Y,MATCH('Record Summary'!A26,'WQ DB'!A:A,0)) -> -23.03694 | H26: =INDEX('WQ DB'!Z:Z,MATCH('Record Summary'!A26,'WQ DB'!A:A,0)) -> 30.27694
A27: A91 187038 | B27: 2002-11-20 | C27: 1 | D27: 1 | F27: =IF(INDEX('WQ DB'!X:X,MATCH('Record Summary'!A27,'WQ DB'!A:A,0)) = 0, "", INDEX('WQ DB'!X:X,MATCH('Record Summary'!A27,'WQ DB'!A:A,0))) ->  | G27: =INDEX('WQ DB'!Y:Y,MATCH('Record Summary'!A27,'WQ DB'!A:A,0)) -> -22.92667 | H27: =INDEX('WQ DB'!Z:Z,MATCH('Record Summary'!A27,'WQ DB'!A:A,0)) -> 30.52527
A28: A91 188124 | B28: 2010-02-24 | C28: 5 | D28: 5 | F28: =IF(INDEX('WQ DB'!X:X,MATCH('Record Summary'!A28,'WQ DB'!A:A,0)) = 0, "", INDEX('WQ DB'!X:X,MATCH('Record Summary'!A28,'WQ DB'!A:A,0))) ->  | G28: =INDEX('WQ DB'!Y:Y,MATCH('Record Summary'!A28,'WQ DB'!A:A,0)) -> -22.89733 | H28: =INDEX('WQ DB'!Z:Z,MATCH('Record Summary'!A28,'WQ DB'!A:A,0)) -> 30.4996
A29: A91 188125 | B29: 2015-03-20 | C29: 28 | D29: 35 | E29: True | F29: =IF(INDEX('WQ DB'!X:X,MATCH('Record Summary'!A29,'WQ DB'!A:A,0)) = 0, "", INDEX('WQ DB'!X:X,MATCH('Record Summary'!A29,'WQ DB'!A:A,0))) ->  | G29: =INDEX('WQ DB'!Y:Y,MATCH('Record Summary'!A29,'WQ DB'!A:A,0)) -> -22.90497 | H29: =INDEX('WQ DB'!Z:Z,MATCH('Record Summary'!A29,'WQ DB'!A:A,0)) -> 30.53532
A30: A91 188152 | B30: 2015-06-04 | C30: 11 | D30: 18 | E30: True | F30: =IF(INDEX('WQ DB'!X:X,MATCH('Record Summary'!A30,'WQ DB'!A:A,0)) = 0, "", INDEX('WQ DB'!X:X,MATCH('Record Summary'!A30,'WQ DB'!A:A,0))) ->  | G30: =INDEX('WQ DB'!Y:Y,MATCH('Record Summary'!A30,'WQ DB'!A:A,0)) -> -23.15758 | H30: =INDEX('WQ DB'!Z:Z,MATCH('Record Summary'!A30,'WQ DB'!A:A,0)) -> 30.07111
A31: A91 188154 | B31: 2015-06-18 | C31: 59 | D31: 63 | E31: True | F31: =IF(INDEX('WQ DB'!X:X,MATCH('Record Summary'!A31,'WQ DB'!A:A,0)) = 0, "", INDEX('WQ DB'!X:X,MATCH('Record Summary'!A31,'WQ DB'!A:A,0))) -> A9H026 | G31: =INDEX('WQ DB'!Y:Y,MATCH('Record Summary'!A31,'WQ DB'!A:A,0)) -> -22.95139 | H31: =INDEX('WQ DB'!Z:Z,MATCH('Record Summary'!A31,'WQ DB'!A:A,0)) -> 30.35806
A32: A91 188155 | B32: 2015-07-08 | C32: 65 | D32: 66 | E32: True | F32: =IF(INDEX('WQ DB'!X:X,MATCH('Record Summary'!A32,'WQ DB'!A:A,0)) = 0, "", INDEX('WQ DB'!X:X,MATCH('Record Summary'!A32,'WQ DB'!A:A,0))) -> A9H027 | G32: =INDEX('WQ DB'!Y:Y,MATCH('Record Summary'!A32,'WQ DB'!A:A,0)) -> -23.0525 | H32: =INDEX('WQ DB'!Z:Z,MATCH('Record Summary'!A32,'WQ DB'!A:A,0)) -> 30.23944
A33: A91 188177 | B33: 2005-11-17 | C33: 7 | D33: 7 | F33: =IF(INDEX('WQ DB'!X:X,MATCH('Record Summary'!A33,'WQ DB'!A:A,0)) = 0, "", INDEX('WQ DB'!X:X,MATCH('Record Summary'!A33,'WQ DB'!A:A,0))) ->  | G33: =INDEX('WQ DB'!Y:Y,MATCH('Record Summary'!A33,'WQ DB'!A:A,0)) -> -22.905 | H33: =INDEX('WQ DB'!Z:Z,MATCH('Record Summary'!A33,'WQ DB'!A:A,0)) -> 30.53967
A34: A91 188179 | B34: 2015-03-20 | C34: 26 | D34: 47 | E34: True | F34: =IF(INDEX('WQ DB'!X:X,MATCH('Record Summary'!A34,'WQ DB'!A:A,0)) = 0, "", INDEX('WQ DB'!X:X,MATCH('Record Summary'!A34,'WQ DB'!A:A,0))) ->  | G34: =INDEX('WQ DB'!Y:Y,MATCH('Record Summary'!A34,'WQ DB'!A:A,0)) -> -23.00007 | H34: =INDEX('WQ DB'!Z:Z,MATCH('Record Summary'!A34,'WQ DB'!A:A,0)) -> 30.4709
A35: A91 188180 | B35: 2015-03-20 | C35: 25 | D35: 50 | E35: True | F35: =IF(INDEX('WQ DB'!X:X,MATCH('Record Summary'!A35,'WQ DB'!A:A,0)) = 0, "", INDEX('WQ DB'!X:X,MATCH('Record Summary'!A35,'WQ DB'!A:A,0))) ->  | G35: =INDEX('WQ DB'!Y:Y,MATCH('Record Summary'!A35,'WQ DB'!A:A,0)) -> -23.0017 | H35: =INDEX('WQ DB'!Z:Z,MATCH('Record Summary'!A35,'WQ DB'!A:A,0)) -> 30.47725
A36: A91 188568 | B36: 2006-04-26 | C36: 1 | D36: 1 | F36: =IF(INDEX('WQ DB'!X:X,MATCH('Record Summary'!A36,'WQ DB'!A:A,0)) = 0, "", INDEX('WQ DB'!X:X,MATCH('Record Summary'!A36,'WQ DB'!A:A,0))) ->  | G36: =INDEX('WQ DB'!Y:Y,MATCH('Record Summary'!A36,'WQ DB'!A:A,0)) -> -23.14967 | H36: =INDEX('WQ DB'!Z:Z,MATCH('Record Summary'!A36,'WQ DB'!A:A,0)) -> 30.08308
A37: A91 189081 | B37: 2009-06-23 | D37: 3 | F37: =IF(INDEX('WQ DB'!X:X,MATCH('Record Summary'!A37,'WQ DB'!A:A,0)) = 0, "", INDEX('WQ DB'!X:X,MATCH('Record Summary'!A37,'WQ DB'!A:A,0))) ->  | G37: =INDEX('WQ DB'!Y:Y,MATCH('Record Summary'!A37,'WQ DB'!A:A,0)) -> -22.90153 | H37: =INDEX('WQ DB'!Z:Z,MATCH('Record Summary'!A37,'WQ DB'!A:A,0)) -> 30.69578
A38: A91 189421 | B38: 2015-02-21 | C38: 41 | D38: 44 | E38: True | F38: =IF(INDEX('WQ DB'!X:X,MATCH('Record Summary'!A38,'WQ DB'!A:A,0)) = 0, "", INDEX('WQ DB'!X:X,MATCH('Record Summary'!A38,'WQ DB'!A:A,0))) ->  | G38: =INDEX('WQ DB'!Y:Y,MATCH('Record Summary'!A38,'WQ DB'!A:A,0)) -> -22.33339 | H38: =INDEX('WQ DB'!Z:Z,MATCH('Record Summary'!A38,'WQ DB'!A:A,0)) -> 31.14636
A39: A91 190095 | B39: 2015-09-22 | C39: 90 | D39: 94 | E39: True | F39: =IF(INDEX('WQ DB'!X:X,MATCH('Record Summary'!A39,'WQ DB'!A:A,0)) = 0, "", INDEX('WQ DB'!X:X,MATCH('Record Summary'!A39,'WQ DB'!A:A,0))) -> A9R004 | G39: =INDEX('WQ DB'!Y:Y,MATCH('Record Summary'!A39,'WQ DB'!A:A,0)) -> -22.98219 | H39: =INDEX('WQ DB'!Z:Z,MATCH('Record Summary'!A39,'WQ DB'!A:A,0)) -> 30.59897
A40: A91 190111 | B40: 2009-08-04 | C40: 1 | D40: 1 | F40: =IF(INDEX('WQ DB'!X:X,MATCH('Record Summary'!A40,'WQ DB'!A:A,0)) = 0, "", INDEX('WQ DB'!X:X,MATCH('Record Summary'!A40,'WQ DB'!A:A,0))) ->  | G40: =INDEX('WQ DB'!Y:Y,MATCH('Record Summary'!A40,'WQ DB'!A:A,0)) -> -22.84833 | H40: =INDEX('WQ DB'!Z:Z,MATCH('Record Summary'!A40,'WQ DB'!A:A,0)) -> 30.55883
A41: A91 190134 | B41: 2009-08-24 | C41: 1 | D41: 1 | F41: =IF(INDEX('WQ DB'!X:X,MATCH('Record Summary'!A41,'WQ DB'!A:A,0)) = 0, "", INDEX('WQ DB'!X:X,MATCH('Record Summary'!A41,'WQ DB'!A:A,0))) ->  | G41: =INDEX('WQ DB'!Y:Y,MATCH('Record Summary'!A41,'WQ DB'!A:A,0)) -> -23.05691 | H41: =INDEX('WQ DB'!Z:Z,MATCH('Record Summary'!A41,'WQ DB'!A:A,0)) -> 30.39279
A42: A91 190136 | B42: 2015-08-05 | C42: 29 | D42: 46 | E42: True | F42: =IF(INDEX('WQ DB'!X:X,MATCH('Record Summary'!A42,'WQ DB'!A:A,0)) = 0, "", INDEX('WQ DB'!X:X,MATCH('Record Summary'!A42,'WQ DB'!A:A,0))) -> A9H030 | G42: =INDEX('WQ DB'!Y:Y,MATCH('Record Summary'!A42,'WQ DB'!A:A,0)) -> -22.97852 | H42: =INDEX('WQ DB'!Z:Z,MATCH('Record Summary'!A42,'WQ DB'!A:A,0)) -> 30.60104
A43: A91 190137 | B43: 2011-01-19 | D43: 12 | F43: =IF(INDEX('WQ DB'!X:X,MATCH('Record Summary'!A43,'WQ DB'!A:A,0)) = 0, "", INDEX('WQ DB'!X:X,MATCH('Record Summary'!A43,'WQ DB'!A:A,0))) ->  | G43: =INDEX('WQ DB'!Y:Y,MATCH('Record Summary'!A43,'WQ DB'!A:A,0)) -> -23.08567 | H43: =INDEX('WQ DB'!Z:Z,MATCH('Record Summary'!A43,'WQ DB'!A:A,0)) -> 30.17528
A44: A91 190138 | B44: 2009-06-23 | D44: 16 | F44: =IF(INDEX('WQ DB'!X:X,MATCH('Record Summary'!A44,'WQ DB'!A:A,0)) = 0, "", INDEX('WQ DB'!X:X,MATCH('Record Summary'!A44,'WQ DB'!A:A,0))) ->  | G44: =INDEX('WQ DB'!Y:Y,MATCH('Record Summary'!A44,'WQ DB'!A:A,0)) -> -23.05661 | H44: =INDEX('WQ DB'!Z:Z,MATCH('Record Summary'!A44,'WQ DB'!A:A,0)) -> 30.24306
A45: A91 190213 | B45: 2008-01-16 | C45: 1 | D45: 6 | F45: =IF(INDEX('WQ DB'!X:X,MATCH('Record Summary'!A45,'WQ DB'!A:A,0)) = 0, "", INDEX('WQ DB'!X:X,MATCH('Record Summary'!A45,'WQ DB'!A:A,0))) ->  | G45: =INDEX('WQ DB'!Y:Y,MATCH('Record Summary'!A45,'WQ DB'!A:A,0)) -> -23.14619 | H45: =INDEX('WQ DB'!Z:Z,MATCH('Record Summary'!A45,'WQ DB'!A:A,0)) -> 30.05825
A46: A91 190217 | B46: 2015-02-18 | C46: 15 | D46: 47 | E46: True | F46: =IF(INDEX('WQ DB'!X:X,MATCH('Record Summary'!A46,'WQ DB'!A:A,0)) = 0, "", INDEX('WQ DB'!X:X,MATCH('Record Summary'!A46,'WQ DB'!A:A,0))) ->  | G46: =INDEX('WQ DB'!Y:Y,MATCH('Record Summary'!A46,'WQ DB'!A:A,0)) -> -22.97879 | H46: =INDEX('WQ DB'!Z:Z,MATCH('Record Summary'!A46,'WQ DB'!A:A,0)) -> 30.48058
A47: A91 190223 | B47: 2014-11-26 | C47: 15 | D47: 44 | E47: True | F47: =IF(INDEX('WQ DB'!X:X,MATCH('Record Summary'!A47,'WQ DB'!A:A,0)) = 0, "", INDEX('WQ DB'!X:X,MATCH('Record Summary'!A47,'WQ DB'!A:A,0))) ->  | G47: =INDEX('WQ DB'!Y:Y,MATCH('Record Summary'!A47,'WQ DB'!A:A,0)) -> -22.97807 | H47: =INDEX('WQ DB'!Z:Z,MATCH('Record Summary'!A47,'WQ DB'!A:A,0)) -> 30.48235
A48: A91 190224 | B48: 2015-08-05 | C48: 20 | D48: 20 | E48: True | F48: =IF(INDEX('WQ DB'!X:X,MATCH('Record Summary'!A48,'WQ DB'!A:A,0)) = 0, "", INDEX('WQ DB'!X:X,MATCH('Record Summary'!A48,'WQ DB'!A:A,0))) ->  | G48: =INDEX('WQ DB'!Y:Y,MATCH('Record Summary'!A48,'WQ DB'!A:A,0)) -> -23.08547 | H48: =INDEX('WQ DB'!Z:Z,MATCH('Record Summary'!A48,'WQ DB'!A:A,0)) -> 30.47319
A49: A91 190475 | B49: 2007-05-31 | C49: 3 | D49: 7 | F49: =IF(INDEX('WQ DB'!X:X,MATCH('Record Summary'!A49,'WQ DB'!A:A,0)) = 0, "", INDEX('WQ DB'!X:X,MATCH('Record Summary'!A49,'WQ DB'!A:A,0))) ->  | G49: =INDEX('WQ DB'!Y:Y,MATCH('Record Summary'!A49,'WQ DB'!A:A,0)) -> -22.90221 | H49: =INDEX('WQ DB'!Z:Z,MATCH('Record Summary'!A49,'WQ DB'!A:A,0)) -> 30.53509
A50: A91 190482 | B50: 2015-07-30 | C50: 1 | D50: 29 | F50: =IF(INDEX('WQ DB'!X:X,MATCH('Record Summary'!A50,'WQ DB'!A:A,0)) = 0, "", INDEX('WQ DB'!X:X,MATCH('Record Summary'!A50,'WQ DB'!A:A,0))) ->  | G50: =INDEX('WQ DB'!Y:Y,MATCH('Record Summary'!A50,'WQ DB'!A:A,0)) -> -23.11758 | H50: =INDEX('WQ DB'!Z:Z,MATCH('Record Summary'!A50,'WQ DB'!A:A,0)) -> 30.42519
A51: A91 190494 | B51: 2015-07-30 | C51: 2 | D51: 34 | F51: =IF(INDEX('WQ DB'!X:X,MATCH('Record Summary'!A51,'WQ DB'!A:A,0)) = 0, "", INDEX('WQ DB'!X:X,MATCH('Record Summary'!A51,'WQ DB'!A:A,0))) ->  | G51: =INDEX('WQ DB'!Y:Y,MATCH('Record Summary'!A51,'WQ DB'!A:A,0)) -> -23.14989 | H51: =INDEX('WQ DB'!Z:Z,MATCH('Record Summary'!A51,'WQ DB'!A:A,0)) -> 30.05836
A52: A91 190871 | B52: 2015-07-30 | C52: 2 | D52: 34 | F52: =IF(INDEX('WQ DB'!X:X,MATCH('Record Summary'!A52,'WQ DB'!A:A,0)) = 0, "", INDEX('WQ DB'!X:X,MATCH('Record Summary'!A52,'WQ DB'!A:A,0))) ->  | G52: =INDEX('WQ DB'!Y:Y,MATCH('Record Summary'!A52,'WQ DB'!A:A,0)) -> -23.06544 | H52: =INDEX('WQ DB'!Z:Z,MATCH('Record Summary'!A52,'WQ DB'!A:A,0)) -> 30.39408
A53: A91 192345 | B53: 2011-04-12 | C53: 1 | D53: 1 | F53: =IF(INDEX('WQ DB'!X:X,MATCH('Record Summary'!A53,'WQ DB'!A:A,0)) = 0, "", INDEX('WQ DB'!X:X,MATCH('Record Summary'!A53,'WQ DB'!A:A,0))) ->  | G53: =INDEX('WQ DB'!Y:Y,MATCH('Record Summary'!A53,'WQ DB'!A:A,0)) -> -22.99369 | H53: =INDEX('WQ DB'!Z:Z,MATCH('Record Summary'!A53,'WQ DB'!A:A,0)) -> 30.46647
